Workbook

Sheet Saisies-Résultats
A1: Outil de post-traitement des appoints thermodynamiques Utilisation dans le cadre de l'arrêté du 26 juin 2015 relatif à l’agrément des modalités de prise en compte des systèmes «HPSU Compact», « GCU Compact», «Ballons hors pression» et «Solaris» dans la réglementation thermique 2012
B4: Nom du projet | C4: Exemple SSC Appoint thermo | K4: Données à saisir
B5: Opérateur | C5: C.TANG | K5: Résultats
B6: Date | C6: 2014-11-12
B8: Version1: mise en ligne le 16/01/2016
A9: Données Projet
B10: SHON RT | C10: m² | D10: 120
B11: Zone climatique | C11: - | D11: H3
B12: Altitude | C12: m | D12: 100
B13: Type système | C13: - | D13: SSC
B14: Service du générateur | C14: - | D14: ECS et Chauffage
B15: Nombre de générateurs identiques | C15: - | D15: 1
A18: Données ECS
B19: Volume appoint ballon | C19: litres | D19: 150
B20: UA_hx_charge | C20: W/K | D20: 1200
B21: Réseau intergroupe bouclé ECS | C21: - | D21: Non
B22: Longueur totale du réseau de distribution intergroupe bouclé en volume chauffé | C22: m | D22: 45
B23: Longueur totale du réseau de distribution intergroupe bouclé hors volume chauffé | C23: m | D23: 60
B24: Coefficient de transfert thermique linéique spécifique de la distribution intergroupe d’ECS | C24: W/(m.K) | D24: 0.4
B25: Coefficient de prise en compte d’un espace tampon | C25: - | D25: 1
A28: Données Chauffage
B29: Tdépart_nominale_chauffage | C29: °C | D29: 35
B30: Chute_nominale_chauffage | C30: °C | D30: 5
B31: Typologie d'émetteur | C31: - | D31: Planchers et plafonds chauffant intégrés au bâti (inertie forte)
A34: Caractéristiques générales Pompe à chaleur
B35: Fonctionnement du compresseur | C35: - | D35: Fonctionnement en mode continu du compresseur ou en cycle marche arrêt du compresseur
B36: Statut des données en mode continu | C36: - | D36: Valeurs par défaut
B37: Pourcentage minimal de charge en fonctionnement continu | C37: % | D37: 24
B38: Correction de performance en fonction de la charge minimale | C38: - | D38: 1.078
B39: Statut de la part de la puissance des auxiliaires | C39: - | D39: Valeur par défaut
B40: Pourcentage de la puissance élec. des auxiliaires dans la puiss. Élec. Totale | C40: % | D40: 0.57
B41: Type de limite de température | C41: - | D41: Limite sur l'une ou l'autre des températures de source
B42: Temp. min amont en mode chaud où la machine ne fonctionne plus | C42: °C | D42: -20
B43: Temp. maxi aval en mode chaud où la machine ne fonctionne plus | C43: °C | D43: 55
A46: Caractéristiques Pompe à chaleur en ECS
B47: Statut COP 7/45 | C47: - | D47: Valeur déclarée
B48: COP 7/45 | C48: - | D48: 3.4
B49: P absorbée 7/45 | C49: kW | D49: 1.44
B52: Autres valeurs COP disponibles en ECS | C52: - | D52: Non
B53: Températures Source Amont en ECS | C53: °C | D53: 7°C
B54: Températures Source Aval en ECS | C54: °C | D54: 45°C
B57: Matrice COP/Pabsorbée en ECS
E58: 5 | F58: 15 | G58: 25 | H58: 35 | I58: 45 | J58: 55 | K58: 65
C59: -7 | D59: COP
D60: P absorbée
D61: Certification | E61: Certifiée | F61: Certifiée | G61: Certifiée | H61: Certifiée | I61: Certifiée | J61: Certifiée | K61: Certifiée
C62: 2 | D62: COP
D63: P absorbée
D64: Certification | E64: Certifiée | F64: Certifiée | G64: Certifiée | H64: Certifiée | I64: Certifiée | J64: Certifiée | K64: Certifiée
C65: 7 | D65: COP | I65: =D48 -> 3.4
D66: P absorbée | I66: =D49 -> 1.44
D67: Certification | E67: Certifiée | F67: Certifiée | G67: Certifiée | H67: Justifiée | I67: =D47 -> Valeur déclarée | J67: Certifiée | K67: Certifiée
C68: 20 | D68: COP
D69: P absorbée
D70: Certification | E70: Certifiée | F70: Certifiée | G70: Certifiée | H70: Certifiée | I70: Certifiée | J70: Certifiée | K70: Certifiée
C71: 35 | D71: COP
D72: P absorbée
D73: Certification | E73: Certifiée | F73: Certifiée | G73: Certifiée | H73: Certifiée | I73: Certifiée | J73: Certifiée | K73: Certifiée
A76: Caractéristiques Pompe à chaleur en Chauffage
B77: Statut COP 7/32,5 | C77: - | D77: Valeur certifiée
B78: COP 7/32,5 | C78: - | D78: 5.23
B79: P absorbée 7/32,5 | C79: kW | D79: 0.87
B82: Autres valeurs COP disponibles en chauffage | C82: - | D82: Non
B83: Températures Source Amont en chauffage | C83: °C | D83: 7°C
B84: Températures Source Aval en chauffage | C84: °C | D84: 32,5°C
B87: Matrice COP/Pabsorbée chauffage
E88: 23.5 | F88: 32.5 | G88: 42.5 | H88: 51 | I88: 60
C89: -15 | D89: COP
D90: P absorbée
D91: Certification | E91: Certifiée | F91: Certifiée | G91: Certifiée | H91: Certifiée | I91: Certifiée
C92: -7 | D92: COP
D93: P absorbée
D94: Certification | E94: Certifiée | F94: Certifiée | G94: Certifiée | H94: Certifiée | I94: Certifiée
C95: 2 | D95: COP
D96: P absorbée
D97: Certification | E97: Certifiée | F97: Certifiée | G97: Certifiée | H97: Certifiée | I97: Certifiée
C98: 7 | D98: COP | F98: =D78 -> 5.23
D99: P absorbée | F99: =D79 -> 0.87
D100: Certification | E100: Certifiée | F100: =D77 -> Valeur certifiée | G100: Certifiée | H100: Certifiée | I100: Certifiée
C101: 20 | D101: COP
D102: P absorbée
D103: Certification
A106: Sorties XML Projet avec pompes solaires non nulles
B107: Cep_ecl_annuel | C107: kWhep/m².an | D107: 4.3
B108: Cep_aux_ventilateur_annuel | C108: kWhep/m².an | D108: 2.1
B109: Cep_aux_distribution_annuel | C109: kWhep/m².an | D109: 1.7
B110: Cep_fr_annuel | C110: kWhep/m².an | D110: 0
D112: JANV. | E112: FÉVR. | F112: MARS | G112: AVR. | H112: MAI | I112: JUIN | J112: JUIL. | K112: AOÛT | L112: SEPT. | M112: OCT. | N112: NOV. | O112: DÉC. | P112: TOTAL
B113: Consommation mensuelle ECS | C113: kWhep/m² | D113: 3.8 | E113: 2.9 | F113: 2 | G113: 0.9 | H113: 0.4 | I113: 0.5 | J113: 0.4 | K113: 0.4 | L113: 0.4 | M113: 1.4 | N113: 3.3 | O113: 3 | P113: =SUM(D113:O113) -> 19.4
D116: JANV. | E116: FÉVR. | F116: MARS | G116: AVR. | H116: MAI | I116: JUIN | J116: JUIL. | K116: AOÛT | L116: SEPT. | M116: OCT. | N116: NOV. | O116: DÉC. | P116: TOTAL
B117: Consommation mensuelle chauffage | C117: kWhep/m² | D117: 4.8 | E117: 3.2 | F117: 2.7 | G117: 1.3 | H117: 0.1 | I117: 0 | J117: 0 | K117: 0 | L117: 0 | M117: 1.1 | N117: 3.4 | O117: 4.4 | P117: =SUM(D117:O117) -> 21
A120: Sorties XML Projet avec pompes solaires nulles
D121: JANV. | E121: FÉVR. | F121: MARS | G121: AVR. | H121: MAI | I121: JUIN | J121: JUIL. | K121: AOÛT | L121: SEPT. | M121: OCT. | N121: NOV. | O121: DÉC. | P121: TOTAL
B122: Consommation mensuelle ECS | C122: kWhep/m² | D122: 3.8 | E122: 2.9 | F122: 2 | G122: 0.7 | H122: 0.1 | I122: 0.2 | J122: 0 | K122: 0 | L122: 0.2 | M122: 1.4 | N122: 3.3 | O122: 3 | P122: =SUM(D122:O122) -> 17.6
D125: JANV. | E125: FÉVR. | F125: MARS | G125: AVR. | H125: MAI | I125: JUIN | J125: JUIL. | K125: AOÛT | L125: SEPT. | M125: OCT. | N125: NOV. | O125: DÉC. | P125: TOTAL
B126: Consommation mensuelle chauffage | C126: kWhep/m² | D126: 4.8 | E126: 3.2 | F126: 2.7 | G126: 1.3 | H126: 0.1 | I126: 0 | J126: 0 | K126: 0 | L126: 0 | M126: 1.1 | N126: 3.4 | O126: 4.4 | P126: =SUM(D126:O126) -> 21
A129: Lancement calcul
A137: Résultats du post-traitement
B138: Cep_ecl_annuel | C138: kWhep/m².an | D138: =D107 -> 4.3
B139: Cep_aux_ventilateur_annuel | C139: kWhep/m².an | D139: =D108 -> 2.1
B140: Cep_aux_distribution_annuel | C140: kWhep/m².an | D140: =D109 -> 1.7
B141: Cep_fr_annuel | C141: kWhep/m².an | D141: =D110 -> 0
B142: Cep_ch_annuel | C142: kWhep/m².an | D142: =IF(D13="CESI",P117,'Pré-traitement'!$N$23+Calculs_CH!$L$3*$D$15) -> 11.94789719
B143: Cep_ecs_annuel | C143: kWhep/m².an | D143: ='Pré-traitement'!$N$18+Calculs_ECS!$K$3*$D$15 -> 18.01634001
B145: Cep_annuel | C145: kWhep/m².an | D145: =SUM(D138:D143) -> 38.0642372

Sheet Pré-traitement (hidden)
A2: Consommations
A4: Consommation ECS sans solaire
B5: JANV. | C5: FÉVR. | D5: MARS | E5: AVR. | F5: MAI | G5: JUIN | H5: JUIL. | I5: AOÛT | J5: SEPT. | K5: OCT. | L5: NOV. | M5: DÉC. | N5: TOTAL
A6: kWhep/m²/générateur | B6: =IF('Saisies-Résultats'!$D$15=0,'Saisies-Résultats'!D$122,'Saisies-Résultats'!D$122/'Saisies-Résultats'!$D$15) -> 3.8 | C6: =IF('Saisies-Résultats'!$D$15=0,'Saisies-Résultats'!E$122,'Saisies-Résultats'!E$122/'Saisies-Résultats'!$D$15) -> 2.9 | D6: =IF('Saisies-Résultats'!$D$15=0,'Saisies-Résultats'!F$122,'Saisies-Résultats'!F$122/'Saisies-Résultats'!$D$15) -> 2 | E6: =IF('Saisies-Résultats'!$D$15=0,'Saisies-Résultats'!G$122,'Saisies-Résultats'!G$122/'Saisies-Résultats'!$D$15) -> 0.7 | F6: =IF('Saisies-Résultats'!$D$15=0,'Saisies-Résultats'!H$122,'Saisies-Résultats'!H$122/'Saisies-Résultats'!$D$15) -> 0.1 | G6: =IF('Saisies-Résultats'!$D$15=0,'Saisies-Résultats'!I$122,'Saisies-Résultats'!I$122/'Saisies-Résultats'!$D$15) -> 0.2 | H6: =IF('Saisies-Résultats'!$D$15=0,'Saisies-Résultats'!J$122,'Saisies-Résultats'!J$122/'Saisies-Résultats'!$D$15) -> 0 | I6: =IF('Saisies-Résultats'!$D$15=0,'Saisies-Résultats'!K$122,'Saisies-Résultats'!K$122/'Saisies-Résultats'!$D$15) -> 0 | J6: =IF('Saisies-Résultats'!$D$15=0,'Saisies-Résultats'!L$122,'Saisies-Résultats'!L$122/'Saisies-Résultats'!$D$15) -> 0.2 | K6: =IF('Saisies-Résultats'!$D$15=0,'Saisies-Résultats'!M$122,'Saisies-Résultats'!M$122/'Saisies-Résultats'!$D$15) -> 1.4 | L6: =IF('Saisies-Résultats'!$D$15=0,'Saisies-Résultats'!N$122,'Saisies-Résultats'!N$122/'Saisies-Résultats'!$D$15) -> 3.3 | M6: =IF('Saisies-Résultats'!$D$15=0,'Saisies-Résultats'!O$122,'Saisies-Résultats'!O$122/'Saisies-Résultats'!$D$15) -> 3 | N6: =SUM(B6:M6) -> 17.6
A7: kWhef/générateur | B7: =IF('Saisies-Résultats'!$D$13="CESI",B6/2.58,B6)*'Saisies-Résultats'!$D$10 -> 456 | C7: =IF('Saisies-Résultats'!$D$13="CESI",C6/2.58,C6)*'Saisies-Résultats'!$D$10 -> 348 | D7: =IF('Saisies-Résultats'!$D$13="CESI",D6/2.58,D6)*'Saisies-Résultats'!$D$10 -> 240 | E7: =IF('Saisies-Résultats'!$D$13="CESI",E6/2.58,E6)*'Saisies-Résultats'!$D$10 -> 84 | F7: =IF('Saisies-Résultats'!$D$13="CESI",F6/2.58,F6)*'Saisies-Résultats'!$D$10 -> 12 | G7: =IF('Saisies-Résultats'!$D$13="CESI",G6/2.58,G6)*'Saisies-Résultats'!$D$10 -> 24 | H7: =IF('Saisies-Résultats'!$D$13="CESI",H6/2.58,H6)*'Saisies-Résultats'!$D$10 -> 0 | I7: =IF('Saisies-Résultats'!$D$13="CESI",I6/2.58,I6)*'Saisies-Résultats'!$D$10 -> 0 | J7: =IF('Saisies-Résultats'!$D$13="CESI",J6/2.58,J6)*'Saisies-Résultats'!$D$10 -> 24 | K7: =IF('Saisies-Résultats'!$D$13="CESI",K6/2.58,K6)*'Saisies-Résultats'!$D$10 -> 168 | L7: =IF('Saisies-Résultats'!$D$13="CESI",L6/2.58,L6)*'Saisies-Résultats'!$D$10 -> 396 | M7: =IF('Saisies-Résultats'!$D$13="CESI",M6/2.58,M6)*'Saisies-Résultats'!$D$10 -> 360 | N7: =SUM(B7:M7) -> 2112
A10: Consommation chauffage sans solaire
B11: JANV. | C11: FÉVR. | D11: MARS | E11: AVR. | F11: MAI | G11: JUIN | H11: JUIL. | I11: AOÛT | J11: SEPT. | K11: OCT. | L11: NOV. | M11: DÉC. | N11: TOTAL
A12: kWhep/m²/générateur | B12: =IF('Saisies-Résultats'!$D$15=0,'Saisies-Résultats'!D$126,'Saisies-Résultats'!D$126/'Saisies-Résultats'!$D$15) -> 4.8 | C12: =IF('Saisies-Résultats'!$D$15=0,'Saisies-Résultats'!E$126,'Saisies-Résultats'!E$126/'Saisies-Résultats'!$D$15) -> 3.2 | D12: =IF('Saisies-Résultats'!$D$15=0,'Saisies-Résultats'!F$126,'Saisies-Résultats'!F$126/'Saisies-Résultats'!$D$15) -> 2.7 | E12: =IF('Saisies-Résultats'!$D$15=0,'Saisies-Résultats'!G$126,'Saisies-Résultats'!G$126/'Saisies-Résultats'!$D$15) -> 1.3 | F12: =IF('Saisies-Résultats'!$D$15=0,'Saisies-Résultats'!H$126,'Saisies-Résultats'!H$126/'Saisies-Résultats'!$D$15) -> 0.1 | G12: =IF('Saisies-Résultats'!$D$15=0,'Saisies-Résultats'!I$126,'Saisies-Résultats'!I$126/'Saisies-Résultats'!$D$15) -> 0 | H12: =IF('Saisies-Résultats'!$D$15=0,'Saisies-Résultats'!J$126,'Saisies-Résultats'!J$126/'Saisies-Résultats'!$D$15) -> 0 | I12: =IF('Saisies-Résultats'!$D$15=0,'Saisies-Résultats'!K$126,'Saisies-Résultats'!K$126/'Saisies-Résultats'!$D$15) -> 0 | J12: =IF('Saisies-Résultats'!$D$15=0,'Saisies-Résultats'!L$126,'Saisies-Résultats'!L$126/'Saisies-Résultats'!$D$15) -> 0 | K12: =IF('Saisies-Résultats'!$D$15=0,'Saisies-Résultats'!M$126,'Saisies-Résultats'!M$126/'Saisies-Résultats'!$D$15) -> 1.1 | L12: =IF('Saisies-Résultats'!$D$15=0,'Saisies-Résultats'!N$126,'Saisies-Résultats'!N$126/'Saisies-Résultats'!$D$15) -> 3.4 | M12: =IF('Saisies-Résultats'!$D$15=0,'Saisies-Résultats'!O$126,'Saisies-Résultats'!O$126/'Saisies-Résultats'!$D$15) -> 4.4 | N12: =SUM(B12:M12) -> 21
A13: kWhef/générateur | B13: =B12*'Saisies-Résultats'!$D$10 -> 576 | C13: =C12*'Saisies-Résultats'!$D$10 -> 384 | D13: =D12*'Saisies-Résultats'!$D$10 -> 324 | E13: =E12*'Saisies-Résultats'!$D$10 -> 156 | F13: =F12*'Saisies-Résultats'!$D$10 -> 12 | G13: =G12*'Saisies-Résultats'!$D$10 -> 0 | H13: =H12*'Saisies-Résultats'!$D$10 -> 0 | I13: =I12*'Saisies-Résultats'!$D$10 -> 0 | J13: =J12*'Saisies-Résultats'!$D$10 -> 0 | K13: =K12*'Saisies-Résultats'!$D$10 -> 132 | L13: =L12*'Saisies-Résultats'!$D$10 -> 408 | M13: =M12*'Saisies-Résultats'!$D$10 -> 528 | N13: =SUM(B13:M13) -> 2520 | P13: Volume appoint ballon | Q13: UA_hx_charge
A14: Id_ecs_seule_mens | B14: =IF(B13=0,1,0) -> 0 | C14: =IF(C13=0,1,0) -> 0 | D14: 0 | E14: 0 | F14: 0 | G14: 1 | H14: 1 | I14: 1 | J14: 1 | K14: 0 | L14: 0 | M14: 0 | N14: =SUM(B14:M14) -> 4 | P14: ='Saisies-Résultats'!D19 -> 150 | Q14: ='Saisies-Résultats'!D20 -> 1200
P15: =IF('Saisies-Résultats'!D19=0,150,'Saisies-Résultats'!D19) -> 150 | Q15: =IF('Saisies-Résultats'!D20=0,1200,'Saisies-Résultats'!D20) -> 1200
A16: Consommation boucle solaire ECS
B17: JANV. | C17: FÉVR. | D17: MARS | E17: AVR. | F17: MAI | G17: JUIN | H17: JUIL. | I17: AOÛT | J17: SEPT. | K17: OCT. | L17: NOV. | M17: DÉC. | N17: TOTAL
A18: kWhep/m² | B18: =MAX('Saisies-Résultats'!D$113-'Saisies-Résultats'!D$122,0) -> 0 | C18: =MAX('Saisies-Résultats'!E$113-'Saisies-Résultats'!E$122,0) -> 0 | D18: =MAX('Saisies-Résultats'!F$113-'Saisies-Résultats'!F$122,0) -> 0 | E18: =MAX('Saisies-Résultats'!G$113-'Saisies-Résultats'!G$122,0) -> 0.2 | F18: =MAX('Saisies-Résultats'!H$113-'Saisies-Résultats'!H$122,0) -> 0.3 | G18: =MAX('Saisies-Résultats'!I$113-'Saisies-Résultats'!I$122,0) -> 0.3 | H18: =MAX('Saisies-Résultats'!J$113-'Saisies-Résultats'!J$122,0) -> 0.4 | I18: =MAX('Saisies-Résultats'!K$113-'Saisies-Résultats'!K$122,0) -> 0.4 | J18: =MAX('Saisies-Résultats'!L$113-'Saisies-Résultats'!L$122,0) -> 0.2 | K18: =MAX('Saisies-Résultats'!M$113-'Saisies-Résultats'!M$122,0) -> 0 | L18: =MAX('Saisies-Résultats'!N$113-'Saisies-Résultats'!N$122,0) -> 0 | M18: =MAX('Saisies-Résultats'!O$113-'Saisies-Résultats'!O$122,0) -> 0 | N18: =SUM(B18:M18) -> 1.8
A21: Consommation boucle solaire chauffage
B22: JANV. | C22: FÉVR. | D22: MARS | E22: AVR. | F22: MAI | G22: JUIN | H22: JUIL. | I22: AOÛT | J22: SEPT. | K22: OCT. | L22: NOV. | M22: DÉC. | N22: TOTAL
A23: kWhep/m² | B23: =MAX('Saisies-Résultats'!D$117-'Saisies-Résultats'!D$126,0) -> 0 | C23: =MAX('Saisies-Résultats'!E$117-'Saisies-Résultats'!E$126,0) -> 0 | D23: =MAX('Saisies-Résultats'!F$117-'Saisies-Résultats'!F$126,0) -> 0 | E23: =MAX('Saisies-Résultats'!G$117-'Saisies-Résultats'!G$126,0) -> 0 | F23: =MAX('Saisies-Résultats'!H$117-'Saisies-Résultats'!H$126,0) -> 0 | G23: =MAX('Saisies-Résultats'!I$117-'Saisies-Résultats'!I$126,0) -> 0 | H23: =MAX('Saisies-Résultats'!J$117-'Saisies-Résultats'!J$126,0) -> 0 | I23: =MAX('Saisies-Résultats'!K$117-'Saisies-Résultats'!K$126,0) -> 0 | J23: =MAX('Saisies-Résultats'!L$117-'Saisies-Résultats'!L$126,0) -> 0 | K23: =MAX('Saisies-Résultats'!M$117-'Saisies-Résultats'!M$126,0) -> 0 | L23: =MAX('Saisies-Résultats'!N$117-'Saisies-Résultats'!N$126,0) -> 0 | M23: =MAX('Saisies-Résultats'!O$117-'Saisies-Résultats'!O$126,0) -> 0 | N23: =SUM(B23:M23) -> 0
A26: Données
A27: ECS | F27: Données reprises dans le code VBA | I27: Données reprises dans le code VBA | L27: Saisies PAC | T27: Proposition pour saisie PAC | AA27: Proposition pour typologie d'émetteur | AF27: id
A28: COP 7/45 | B28: - | C28: =IF('Saisies-Résultats'!$D$47="Valeur certifiée",'Saisies-Résultats'!$D$48,IF('Saisies-Résultats'!$D$47="Valeur justifiée",0.9*'Saisies-Résultats'!$D$48,IF('Saisies-Résultats'!$D$47="Valeur déclarée",MIN(0.8*'Saisies-Résultats'!$D$48,2.7),0.8*2.7))) -> 2.7 | F28: LR_contmin | G28: =IF(M28=T28,IF(M30=T31,40,IF(M30=T33,'Saisies-Résultats'!D37,'Saisies-Résultats'!D37+5)),100) -> 40 | I28: Fonc_compr | J28: =IF(M28=T28,1,2) -> 1 | L28: Fonctionnement du compresseur | M28: ='Saisies-Résultats'!D35 -> Fonctionnement en mode continu du compresseur ou en cycle marche arrêt du compresseur | T28: Fonctionnement en mode continu du compresseur ou en cycle marche arrêt du compresseur | AA28: Planchers et plafonds chauffant intégrés au bâti (inertie forte) | AF28: 1
A29: P absorbée 7/45 | B29: kW | C29: ='Saisies-Résultats'!$D$49 -> 1.44 | F29: CCP_LR_contmin | G29: =IF(M30=T31,1,IF(M30=T33,'Saisies-Résultats'!D38,0.9*'Saisies-Résultats'!D38)) -> 1 | I29: Lim_theta | J29: =IF(M29=T34,0,IF(M29=T35,1,2)) -> 1 | L29: Type de limite de température | M29: ='Saisies-Résultats'!D41 -> Limite sur l'une ou l'autre des températures de source | T29: Fonctionnement en cycle marche arrêt du compresseur | AA29: Radiateurs ou plafonds chauffants d'inertie moyenne | AF29: 2
A30: Chauffage | F30: Taux | G30: =IF(M31=T37,2,IF(M31=T39,'Saisies-Résultats'!D40,1.1*'Saisies-Résultats'!D40)) -> 2 | I30: theta_min_am | J30: =IF(J29=0,-50,'Saisies-Résultats'!D42) -> -20 | L30: Statut des données en mode continu | M30: =IF(M28=T28,'Saisies-Résultats'!D36,T31) -> Valeurs par défaut | T30: Valeur par défaut | AA30: Ventilo convecteurs ou plafonds chauffants d'inertie faible | AF30: 3
A31: COP 7/35 | B31: - | C31: =IF('Saisies-Résultats'!$D$77="Valeur certifiée",'Saisies-Résultats'!$D$78,IF('Saisies-Résultats'!$D$77="Valeur justifiée",0.9*'Saisies-Résultats'!$D$78,IF('Saisies-Résultats'!$D$77="Valeur déclarée",MIN(0.8*'Saisies-Résultats'!$D$78,3.5),0.8*3.5))) -> 5.23 | F31: Deq | G31: 0.5 | I31: theta_max_av | J31: =IF(J29=0,100,'Saisies-Résultats'!D43) -> 55 | L31: Statut de la part de la puissance des auxiliaires | M31: ='Saisies-Résultats'!D39 -> Valeur par défaut | T31: Valeurs par défaut | AA31: Système à air | AF31: 4
A32: P absorbée 7/35 | B32: kW | C32: ='Saisies-Résultats'!$D$79 -> 0.87 | F32: Type système | G32: ='Saisies-Résultats'!$D$13 -> SSC | I32: Typo emet | J32: =VLOOKUP('Saisies-Résultats'!D31,AA28:AF31,6, FALSE) -> 1 | T32: Valeurs justifiées
F33: Service du générateur | G33: =IF('Saisies-Résultats'!D14="ECS",3,4) -> 4 | I33: Rdim | J33: ='Saisies-Résultats'!D15 -> 1 | T33: Valeurs certifiées
T34: Pas de limite
A35: Coefficients de corrrection ECS PAC air ext/eau RT2012 | E35: COP | F35: 45 | G35: 7 | K35: =VLOOKUP(F35,A38:C47,3,FALSE) -> 5 | L35: =VLOOKUP(G35,B38:C47,2,FALSE) -> 3 | T35: Limite sur l'une ou l'autre des températures de source
A36: 7 | B36: 5 | T36: Limite sur les températures des deux sources simultanément
A37: Températures aval | B37: Températures amont | D37: COP | E37: Températures aval | G37: Températures amont | T37: Valeur par défaut
A38: 5 | B38: -7 | C38: 1 | E38: Cnnav_COP(5,45) | F38: 1.8 | G38: Cnnam_COP(-7,7) | H38: 0.5 | K38: =F38 -> 1.8 | L38: =H38 -> 0.5 | T38: Valeur justifiée
A39: 15 | B39: 2 | C39: 2 | E39: Cnnav_COP(15,45) | F39: 1.6 | G39: Cnnam_COP(2,7) | H39: 0.8 | K39: 1.6 | L39: =H39 -> 0.8 | T39: Valeur certifiée
A40: 25 | B40: 7 | C40: 3 | E40: Cnnav_COP(25,45) | F40: 1.4 | G40: Cnnam_COP(7,7) | H40: 1 | K40: 1.4 | L40: =H40 -> 1
A41: 35 | B41: 20 | C41: 4 | E41: Cnnav_COP(35,45) | F41: 1.2 | G41: Cnnam_COP(20,7) | H41: 1.25 | K41: 1.2 | L41: =H41 -> 1.25
A42: 45 | B42: 35 | C42: 5 | E42: Cnnav_COP(45,45) | F42: 1 | G42: Cnnam_COP(35,7) | H42: 1.5 | K42: 1 | L42: =H42 -> 1.5
A43: 55 | C43: 6 | E43: Cnnav_COP(55,45) | F43: 0.8 | K43: 0.8
A44: 65 | C44: 7 | E44: Cnnav_COP(65,45) | F44: 0.6 | K44: 0.6
C45: 8
C46: 9 | D46: PABS | E46: Températures aval | G46: Températures amont
C47: 10 | E47: Cnnav_Pabs(5,45) | F47: 1.4 | G47: Cnnam_Pabs(-7,7) | H47: 0.86 | K47: =F47 -> 1.4 | L47: =H47 -> 0.86
E48: Cnnav_Pabs(15,45) | F48: 1.3 | G48: Cnnam_Pabs(2,7) | H48: 0.95 | K48: 1.3 | L48: =H48 -> 0.95
E49: Cnnav_Pabs(25,45) | F49: 1.2 | G49: Cnnam_Pabs(7,7) | H49: 1 | K49: 1.2 | L49: =H49 -> 1
E50: Cnnav_Pabs(35,45) | F50: 1.1 | G50: Cnnam_Pabs(20,7) | H50: 1.13 | K50: 1.1 | L50: =H50 -> 1.13
E51: Cnnav_Pabs(45,45) | F51: 1 | G51: Cnnam_Pabs(35,7) | H51: 1.28 | K51: 1 | L51: =H51 -> 1.28
E52: Cnnav_Pabs(55,45) | F52: 0.9 | K52: 0.9
E53: Cnnav_Pabs(65,45) | F53: 0.8 | K53: 0.8
A56: Coefficients de corrrection chauffage PAC air ext/eau RT2012 | E56: COP | F56: 32.5 | G56: 7 | K56: =VLOOKUP(F56,A59:C68,3,FALSE) -> 2 | L56: =VLOOKUP(G56,B59:C68,2,FALSE) -> 4
A57: 5 | B57: 5
A58: Températures aval | B58: Températures amont | D58: COP | E58: Températures aval | G58: Températures amont
A59: 23.5 | B59: -15 | C59: 1 | E59: Cnnav_Pabs(23,5;32,5) | F59: 1.1 | G59: Cnnam_Pabs(-15,-7) | H59: 0.8 | K59: =F59 -> 1.1 | L59: =H59*H60 -> 0.4
A60: 32.5 | B60: -7 | C60: 2 | E60: Cnnav_Pabs(32,5;32,5) | F60: 1 | G60: Cnnam_Pabs(-7,7) | H60: 0.5 | K60: =F60 -> 1 | L60: =H60 -> 0.5
A61: 42.5 | B61: 2 | C61: 3 | E61: Cnnav_Pabs(42,5;32,5) | F61: 0.8 | G61: Cnnam_Pabs(2,7) | H61: 0.8 | K61: =F61 -> 0.8 | L61: =H61 -> 0.8
A62: 51 | B62: 7 | C62: 4 | E62: Cnnav_Pabs(51;42,5) | F62: 0.8 | G62: Cnnam_Pabs(7,7) | H62: 1 | K62: =F62*F61 -> 0.64 | L62: =H62 -> 1
A63: 60 | B63: 20 | C63: 5 | E63: Cnnav_Pabs(60;51) | F63: 0.8 | G63: Cnnam_Pabs(20,7) | H63: 1.25 | K63: =F63*K62 -> 0.512 | L63: =H63 -> 1.25
C64: 6
C65: 7 | D65: PABS | E65: Températures aval | G65: Températures amont
C66: 8 | E66: Cnnav_Pabs(23,5;32,5) | F66: 1.09 | G66: Cnnam_Pabs(-15,-7) | H66: 0.92 | K66: =F66 -> 1.09 | L66: =H66*H67 -> 0.7912
C67: 9 | E67: Cnnav_Pabs(32,5;32,5) | F67: 1 | G67: Cnnam_Pabs(-7,7) | H67: 0.86 | K67: =F67 -> 1 | L67: =H67 -> 0.86
C68: 10 | E68: Cnnav_Pabs(42,5;32,5) | F68: 0.9 | G68: Cnnam_Pabs(2,7) | H68: 0.95 | K68: =F68 -> 0.9 | L68: =H68 -> 0.95
E69: Cnnav_Pabs(51;42,5) | F69: 0.915 | G69: Cnnam_Pabs(7,7) | H69: 1 | K69: =F69*F68 -> 0.8235 | L69: =H69 -> 1
E70: Cnnav_Pabs(60;51) | F70: 0.91 | G70: Cnnam_Pabs(20,7) | H70: 1.13 | K70: =F70*K69 -> 0.749385 | L70: =H70 -> 1.13
A72: Construction par macro des matrices grâce aux valeurs pivot et aux coefficients de correction
A73: Matrice COP ECS par défaut
C74: Taval en °C
C75: 5 | D75: 15 | E75: 25 | F75: 35 | G75: 45 | H75: 55 | I75: 65
A76: Tamont en °C | B76: -7 | C76: 2.430000067 | D76: 2.160000086 | E76: 1.889999986 | F76: 1.620000124 | G76: 1.350000024 | H76: 1.080000043 | I76: 0.810000062
B77: 2 | C77: 3.88800025 | D77: 3.45600009 | E77: 3.023999929 | F77: 2.592000246 | G77: 2.160000086 | H77: 1.728000045 | I77: 1.296000123
B78: 7 | C78: 4.860000134 | D78: 4.320000172 | E78: 3.779999971 | F78: 3.240000248 | G78: 2.700000048 | H78: 2.160000086 | I78: 1.620000124
B79: 20 | C79: 6.075000286 | D79: 5.400000095 | E79: 4.724999905 | F79: 4.050000191 | G79: 3.375 | H79: 2.700000048 | I79: 2.025000095
B80: 35 | C80: 7.289999962 | D80: 6.480000496 | E80: 5.670000076 | F80: 4.86000061 | G80: 4.050000191 | H80: 3.240000248 | I80: 2.430000305
A82: Matrice Pabs ECS par défaut
C83: Taval en °C
C84: 5 | D84: 15 | E84: 25 | F84: 35 | G84: 45 | H84: 55 | I84: 65
A85: Tamont en °C | B85: -7 | C85: 1.733759999 | D85: 1.609920025 | E85: 1.48608017 | F85: 1.362240076 | G85: 1.238400102 | H85: 1.114560008 | I85: 0.9907200933
B86: 2 | C86: 1.915199995 | D86: 1.778399944 | E86: 1.641600132 | F86: 1.504800081 | G86: 1.368000031 | H86: 1.23119998 | I86: 1.094400048
B87: 7 | C87: 2.016000032 | D87: 1.871999979 | E87: 1.728000164 | F87: 1.584000111 | G87: 1.440000057 | H87: 1.296000004 | I87: 1.15200007
B88: 20 | C88: 2.278079987 | D88: 2.115360022 | E88: 1.952640176 | F88: 1.789920092 | G88: 1.627200007 | H88: 1.464480042 | I88: 1.301760077
B89: 35 | C89: 2.580480099 | D89: 2.396159887 | E89: 2.211840153 | F89: 2.02752018 | G89: 1.843200088 | H89: 1.658879995 | I89: 1.474560022
A93: Matrice COP CH par défaut
C94: Taval en °C
C95: 23.5 | D95: 32.5 | E95: 42.5 | F95: 51 | G95: 60
A96: Tamont en °C | B96: -15 | C96: 2.301200151 | D96: 2.092000008 | E96: 1.673600078 | F96: 1.338879943 | G96: 1.07110405
B97: -7 | C97: 2.87650013 | D97: 2.61500001 | E97: 2.092000008 | F97: 1.673599958 | G97: 1.338880062
B98: 2 | C98: 4.602400303 | D98: 4.184000015 | E98: 3.347200155 | F98: 2.677759886 | G98: 2.142208099
B99: 7 | C99: 5.753000259 | D99: 5.230000019 | E99: 4.184000015 | F99: 3.347199917 | G99: 2.677760124
B100: 20 | C100: 7.191250324 | D100: 6.537499905 | E100: 5.230000019 | F100: 4.184000015 | G100: 3.347200155
A102: Matrice Pabs CH par défaut
C103: Taval en °C
C104: 23.5 | D104: 32.5 | E104: 42.5 | F104: 51 | G104: 60
A105: Tamont en °C | B105: -15 | C105: 0.7502949834 | D105: 0.6883440018 | E105: 0.6195095778 | F105: 0.5668512583 | G105: 0.5158346891
B106: -7 | C106: 0.8155380487 | D106: 0.7481999993 | E106: 0.6733800173 | F106: 0.6161426902 | G106: 0.5606898665
B107: 2 | C107: 0.9008850455 | D107: 0.8264999986 | E107: 0.7438499928 | F107: 0.6806226969 | G107: 0.6193667054
B108: 7 | C108: 0.9483000636 | D108: 0.8700000048 | E108: 0.7829999924 | F108: 0.7164449692 | G108: 0.6519649625
B109: 20 | C109: 1.071579099 | D109: 0.983099997 | E109: 0.8847900033 | F109: 0.8095828295 | G109: 0.7367203832
A112: Matrice PAC ECS saisie
A114: Sélection des données disponibles | C114: =IF('Saisies-Résultats'!$D$47="Valeur par défaut","Non",'Saisies-Résultats'!$D$52) -> Non | L114: Températures aval | M114: Températures amont | N114: Id
E115: b | F115: c | L115: 5 | M115: -7 | N115: 1
A116: Températures Source Amont | B116: 7°C | E116: 3 | F116: 3 | L116: 15 | M116: 2 | N116: 2
B117: 2°C; 7°C | E117: 2 | F117: 3 | L117: 25 | M117: 7 | N117: 3
B118: 2°C; 7°C; 20°C | E118: 2 | F118: 4 | L118: 35 | M118: 20 | N118: 4
B119: -7°C; 2°C; 7°C; 20°C | E119: 1 | F119: 4 | L119: 45 | M119: 35 | N119: 5
B120: -7°C; 2°C; 7°C; 20°C; 35°C | E120: 1 | F120: 5 | L120: 55 | N120: 6
L121: 65 | N121: 7
A122: Températures Source Aval | B122: 45°C | E122: 5 | F122: 5
B123: 35°C; 45°C | E123: 4 | F123: 5
B124: 25°C; 35°C; 45°C | E124: 3 | F124: 5
B125: 25°C; 35°C; 45°C; 55°C | E125: 3 | F125: 6
B126: 15°C; 25°C; 35°C; 45°C; 55°C | E126: 2 | F126: 6
B127: 15°C; 25°C; 35°C; 45°C; 55°C; 65°C | E127: 2 | F127: 7
B128: 5°C; 15°C; 25°C; 35°C; 45°C; 55°C; 65°C | E128: 1 | F128: 7
A130: Températures Source Amont | B130: ='Saisies-Résultats'!D53 -> 7°C | E130: =IF($C$114="Oui",VLOOKUP($B$130,$B$116:$F$120,4,FALSE),3) -> 3 | F130: =IF($C$114="Oui",VLOOKUP($B$130,$B$116:$F$120,5,FALSE),3) -> 3
A131: Températures Source Aval | B131: ='Saisies-Résultats'!D54 -> 45°C | E131: =IF($C$114="Oui",VLOOKUP($B$131,$B$122:$F$128,4,FALSE),5) -> 5 | F131: =IF($C$114="Oui",VLOOKUP($B$131,$B$122:$F$128,5,FALSE),5) -> 5
A134: Matrice COP ECS saisie
C135: Taval en °C
C136: 5 | D136: 15 | E136: 25 | F136: 35 | G136: 45 | H136: 55 | I136: 65
A137: Tamont en °C | B137: -7 | C137: =IF('Saisies-Résultats'!E61="Certifiée",'Saisies-Résultats'!E59,0.9*'Saisies-Résultats'!E59) -> 0 | D137: =IF('Saisies-Résultats'!F61="Certifiée",'Saisies-Résultats'!F59,0.9*'Saisies-Résultats'!F59) -> 0 | E137: =IF('Saisies-Résultats'!G61="Certifiée",'Saisies-Résultats'!G59,0.9*'Saisies-Résultats'!G59) -> 0 | F137: =IF('Saisies-Résultats'!H61="Certifiée",'Saisies-Résultats'!H59,0.9*'Saisies-Résultats'!H59) -> 0 | G137: =IF('Saisies-Résultats'!I61="Certifiée",'Saisies-Résultats'!I59,0.9*'Saisies-Résultats'!I59) -> 0 | H137: =IF('Saisies-Résultats'!J61="Certifiée",'Saisies-Résultats'!J59,0.9*'Saisies-Résultats'!J59) -> 0 | I137: =IF('Saisies-Résultats'!K61="Certifiée",'Saisies-Résultats'!K59,0.9*'Saisies-Résultats'!K59) -> 0
B138: 2 | C138: =IF('Saisies-Résultats'!E64="Certifiée",'Saisies-Résultats'!E62,0.9*'Saisies-Résultats'!E62) -> 0 | D138: =IF('Saisies-Résultats'!F64="Certifiée",'Saisies-Résultats'!F62,0.9*'Saisies-Résultats'!F62) -> 0 | E138: =IF('Saisies-Résultats'!G64="Certifiée",'Saisies-Résultats'!G62,0.9*'Saisies-Résultats'!G62) -> 0 | F138: =IF('Saisies-Résultats'!H64="Certifiée",'Saisies-Résultats'!H62,0.9*'Saisies-Résultats'!H62) -> 0 | G138: =IF('Saisies-Résultats'!I64="Certifiée",'Saisies-Résultats'!I62,0.9*'Saisies-Résultats'!I62) -> 0 | H138: =IF('Saisies-Résultats'!J64="Certifiée",'Saisies-Résultats'!J62,0.9*'Saisies-Résultats'!J62) -> 0 | I138: =IF('Saisies-Résultats'!K64="Certifiée",'Saisies-Résultats'!K62,0.9*'Saisies-Résultats'!K62) -> 0
B139: 7 | C139: =IF('Saisies-Résultats'!E67="Certifiée",'Saisies-Résultats'!E65,0.9*'Saisies-Résultats'!E65) -> 0 | D139: =IF('Saisies-Résultats'!F67="Certifiée",'Saisies-Résultats'!F65,0.9*'Saisies-Résultats'!F65) -> 0 | E139: =IF('Saisies-Résultats'!G67="Certifiée",'Saisies-Résultats'!G65,0.9*'Saisies-Résultats'!G65) -> 0 | F139: =IF('Saisies-Résultats'!H67="Certifiée",'Saisies-Résultats'!H65,0.9*'Saisies-Résultats'!H65) -> 0 | G139: =$C$28 -> 2.7 | H139: =IF('Saisies-Résultats'!J67="Certifiée",'Saisies-Résultats'!J65,0.9*'Saisies-Résultats'!J65) -> 0 | I139: =IF('Saisies-Résultats'!K67="Certifiée",'Saisies-Résultats'!K65,0.9*'Saisies-Résultats'!K65) -> 0
B140: 20 | C140: =IF('Saisies-Résultats'!E70="Certifiée",'Saisies-Résultats'!E68,0.9*'Saisies-Résultats'!E68) -> 0 | D140: =IF('Saisies-Résultats'!F70="Certifiée",'Saisies-Résultats'!F68,0.9*'Saisies-Résultats'!F68) -> 0 | E140: =IF('Saisies-Résultats'!G70="Certifiée",'Saisies-Résultats'!G68,0.9*'Saisies-Résultats'!G68) -> 0 | F140: =IF('Saisies-Résultats'!H70="Certifiée",'Saisies-Résultats'!H68,0.9*'Saisies-Résultats'!H68) -> 0 | G140: =IF('Saisies-Résultats'!I70="Certifiée",'Saisies-Résultats'!I68,0.9*'Saisies-Résultats'!I68) -> 0 | H140: =IF('Saisies-Résultats'!J70="Certifiée",'Saisies-Résultats'!J68,0.9*'Saisies-Résultats'!J68) -> 0 | I140: =IF('Saisies-Résultats'!K70="Certifiée",'Saisies-Résultats'!K68,0.9*'Saisies-Résultats'!K68) -> 0
B141: 35 | C141: =IF('Saisies-Résultats'!E73="Certifiée",'Saisies-Résultats'!E71,0.9*'Saisies-Résultats'!E71) -> 0 | D141: =IF('Saisies-Résultats'!F73="Certifiée",'Saisies-Résultats'!F71,0.9*'Saisies-Résultats'!F71) -> 0 | E141: =IF('Saisies-Résultats'!G73="Certifiée",'Saisies-Résultats'!G71,0.9*'Saisies-Résultats'!G71) -> 0 | F141: =IF('Saisies-Résultats'!H73="Certifiée",'Saisies-Résultats'!H71,0.9*'Saisies-Résultats'!H71) -> 0 | G141: =IF('Saisies-Résultats'!I73="Certifiée",'Saisies-Résultats'!I71,0.9*'Saisies-Résultats'!I71) -> 0 | H141: =IF('Saisies-Résultats'!J73="Certifiée",'Saisies-Résultats'!J71,0.9*'Saisies-Résultats'!J71) -> 0 | I141: =IF('Saisies-Résultats'!K73="Certifiée",'Saisies-Résultats'!K71,0.9*'Saisies-Résultats'!K71) -> 0
A143: Matrice Pabs ECS saisie
C144: Taval en °C
C145: 5 | D145: 15 | E145: 25 | F145: 35 | G145: 45 | H145: 55 | I145: 65
A146: Tamont en °C | B146: -7 | C146: ='Saisies-Résultats'!E60 -> 0 | D146: ='Saisies-Résultats'!F60 -> 0 | E146: ='Saisies-Résultats'!G60 -> 0 | F146: ='Saisies-Résultats'!H60 -> 0 | G146: ='Saisies-Résultats'!I60 -> 0 | H146: ='Saisies-Résultats'!J60 -> 0 | I146: ='Saisies-Résultats'!K60 -> 0
B147: 2 | C147: ='Saisies-Résultats'!E63 -> 0 | D147: ='Saisies-Résultats'!F63 -> 0 | E147: ='Saisies-Résultats'!G63 -> 0 | F147: ='Saisies-Résultats'!H63 -> 0 | G147: ='Saisies-Résultats'!I63 -> 0 | H147: ='Saisies-Résultats'!J63 -> 0 | I147: ='Saisies-Résultats'!K63 -> 0
B148: 7 | C148: ='Saisies-Résultats'!E66 -> 0 | D148: ='Saisies-Résultats'!F66 -> 0 | E148: ='Saisies-Résultats'!G66 -> 0 | F148: ='Saisies-Résultats'!H66 -> 0 | G148: =$C$29 -> 1.44 | H148: ='Saisies-Résultats'!J66 -> 0 | I148: ='Saisies-Résultats'!K66 -> 0
B149: 20 | C149: ='Saisies-Résultats'!E69 -> 0 | D149: ='Saisies-Résultats'!F69 -> 0 | E149: ='Saisies-Résultats'!G69 -> 0 | F149: ='Saisies-Résultats'!H69 -> 0 | G149: ='Saisies-Résultats'!I69 -> 0 | H149: ='Saisies-Résultats'!J69 -> 0 | I149: ='Saisies-Résultats'!K69 -> 0
B150: 35 | C150: ='Saisies-Résultats'!E72 -> 0 | D150: ='Saisies-Résultats'!F72 -> 0 | E150: ='Saisies-Résultats'!G72 -> 0 | F150: ='Saisies-Résultats'!H72 -> 0 | G150: ='Saisies-Résultats'!I72 -> 0 | H150: ='Saisies-Résultats'!J72 -> 0 | I150: ='Saisies-Résultats'!K72 -> 0
A153: Matrice PAC chauffage saisie
A155: Sélection des données disponibles | C155: =IF('Saisies-Résultats'!$D$13="CESI","Non",IF('Saisies-Résultats'!$D$77="Valeur par défaut","Non",'Saisies-Résultats'!$D$82)) -> Non
E156: b | F156: c | L156: Températures aval | M156: Températures amont | N156: Id
A157: Températures Source Amont | B157: 7°C | E157: 4 | F157: 4 | L157: 23.5 | M157: -15 | N157: 1
B158: 2°C; 7°C | E158: 3 | F158: 4 | L158: 32.5 | M158: -7 | N158: 2
B159: -7°C; 2°C; 7°C | E159: 2 | F159: 4 | L159: 42.5 | M159: 2 | N159: 3
B160: -7°C; 2°C; 7°C; 20°C | E160: 2 | F160: 5 | L160: 51 | M160: 7 | N160: 4
B161: -15°C; -7°C; 2°C; 7°C; 20°C | E161: 1 | F161: 5 | L161: 60 | M161: 20 | N161: 5
A163: Températures Source Aval | B163: 32,5°C | E163: 2 | F163: 2
B164: 32,5°C; 42,5°C | E164: 2 | F164: 3
B165: 32,5°C; 42,5°C; 51°C | E165: 2 | F165: 4
B166: 23,5°C; 32,5°C; 42,5°C; 51°C | E166: 1 | F166: 4
B167: 23,5°C; 32,5°C; 42,5°C; 51°C; 60°C | E167: 1 | F167: 5
A169: Températures Source Amont | B169: ='Saisies-Résultats'!D83 -> 7°C | E169: =IF($C$155="Oui",VLOOKUP($B$169,$B$157:$F$161,4,FALSE),4) -> 4 | F169: =IF($C$155="Oui",VLOOKUP($B$169,$B$157:$F$161,5,FALSE),4) -> 4
A170: Températures Source Aval | B170: ='Saisies-Résultats'!D84 -> 32,5°C | E170: =IF($C$155="Oui",VLOOKUP($B$170,$B$163:$F$167,4,FALSE),2) -> 2 | F170: =IF($C$155="Oui",VLOOKUP($B$170,$B$163:$F$167,5,FALSE),2) -> 2
A173: Matrice COP CH saisie
C174: Taval en °C
C175: 23.5 | D175: 32.5 | E175: 42.5 | F175: 51 | G175: 60
A176: Tamont en °C | B176: -15 | C176: =IF('Saisies-Résultats'!E91="Certifiée",'Saisies-Résultats'!E89,0.9*'Saisies-Résultats'!E89) -> 0 | D176: =IF('Saisies-Résultats'!F91="Certifiée",'Saisies-Résultats'!F89,0.9*'Saisies-Résultats'!F89) -> 0 | E176: =IF('Saisies-Résultats'!G91="Certifiée",'Saisies-Résultats'!G89,0.9*'Saisies-Résultats'!G89) -> 0 | F176: =IF('Saisies-Résultats'!H91="Certifiée",'Saisies-Résultats'!H89,0.9*'Saisies-Résultats'!H89) -> 0 | G176: =IF('Saisies-Résultats'!I91="Certifiée",'Saisies-Résultats'!I89,0.9*'Saisies-Résultats'!I89) -> 0
B177: -7 | C177: =IF('Saisies-Résultats'!E94="Certifiée",'Saisies-Résultats'!E92,0.9*'Saisies-Résultats'!E92) -> 0 | D177: =IF('Saisies-Résultats'!F94="Certifiée",'Saisies-Résultats'!F92,0.9*'Saisies-Résultats'!F92) -> 0 | E177: =IF('Saisies-Résultats'!G94="Certifiée",'Saisies-Résultats'!G92,0.9*'Saisies-Résultats'!G92) -> 0 | F177: =IF('Saisies-Résultats'!H94="Certifiée",'Saisies-Résultats'!H92,0.9*'Saisies-Résultats'!H92) -> 0 | G177: =IF('Saisies-Résultats'!I94="Certifiée",'Saisies-Résultats'!I92,0.9*'Saisies-Résultats'!I92) -> 0
B178: 2 | C178: =IF('Saisies-Résultats'!E97="Certifiée",'Saisies-Résultats'!E95,0.9*'Saisies-Résultats'!E95) -> 0 | D178: =IF('Saisies-Résultats'!F97="Certifiée",'Saisies-Résultats'!F95,0.9*'Saisies-Résultats'!F95) -> 0 | E178: =IF('Saisies-Résultats'!G97="Certifiée",'Saisies-Résultats'!G95,0.9*'Saisies-Résultats'!G95) -> 0 | F178: =IF('Saisies-Résultats'!H97="Certifiée",'Saisies-Résultats'!H95,0.9*'Saisies-Résultats'!H95) -> 0 | G178: =IF('Saisies-Résultats'!I97="Certifiée",'Saisies-Résultats'!I95,0.9*'Saisies-Résultats'!I95) -> 0
B179: 7 | C179: =IF('Saisies-Résultats'!E100="Certifiée",'Saisies-Résultats'!E98,0.9*'Saisies-Résultats'!E98) -> 0 | D179: =$C$31 -> 5.23 | E179: =IF('Saisies-Résultats'!G100="Certifiée",'Saisies-Résultats'!G98,0.9*'Saisies-Résultats'!G98) -> 0 | F179: =IF('Saisies-Résultats'!H100="Certifiée",'Saisies-Résultats'!H98,0.9*'Saisies-Résultats'!H98) -> 0 | G179: =IF('Saisies-Résultats'!I100="Certifiée",'Saisies-Résultats'!I98,0.9*'Saisies-Résultats'!I98) -> 0
B180: 20 | C180: =IF('Saisies-Résultats'!E103="Certifiée",'Saisies-Résultats'!E101,0.9*'Saisies-Résultats'!E101) -> 0 | D180: =IF('Saisies-Résultats'!F103="Certifiée",'Saisies-Résultats'!F101,0.9*'Saisies-Résultats'!F101) -> 0 | E180: =IF('Saisies-Résultats'!G103="Certifiée",'Saisies-Résultats'!G101,0.9*'Saisies-Résultats'!G101) -> 0 | F180: =IF('Saisies-Résultats'!H103="Certifiée",'Saisies-Résultats'!H101,0.9*'Saisies-Résultats'!H101) -> 0 | G180: =IF('Saisies-Résultats'!I103="Certifiée",'Saisies-Résultats'!I101,0.9*'Saisies-Résultats'!I101) -> 0
A182: Matrice Pabs CH saisie
C183: Taval en °C
C184: 23.5 | D184: 32.5 | E184: 42.5 | F184: 51 | G184: 60
A185: Tamont en °C | B185: -15 | C185: ='Saisies-Résultats'!E90 -> 0 | D185: ='Saisies-Résultats'!F90 -> 0 | E185: ='Saisies-Résultats'!G90 -> 0 | F185: ='Saisies-Résultats'!H90 -> 0 | G185: ='Saisies-Résultats'!I90 -> 0
B186: -7 | C186: ='Saisies-Résultats'!E93 -> 0 | D186: ='Saisies-Résultats'!F93 -> 0 | E186: ='Saisies-Résultats'!G93 -> 0 | F186: ='Saisies-Résultats'!H93 -> 0 | G186: ='Saisies-Résultats'!I93 -> 0
B187: 2 | C187: ='Saisies-Résultats'!E96 -> 0 | D187: ='Saisies-Résultats'!F96 -> 0 | E187: ='Saisies-Résultats'!G96 -> 0 | F187: ='Saisies-Résultats'!H96 -> 0 | G187: ='Saisies-Résultats'!I96 -> 0
B188: 7 | C188: ='Saisies-Résultats'!E99 -> 0 | D188: =$C$32 -> 0.87 | E188: ='Saisies-Résultats'!G99 -> 0 | F188: ='Saisies-Résultats'!H99 -> 0 | G188: ='Saisies-Résultats'!I99 -> 0
B189: 20 | C189: ='Saisies-Résultats'!E102 -> 0 | D189: ='Saisies-Résultats'!F102 -> 0 | E189: ='Saisies-Résultats'!G102 -> 0 | F189: ='Saisies-Résultats'!H102 -> 0 | G189: ='Saisies-Résultats'!I102 -> 0
A192: Matrices ECS et Chauffage prises en compte dans les calculs
A195: Matrice COP ECS prise en compte dans les calculs
C196: Taval en °C
C197: 5 | D197: 15 | E197: 25 | F197: 35 | G197: 45 | H197: 55 | I197: 65
A198: Tamont en °C | B198: -7 | C198: 2.430000067 | D198: 2.160000086 | E198: 1.889999986 | F198: 1.620000124 | G198: 1.350000024 | H198: 1.080000043 | I198: 0.810000062
B199: 2 | C199: 3.88800025 | D199: 3.45600009 | E199: 3.023999929 | F199: 2.592000246 | G199: 2.160000086 | H199: 1.728000045 | I199: 1.296000123
B200: 7 | C200: 4.860000134 | D200: 4.320000172 | E200: 3.779999971 | F200: 3.240000248 | G200: 2.700000048 | H200: 2.160000086 | I200: 1.620000124
B201: 20 | C201: 6.075000286 | D201: 5.400000095 | E201: 4.724999905 | F201: 4.050000191 | G201: 3.375 | H201: 2.700000048 | I201: 2.025000095
B202: 35 | C202: 7.289999962 | D202: 6.480000496 | E202: 5.670000076 | F202: 4.86000061 | G202: 4.050000191 | H202: 3.240000248 | I202: 2.430000305
A204: Matrice Pabs ECS prise en compte dans les calculs
C205: Taval en °C
C206: 5 | D206: 15 | E206: 25 | F206: 35 | G206: 45 | H206: 55 | I206: 65
A207: Tamont en °C | B207: -7 | C207: 1.733759999 | D207: 1.609920025 | E207: 1.48608017 | F207: 1.362240076 | G207: 1.238400102 | H207: 1.114560008 | I207: 0.9907200933
B208: 2 | C208: 1.915199995 | D208: 1.778399944 | E208: 1.641600132 | F208: 1.504800081 | G208: 1.368000031 | H208: 1.23119998 | I208: 1.094400048
B209: 7 | C209: 2.016000032 | D209: 1.871999979 | E209: 1.728000164 | F209: 1.584000111 | G209: 1.440000057 | H209: 1.296000004 | I209: 1.15200007
B210: 20 | C210: 2.278079987 | D210: 2.115360022 | E210: 1.952640176 | F210: 1.789920092 | G210: 1.627200007 | H210: 1.464480042 | I210: 1.301760077
B211: 35 | C211: 2.580480099 | D211: 2.396159887 | E211: 2.211840153 | F211: 2.02752018 | G211: 1.843200088 | H211: 1.658879995 | I211: 1.474560022
A214: Matrice COP CH prise en compte dans les calculs
C215: Taval en °C
C216: 23.5 | D216: 32.5 | E216: 42.5 | F216: 51 | G216: 60
A217: Tamont en °C | B217: -15 | C217: 2.301200151 | D217: 2.092000008 | E217: 1.673600078 | F217: 1.338879943 | G217: 1.07110405
B218: -7 | C218: 2.87650013 | D218: 2.61500001 | E218: 2.092000008 | F218: 1.673599958 | G218: 1.338880062
B219: 2 | C219: 4.602400303 | D219: 4.184000015 | E219: 3.347200155 | F219: 2.677759886 | G219: 2.142208099
B220: 7 | C220: 5.753000259 | D220: 5.230000019 | E220: 4.184000015 | F220: 3.347199917 | G220: 2.677760124
B221: 20 | C221: 7.191250324 | D221: 6.537499905 | E221: 5.230000019 | F221: 4.184000015 | G221: 3.347200155
A223: Matrice Pabs CH prise en compte dans les calculs
C224: Taval en °C
C225: 23.5 | D225: 32.5 | E225: 42.5 | F225: 51 | G225: 60
A226: Tamont en °C | B226: -15 | C226: 0.7502949834 | D226: 0.6883440018 | E226: 0.6195095778 | F226: 0.5668512583 | G226: 0.5158346891
B227: -7 | C227: 0.8155380487 | D227: 0.7481999993 | E227: 0.6733800173 | F227: 0.6161426902 | G227: 0.5606898665
B228: 2 | C228: 0.9008850455 | D228: 0.8264999986 | E228: 0.7438499928 | F228: 0.6806226969 | G228: 0.6193667054
B229: 7 | C229: 0.9483000636 | D229: 0.8700000048 | E229: 0.7829999924 | F229: 0.7164449692 | G229: 0.6519649625
B230: 20 | C230: 1.071579099 | D230: 0.983099997 | E230: 0.8847900033 | F230: 0.8095828295 | G230: 0.7367203832

Sheet Calculs_CH (hidden)
A1: Temp ext de non chauffage | C1: °C | D1: 14
A3: Total | B3: - | C3: - | D3: - | E3: - | F3: - | G3: =SUM(G6:G8765) -> 2520 | H3: - | I3: =SUM(I6:I8765) -> 2519.999994 | J3: =IF(K3=0,0,I3/K3) -> 4.534689161 | K3: =SUM(K6:K8765) -> 555.7161482 | L3: =K3*2.58/'Saisies-Résultats'!$D$10 -> 11.94789719
A4: Mois | B4: Jour du mois | C4: Pas de temps | D4: Température ext | E4: DH | F4: Corr_CH | G4: P_CH | H4: Taval_CH | I4: Pfou_CH | J4: COPText/Taval_CH | K4: Pabs_CH | L4: Pabs_CH
A5: - | B5: - | C5: - | D5: °C | E5: h°C | F5: - | G5: kWh | H5: °C | I5: kWh | J5: - | K5: kWh | L5: kWhep/m²
A6: Janvier | B6: 1 | C6: 1 | D6: =Bdd_Text!A6 -> 8.9 | E6: =IF(D6>$D$1,0,($D$1-D6)) -> 5.1 | F6: =IF(E6=0,0,E6/SUM($E$6:$E$749)) -> 0.001187214399 | G6: =F6*'Pré-traitement'!$B$13 -> 0.683835494 | H6: =IF('Saisies-Résultats'!$D$13="SSC",'Saisies-Résultats'!$D$29-'Saisies-Résultats'!$D$30/2,0) -> 32.5 | I6: 0.6838355064 | J6: 4.935252666 | K6: 0.1385613978
A7: Janvier | B7: 1 | C7: 2 | D7: =Bdd_Text!A7 -> 8.72 | E7: 5.28 | F7: =IF(E7=0,0,E7/SUM($E$6:$E$749)) -> 0.001229116084 | G7: =F7*'Pré-traitement'!$B$13 -> 0.7079708644 | H7: =IF('Saisies-Résultats'!$D$13="SSC",'Saisies-Résultats'!$D$29-'Saisies-Résultats'!$D$30/2,0) -> 32.5 | I7: 0.7079708576 | J7: 4.943296909 | K7: 0.1432183534
A8: Janvier | B8: 1 | C8: 3 | D8: =Bdd_Text!A8 -> 8.17 | E8: 5.83 | F8: 0.001357149009 | G8: =F8*'Pré-traitement'!$B$13 -> 0.7817178294 | H8: =IF('Saisies-Résultats'!$D$13="SSC",'Saisies-Résultats'!$D$29-'Saisies-Résultats'!$D$30/2,0) -> 32.5 | I8: 0.7817178369 | J8: 4.959373474 | K8: 0.1576243192
A9: Janvier | B9: 1 | C9: 4 | D9: =Bdd_Text!A9 -> 8.17 | E9: 5.83 | F9: 0.001357149009 | G9: =F9*'Pré-traitement'!$B$13 -> 0.7817178294 | H9: =IF('Saisies-Résultats'!$D$13="SSC",'Saisies-Résultats'!$D$29-'Saisies-Résultats'!$D$30/2,0) -> 32.5 | I9: 0.7817178369 | J9: 4.959373474 | K9: 0.1576243192
A10: Janvier | B10: 1 | C10: 5 | D10: =Bdd_Text!A10 -> 7.93 | E10: 6.07 | F10: 0.001413017922 | G10: =F10*'Pré-traitement'!$B$13 -> 0.8138983232 | H10: =IF('Saisies-Résultats'!$D$13="SSC",'Saisies-Résultats'!$D$29-'Saisies-Résultats'!$D$30/2,0) -> 32.5 | I10: 0.813898325 | J10: 4.962943554 | K10: 0.1639950722
A11: Janvier | B11: 1 | C11: 6 | D11: =Bdd_Text!A11 -> 9.85 | E11: 4.15 | F11: 0.000966066619 | G11: =F11*'Pré-traitement'!$B$13 -> 0.5564543726 | H11: =IF('Saisies-Résultats'!$D$13="SSC",'Saisies-Résultats'!$D$29-'Saisies-Résultats'!$D$30/2,0) -> 32.5 | I11: 0.5564543605 | J11: 4.862348557 | K11: 0.1144414768
A12: Janvier | B12: 1 | C12: 7 | D12: =Bdd_Text!A12 -> 10.7 | E12: 3.3 | F12: 0.0007681975525 | G12: =F12*'Pré-traitement'!$B$13 -> 0.4424817902 | H12: =IF('Saisies-Résultats'!$D$13="SSC",'Saisies-Résultats'!$D$29-'Saisies-Résultats'!$D$30/2,0) -> 32.5 | I12: 0.442481786 | J12: 4.732744217 | K12: 0.09349370748
A13: Janvier | B13: 1 | C13: 8 | D13: =Bdd_Text!A13 -> 12.02 | E13: 1.98 | F13: 0.0004609185315 | G13: =F13*'Pré-traitement'!$B$13 -> 0.2654890741 | H13: =IF('Saisies-Résultats'!$D$13="SSC",'Saisies-Résultats'!$D$29-'Saisies-Résultats'!$D$30/2,0) -> 32.5 | I13: 0.2654890716 | J13: 4.275791645 | K13: 0.06209120899
A14: Janvier | B14: 1 | C14: 9 | D14: =Bdd_Text!A14 -> 11.51 | E14: 2.49 | F14: 0.0005796399714 | G14: =F14*'Pré-traitement'!$B$13 -> 0.3338726235 | H14: =IF('Saisies-Résultats'!$D$13="SSC",'Saisies-Résultats'!$D$29-'Saisies-Résultats'!$D$30/2,0) -> 32.5 | I14: 0.3338726163 | J14: 4.507800579 | K14: 0.07406552881
A15: Janvier | B15: 1 | C15: 10 | D15: =Bdd_Text!A15 -> 11.71 | E15: 2.29 | F15: 0.000533082544 | G15: =F15*'Pré-traitement'!$B$13 -> 0.3070555453 | H15: =IF('Saisies-Résultats'!$D$13="SSC",'Saisies-Résultats'!$D$29-'Saisies-Résultats'!$D$30/2,0) -> 32.5 | I15: 0.3070555329 | J15: 4.427856922 | K15: 0.06934630871
A16: Janvier | B16: 1 | C16: 11 | D16: =Bdd_Text!A16 -> 12.91 | E16: 1.09 | F16: 0.0002537379795 | G16: =F16*'Pré-traitement'!$B$13 -> 0.1461530762 | H16: =IF('Saisies-Résultats'!$D$13="SSC",'Saisies-Résultats'!$D$29-'Saisies-Résultats'!$D$30/2,0) -> 32.5 | I16: 0.1461530775 | J16: 3.508513689 | K16: 0.04165669158
A17: Janvier | B17: 1 | C17: 12 | D17: =Bdd_Text!A17 -> 14.31 | E17: 0 | F17: 0 | G17: =F17*'Pré-traitement'!$B$13 -> 0 | H17: =IF('Saisies-Résultats'!$D$13="SSC",'Saisies-Résultats'!$D$29-'Saisies-Résultats'!$D$30/2,0) -> 32.5 | I17: 0 | J17: 0 | K17: 0.007916632108
A18: Janvier | B18: 1 | C18: 13 | D18: =Bdd_Text!A18 -> 14.81 | E18: 0 | F18: 0 | G18: =F18*'Pré-traitement'!$B$13 -> 0 | H18: =IF('Saisies-Résultats'!$D$13="SSC",'Saisies-Résultats'!$D$29-'Saisies-Résultats'!$D$30/2,0) -> 32.5 | I18: 0 | J18: 0 | K18: 0.007916632108
A19: Janvier | B19: 1 | C19: 14 | D19: =Bdd_Text!A19 -> 15.41 | E19: 0 | F19: 0 | G19: =F19*'Pré-traitement'!$B$13 -> 0 | H19: =IF('Saisies-Résultats'!$D$13="SSC",'Saisies-Résultats'!$D$29-'Saisies-Résultats'!$D$30/2,0) -> 32.5 | I19: 0 | J19: 0 | K19: 0.007916632108
A20: Janvier | B20: 1 | C20: 15 | D20: =Bdd_Text!A20 -> 15.81 | E20: 0 | F20: 0 | G20: =F20*'Pré-traitement'!$B$13 -> 0 | H20: =IF('Saisies-Résultats'!$D$13="SSC",'Saisies-Résultats'!$D$29-'Saisies-Résultats'!$D$30/2,0) -> 32.5 | I20: 0 | J20: 0 | K20: 0.007916632108
A21: Janvier | B21: 1 | C21: 16 | D21: =Bdd_Text!A21 -> 14.91 | E21: 0 | F21: 0 | G21: =F21*'Pré-traitement'!$B$13 -> 0 | H21: =IF('Saisies-Résultats'!$D$13="SSC",'Saisies-Résultats'!$D$29-'Saisies-Résultats'!$D$30/2,0) -> 32.5 | I21: 0 | J21: 0 | K21: 0.007916632108
A22: Janvier | B22: 1 | C22: 17 | D22: =Bdd_Text!A22 -> 14.11 | E22: 0 | F22: 0 | G22: =F22*'Pré-traitement'!$B$13 -> 0 | H22: =IF('Saisies-Résultats'!$D$13="SSC",'Saisies-Résultats'!$D$29-'Saisies-Résultats'!$D$30/2,0) -> 32.5 | I22: 0 | J22: 0 | K22: 0.007916632108
A23: Janvier | B23: 1 | C23: 18 | D23: =Bdd_Text!A23 -> 12.61 | E23: 1.39 | F23: 0.0003235741206 | G23: =F23*'Pré-traitement'!$B$13 -> 0.1863786935 | H23: =IF('Saisies-Résultats'!$D$13="SSC",'Saisies-Résultats'!$D$29-'Saisies-Résultats'!$D$30/2,0) -> 32.5 | I23: 0.1863786876 | J23: 3.844425678 | K23: 0.04848024249
A24: Janvier | B24: 1 | C24: 19 | D24: =Bdd_Text!A24 -> 10.11 | E24: 3.89 | F24: 0.0009055419634 | G24: =F24*'Pré-traitement'!$B$13 -> 0.5215921709 | H24: =IF('Saisies-Résultats'!$D$13="SSC",'Saisies-Résultats'!$D$29-'Saisies-Résultats'!$D$30/2,0) -> 32.5 | I24: 0.5215921998 | J24: 4.830824375 | K24: 0.1079716757
A25: Janvier | B25: 1 | C25: 20 | D25: =Bdd_Text!A25 -> 8.01 | E25: 5.99 | F25: 0.001394394951 | G25: =F25*'Pré-traitement'!$B$13 -> 0.803171492 | H25: =IF('Saisies-Résultats'!$D$13="SSC",'Saisies-Résultats'!$D$29-'Saisies-Résultats'!$D$30/2,0) -> 32.5 | I25: 0.8031715155 | J25: 4.961962223 | K25: 0.1618657112
A26: Janvier | B26: 1 | C26: 21 | D26: =Bdd_Text!A26 -> 7.71 | E26: 6.29 | F26: 0.001464231092 | G26: =F26*'Pré-traitement'!$B$13 -> 0.8433971092 | H26: =IF('Saisies-Résultats'!$D$13="SSC",'Saisies-Résultats'!$D$29-'Saisies-Résultats'!$D$30/2,0) -> 32.5 | I26: 0.8433970809 | J26: 4.964639187 | K26: 0.1698808372
A27: Janvier | B27: 1 | C27: 22 | D27: =Bdd_Text!A27 -> 7.81 | E27: 6.19 | F27: 0.001440952379 | G27: =F27*'Pré-traitement'!$B$13 -> 0.8299885702 | H27: =IF('Saisies-Résultats'!$D$13="SSC",'Saisies-Résultats'!$D$29-'Saisies-Résultats'!$D$30/2,0) -> 32.5 | I27: 0.8299885988 | J27: 4.964045525 | K27: 0.1672000438
A28: Janvier | B28: 1 | C28: 23 | D28: =Bdd_Text!A28 -> 7.71 | E28: 6.29 | F28: 0.001464231092 | G28: =F28*'Pré-traitement'!$B$13 -> 0.8433971092 | H28: =IF('Saisies-Résultats'!$D$13="SSC",'Saisies-Résultats'!$D$29-'Saisies-Résultats'!$D$30/2,0) -> 32.5 | I28: 0.8433970809 | J28: 4.964639187 | K28: 0.1698808372
A29: Janvier | B29: 1 | C29: 24 | D29: =Bdd_Text!A29 -> 7.41 | E29: 6.59 | F29: 0.001534067234 | G29: =F29*'Pré-traitement'!$B$13 -> 0.8836227265 | H29: =IF('Saisies-Résultats'!$D$13="SSC",'Saisies-Résultats'!$D$29-'Saisies-Résultats'!$D$30/2,0) -> 32.5 | I29: 0.8836227059 | J29: 4.964771748 | K29: 0.1779785156
A30: Janvier | B30: 2 | C30: 25 | D30: =Bdd_Text!A30 -> 7.01 | E30: 6.99 | F30: 0.001627182088 | G30: =F30*'Pré-traitement'!$B$13 -> 0.9372568829 | H30: =IF('Saisies-Résultats'!$D$13="SSC",'Saisies-Résultats'!$D$29-'Saisies-Résultats'!$D$30/2,0) -> 32.5 | I30: 0.9372568727 | J30: 4.961498737 | K30: 0.1889059991
A31: Janvier | B31: 2 | C31: 26 | D31: =Bdd_Text!A31 -> 6.71 | E31: 7.29 | F31: 0.00169701823 | G31: =F31*'Pré-traitement'!$B$13 -> 0.9774825002 | H31: =IF('Saisies-Résultats'!$D$13="SSC",'Saisies-Résultats'!$D$29-'Saisies-Résultats'!$D$30/2,0) -> 32.5 | I31: 0.9774824977 | J31: 4.929621696 | K31: 0.1982875317
A32: Janvier | B32: 2 | C32: 27 | D32: =Bdd_Text!A32 -> 6.61 | E32: 7.39 | F32: 0.001720296943 | G32: =F32*'Pré-traitement'!$B$13 -> 0.9908910393 | H32: =IF('Saisies-Résultats'!$D$13="SSC",'Saisies-Résultats'!$D$29-'Saisies-Résultats'!$D$30/2,0) -> 32.5 | I32: 0.9908910394 | J32: 4.918187141 | K32: 0.2014748454
A33: Janvier | B33: 2 | C33: 28 | D33: =Bdd_Text!A33 -> 6.81 | E33: 7.19 | F33: 0.001673739516 | G33: =F33*'Pré-traitement'!$B$13 -> 0.9640739611 | H33: =IF('Saisies-Résultats'!$D$13="SSC",'Saisies-Résultats'!$D$29-'Saisies-Résultats'!$D$30/2,0) -> 32.5 | I33: 0.964073956 | J33: 4.940811634 | K33: 0.1951246113
A34: Janvier | B34: 2 | C34: 29 | D34: =Bdd_Text!A34 -> 6.51 | E34: 7.49 | F34: 0.001743575657 | G34: =F34*'Pré-traitement'!$B$13 -> 1.004299578 | H34: =IF('Saisies-Résultats'!$D$13="SSC",'Saisies-Résultats'!$D$29-'Saisies-Résultats'!$D$30/2,0) -> 32.5 | I34: 1.004299521 | J34: 4.906519413 | K34: 0.2046867609
A35: Janvier | B35: 2 | C35: 30 | D35: =Bdd_Text!A35 -> 5.91 | E35: 8.09 | F35: 0.001883247939 | G35: =F35*'Pré-traitement'!$B$13 -> 1.084750813 | H35: =IF('Saisies-Résultats'!$D$13="SSC",'Saisies-Résultats'!$D$29-'Saisies-Résultats'!$D$30/2,0) -> 32.5 | I35: 1.084750772 | J35: 4.832021713 | K35: 0.2244921178
A36: Janvier | B36: 2 | C36: 31 | D36: =Bdd_Text!A36 -> 5.51 | E36: 8.49 | F36: 0.001976362794 | G36: =F36*'Pré-traitement'!$B$13 -> 1.138384969 | H36: =IF('Saisies-Résultats'!$D$13="SSC",'Saisies-Résultats'!$D$29-'Saisies-Résultats'!$D$30/2,0) -> 32.5 | I36: 1.138384938 | J36: 4.778582573 | K36: 0.2382264882
A37: Janvier | B37: 2 | C37: 32 | D37: =Bdd_Text!A37 -> 5.41 | E37: 8.59 | F37: 0.001999641508 | G37: =F37*'Pré-traitement'!$B$13 -> 1.151793508 | H37: =IF('Saisies-Résultats'!$D$13="SSC",'Saisies-Résultats'!$D$29-'Saisies-Résultats'!$D$30/2,0) -> 32.5 | I37: 1.15179348 | J37: 4.76480484 | K37: 0.2417294234
A38: Janvier | B38: 2 | C38: 33 | D38: =Bdd_Text!A38 -> 5.01 | E38: 8.99 | F38: 0.002092756363 | G38: =F38*'Pré-traitement'!$B$13 -> 1.205427665 | H38: =IF('Saisies-Résultats'!$D$13="SSC",'Saisies-Résultats'!$D$29-'Saisies-Résultats'!$D$30/2,0) -> 32.5 | I38: 1.205427647 | J38: 4.708180428 | K38: 0.2560283542
A39: Janvier | B39: 2 | C39: 34 | D39: =Bdd_Text!A39 -> 5.91 | E39: 8.09 | F39: 0.001883247939 | G39: =F39*'Pré-traitement'!$B$13 -> 1.084750813 | H39: =IF('Saisies-Résultats'!$D$13="SSC",'Saisies-Résultats'!$D$29-'Saisies-Résultats'!$D$30/2,0) -> 32.5 | I39: 1.084750772 | J39: 4.832021713 | K39: 0.2244921178
A40: Janvier | B40: 2 | C40: 35 | D40: =Bdd_Text!A40 -> 7.41 | E40: 6.59 | F40: 0.001534067234 | G40: =F40*'Pré-traitement'!$B$13 -> 0.8836227265 | H40: =IF('Saisies-Résultats'!$D$13="SSC",'Saisies-Résultats'!$D$29-'Saisies-Résultats'!$D$30/2,0) -> 32.5 | I40: 0.8836227059 | J40: 4.964771748 | K40: 0.1779785156
A41: Janvier | B41: 2 | C41: 36 | D41: =Bdd_Text!A41 -> 9.01 | E41: 4.99 | F41: 0.001161607814 | G41: =F41*'Pré-traitement'!$B$13 -> 0.669086101 | H41: =IF('Saisies-Résultats'!$D$13="SSC",'Saisies-Résultats'!$D$29-'Saisies-Résultats'!$D$30/2,0) -> 32.5 | I41: 0.6690860987 | J41: 4.929563522 | K41: 0.1357292831
A42: Janvier | B42: 2 | C42: 37 | D42: =Bdd_Text!A42 -> 10.21 | E42: 3.79 | F42: 0.0008822632497 | G42: =F42*'Pré-traitement'!$B$13 -> 0.5081836318 | H42: =IF('Saisies-Résultats'!$D$13="SSC",'Saisies-Résultats'!$D$29-'Saisies-Résultats'!$D$30/2,0) -> 32.5 | I42: 0.5081836581 | J42: 4.816997051 | K42: 0.1054980233
A43: Janvier | B43: 2 | C43: 38 | D43: =Bdd_Text!A43 -> 10.61 | E43: 3.39 | F43: 0.0007891483948 | G43: =F43*'Pré-traitement'!$B$13 -> 0.4545494754 | H43: =IF('Saisies-Résultats'!$D$13="SSC",'Saisies-Résultats'!$D$29-'Saisies-Résultats'!$D$30/2,0) -> 32.5 | I43: 0.4545494616 | J43: 4.750517845 | K43: 0.09568419307
A44: Janvier | B44: 2 | C44: 39 | D44: =Bdd_Text!A44 -> 12.31 | E44: 1.69 | F44: 0.0003934102617 | G44: =F44*'Pré-traitement'!$B$13 -> 0.2266043108 | H44: =IF('Saisies-Résultats'!$D$13="SSC",'Saisies-Résultats'!$D$29-'Saisies-Résultats'!$D$30/2,0) -> 32.5 | I44: 0.2266043127 | J44: 4.092614651 | K44: 0.05536908284
A45: Janvier | B45: 2 | C45: 40 | D45: =Bdd_Text!A45 -> 11.21 | E45: 2.79 | F45: 0.0006494761125 | G45: =F45*'Pré-traitement'!$B$13 -> 0.3740982408 | H45: =IF('Saisies-Résultats'!$D$13="SSC",'Saisies-Résultats'!$D$29-'Saisies-Résultats'!$D$30/2,0) -> 32.5 | I45: 0.3740982413 | J45: 4.607024193 | K45: 0.08120170981
A46: Janvier | B46: 2 | C46: 41 | D46: =Bdd_Text!A46 -> 10.41 | E46: 3.59 | F46: 0.0008357058222 | G46: =F46*'Pré-traitement'!$B$13 -> 0.4813665536 | H46: =IF('Saisies-Résultats'!$D$13="SSC",'Saisies-Résultats'!$D$29-'Saisies-Résultats'!$D$30/2,0) -> 32.5 | I46: 0.481366545 | J46: 4.786144733 | K46: 0.1005750075
A47: Janvier | B47: 2 | C47: 42 | D47: =Bdd_Text!A47 -> 9.01 | E47: 4.99 | F47: 0.001161607814 | G47: =F47*'Pré-traitement'!$B$13 -> 0.669086101 | H47: =IF('Saisies-Résultats'!$D$13="SSC",'Saisies-Résultats'!$D$29-'Saisies-Résultats'!$D$30/2,0) -> 32.5 | I47: 0.6690860987 | J47: 4.929563522 | K47: 0.1357292831
A48: Janvier | B48: 2 | C48: 43 | D48: =Bdd_Text!A48 -> 7.61 | E48: 6.39 | F48: 0.001487509806 | G48: =F48*'Pré-traitement'!$B$13 -> 0.8568056483 | H48: =IF('Saisies-Résultats'!$D$13="SSC",'Saisies-Résultats'!$D$29-'Saisies-Résultats'!$D$30/2,0) -> 32.5 | I48: 0.8568056226 | J48: 4.964950085 | K48: 0.1725708395
A49: Janvier | B49: 2 | C49: 44 | D49: =Bdd_Text!A49 -> 6.71 | E49: 7.29 | F49: 0.00169701823 | G49: =F49*'Pré-traitement'!$B$13 -> 0.9774825002 | H49: =IF('Saisies-Résultats'!$D$13="SSC",'Saisies-Résultats'!$D$29-'Saisies-Résultats'!$D$30/2,0) -> 32.5 | I49: 0.9774824977 | J49: 4.929621696 | K49: 0.1982875317
A50: Janvier | B50: 2 | C50: 45 | D50: =Bdd_Text!A50 -> 6.31 | E50: 7.69 | F50: 0.001790133084 | G50: =F50*'Pré-traitement'!$B$13 -> 1.031116657 | H50: =IF('Saisies-Résultats'!$D$13="SSC",'Saisies-Résultats'!$D$29-'Saisies-Résultats'!$D$30/2,0) -> 32.5 | I50: 1.031116605 | J50: 4.882511139 | K50: 0.2111857086
A51: Janvier | B51: 2 | C51: 46 | D51: =Bdd_Text!A51 -> 6.31 | E51: 7.69 | F51: 0.001790133084 | G51: =F51*'Pré-traitement'!$B$13 -> 1.031116657 | H51: =IF('Saisies-Résultats'!$D$13="SSC",'Saisies-Résultats'!$D$29-'Saisies-Résultats'!$D$30/2,0) -> 32.5 | I51: 1.031116605 | J51: 4.882511139 | K51: 0.2111857086
A52: Janvier | B52: 2 | C52: 47 | D52: =Bdd_Text!A52 -> 6.01 | E52: 7.99 | F52: 0.001859969226 | G52: =F52*'Pré-traitement'!$B$13 -> 1.071342274 | H52: =IF('Saisies-Résultats'!$D$13="SSC",'Saisies-Résultats'!$D$29-'Saisies-Résultats'!$D$30/2,0) -> 32.5 | I52: 1.07134223 | J52: 4.844935894 | K52: 0.2211261988
A53: Janvier | B53: 2 | C53: 48 | D53: =Bdd_Text!A53 -> 5.91 | E53: 8.09 | F53: 0.001883247939 | G53: =F53*'Pré-traitement'!$B$13 -> 1.084750813 | H53: =IF('Saisies-Résultats'!$D$13="SSC",'Saisies-Résultats'!$D$29-'Saisies-Résultats'!$D$30/2,0) -> 32.5 | I53: 1.084750772 | J53: 4.832021713 | K53: 0.2244921178
A54: Janvier | B54: 3 | C54: 49 | D54: =Bdd_Text!A54 -> 5.61 | E54: 8.39 | F54: 0.00195308408 | G54: =F54*'Pré-traitement'!$B$13 -> 1.12497643 | H54: =IF('Saisies-Résultats'!$D$13="SSC",'Saisies-Résultats'!$D$29-'Saisies-Résultats'!$D$30/2,0) -> 32.5 | I54: 1.124976397 | J54: 4.792197227 | K54: 0.2347517014
A55: Janvier | B55: 3 | C55: 50 | D55: =Bdd_Text!A55 -> 5.51 | E55: 8.49 | F55: 0.001976362794 | G55: =F55*'Pré-traitement'!$B$13 -> 1.138384969 | H55: =IF('Saisies-Résultats'!$D$13="SSC",'Saisies-Résultats'!$D$29-'Saisies-Résultats'!$D$30/2,0) -> 32.5 | I55: 1.138384938 | J55: 4.778582573 | K55: 0.2382264882
A56: Janvier | B56: 3 | C56: 51 | D56: =Bdd_Text!A56 -> 4.91 | E56: 9.09 | F56: 0.002116035076 | G56: =F56*'Pré-traitement'!$B$13 -> 1.218836204 | H56: =IF('Saisies-Résultats'!$D$13="SSC",'Saisies-Résultats'!$D$29-'Saisies-Résultats'!$D$30/2,0) -> 32.5 | I56: 1.218836188 | J56: 4.693666935 | K56: 0.2596767545
A57: Janvier | B57: 3 | C57: 52 | D57: =Bdd_Text!A57 -> 4.81 | E57: 9.19 | F57: 0.00213931379 | G57: =F57*'Pré-traitement'!$B$13 -> 1.232244743 | H57: =IF('Saisies-Résultats'!$D$13="SSC",'Saisies-Résultats'!$D$29-'Saisies-Résultats'!$D$30/2,0) -> 32.5 | I57: 1.23224473 | J57: 4.679020405 | K57: 0.2633552849
A58: Janvier | B58: 3 | C58: 53 | D58: =Bdd_Text!A58 -> 4.91 | E58: 9.09 | F58: 0.002116035076 | G58: =F58*'Pré-traitement'!$B$13 -> 1.218836204 | H58: =IF('Saisies-Résultats'!$D$13="SSC",'Saisies-Résultats'!$D$29-'Saisies-Résultats'!$D$30/2,0) -> 32.5 | I58: 1.218836188 | J58: 4.693666935 | K58: 0.2596767545
A59: Janvier | B59: 3 | C59: 54 | D59: =Bdd_Text!A59 -> 4.61 | E59: 9.39 | F59: 0.002185871218 | G59: =F59*'Pré-traitement'!$B$13 -> 1.259061821 | H59: =IF('Saisies-Résultats'!$D$13="SSC",'Saisies-Résultats'!$D$29-'Saisies-Résultats'!$D$30/2,0) -> 32.5 | I59: 1.259061813 | J59: 4.64934063 | K59: 0.2708043754
A60: Janvier | B60: 3 | C60: 55 | D60: =Bdd_Text!A60 -> 4.61 | E60: 9.39 | F60: 0.002185871218 | G60: =F60*'Pré-traitement'!$B$13 -> 1.259061821 | H60: =IF('Saisies-Résultats'!$D$13="SSC",'Saisies-Résultats'!$D$29-'Saisies-Résultats'!$D$30/2,0) -> 32.5 | I60: 1.259061813 | J60: 4.64934063 | K60: 0.2708043754
A61: Janvier | B61: 3 | C61: 56 | D61: =Bdd_Text!A61 -> 4.51 | E61: 9.49 | F61: 0.002209149931 | G61: =F61*'Pré-traitement'!$B$13 -> 1.27247036 | H61: =IF('Saisies-Résultats'!$D$13="SSC",'Saisies-Résultats'!$D$29-'Saisies-Résultats'!$D$30/2,0) -> 32.5 | I61: 1.272470355 | J61: 4.634313583 | K61: 0.2745757997
A62: Janvier | B62: 3 | C62: 57 | D62: =Bdd_Text!A62 -> 5.61 | E62: 8.39 | F62: 0.00195308408 | G62: =F62*'Pré-traitement'!$B$13 -> 1.12497643 | H62: =IF('Saisies-Résultats'!$D$13="SSC",'Saisies-Résultats'!$D$29-'Saisies-Résultats'!$D$30/2,0) -> 32.5 | I62: 1.124976397 | J62: 4.792197227 | K62: 0.2347517014
A63: Janvier | B63: 3 | C63: 58 | D63: =Bdd_Text!A63 -> 7.71 | E63: 6.29 | F63: 0.001464231092 | G63: =F63*'Pré-traitement'!$B$13 -> 0.8433971092 | H63: =IF('Saisies-Résultats'!$D$13="SSC",'Saisies-Résultats'!$D$29-'Saisies-Résultats'!$D$30/2,0) -> 32.5 | I63: 0.8433970809 | J63: 4.964639187 | K63: 0.1698808372
A64: Janvier | B64: 3 | C64: 59 | D64: =Bdd_Text!A64 -> 9.91 | E64: 4.09 | F64: 0.0009520993908 | G64: =F64*'Pré-traitement'!$B$13 -> 0.5484092491 | H64: =IF('Saisies-Résultats'!$D$13="SSC",'Saisies-Résultats'!$D$29-'Saisies-Résultats'!$D$30/2,0) -> 32.5 | I64: 0.5484092236 | J64: 4.855605602 | K64: 0.1129435226
A65: Janvier | B65: 3 | C65: 60 | D65: =Bdd_Text!A65 -> 13.41 | E65: 0.59 | F65: 0.0001373444109 | G65: =F65*'Pré-traitement'!$B$13 -> 0.07911038068 | H65: =IF('Saisies-Résultats'!$D$13="SSC",'Saisies-Résultats'!$D$29-'Saisies-Résultats'!$D$30/2,0) -> 32.5 | I65: 0.07911038399 | J65: 2.600025892 | K65: 0.03042676672
A66: Janvier | B66: 3 | C66: 61 | D66: =Bdd_Text!A66 -> 13.11 | E66: 0.89 | F66: 0.000207180552 | G66: =F66*'Pré-traitement'!$B$13 -> 0.119335998 | H66: =IF('Saisies-Résultats'!$D$13="SSC",'Saisies-Résultats'!$D$29-'Saisies-Résultats'!$D$30/2,0) -> 32.5 | I66: 0.1193360016 | J66: 3.212837934 | K66: 0.03714348748
A67: Janvier | B67: 3 | C67: 62 | D67: =Bdd_Text!A67 -> 13.11 | E67: 0.89 | F67: 0.000207180552 | G67: =F67*'Pré-traitement'!$B$13 -> 0.119335998 | H67: =IF('Saisies-Résultats'!$D$13="SSC",'Saisies-Résultats'!$D$29-'Saisies-Résultats'!$D$30/2,0) -> 32.5 | I67: 0.1193360016 | J67: 3.212837934 | K67: 0.03714348748
A68: Janvier | B68: 3 | C68: 63 | D68: =Bdd_Text!A68 -> 12.11 | E68: 1.89 | F68: 0.0004399676891 | G68: =F68*'Pré-traitement'!$B$13 -> 0.2534213889 | H68: =IF('Saisies-Résultats'!$D$13="SSC",'Saisies-Résultats'!$D$29-'Saisies-Résultats'!$D$30/2,0) -> 32.5 | I68: 0.253421396 | J68: 4.223804474 | K68: 0.05999837071
A69: Janvier | B69: 3 | C69: 64 | D69: =Bdd_Text!A69 -> 12.11 | E69: 1.89 | F69: 0.0004399676891 | G69: =F69*'Pré-traitement'!$B$13 -> 0.2534213889 | H69: =IF('Saisies-Résultats'!$D$13="SSC",'Saisies-Résultats'!$D$29-'Saisies-Résultats'!$D$30/2,0) -> 32.5 | I69: 0.253421396 | J69: 4.223804474 | K69: 0.05999837071
A70: Janvier | B70: 3 | C70: 65 | D70: =Bdd_Text!A70 -> 11.41 | E70: =IF(D70>$D$1,0,($D$1-D70)) -> 2.59 | F70: 0.0006029186851 | G70: =F70*'Pré-traitement'!$B$13 -> 0.3472811626 | H70: =IF('Saisies-Résultats'!$D$13="SSC",'Saisies-Résultats'!$D$29-'Saisies-Résultats'!$D$30/2,0) -> 32.5 | I70: 0.347281158 | J70: 4.543390751 | K70: 0.07643655688
A71: Janvier | B71: 3 | C71: 66 | D71: =Bdd_Text!A71 -> 11.01 | E71: 2.99 | F71: =IF(E71=0,0,E71/SUM($E$6:$E$749)) -> 0.00069603354 | G71: =F71*'Pré-traitement'!$B$13 -> 0.400915319 | H71: =IF('Saisies-Résultats'!$D$13="SSC",'Saisies-Résultats'!$D$29-'Saisies-Résultats'!$D$30/2,0) -> 32.5 | I71: 0.4009153247 | J71: 4.661923409 | K71: 0.0859978348
A72: Janvier | B72: 3 | C72: 67 | D72: =Bdd_Text!A72 -> 10.21 | E72: 3.79 | F72: 0.0008822632497 | G72: =F72*'Pré-traitement'!$B$13 -> 0.5081836318 | H72: =IF('Saisies-Résultats'!$D$13="SSC",'Saisies-Résultats'!$D$29-'Saisies-Résultats'!$D$30/2,0) -> 32.5 | I72: 0.5081836581 | J72: 4.816997051 | K72: 0.1054980233
A73: Janvier | B73: 3 | C73: 68 | D73: =Bdd_Text!A73 -> 9.31 | E73: 4.69 | F73: 0.001091771673 | G73: =F73*'Pré-traitement'!$B$13 -> 0.6288604837 | H73: =IF('Saisies-Résultats'!$D$13="SSC",'Saisies-Résultats'!$D$29-'Saisies-Résultats'!$D$30/2,0) -> 32.5 | I73: 0.6288604736 | J73: 4.910745144 | K73: 0.128058061
A74: Janvier | B74: 3 | C74: 69 | D74: =Bdd_Text!A74 -> 7.51 | E74: 6.49 | F74: 0.00151078852 | G74: =F74*'Pré-traitement'!$B$13 -> 0.8702141874 | H74: =IF('Saisies-Résultats'!$D$13="SSC",'Saisies-Résultats'!$D$29-'Saisies-Résultats'!$D$30/2,0) -> 32.5 | I74: 0.8702141643 | J74: 4.964990616 | K74: 0.1752700508
A75: Janvier | B75: 3 | C75: 70 | D75: =Bdd_Text!A75 -> 8.61 | E75: 5.39 | F75: 0.001254722669 | G75: =F75*'Pré-traitement'!$B$13 -> 0.7227202574 | H75: =IF('Saisies-Résultats'!$D$13="SSC",'Saisies-Résultats'!$D$29-'Saisies-Résultats'!$D$30/2,0) -> 32.5 | I75: 0.7227202654 | J75: 4.947488308 | K75: 0.146078214
A76: Janvier | B76: 3 | C76: 71 | D76: =Bdd_Text!A76 -> 8.71 | E76: 5.29 | F76: 0.001231443955 | G76: =F76*'Pré-traitement'!$B$13 -> 0.7093117183 | H76: =IF('Saisies-Résultats'!$D$13="SSC",'Saisies-Résultats'!$D$29-'Saisies-Résultats'!$D$30/2,0) -> 32.5 | I76: 0.7093117237 | J76: 4.943699837 | K76: 0.1434779167
A77: Janvier | B77: 3 | C77: 72 | D77: =Bdd_Text!A77 -> 9.01 | E77: 4.99 | F77: 0.001161607814 | G77: =F77*'Pré-traitement'!$B$13 -> 0.669086101 | H77: =IF('Saisies-Résultats'!$D$13="SSC",'Saisies-Résultats'!$D$29-'Saisies-Résultats'!$D$30/2,0) -> 32.5 | I77: 0.6690860987 | J77: 4.929563522 | K77: 0.1357292831
A78: Janvier | B78: 4 | C78: 73 | D78: =Bdd_Text!A78 -> 8.61 | E78: 5.39 | F78: 0.001254722669 | G78: =F78*'Pré-traitement'!$B$13 -> 0.7227202574 | H78: =IF('Saisies-Résultats'!$D$13="SSC",'Saisies-Résultats'!$D$29-'Saisies-Résultats'!$D$30/2,0) -> 32.5 | I78: 0.7227202654 | J78: 4.947488308 | K78: 0.146078214
A79: Janvier | B79: 4 | C79: 74 | D79: =Bdd_Text!A79 -> 8.21 | E79: 5.79 | F79: 0.001347837524 | G79: =F79*'Pré-traitement'!$B$13 -> 0.7763544138 | H79: =IF('Saisies-Résultats'!$D$13="SSC",'Saisies-Résultats'!$D$29-'Saisies-Résultats'!$D$30/2,0) -> 32.5 | I79: 0.7763544321 | J79: 4.958591461 | K79: 0.1565675288
A80: Janvier | B80: 4 | C80: 75 | D80: =Bdd_Text!A80 -> 8.21 | E80: 5.79 | F80: 0.001347837524 | G80: =F80*'Pré-traitement'!$B$13 -> 0.7763544138 | H80: =IF('Saisies-Résultats'!$D$13="SSC",'Saisies-Résultats'!$D$29-'Saisies-Résultats'!$D$30/2,0) -> 32.5 | I80: 0.7763544321 | J80: 4.958591461 | K80: 0.1565675288
A81: Janvier | B81: 4 | C81: 76 | D81: =Bdd_Text!A81 -> 8.61 | E81: 5.39 | F81: 0.001254722669 | G81: =F81*'Pré-traitement'!$B$13 -> 0.7227202574 | H81: =IF('Saisies-Résultats'!$D$13="SSC",'Saisies-Résultats'!$D$29-'Saisies-Résultats'!$D$30/2,0) -> 32.5 | I81: 0.7227202654 | J81: 4.947488308 | K81: 0.146078214
A82: Janvier | B82: 4 | C82: 77 | D82: =Bdd_Text!A82 -> 8.41 | E82: 5.59 | F82: 0.001301280096 | G82: =F82*'Pré-traitement'!$B$13 -> 0.7495373356 | H82: =IF('Saisies-Résultats'!$D$13="SSC",'Saisies-Résultats'!$D$29-'Saisies-Résultats'!$D$30/2,0) -> 32.5 | I82: 0.7495373487 | J82: 4.953812599 | K82: 0.151305154
A83: Janvier | B83: 4 | C83: 78 | D83: =Bdd_Text!A83 -> 8.01 | E83: 5.99 | F83: 0.001394394951 | G83: =F83*'Pré-traitement'!$B$13 -> 0.803171492 | H83: =IF('Saisies-Résultats'!$D$13="SSC",'Saisies-Résultats'!$D$29-'Saisies-Résultats'!$D$30/2,0) -> 32.5 | I83: 0.8031715155 | J83: 4.961962223 | K83: 0.1618657112
A84: Janvier | B84: 4 | C84: 79 | D84: =Bdd_Text!A84 -> 7.81 | E84: 6.19 | F84: 0.001440952379 | G84: =F84*'Pré-traitement'!$B$13 -> 0.8299885702 | H84: =IF('Saisies-Résultats'!$D$13="SSC",'Saisies-Résultats'!$D$29-'Saisies-Résultats'!$D$30/2,0) -> 32.5 | I84: 0.8299885988 | J84: 4.964045525 | K84: 0.1672000438
A85: Janvier | B85: 4 | C85: 80 | D85: =Bdd_Text!A85 -> 7.61 | E85: 6.39 | F85: 0.001487509806 | G85: =F85*'Pré-traitement'!$B$13 -> 0.8568056483 | H85: =IF('Saisies-Résultats'!$D$13="SSC",'Saisies-Résultats'!$D$29-'Saisies-Résultats'!$D$30/2,0) -> 32.5 | I85: 0.8568056226 | J85: 4.964950085 | K85: 0.1725708395
A86: Janvier | B86: 4 | C86: 81 | D86: =Bdd_Text!A86 -> 7.71 | E86: 6.29 | F86: 0.001464231092 | G86: =F86*'Pré-traitement'!$B$13 -> 0.8433971092 | H86: =IF('Saisies-Résultats'!$D$13="SSC",'Saisies-Résultats'!$D$29-'Saisies-Résultats'!$D$30/2,0) -> 32.5 | I86: 0.8433970809 | J86: 4.964639187 | K86: 0.1698808372
A87: Janvier | B87: 4 | C87: 82 | D87: =Bdd_Text!A87 -> 8.31 | E87: 5.69 | F87: 0.00132455881 | G87: =F87*'Pré-traitement'!$B$13 -> 0.7629458747 | H87: =IF('Saisies-Résultats'!$D$13="SSC",'Saisies-Résultats'!$D$29-'Saisies-Résultats'!$D$30/2,0) -> 32.5 | I87: 0.7629458904 | J87: 4.956386566 | K87: 0.1539318711
A88: Janvier | B88: 4 | C88: 83 | D88: =Bdd_Text!A88 -> 7.51 | E88: 6.49 | F88: 0.00151078852 | G88: =F88*'Pré-traitement'!$B$13 -> 0.8702141874 | H88: =IF('Saisies-Résultats'!$D$13="SSC",'Saisies-Résultats'!$D$29-'Saisies-Résultats'!$D$30/2,0) -> 32.5 | I88: 0.8702141643 | J88: 4.964990616 | K88: 0.1752700508
A89: Janvier | B89: 4 | C89: 84 | D89: =Bdd_Text!A89 -> 8.11 | E89: 5.89 | F89: 0.001371116238 | G89: =F89*'Pré-traitement'!$B$13 -> 0.7897629529 | H89: =IF('Saisies-Résultats'!$D$13="SSC",'Saisies-Résultats'!$D$29-'Saisies-Résultats'!$D$30/2,0) -> 32.5 | I89: 0.7897629738 | J89: 4.960445404 | K89: 0.1592121124
A90: Janvier | B90: 4 | C90: 85 | D90: =Bdd_Text!A90 -> 8.31 | E90: 5.69 | F90: 0.00132455881 | G90: =F90*'Pré-traitement'!$B$13 -> 0.7629458747 | H90: =IF('Saisies-Résultats'!$D$13="SSC",'Saisies-Résultats'!$D$29-'Saisies-Résultats'!$D$30/2,0) -> 32.5 | I90: 0.7629458904 | J90: 4.956386566 | K90: 0.1539318711
A91: Janvier | B91: 4 | C91: 86 | D91: =Bdd_Text!A91 -> 9.31 | E91: 4.69 | F91: 0.001091771673 | G91: =F91*'Pré-traitement'!$B$13 -> 0.6288604837 | H91: =IF('Saisies-Résultats'!$D$13="SSC",'Saisies-Résultats'!$D$29-'Saisies-Résultats'!$D$30/2,0) -> 32.5 | I91: 0.6288604736 | J91: 4.910745144 | K91: 0.128058061
A92: Janvier | B92: 4 | C92: 87 | D92: =Bdd_Text!A92 -> 9.51 | E92: 4.49 | F92: 0.001045214246 | G92: =F92*'Pré-traitement'!$B$13 -> 0.6020434055 | H92: =IF('Saisies-Résultats'!$D$13="SSC",'Saisies-Résultats'!$D$29-'Saisies-Résultats'!$D$30/2,0) -> 32.5 | I92: 0.6020433903 | J92: 4.895203114 | K92: 0.1229863986
A93: Janvier | B93: 4 | C93: 88 | D93: =Bdd_Text!A93 -> 9.51 | E93: 4.49 | F93: 0.001045214246 | G93: =F93*'Pré-traitement'!$B$13 -> 0.6020434055 | H93: =IF('Saisies-Résultats'!$D$13="SSC",'Saisies-Résultats'!$D$29-'Saisies-Résultats'!$D$30/2,0) -> 32.5 | I93: 0.6020433903 | J93: 4.895203114 | K93: 0.1229863986
A94: Janvier | B94: 4 | C94: 89 | D94: =Bdd_Text!A94 -> 9.31 | E94: 4.69 | F94: 0.001091771673 | G94: =F94*'Pré-traitement'!$B$13 -> 0.6288604837 | H94: =IF('Saisies-Résultats'!$D$13="SSC",'Saisies-Résultats'!$D$29-'Saisies-Résultats'!$D$30/2,0) -> 32.5 | I94: 0.6288604736 | J94: 4.910745144 | K94: 0.128058061
A95: Janvier | B95: 4 | C95: 90 | D95: =Bdd_Text!A95 -> 9.21 | E95: 4.79 | F95: 0.001115050387 | G95: =F95*'Pré-traitement'!$B$13 -> 0.6422690228 | H95: =IF('Saisies-Résultats'!$D$13="SSC",'Saisies-Résultats'!$D$29-'Saisies-Résultats'!$D$30/2,0) -> 32.5 | I95: 0.6422690153 | J95: 4.917584419 | K95: 0.1306066066
A96: Janvier | B96: 4 | C96: 91 | D96: =Bdd_Text!A96 -> 7.51 | E96: 6.49 | F96: 0.00151078852 | G96: =F96*'Pré-traitement'!$B$13 -> 0.8702141874 | H96: =IF('Saisies-Résultats'!$D$13="SSC",'Saisies-Résultats'!$D$29-'Saisies-Résultats'!$D$30/2,0) -> 32.5 | I96: 0.8702141643 | J96: 4.964990616 | K96: 0.1752700508
A97: Janvier | B97: 4 | C97: 92 | D97: =Bdd_Text!A97 -> 8.81 | E97: 5.19 | F97: 0.001208165242 | G97: =F97*'Pré-traitement'!$B$13 -> 0.6959031792 | H97: =IF('Saisies-Résultats'!$D$13="SSC",'Saisies-Résultats'!$D$29-'Saisies-Résultats'!$D$30/2,0) -> 32.5 | I97: 0.695903182 | J97: 4.939464569 | K97: 0.1408863664
A98: Janvier | B98: 4 | C98: 93 | D98: =Bdd_Text!A98 -> 9.71 | E98: 4.29 | F98: 0.0009986568182 | G98: =F98*'Pré-traitement'!$B$13 -> 0.5752263273 | H98: =IF('Saisies-Résultats'!$D$13="SSC",'Saisies-Résultats'!$D$29-'Saisies-Résultats'!$D$30/2,0) -> 32.5 | I98: 0.5752263069 | J98: 4.876935005 | K98: 0.1179483235
A99: Janvier | B99: 4 | C99: 94 | D99: =Bdd_Text!A99 -> 9.41 | E99: 4.59 | F99: 0.001068492959 | G99: =F99*'Pré-traitement'!$B$13 -> 0.6154519446 | H99: =IF('Saisies-Résultats'!$D$13="SSC",'Saisies-Résultats'!$D$29-'Saisies-Résultats'!$D$30/2,0) -> 32.5 | I99: 0.615451932 | J99: 4.903295994 | K99: 0.1255180091
A100: Janvier | B100: 4 | C100: 95 | D100: =Bdd_Text!A100 -> 9.51 | E100: 4.49 | F100: 0.001045214246 | G100: =F100*'Pré-traitement'!$B$13 -> 0.6020434055 | H100: =IF('Saisies-Résultats'!$D$13="SSC",'Saisies-Résultats'!$D$29-'Saisies-Résultats'!$D$30/2,0) -> 32.5 | I100: 0.6020433903 | J100: 4.895203114 | K100: 0.1229863986
A101: Janvier | B101: 4 | C101: 96 | D101: =Bdd_Text!A101 -> 9.11 | E101: 4.89 | F101: 0.0011383291 | G101: =F101*'Pré-traitement'!$B$13 -> 0.6556775619 | H101: =IF('Saisies-Résultats'!$D$13="SSC",'Saisies-Résultats'!$D$29-'Saisies-Résultats'!$D$30/2,0) -> 32.5 | I101: 0.655677557 | J101: 4.923848152 | K101: 0.1331636459
A102: Janvier | B102: 5 | C102: 97 | D102: =Bdd_Text!A102 -> 8.71 | E102: 5.29 | F102: 0.001231443955 | G102: =F102*'Pré-traitement'!$B$13 -> 0.7093117183 | H102: =IF('Saisies-Résultats'!$D$13="SSC",'Saisies-Résultats'!$D$29-'Saisies-Résultats'!$D$30/2,0) -> 32.5 | I102: 0.7093117237 | J102: 4.943699837 | K102: 0.1434779167
A103: Janvier | B103: 5 | C103: 98 | D103: =Bdd_Text!A103 -> 6.11 | E103: 7.89 | F103: 0.001836690512 | G103: =F103*'Pré-traitement'!$B$13 -> 1.057933735 | H103: =IF('Saisies-Résultats'!$D$13="SSC",'Saisies-Résultats'!$D$29-'Saisies-Résultats'!$D$30/2,0) -> 32.5 | I103: 1.057933688 | J103: 4.857660294 | K103: 0.2177866697
A104: Janvier | B104: 5 | C104: 99 | D104: =Bdd_Text!A104 -> 9.81 | E104: 4.19 | F104: 0.0009753781045 | G104: =F104*'Pré-traitement'!$B$13 -> 0.5618177882 | H104: =IF('Saisies-Résultats'!$D$13="SSC",'Saisies-Résultats'!$D$29-'Saisies-Résultats'!$D$30/2,0) -> 32.5 | I104: 0.5618177652 | J104: 4.866676807 | K104: 0.1154417694
A105: Janvier | B105: 5 | C105: 100 | D105: =Bdd_Text!A105 -> 9.11 | E105: 4.89 | F105: 0.0011383291 | G105: =F105*'Pré-traitement'!$B$13 -> 0.6556775619 | H105: =IF('Saisies-Résultats'!$D$13="SSC",'Saisies-Résultats'!$D$29-'Saisies-Résultats'!$D$30/2,0) -> 32.5 | I105: 0.655677557 | J105: 4.923848152 | K105: 0.1331636459
A106: Janvier | B106: 5 | C106: 101 | D106: =Bdd_Text!A106 -> 9.41 | E106: 4.59 | F106: 0.001068492959 | G106: =F106*'Pré-traitement'!$B$13 -> 0.6154519446 | H106: =IF('Saisies-Résultats'!$D$13="SSC",'Saisies-Résultats'!$D$29-'Saisies-Résultats'!$D$30/2,0) -> 32.5 | I106: 0.615451932 | J106: 4.903295994 | K106: 0.1255180091
A107: Janvier | B107: 5 | C107: 102 | D107: =Bdd_Text!A107 -> 9.01 | E107: 4.99 | F107: 0.001161607814 | G107: =F107*'Pré-traitement'!$B$13 -> 0.669086101 | H107: =IF('Saisies-Résultats'!$D$13="SSC",'Saisies-Résultats'!$D$29-'Saisies-Résultats'!$D$30/2,0) -> 32.5 | I107: 0.6690860987 | J107: 4.929563522 | K107: 0.1357292831
A108: Janvier | B108: 5 | C108: 103 | D108: =Bdd_Text!A108 -> 9.01 | E108: 4.99 | F108: 0.001161607814 | G108: =F108*'Pré-traitement'!$B$13 -> 0.669086101 | H108: =IF('Saisies-Résultats'!$D$13="SSC",'Saisies-Résultats'!$D$29-'Saisies-Résultats'!$D$30/2,0) -> 32.5 | I108: 0.6690860987 | J108: 4.929563522 | K108: 0.1357292831
A109: Janvier | B109: 5 | C109: 104 | D109: =Bdd_Text!A109 -> 6.71 | E109: 7.29 | F109: 0.00169701823 | G109: =F109*'Pré-traitement'!$B$13 -> 0.9774825002 | H109: =IF('Saisies-Résultats'!$D$13="SSC",'Saisies-Résultats'!$D$29-'Saisies-Résultats'!$D$30/2,0) -> 32.5 | I109: 0.9774824977 | J109: 4.929621696 | K109: 0.1982875317
A110: Janvier | B110: 5 | C110: 105 | D110: =Bdd_Text!A110 -> 6.81 | E110: 7.19 | F110: 0.001673739516 | G110: =F110*'Pré-traitement'!$B$13 -> 0.9640739611 | H110: =IF('Saisies-Résultats'!$D$13="SSC",'Saisies-Résultats'!$D$29-'Saisies-Résultats'!$D$30/2,0) -> 32.5 | I110: 0.964073956 | J110: 4.940811634 | K110: 0.1951246113
A111: Janvier | B111: 5 | C111: 106 | D111: =Bdd_Text!A111 -> 9.21 | E111: 4.79 | F111: 0.001115050387 | G111: =F111*'Pré-traitement'!$B$13 -> 0.6422690228 | H111: =IF('Saisies-Résultats'!$D$13="SSC",'Saisies-Résultats'!$D$29-'Saisies-Résultats'!$D$30/2,0) -> 32.5 | I111: 0.6422690153 | J111: 4.917584419 | K111: 0.1306066066
A112: Janvier | B112: 5 | C112: 107 | D112: =Bdd_Text!A112 -> 11.81 | E112: 2.19 | F112: 0.0005098038303 | G112: =F112*'Pré-traitement'!$B$13 -> 0.2936470062 | H112: =IF('Saisies-Résultats'!$D$13="SSC",'Saisies-Résultats'!$D$29-'Saisies-Résultats'!$D$30/2,0) -> 32.5 | I112: 0.2936470211 | J112: 4.382917881 | K112: 0.06699806452
A113: Janvier | B113: 5 | C113: 108 | D113: =Bdd_Text!A113 -> 13.31 | E113: 0.69 | F113: 0.0001606231246 | G113: =F113*'Pré-traitement'!$B$13 -> 0.09251891977 | H113: =IF('Saisies-Résultats'!$D$13="SSC",'Saisies-Résultats'!$D$29-'Saisies-Résultats'!$D$30/2,0) -> 32.5 | I113: 0.09251891822 | J113: 2.832907915 | K113: 0.0326586403
A114: Janvier | B114: 5 | C114: 109 | D114: =Bdd_Text!A114 -> 13.31 | E114: 0.69 | F114: 0.0001606231246 | G114: =F114*'Pré-traitement'!$B$13 -> 0.09251891977 | H114: =IF('Saisies-Résultats'!$D$13="SSC",'Saisies-Résultats'!$D$29-'Saisies-Résultats'!$D$30/2,0) -> 32.5 | I114: 0.09251891822 | J114: 2.832907915 | K114: 0.0326586403
A115: Janvier | B115: 5 | C115: 110 | D115: =Bdd_Text!A115 -> 13.21 | E115: 0.79 | F115: 0.0001839018383 | G115: =F115*'Pré-traitement'!$B$13 -> 0.1059274589 | H115: =IF('Saisies-Résultats'!$D$13="SSC",'Saisies-Résultats'!$D$29-'Saisies-Résultats'!$D$30/2,0) -> 32.5 | I115: 0.1059274599 | J115: 3.03538537 | K115: 0.03489753231
A116: Janvier | B116: 5 | C116: 111 | D116: =Bdd_Text!A116 -> 12.01 | E116: 1.99 | F116: 0.0004632464029 | G116: =F116*'Pré-traitement'!$B$13 -> 0.266829928 | H116: =IF('Saisies-Résultats'!$D$13="SSC",'Saisies-Résultats'!$D$29-'Saisies-Résultats'!$D$30/2,0) -> 32.5 | I116: 0.2668299377 | J116: 4.281326294 | K116: 0.06232412905
A117: Janvier | B117: 5 | C117: 112 | D117: =Bdd_Text!A117 -> 11.71 | E117: 2.29 | F117: 0.000533082544 | G117: =F117*'Pré-traitement'!$B$13 -> 0.3070555453 | H117: =IF('Saisies-Résultats'!$D$13="SSC",'Saisies-Résultats'!$D$29-'Saisies-Résultats'!$D$30/2,0) -> 32.5 | I117: 0.3070555329 | J117: 4.427856922 | K117: 0.06934630871
A118: Janvier | B118: 5 | C118: 113 | D118: =Bdd_Text!A118 -> 11.11 | E118: 2.89 | F118: 0.0006727548263 | G118: =F118*'Pré-traitement'!$B$13 -> 0.3875067799 | H118: =IF('Saisies-Résultats'!$D$13="SSC",'Saisies-Résultats'!$D$29-'Saisies-Résultats'!$D$30/2,0) -> 32.5 | I118: 0.387506783 | J118: 4.635477066 | K118: 0.08359587938
A119: Janvier | B119: 5 | C119: 114 | D119: =Bdd_Text!A119 -> 10.71 | E119: 3.29 | F119: 0.0007658696811 | G119: =F119*'Pré-traitement'!$B$13 -> 0.4411409363 | H119: =IF('Saisies-Résultats'!$D$13="SSC",'Saisies-Résultats'!$D$29-'Saisies-Résultats'!$D$30/2,0) -> 32.5 | I119: 0.4411409497 | J119: 4.730696201 | K119: 0.09325074404
A120: Janvier | B120: 5 | C120: 115 | D120: =Bdd_Text!A120 -> 9.21 | E120: 4.79 | F120: 0.001115050387 | G120: =F120*'Pré-traitement'!$B$13 -> 0.6422690228 | H120: =IF('Saisies-Résultats'!$D$13="SSC",'Saisies-Résultats'!$D$29-'Saisies-Résultats'!$D$30/2,0) -> 32.5 | I120: 0.6422690153 | J120: 4.917584419 | K120: 0.1306066066
A121: Janvier | B121: 5 | C121: 116 | D121: =Bdd_Text!A121 -> 8.71 | E121: 5.29 | F121: 0.001231443955 | G121: =F121*'Pré-traitement'!$B$13 -> 0.7093117183 | H121: =IF('Saisies-Résultats'!$D$13="SSC",'Saisies-Résultats'!$D$29-'Saisies-Résultats'!$D$30/2,0) -> 32.5 | I121: 0.7093117237 | J121: 4.943699837 | K121: 0.1434779167
A122: Janvier | B122: 5 | C122: 117 | D122: =Bdd_Text!A122 -> 8.31 | E122: 5.69 | F122: 0.00132455881 | G122: =F122*'Pré-traitement'!$B$13 -> 0.7629458747 | H122: =IF('Saisies-Résultats'!$D$13="SSC",'Saisies-Résultats'!$D$29-'Saisies-Résultats'!$D$30/2,0) -> 32.5 | I122: 0.7629458904 | J122: 4.956386566 | K122: 0.1539318711
A123: Janvier | B123: 5 | C123: 118 | D123: =Bdd_Text!A123 -> 8.11 | E123: 5.89 | F123: 0.001371116238 | G123: =F123*'Pré-traitement'!$B$13 -> 0.7897629529 | H123: =IF('Saisies-Résultats'!$D$13="SSC",'Saisies-Résultats'!$D$29-'Saisies-Résultats'!$D$30/2,0) -> 32.5 | I123: 0.7897629738 | J123: 4.960445404 | K123: 0.1592121124
A124: Janvier | B124: 5 | C124: 119 | D124: =Bdd_Text!A124 -> 8.21 | E124: 5.79 | F124: 0.001347837524 | G124: =F124*'Pré-traitement'!$B$13 -> 0.7763544138 | H124: =IF('Saisies-Résultats'!$D$13="SSC",'Saisies-Résultats'!$D$29-'Saisies-Résultats'!$D$30/2,0) -> 32.5 | I124: 0.7763544321 | J124: 4.958591461 | K124: 0.1565675288
A125: Janvier | B125: 5 | C125: 120 | D125: =Bdd_Text!A125 -> 7.91 | E125: 6.09 | F125: 0.001417673665 | G125: =F125*'Pré-traitement'!$B$13 -> 0.8165800311 | H125: =IF('Saisies-Résultats'!$D$13="SSC",'Saisies-Résultats'!$D$29-'Saisies-Résultats'!$D$30/2,0) -> 32.5 | I125: 0.8165800571 | J125: 4.963158131 | K125: 0.1645283252
A126: Janvier | B126: 6 | C126: 121 | D126: =Bdd_Text!A126 -> 7.41 | E126: 6.59 | F126: 0.001534067234 | G126: =F126*'Pré-traitement'!$B$13 -> 0.8836227265 | H126: =IF('Saisies-Résultats'!$D$13="SSC",'Saisies-Résultats'!$D$29-'Saisies-Résultats'!$D$30/2,0) -> 32.5 | I126: 0.8836227059 | J126: 4.964771748 | K126: 0.1779785156
A127: Janvier | B127: 6 | C127: 122 | D127: =Bdd_Text!A127 -> 7.11 | E127: 6.89 | F127: 0.001603903375 | G127: =F127*'Pré-traitement'!$B$13 -> 0.9238483438 | H127: =IF('Saisies-Résultats'!$D$13="SSC",'Saisies-Résultats'!$D$29-'Saisies-Résultats'!$D$30/2,0) -> 32.5 | I127: 0.923848331 | J127: 4.962657928 | K127: 0.1861599833
A128: Janvier | B128: 6 | C128: 123 | D128: =Bdd_Text!A128 -> 7.01 | E128: 6.99 | F128: 0.001627182088 | G128: =F128*'Pré-traitement'!$B$13 -> 0.9372568829 | H128: =IF('Saisies-Résultats'!$D$13="SSC",'Saisies-Résultats'!$D$29-'Saisies-Résultats'!$D$30/2,0) -> 32.5 | I128: 0.9372568727 | J128: 4.961498737 | K128: 0.1889059991
A129: Janvier | B129: 6 | C129: 124 | D129: =Bdd_Text!A129 -> 6.91 | E129: 7.09 | F129: 0.001650460802 | G129: =F129*'Pré-traitement'!$B$13 -> 0.950665422 | H129: =IF('Saisies-Résultats'!$D$13="SSC",'Saisies-Résultats'!$D$29-'Saisies-Résultats'!$D$30/2,0) -> 32.5 | I129: 0.9506654143 | J129: 4.951750278 | K129: 0.1919857413
A130: Janvier | B130: 6 | C130: 125 | D130: =Bdd_Text!A130 -> 7.21 | E130: 6.79 | F130: 0.001580624661 | G130: =F130*'Pré-traitement'!$B$13 -> 0.9104398047 | H130: =IF('Saisies-Résultats'!$D$13="SSC",'Saisies-Résultats'!$D$29-'Saisies-Résultats'!$D$30/2,0) -> 32.5 | I130: 0.9104397893 | J130: 4.963594913 | K130: 0.1834234595
A131: Janvier | B131: 6 | C131: 126 | D131: =Bdd_Text!A131 -> 11.41 | E131: 2.59 | F131: 0.0006029186851 | G131: =F131*'Pré-traitement'!$B$13 -> 0.3472811626 | H131: =IF('Saisies-Résultats'!$D$13="SSC",'Saisies-Résultats'!$D$29-'Saisies-Résultats'!$D$30/2,0) -> 32.5 | I131: 0.347281158 | J131: 4.543390751 | K131: 0.07643655688
A132: Janvier | B132: 6 | C132: 127 | D132: =Bdd_Text!A132 -> 11.31 | E132: 2.69 | F132: 0.0006261973988 | G132: =F132*'Pré-traitement'!$B$13 -> 0.3606897017 | H132: =IF('Saisies-Résultats'!$D$13="SSC",'Saisies-Résultats'!$D$29-'Saisies-Résultats'!$D$30/2,0) -> 32.5 | I132: 0.3606896996 | J132: 4.576392651 | K132: 0.07881528884
A133: Janvier | B133: 6 | C133: 128 | D133: =Bdd_Text!A133 -> 12.01 | E133: 1.99 | F133: 0.0004632464029 | G133: =F133*'Pré-traitement'!$B$13 -> 0.266829928 | H133: =IF('Saisies-Résultats'!$D$13="SSC",'Saisies-Résultats'!$D$29-'Saisies-Résultats'!$D$30/2,0) -> 32.5 | I133: 0.2668299377 | J133: 4.281326294 | K133: 0.06232412905
A134: Janvier | B134: 6 | C134: 129 | D134: =Bdd_Text!A134 -> 11.11 | E134: =IF(D134>$D$1,0,($D$1-D134)) -> 2.89 | F134: 0.0006727548263 | G134: =F134*'Pré-traitement'!$B$13 -> 0.3875067799 | H134: =IF('Saisies-Résultats'!$D$13="SSC",'Saisies-Résultats'!$D$29-'Saisies-Résultats'!$D$30/2,0) -> 32.5 | I134: 0.387506783 | J134: 4.635477066 | K134: 0.08359587938
A135: Janvier | B135: 6 | C135: 130 | D135: =Bdd_Text!A135 -> 12.51 | E135: 1.49 | F135: =IF(E135=0,0,E135/SUM($E$6:$E$749)) -> 0.0003468528343 | G135: =F135*'Pré-traitement'!$B$13 -> 0.1997872326 | H135: =IF('Saisies-Résultats'!$D$13="SSC",'Saisies-Résultats'!$D$29-'Saisies-Résultats'!$D$30/2,0) -> 32.5 | I135: 0.1997872293 | J135: 3.935203791 | K135: 0.05076922104
A136: Janvier | B136: 6 | C136: 131 | D136: =Bdd_Text!A136 -> 12.51 | E136: 1.49 | F136: 0.0003468528343 | G136: =F136*'Pré-traitement'!$B$13 -> 0.1997872326 | H136: =IF('Saisies-Résultats'!$D$13="SSC",'Saisies-Résultats'!$D$29-'Saisies-Résultats'!$D$30/2,0) -> 32.5 | I136: 0.1997872293 | J136: 3.935203791 | K136: 0.05076922104
A137: Janvier | B137: 6 | C137: 132 | D137: =Bdd_Text!A137 -> 12.61 | E137: 1.39 | F137: 0.0003235741206 | G137: =F137*'Pré-traitement'!$B$13 -> 0.1863786935 | H137: =IF('Saisies-Résultats'!$D$13="SSC",'Saisies-Résultats'!$D$29-'Saisies-Résultats'!$D$30/2,0) -> 32.5 | I137: 0.1863786876 | J137: 3.844425678 | K137: 0.04848024249
A138: Janvier | B138: 6 | C138: 133 | D138: =Bdd_Text!A138 -> 12.21 | E138: 1.79 | F138: 0.0004166889754 | G138: =F138*'Pré-traitement'!$B$13 -> 0.2400128498 | H138: =IF('Saisies-Résultats'!$D$13="SSC",'Saisies-Résultats'!$D$29-'Saisies-Résultats'!$D$30/2,0) -> 32.5 | I138: 0.2400128543 | J138: 4.161108971 | K138: 0.05768002197
A139: Janvier | B139: 6 | C139: 134 | D139: =Bdd_Text!A139 -> 12.11 | E139: 1.89 | F139: 0.0004399676891 | G139: =F139*'Pré-traitement'!$B$13 -> 0.2534213889 | H139: =IF('Saisies-Résultats'!$D$13="SSC",'Saisies-Résultats'!$D$29-'Saisies-Résultats'!$D$30/2,0) -> 32.5 | I139: 0.253421396 | J139: 4.223804474 | K139: 0.05999837071
A140: Janvier | B140: 6 | C140: 135 | D140: =Bdd_Text!A140 -> 11.91 | E140: 2.09 | F140: 0.0004865251166 | G140: =F140*'Pré-traitement'!$B$13 -> 0.2802384671 | H140: =IF('Saisies-Résultats'!$D$13="SSC",'Saisies-Résultats'!$D$29-'Saisies-Résultats'!$D$30/2,0) -> 32.5 | I140: 0.2802384794 | J140: 4.334209442 | K140: 0.06465734541
A141: Janvier | B141: 6 | C141: 136 | D141: =Bdd_Text!A141 -> 12.11 | E141: 1.89 | F141: 0.0004399676891 | G141: =F141*'Pré-traitement'!$B$13 -> 0.2534213889 | H141: =IF('Saisies-Résultats'!$D$13="SSC",'Saisies-Résultats'!$D$29-'Saisies-Résultats'!$D$30/2,0) -> 32.5 | I141: 0.253421396 | J141: 4.223804474 | K141: 0.05999837071
A142: Janvier | B142: 6 | C142: 137 | D142: =Bdd_Text!A142 -> 12.11 | E142: 1.89 | F142: 0.0004399676891 | G142: =F142*'Pré-traitement'!$B$13 -> 0.2534213889 | H142: =IF('Saisies-Résultats'!$D$13="SSC",'Saisies-Résultats'!$D$29-'Saisies-Résultats'!$D$30/2,0) -> 32.5 | I142: 0.253421396 | J142: 4.223804474 | K142: 0.05999837071
A143: Janvier | B143: 6 | C143: 138 | D143: =Bdd_Text!A143 -> 12.11 | E143: 1.89 | F143: 0.0004399676891 | G143: =F143*'Pré-traitement'!$B$13 -> 0.2534213889 | H143: =IF('Saisies-Résultats'!$D$13="SSC",'Saisies-Résultats'!$D$29-'Saisies-Résultats'!$D$30/2,0) -> 32.5 | I143: 0.253421396 | J143: 4.223804474 | K143: 0.05999837071
A144: Janvier | B144: 6 | C144: 139 | D144: =Bdd_Text!A144 -> 12.21 | E144: 1.79 | F144: 0.0004166889754 | G144: =F144*'Pré-traitement'!$B$13 -> 0.2400128498 | H144: =IF('Saisies-Résultats'!$D$13="SSC",'Saisies-Résultats'!$D$29-'Saisies-Résultats'!$D$30/2,0) -> 32.5 | I144: 0.2400128543 | J144: 4.161108971 | K144: 0.05768002197
A145: Janvier | B145: 6 | C145: 140 | D145: =Bdd_Text!A145 -> 12.31 | E145: 1.69 | F145: 0.0003934102617 | G145: =F145*'Pré-traitement'!$B$13 -> 0.2266043108 | H145: =IF('Saisies-Résultats'!$D$13="SSC",'Saisies-Résultats'!$D$29-'Saisies-Résultats'!$D$30/2,0) -> 32.5 | I145: 0.2266043127 | J145: 4.092614651 | K145: 0.05536908284
A146: Janvier | B146: 6 | C146: 141 | D146: =Bdd_Text!A146 -> 12.11 | E146: 1.89 | F146: 0.0004399676891 | G146: =F146*'Pré-traitement'!$B$13 -> 0.2534213889 | H146: =IF('Saisies-Résultats'!$D$13="SSC",'Saisies-Résultats'!$D$29-'Saisies-Résultats'!$D$30/2,0) -> 32.5 | I146: 0.253421396 | J146: 4.223804474 | K146: 0.05999837071
A147: Janvier | B147: 6 | C147: 142 | D147: =Bdd_Text!A147 -> 12.71 | E147: 1.29 | F147: 0.0003002954069 | G147: =F147*'Pré-traitement'!$B$13 -> 0.1729701544 | H147: =IF('Saisies-Résultats'!$D$13="SSC",'Saisies-Résultats'!$D$29-'Saisies-Résultats'!$D$30/2,0) -> 32.5 | I147: 0.1729701608 | J147: 3.744063377 | K147: 0.04619851336
A148: Janvier | B148: 6 | C148: 143 | D148: =Bdd_Text!A148 -> 12.61 | E148: 1.39 | F148: 0.0003235741206 | G148: =F148*'Pré-traitement'!$B$13 -> 0.1863786935 | H148: =IF('Saisies-Résultats'!$D$13="SSC",'Saisies-Résultats'!$D$29-'Saisies-Résultats'!$D$30/2,0) -> 32.5 | I148: 0.1863786876 | J148: 3.844425678 | K148: 0.04848024249
A149: Janvier | B149: 6 | C149: 144 | D149: =Bdd_Text!A149 -> 12.21 | E149: 1.79 | F149: 0.0004166889754 | G149: =F149*'Pré-traitement'!$B$13 -> 0.2400128498 | H149: =IF('Saisies-Résultats'!$D$13="SSC",'Saisies-Résultats'!$D$29-'Saisies-Résultats'!$D$30/2,0) -> 32.5 | I149: 0.2400128543 | J149: 4.161108971 | K149: 0.05768002197
A150: Janvier | B150: 7 | C150: 145 | D150: =Bdd_Text!A150 -> 12.61 | E150: 1.39 | F150: 0.0003235741206 | G150: =F150*'Pré-traitement'!$B$13 -> 0.1863786935 | H150: =IF('Saisies-Résultats'!$D$13="SSC",'Saisies-Résultats'!$D$29-'Saisies-Résultats'!$D$30/2,0) -> 32.5 | I150: 0.1863786876 | J150: 3.844425678 | K150: 0.04848024249
A151: Janvier | B151: 7 | C151: 146 | D151: =Bdd_Text!A151 -> 12.61 | E151: 1.39 | F151: 0.0003235741206 | G151: =F151*'Pré-traitement'!$B$13 -> 0.1863786935 | H151: =IF('Saisies-Résultats'!$D$13="SSC",'Saisies-Résultats'!$D$29-'Saisies-Résultats'!$D$30/2,0) -> 32.5 | I151: 0.1863786876 | J151: 3.844425678 | K151: 0.04848024249
A152: Janvier | B152: 7 | C152: 147 | D152: =Bdd_Text!A152 -> 11.61 | E152: 2.39 | F152: 0.0005563612577 | G152: =F152*'Pré-traitement'!$B$13 -> 0.3204640844 | H152: =IF('Saisies-Résultats'!$D$13="SSC",'Saisies-Résultats'!$D$29-'Saisies-Résultats'!$D$30/2,0) -> 32.5 | I152: 0.3204640746 | J152: 4.469381332 | K152: 0.07170210779
A153: Janvier | B153: 7 | C153: 148 | D153: =Bdd_Text!A153 -> 9.51 | E153: 4.49 | F153: 0.001045214246 | G153: =F153*'Pré-traitement'!$B$13 -> 0.6020434055 | H153: =IF('Saisies-Résultats'!$D$13="SSC",'Saisies-Résultats'!$D$29-'Saisies-Résultats'!$D$30/2,0) -> 32.5 | I153: 0.6020433903 | J153: 4.895203114 | K153: 0.1229863986
A154: Janvier | B154: 7 | C154: 149 | D154: =Bdd_Text!A154 -> 10.51 | E154: 3.49 | F154: 0.0008124271085 | G154: =F154*'Pré-traitement'!$B$13 -> 0.4679580145 | H154: =IF('Saisies-Résultats'!$D$13="SSC",'Saisies-Résultats'!$D$29-'Saisies-Résultats'!$D$30/2,0) -> 32.5 | I154: 0.4679580033 | J154: 4.768970013 | K154: 0.09812559187
A155: Janvier | B155: 7 | C155: 150 | D155: =Bdd_Text!A155 -> 12.21 | E155: 1.79 | F155: 0.0004166889754 | G155: =F155*'Pré-traitement'!$B$13 -> 0.2400128498 | H155: =IF('Saisies-Résultats'!$D$13="SSC",'Saisies-Résultats'!$D$29-'Saisies-Résultats'!$D$30/2,0) -> 32.5 | I155: 0.2400128543 | J155: 4.161108971 | K155: 0.05768002197
A156: Janvier | B156: 7 | C156: 151 | D156: =Bdd_Text!A156 -> 10.01 | E156: 3.99 | F156: 0.0009288206771 | G156: =F156*'Pré-traitement'!$B$13 -> 0.53500071 | H156: =IF('Saisies-Résultats'!$D$13="SSC",'Saisies-Résultats'!$D$29-'Saisies-Résultats'!$D$30/2,0) -> 32.5 | I156: 0.5350006819 | J156: 4.843674183 | K156: 0.1104534864
A157: Janvier | B157: 7 | C157: 152 | D157: =Bdd_Text!A157 -> 8.81 | E157: 5.19 | F157: 0.001208165242 | G157: =F157*'Pré-traitement'!$B$13 -> 0.6959031792 | H157: =IF('Saisies-Résultats'!$D$13="SSC",'Saisies-Résultats'!$D$29-'Saisies-Résultats'!$D$30/2,0) -> 32.5 | I157: 0.695903182 | J157: 4.939464569 | K157: 0.1408863664
A158: Janvier | B158: 7 | C158: 153 | D158: =Bdd_Text!A158 -> 7.81 | E158: 6.19 | F158: 0.001440952379 | G158: =F158*'Pré-traitement'!$B$13 -> 0.8299885702 | H158: =IF('Saisies-Résultats'!$D$13="SSC",'Saisies-Résultats'!$D$29-'Saisies-Résultats'!$D$30/2,0) -> 32.5 | I158: 0.8299885988 | J158: 4.964045525 | K158: 0.1672000438
A159: Janvier | B159: 7 | C159: 154 | D159: =Bdd_Text!A159 -> 8.31 | E159: 5.69 | F159: 0.00132455881 | G159: =F159*'Pré-traitement'!$B$13 -> 0.7629458747 | H159: =IF('Saisies-Résultats'!$D$13="SSC",'Saisies-Résultats'!$D$29-'Saisies-Résultats'!$D$30/2,0) -> 32.5 | I159: 0.7629458904 | J159: 4.956386566 | K159: 0.1539318711
A160: Janvier | B160: 7 | C160: 155 | D160: =Bdd_Text!A160 -> 7.51 | E160: 6.49 | F160: 0.00151078852 | G160: =F160*'Pré-traitement'!$B$13 -> 0.8702141874 | H160: =IF('Saisies-Résultats'!$D$13="SSC",'Saisies-Résultats'!$D$29-'Saisies-Résultats'!$D$30/2,0) -> 32.5 | I160: 0.8702141643 | J160: 4.964990616 | K160: 0.1752700508
A161: Janvier | B161: 7 | C161: 156 | D161: =Bdd_Text!A161 -> 8.41 | E161: 5.59 | F161: 0.001301280096 | G161: =F161*'Pré-traitement'!$B$13 -> 0.7495373356 | H161: =IF('Saisies-Résultats'!$D$13="SSC",'Saisies-Résultats'!$D$29-'Saisies-Résultats'!$D$30/2,0) -> 32.5 | I161: 0.7495373487 | J161: 4.953812599 | K161: 0.151305154
A162: Janvier | B162: 7 | C162: 157 | D162: =Bdd_Text!A162 -> 10.51 | E162: 3.49 | F162: 0.0008124271085 | G162: =F162*'Pré-traitement'!$B$13 -> 0.4679580145 | H162: =IF('Saisies-Résultats'!$D$13="SSC",'Saisies-Résultats'!$D$29-'Saisies-Résultats'!$D$30/2,0) -> 32.5 | I162: 0.4679580033 | J162: 4.768970013 | K162: 0.09812559187
A163: Janvier | B163: 7 | C163: 158 | D163: =Bdd_Text!A163 -> 11.41 | E163: 2.59 | F163: 0.0006029186851 | G163: =F163*'Pré-traitement'!$B$13 -> 0.3472811626 | H163: =IF('Saisies-Résultats'!$D$13="SSC",'Saisies-Résultats'!$D$29-'Saisies-Résultats'!$D$30/2,0) -> 32.5 | I163: 0.347281158 | J163: 4.543390751 | K163: 0.07643655688
A164: Janvier | B164: 7 | C164: 159 | D164: =Bdd_Text!A164 -> 11.11 | E164: 2.89 | F164: 0.0006727548263 | G164: =F164*'Pré-traitement'!$B$13 -> 0.3875067799 | H164: =IF('Saisies-Résultats'!$D$13="SSC",'Saisies-Résultats'!$D$29-'Saisies-Résultats'!$D$30/2,0) -> 32.5 | I164: 0.387506783 | J164: 4.635477066 | K164: 0.08359587938
A165: Janvier | B165: 7 | C165: 160 | D165: =Bdd_Text!A165 -> 10.51 | E165: 3.49 | F165: 0.0008124271085 | G165: =F165*'Pré-traitement'!$B$13 -> 0.4679580145 | H165: =IF('Saisies-Résultats'!$D$13="SSC",'Saisies-Résultats'!$D$29-'Saisies-Résultats'!$D$30/2,0) -> 32.5 | I165: 0.4679580033 | J165: 4.768970013 | K165: 0.09812559187
A166: Janvier | B166: 7 | C166: 161 | D166: =Bdd_Text!A166 -> 10.91 | E166: 3.09 | F166: 0.0007193122537 | G166: =F166*'Pré-traitement'!$B$13 -> 0.4143238581 | H166: =IF('Saisies-Résultats'!$D$13="SSC",'Saisies-Résultats'!$D$29-'Saisies-Résultats'!$D$30/2,0) -> 32.5 | I166: 0.4143238664 | J166: 4.686518192 | K166: 0.08840760589
A167: Janvier | B167: 7 | C167: 162 | D167: =Bdd_Text!A167 -> 8.91 | E167: 5.09 | F167: 0.001184886528 | G167: =F167*'Pré-traitement'!$B$13 -> 0.6824946401 | H167: =IF('Saisies-Résultats'!$D$13="SSC",'Saisies-Résultats'!$D$29-'Saisies-Résultats'!$D$30/2,0) -> 32.5 | I167: 0.6824946404 | J167: 4.934761047 | K167: 0.1383034885
A168: Janvier | B168: 7 | C168: 163 | D168: =Bdd_Text!A168 -> 8.71 | E168: 5.29 | F168: 0.001231443955 | G168: =F168*'Pré-traitement'!$B$13 -> 0.7093117183 | H168: =IF('Saisies-Résultats'!$D$13="SSC",'Saisies-Résultats'!$D$29-'Saisies-Résultats'!$D$30/2,0) -> 32.5 | I168: 0.7093117237 | J168: 4.943699837 | K168: 0.1434779167
A169: Janvier | B169: 7 | C169: 164 | D169: =Bdd_Text!A169 -> 8.01 | E169: 5.99 | F169: 0.001394394951 | G169: =F169*'Pré-traitement'!$B$13 -> 0.803171492 | H169: =IF('Saisies-Résultats'!$D$13="SSC",'Saisies-Résultats'!$D$29-'Saisies-Résultats'!$D$30/2,0) -> 32.5 | I169: 0.8031715155 | J169: 4.961962223 | K169: 0.1618657112
A170: Janvier | B170: 7 | C170: 165 | D170: =Bdd_Text!A170 -> 7.81 | E170: 6.19 | F170: 0.001440952379 | G170: =F170*'Pré-traitement'!$B$13 -> 0.8299885702 | H170: =IF('Saisies-Résultats'!$D$13="SSC",'Saisies-Résultats'!$D$29-'Saisies-Résultats'!$D$30/2,0) -> 32.5 | I170: 0.8299885988 | J170: 4.964045525 | K170: 0.1672000438
A171: Janvier | B171: 7 | C171: 166 | D171: =Bdd_Text!A171 -> 7.61 | E171: 6.39 | F171: 0.001487509806 | G171: =F171*'Pré-traitement'!$B$13 -> 0.8568056483 | H171: =IF('Saisies-Résultats'!$D$13="SSC",'Saisies-Résultats'!$D$29-'Saisies-Résultats'!$D$30/2,0) -> 32.5 | I171: 0.8568056226 | J171: 4.964950085 | K171: 0.1725708395
A172: Janvier | B172: 7 | C172: 167 | D172: =Bdd_Text!A172 -> 7.41 | E172: 6.59 | F172: 0.001534067234 | G172: =F172*'Pré-traitement'!$B$13 -> 0.8836227265 | H172: =IF('Saisies-Résultats'!$D$13="SSC",'Saisies-Résultats'!$D$29-'Saisies-Résultats'!$D$30/2,0) -> 32.5 | I172: 0.8836227059 | J172: 4.964771748 | K172: 0.1779785156
A173: Janvier | B173: 7 | C173: 168 | D173: =Bdd_Text!A173 -> 7.41 | E173: 6.59 | F173: 0.001534067234 | G173: =F173*'Pré-traitement'!$B$13 -> 0.8836227265 | H173: =IF('Saisies-Résultats'!$D$13="SSC",'Saisies-Résultats'!$D$29-'Saisies-Résultats'!$D$30/2,0) -> 32.5 | I173: 0.8836227059 | J173: 4.964771748 | K173: 0.1779785156
A174: Janvier | B174: 8 | C174: 169 | D174: =Bdd_Text!A174 -> 7.11 | E174: 6.89 | F174: 0.001603903375 | G174: =F174*'Pré-traitement'!$B$13 -> 0.9238483438 | H174: =IF('Saisies-Résultats'!$D$13="SSC",'Saisies-Résultats'!$D$29-'Saisies-Résultats'!$D$30/2,0) -> 32.5 | I174: 0.923848331 | J174: 4.962657928 | K174: 0.1861599833
A175: Janvier | B175: 8 | C175: 170 | D175: =Bdd_Text!A175 -> 6.81 | E175: 7.19 | F175: 0.001673739516 | G175: =F175*'Pré-traitement'!$B$13 -> 0.9640739611 | H175: =IF('Saisies-Résultats'!$D$13="SSC",'Saisies-Résultats'!$D$29-'Saisies-Résultats'!$D$30/2,0) -> 32.5 | I175: 0.964073956 | J175: 4.940811634 | K175: 0.1951246113
A176: Janvier | B176: 8 | C176: 171 | D176: =Bdd_Text!A176 -> 6.71 | E176: 7.29 | F176: 0.00169701823 | G176: =F176*'Pré-traitement'!$B$13 -> 0.9774825002 | H176: =IF('Saisies-Résultats'!$D$13="SSC",'Saisies-Résultats'!$D$29-'Saisies-Résultats'!$D$30/2,0) -> 32.5 | I176: 0.9774824977 | J176: 4.929621696 | K176: 0.1982875317
A177: Janvier | B177: 8 | C177: 172 | D177: =Bdd_Text!A177 -> 6.41 | E177: 7.59 | F177: 0.001766854371 | G177: =F177*'Pré-traitement'!$B$13 -> 1.017708118 | H177: =IF('Saisies-Résultats'!$D$13="SSC",'Saisies-Résultats'!$D$29-'Saisies-Résultats'!$D$30/2,0) -> 32.5 | I177: 1.017708063 | J177: 4.89462471 | K177: 0.207923606
A178: Janvier | B178: 8 | C178: 173 | D178: =Bdd_Text!A178 -> 6.51 | E178: 7.49 | F178: 0.001743575657 | G178: =F178*'Pré-traitement'!$B$13 -> 1.004299578 | H178: =IF('Saisies-Résultats'!$D$13="SSC",'Saisies-Résultats'!$D$29-'Saisies-Résultats'!$D$30/2,0) -> 32.5 | I178: 1.004299521 | J178: 4.906519413 | K178: 0.2046867609
A179: Janvier | B179: 8 | C179: 174 | D179: =Bdd_Text!A179 -> 6.31 | E179: 7.69 | F179: 0.001790133084 | G179: =F179*'Pré-traitement'!$B$13 -> 1.031116657 | H179: =IF('Saisies-Résultats'!$D$13="SSC",'Saisies-Résultats'!$D$29-'Saisies-Résultats'!$D$30/2,0) -> 32.5 | I179: 1.031116605 | J179: 4.882511139 | K179: 0.2111857086
A180: Janvier | B180: 8 | C180: 175 | D180: =Bdd_Text!A180 -> 6.41 | E180: 7.59 | F180: 0.001766854371 | G180: =F180*'Pré-traitement'!$B$13 -> 1.017708118 | H180: =IF('Saisies-Résultats'!$D$13="SSC",'Saisies-Résultats'!$D$29-'Saisies-Résultats'!$D$30/2,0) -> 32.5 | I180: 1.017708063 | J180: 4.89462471 | K180: 0.207923606
A181: Janvier | B181: 8 | C181: 176 | D181: =Bdd_Text!A181 -> 6.61 | E181: 7.39 | F181: 0.001720296943 | G181: =F181*'Pré-traitement'!$B$13 -> 0.9908910393 | H181: =IF('Saisies-Résultats'!$D$13="SSC",'Saisies-Résultats'!$D$29-'Saisies-Résultats'!$D$30/2,0) -> 32.5 | I181: 0.9908910394 | J181: 4.918187141 | K181: 0.2014748454
A182: Janvier | B182: 8 | C182: 177 | D182: =Bdd_Text!A182 -> 6.81 | E182: 7.19 | F182: 0.001673739516 | G182: =F182*'Pré-traitement'!$B$13 -> 0.9640739611 | H182: =IF('Saisies-Résultats'!$D$13="SSC",'Saisies-Résultats'!$D$29-'Saisies-Résultats'!$D$30/2,0) -> 32.5 | I182: 0.964073956 | J182: 4.940811634 | K182: 0.1951246113
A183: Janvier | B183: 8 | C183: 178 | D183: =Bdd_Text!A183 -> 6.81 | E183: 7.19 | F183: 0.001673739516 | G183: =F183*'Pré-traitement'!$B$13 -> 0.9640739611 | H183: =IF('Saisies-Résultats'!$D$13="SSC",'Saisies-Résultats'!$D$29-'Saisies-Résultats'!$D$30/2,0) -> 32.5 | I183: 0.964073956 | J183: 4.940811634 | K183: 0.1951246113
A184: Janvier | B184: 8 | C184: 179 | D184: =Bdd_Text!A184 -> 6.71 | E184: 7.29 | F184: 0.00169701823 | G184: =F184*'Pré-traitement'!$B$13 -> 0.9774825002 | H184: =IF('Saisies-Résultats'!$D$13="SSC",'Saisies-Résultats'!$D$29-'Saisies-Résultats'!$D$30/2,0) -> 32.5 | I184: 0.9774824977 | J184: 4.929621696 | K184: 0.1982875317
A185: Janvier | B185: 8 | C185: 180 | D185: =Bdd_Text!A185 -> 7.01 | E185: 6.99 | F185: 0.001627182088 | G185: =F185*'Pré-traitement'!$B$13 -> 0.9372568829 | H185: =IF('Saisies-Résultats'!$D$13="SSC",'Saisies-Résultats'!$D$29-'Saisies-Résultats'!$D$30/2,0) -> 32.5 | I185: 0.9372568727 | J185: 4.961498737 | K185: 0.1889059991
A186: Janvier | B186: 8 | C186: 181 | D186: =Bdd_Text!A186 -> 7.41 | E186: 6.59 | F186: 0.001534067234 | G186: =F186*'Pré-traitement'!$B$13 -> 0.8836227265 | H186: =IF('Saisies-Résultats'!$D$13="SSC",'Saisies-Résultats'!$D$29-'Saisies-Résultats'!$D$30/2,0) -> 32.5 | I186: 0.8836227059 | J186: 4.964771748 | K186: 0.1779785156
A187: Janvier | B187: 8 | C187: 182 | D187: =Bdd_Text!A187 -> 8.91 | E187: 5.09 | F187: 0.001184886528 | G187: =F187*'Pré-traitement'!$B$13 -> 0.6824946401 | H187: =IF('Saisies-Résultats'!$D$13="SSC",'Saisies-Résultats'!$D$29-'Saisies-Résultats'!$D$30/2,0) -> 32.5 | I187: 0.6824946404 | J187: 4.934761047 | K187: 0.1383034885
A188: Janvier | B188: 8 | C188: 183 | D188: =Bdd_Text!A188 -> 9.41 | E188: 4.59 | F188: 0.001068492959 | G188: =F188*'Pré-traitement'!$B$13 -> 0.6154519446 | H188: =IF('Saisies-Résultats'!$D$13="SSC",'Saisies-Résultats'!$D$29-'Saisies-Résultats'!$D$30/2,0) -> 32.5 | I188: 0.615451932 | J188: 4.903295994 | K188: 0.1255180091
A189: Janvier | B189: 8 | C189: 184 | D189: =Bdd_Text!A189 -> 9.11 | E189: 4.89 | F189: 0.0011383291 | G189: =F189*'Pré-traitement'!$B$13 -> 0.6556775619 | H189: =IF('Saisies-Résultats'!$D$13="SSC",'Saisies-Résultats'!$D$29-'Saisies-Résultats'!$D$30/2,0) -> 32.5 | I189: 0.655677557 | J189: 4.923848152 | K189: 0.1331636459
A190: Janvier | B190: 8 | C190: 185 | D190: =Bdd_Text!A190 -> 9.11 | E190: 4.89 | F190: 0.0011383291 | G190: =F190*'Pré-traitement'!$B$13 -> 0.6556775619 | H190: =IF('Saisies-Résultats'!$D$13="SSC",'Saisies-Résultats'!$D$29-'Saisies-Résultats'!$D$30/2,0) -> 32.5 | I190: 0.655677557 | J190: 4.923848152 | K190: 0.1331636459
A191: Janvier | B191: 8 | C191: 186 | D191: =Bdd_Text!A191 -> 8.91 | E191: 5.09 | F191: 0.001184886528 | G191: =F191*'Pré-traitement'!$B$13 -> 0.6824946401 | H191: =IF('Saisies-Résultats'!$D$13="SSC",'Saisies-Résultats'!$D$29-'Saisies-Résultats'!$D$30/2,0) -> 32.5 | I191: 0.6824946404 | J191: 4.934761047 | K191: 0.1383034885
A192: Janvier | B192: 8 | C192: 187 | D192: =Bdd_Text!A192 -> 8.81 | E192: 5.19 | F192: 0.001208165242 | G192: =F192*'Pré-traitement'!$B$13 -> 0.6959031792 | H192: =IF('Saisies-Résultats'!$D$13="SSC",'Saisies-Résultats'!$D$29-'Saisies-Résultats'!$D$30/2,0) -> 32.5 | I192: 0.695903182 | J192: 4.939464569 | K192: 0.1408863664
A193: Janvier | B193: 8 | C193: 188 | D193: =Bdd_Text!A193 -> 9.11 | E193: 4.89 | F193: 0.0011383291 | G193: =F193*'Pré-traitement'!$B$13 -> 0.6556775619 | H193: =IF('Saisies-Résultats'!$D$13="SSC",'Saisies-Résultats'!$D$29-'Saisies-Résultats'!$D$30/2,0) -> 32.5 | I193: 0.655677557 | J193: 4.923848152 | K193: 0.1331636459
A194: Janvier | B194: 8 | C194: 189 | D194: =Bdd_Text!A194 -> 9.01 | E194: 4.99 | F194: 0.001161607814 | G194: =F194*'Pré-traitement'!$B$13 -> 0.669086101 | H194: =IF('Saisies-Résultats'!$D$13="SSC",'Saisies-Résultats'!$D$29-'Saisies-Résultats'!$D$30/2,0) -> 32.5 | I194: 0.6690860987 | J194: 4.929563522 | K194: 0.1357292831
A195: Janvier | B195: 8 | C195: 190 | D195: =Bdd_Text!A195 -> 8.31 | E195: 5.69 | F195: 0.00132455881 | G195: =F195*'Pré-traitement'!$B$13 -> 0.7629458747 | H195: =IF('Saisies-Résultats'!$D$13="SSC",'Saisies-Résultats'!$D$29-'Saisies-Résultats'!$D$30/2,0) -> 32.5 | I195: 0.7629458904 | J195: 4.956386566 | K195: 0.1539318711
A196: Janvier | B196: 8 | C196: 191 | D196: =Bdd_Text!A196 -> 8.21 | E196: 5.79 | F196: 0.001347837524 | G196: =F196*'Pré-traitement'!$B$13 -> 0.7763544138 | H196: =IF('Saisies-Résultats'!$D$13="SSC",'Saisies-Résultats'!$D$29-'Saisies-Résultats'!$D$30/2,0) -> 32.5 | I196: 0.7763544321 | J196: 4.958591461 | K196: 0.1565675288
A197: Janvier | B197: 8 | C197: 192 | D197: =Bdd_Text!A197 -> 8.21 | E197: 5.79 | F197: 0.001347837524 | G197: =F197*'Pré-traitement'!$B$13 -> 0.7763544138 | H197: =IF('Saisies-Résultats'!$D$13="SSC",'Saisies-Résultats'!$D$29-'Saisies-Résultats'!$D$30/2,0) -> 32.5 | I197: 0.7763544321 | J197: 4.958591461 | K197: 0.1565675288
A198: Janvier | B198: 9 | C198: 193 | D198: =Bdd_Text!A198 -> 8.71 | E198: =IF(D198>$D$1,0,($D$1-D198)) -> 5.29 | F198: 0.001231443955 | G198: =F198*'Pré-traitement'!$B$13 -> 0.7093117183 | H198: =IF('Saisies-Résultats'!$D$13="SSC",'Saisies-Résultats'!$D$29-'Saisies-Résultats'!$D$30/2,0) -> 32.5 | I198: 0.7093117237 | J198: 4.943699837 | K198: 0.1434779167
A199: Janvier | B199: 9 | C199: 194 | D199: =Bdd_Text!A199 -> 8.91 | E199: 5.09 | F199: =IF(E199=0,0,E199/SUM($E$6:$E$749)) -> 0.001184886528 | G199: =F199*'Pré-traitement'!$B$13 -> 0.6824946401 | H199: =IF('Saisies-Résultats'!$D$13="SSC",'Saisies-Résultats'!$D$29-'Saisies-Résultats'!$D$30/2,0) -> 32.5 | I199: 0.6824946404 | J199: 4.934761047 | K199: 0.1383034885
A200: Janvier | B200: 9 | C200: 195 | D200: =Bdd_Text!A200 -> 8.81 | E200: 5.19 | F200: 0.001208165242 | G200: =F200*'Pré-traitement'!$B$13 -> 0.6959031792 | H200: =IF('Saisies-Résultats'!$D$13="SSC",'Saisies-Résultats'!$D$29-'Saisies-Résultats'!$D$30/2,0) -> 32.5 | I200: 0.695903182 | J200: 4.939464569 | K200: 0.1408863664
A201: Janvier | B201: 9 | C201: 196 | D201: =Bdd_Text!A201 -> 9.01 | E201: 4.99 | F201: 0.001161607814 | G201: =F201*'Pré-traitement'!$B$13 -> 0.669086101 | H201: =IF('Saisies-Résultats'!$D$13="SSC",'Saisies-Résultats'!$D$29-'Saisies-Résultats'!$D$30/2,0) -> 32.5 | I201: 0.6690860987 | J201: 4.929563522 | K201: 0.1357292831
... 8564 more rows

Sheet Calculs_ECS (hidden)
A3: Total | B3: - | C3: - | D3: - | E3: - | F3: =SUM(F6:F8765) -> 2112 | G3: - | H3: =SUM(H6:H8765) -> 2112 | I3: =IF(J3=0,0,H3/J3) -> 2.800138624 | J3: =SUM(J6:J8765) -> 754.2483726 | K3: =J3*2.58/'Saisies-Résultats'!$D$10 -> 16.21634001
A4: Mois | B4: Jour du mois | C4: Pas de temps | D4: Température ext | E4: Corr_Ecs+boucl | F4: P_ECS | G4: Taval_ECS | H4: Pfou_ECS | I4: COPText/Taval_ECS | J4: Pabs_ECS | K4: Pabs_ECS
A5: - | B5: - | C5: - | D5: °C | E5: - | F5: kWh | G5: °C | H5: kWh | I5: - | J5: kWh | K5: kWhep/m²
A6: Janvier | B6: 1 | C6: 1 | D6: =Bdd_Text!A6 -> 8.9 | E6: =Puis_ECS!Q6 -> 0 | F6: =E6*'Pré-traitement'!$B$7 -> 0 | G6: =55-((F6*1000)/(1.163*'Pré-traitement'!$P$15)) + F6/'Pré-traitement'!$Q$15 -> 55 | H6: 0 | I6: 0 | J6: 0
A7: Janvier | B7: 1 | C7: 2 | D7: =Bdd_Text!A7 -> 8.72 | E7: =Puis_ECS!Q7 -> 0 | F7: =E7*'Pré-traitement'!$B$7 -> 0 | G7: =55-((F7*1000)/(1.163*'Pré-traitement'!$P$15)) + F7/'Pré-traitement'!$Q$15 -> 55 | H7: 0 | I7: 0 | J7: 0
A8: Janvier | B8: 1 | C8: 3 | D8: =Bdd_Text!A8 -> 8.17 | E8: =Puis_ECS!Q8 -> 0 | F8: =E8*'Pré-traitement'!$B$7 -> 0 | G8: =55-((F8*1000)/(1.163*'Pré-traitement'!$P$15)) + F8/'Pré-traitement'!$Q$15 -> 55 | H8: 0 | I8: 0 | J8: 0
A9: Janvier | B9: 1 | C9: 4 | D9: =Bdd_Text!A9 -> 8.17 | E9: =Puis_ECS!Q9 -> 0 | F9: =E9*'Pré-traitement'!$B$7 -> 0 | G9: =55-((F9*1000)/(1.163*'Pré-traitement'!$P$15)) + F9/'Pré-traitement'!$Q$15 -> 55 | H9: 0 | I9: 0 | J9: 0
A10: Janvier | B10: 1 | C10: 5 | D10: =Bdd_Text!A10 -> 7.93 | E10: =Puis_ECS!Q10 -> 0 | F10: =E10*'Pré-traitement'!$B$7 -> 0 | G10: =55-((F10*1000)/(1.163*'Pré-traitement'!$P$15)) + F10/'Pré-traitement'!$Q$15 -> 55 | H10: 0 | I10: 0 | J10: 0
A11: Janvier | B11: 1 | C11: 6 | D11: =Bdd_Text!A11 -> 9.85 | E11: =Puis_ECS!Q11 -> 0 | F11: =E11*'Pré-traitement'!$B$7 -> 0 | G11: =55-((F11*1000)/(1.163*'Pré-traitement'!$P$15)) + F11/'Pré-traitement'!$Q$15 -> 55 | H11: 0 | I11: 0 | J11: 0
A12: Janvier | B12: 1 | C12: 7 | D12: =Bdd_Text!A12 -> 10.7 | E12: =Puis_ECS!Q12 -> 0 | F12: =E12*'Pré-traitement'!$B$7 -> 0 | G12: =55-((F12*1000)/(1.163*'Pré-traitement'!$P$15)) + F12/'Pré-traitement'!$Q$15 -> 55 | H12: 0 | I12: 0 | J12: 0
A13: Janvier | B13: 1 | C13: 8 | D13: =Bdd_Text!A13 -> 12.02 | E13: =Puis_ECS!Q13 -> 0.006158562858 | F13: =E13*'Pré-traitement'!$B$7 -> 2.808304663 | G13: =55-((F13*1000)/(1.163*'Pré-traitement'!$P$15)) + F13/'Pré-traitement'!$Q$15 -> 38.90429117 | H13: 2.808304548 | I13: 3.345368862 | J13: 0.8394603729
A14: Janvier | B14: 1 | C14: 9 | D14: =Bdd_Text!A14 -> 11.51 | E14: =Puis_ECS!Q14 -> 0.00638298611 | F14: =E14*'Pré-traitement'!$B$7 -> 2.910641666 | G14: =55-((F14*1000)/(1.163*'Pré-traitement'!$P$15)) + F14/'Pré-traitement'!$Q$15 -> 38.31774989 | H14: 2.91064167 | I14: 3.350098372 | J14: 0.8688227534
A15: Janvier | B15: 1 | C15: 10 | D15: =Bdd_Text!A15 -> 11.71 | E15: =Puis_ECS!Q15 -> 0 | F15: =E15*'Pré-traitement'!$B$7 -> 0 | G15: =55-((F15*1000)/(1.163*'Pré-traitement'!$P$15)) + F15/'Pré-traitement'!$Q$15 -> 55 | H15: 0 | I15: 0 | J15: 0
A16: Janvier | B16: 1 | C16: 11 | D16: =Bdd_Text!A16 -> 12.91 | E16: =Puis_ECS!Q16 -> 0 | F16: =E16*'Pré-traitement'!$B$7 -> 0 | G16: =55-((F16*1000)/(1.163*'Pré-traitement'!$P$15)) + F16/'Pré-traitement'!$Q$15 -> 55 | H16: 0 | I16: 0 | J16: 0
A17: Janvier | B17: 1 | C17: 12 | D17: =Bdd_Text!A17 -> 14.31 | E17: =Puis_ECS!Q17 -> 0 | F17: =E17*'Pré-traitement'!$B$7 -> 0 | G17: =55-((F17*1000)/(1.163*'Pré-traitement'!$P$15)) + F17/'Pré-traitement'!$Q$15 -> 55 | H17: 0 | I17: 0 | J17: 0
A18: Janvier | B18: 1 | C18: 13 | D18: =Bdd_Text!A18 -> 14.81 | E18: =Puis_ECS!Q18 -> 0 | F18: =E18*'Pré-traitement'!$B$7 -> 0 | G18: =55-((F18*1000)/(1.163*'Pré-traitement'!$P$15)) + F18/'Pré-traitement'!$Q$15 -> 55 | H18: 0 | I18: 0 | J18: 0
A19: Janvier | B19: 1 | C19: 14 | D19: =Bdd_Text!A19 -> 15.41 | E19: =Puis_ECS!Q19 -> 0 | F19: =E19*'Pré-traitement'!$B$7 -> 0 | G19: =55-((F19*1000)/(1.163*'Pré-traitement'!$P$15)) + F19/'Pré-traitement'!$Q$15 -> 55 | H19: 0 | I19: 0 | J19: 0
A20: Janvier | B20: 1 | C20: 15 | D20: =Bdd_Text!A20 -> 15.81 | E20: =Puis_ECS!Q20 -> 0 | F20: =E20*'Pré-traitement'!$B$7 -> 0 | G20: =55-((F20*1000)/(1.163*'Pré-traitement'!$P$15)) + F20/'Pré-traitement'!$Q$15 -> 55 | H20: 0 | I20: 0 | J20: 0
A21: Janvier | B21: 1 | C21: 16 | D21: =Bdd_Text!A21 -> 14.91 | E21: =Puis_ECS!Q21 -> 0 | F21: =E21*'Pré-traitement'!$B$7 -> 0 | G21: =55-((F21*1000)/(1.163*'Pré-traitement'!$P$15)) + F21/'Pré-traitement'!$Q$15 -> 55 | H21: 0 | I21: 0 | J21: 0
A22: Janvier | B22: 1 | C22: 17 | D22: =Bdd_Text!A22 -> 14.11 | E22: =Puis_ECS!Q22 -> 0 | F22: =E22*'Pré-traitement'!$B$7 -> 0 | G22: =55-((F22*1000)/(1.163*'Pré-traitement'!$P$15)) + F22/'Pré-traitement'!$Q$15 -> 55 | H22: 0 | I22: 0 | J22: 0
A23: Janvier | B23: 1 | C23: 18 | D23: =Bdd_Text!A23 -> 12.61 | E23: =Puis_ECS!Q23 -> 0 | F23: =E23*'Pré-traitement'!$B$7 -> 0 | G23: =55-((F23*1000)/(1.163*'Pré-traitement'!$P$15)) + F23/'Pré-traitement'!$Q$15 -> 55 | H23: 0 | I23: 0 | J23: 0
A24: Janvier | B24: 1 | C24: 19 | D24: =Bdd_Text!A24 -> 10.11 | E24: =Puis_ECS!Q24 -> 0.006414308159 | F24: =E24*'Pré-traitement'!$B$7 -> 2.92492452 | G24: =55-((F24*1000)/(1.163*'Pré-traitement'!$P$15)) + F24/'Pré-traitement'!$Q$15 -> 38.23588817 | H24: 2.924924612 | I24: 3.272119761 | J24: 0.8938928843
A25: Janvier | B25: 1 | C25: 20 | D25: =Bdd_Text!A25 -> 8.01 | E25: =Puis_ECS!Q25 -> 0 | F25: =E25*'Pré-traitement'!$B$7 -> 0 | G25: =55-((F25*1000)/(1.163*'Pré-traitement'!$P$15)) + F25/'Pré-traitement'!$Q$15 -> 55 | H25: 0 | I25: 0 | J25: 0
A26: Janvier | B26: 1 | C26: 21 | D26: =Bdd_Text!A26 -> 7.71 | E26: =Puis_ECS!Q26 -> 0.00619528526 | F26: =E26*'Pré-traitement'!$B$7 -> 2.825050079 | G26: =55-((F26*1000)/(1.163*'Pré-traitement'!$P$15)) + F26/'Pré-traitement'!$Q$15 -> 38.80831535 | H26: 2.825050116 | I26: 3.098720074 | J26: 0.9116829038
A27: Janvier | B27: 1 | C27: 22 | D27: =Bdd_Text!A27 -> 7.81 | E27: =Puis_ECS!Q27 -> 0.006418782737 | F27: =E27*'Pré-traitement'!$B$7 -> 2.926964928 | G27: =55-((F27*1000)/(1.163*'Pré-traitement'!$P$15)) + F27/'Pré-traitement'!$Q$15 -> 38.22419363 | H27: 2.926964998 | I27: 3.136720657 | J27: 0.9331290126
A28: Janvier | B28: 1 | C28: 23 | D28: =Bdd_Text!A28 -> 7.71 | E28: =Puis_ECS!Q28 -> 0 | F28: =E28*'Pré-traitement'!$B$7 -> 0 | G28: =55-((F28*1000)/(1.163*'Pré-traitement'!$P$15)) + F28/'Pré-traitement'!$Q$15 -> 55 | H28: 0 | I28: 0 | J28: 0
A29: Janvier | B29: 1 | C29: 24 | D29: =Bdd_Text!A29 -> 7.41 | E29: =Puis_ECS!Q29 -> 0 | F29: =E29*'Pré-traitement'!$B$7 -> 0 | G29: =55-((F29*1000)/(1.163*'Pré-traitement'!$P$15)) + F29/'Pré-traitement'!$Q$15 -> 55 | H29: 0 | I29: 0 | J29: 0
A30: Janvier | B30: 2 | C30: 25 | D30: =Bdd_Text!A30 -> 7.01 | E30: =Puis_ECS!Q30 -> 0 | F30: =E30*'Pré-traitement'!$B$7 -> 0 | G30: =55-((F30*1000)/(1.163*'Pré-traitement'!$P$15)) + F30/'Pré-traitement'!$Q$15 -> 55 | H30: 0 | I30: 0 | J30: 0
A31: Janvier | B31: 2 | C31: 26 | D31: =Bdd_Text!A31 -> 6.71 | E31: =Puis_ECS!Q31 -> 0 | F31: =E31*'Pré-traitement'!$B$7 -> 0 | G31: =55-((F31*1000)/(1.163*'Pré-traitement'!$P$15)) + F31/'Pré-traitement'!$Q$15 -> 55 | H31: 0 | I31: 0 | J31: 0
A32: Janvier | B32: 2 | C32: 27 | D32: =Bdd_Text!A32 -> 6.61 | E32: =Puis_ECS!Q32 -> 0 | F32: =E32*'Pré-traitement'!$B$7 -> 0 | G32: =55-((F32*1000)/(1.163*'Pré-traitement'!$P$15)) + F32/'Pré-traitement'!$Q$15 -> 55 | H32: 0 | I32: 0 | J32: 0
A33: Janvier | B33: 2 | C33: 28 | D33: =Bdd_Text!A33 -> 6.81 | E33: =Puis_ECS!Q33 -> 0 | F33: =E33*'Pré-traitement'!$B$7 -> 0 | G33: =55-((F33*1000)/(1.163*'Pré-traitement'!$P$15)) + F33/'Pré-traitement'!$Q$15 -> 55 | H33: 0 | I33: 0 | J33: 0
A34: Janvier | B34: 2 | C34: 29 | D34: =Bdd_Text!A34 -> 6.51 | E34: =Puis_ECS!Q34 -> 0 | F34: =E34*'Pré-traitement'!$B$7 -> 0 | G34: =55-((F34*1000)/(1.163*'Pré-traitement'!$P$15)) + F34/'Pré-traitement'!$Q$15 -> 55 | H34: 0 | I34: 0 | J34: 0
A35: Janvier | B35: 2 | C35: 30 | D35: =Bdd_Text!A35 -> 5.91 | E35: =Puis_ECS!Q35 -> 0 | F35: =E35*'Pré-traitement'!$B$7 -> 0 | G35: =55-((F35*1000)/(1.163*'Pré-traitement'!$P$15)) + F35/'Pré-traitement'!$Q$15 -> 55 | H35: 0 | I35: 0 | J35: 0
A36: Janvier | B36: 2 | C36: 31 | D36: =Bdd_Text!A36 -> 5.51 | E36: =Puis_ECS!Q36 -> 0 | F36: =E36*'Pré-traitement'!$B$7 -> 0 | G36: =55-((F36*1000)/(1.163*'Pré-traitement'!$P$15)) + F36/'Pré-traitement'!$Q$15 -> 55 | H36: 0 | I36: 0 | J36: 0
A37: Janvier | B37: 2 | C37: 32 | D37: =Bdd_Text!A37 -> 5.41 | E37: =Puis_ECS!Q37 -> 0.006201765684 | F37: =E37*'Pré-traitement'!$B$7 -> 2.828005152 | G37: =55-((F37*1000)/(1.163*'Pré-traitement'!$P$15)) + F37/'Pré-traitement'!$Q$15 -> 38.79137844 | H37: 2.828005075 | I37: 2.863915205 | J37: 0.9874611497
A38: Janvier | B38: 2 | C38: 33 | D38: =Bdd_Text!A38 -> 5.01 | E38: =Puis_ECS!Q38 -> 0.006423257316 | F38: =E38*'Pré-traitement'!$B$7 -> 2.929005336 | G38: =55-((F38*1000)/(1.163*'Pré-traitement'!$P$15)) + F38/'Pré-traitement'!$Q$15 -> 38.2124991 | H38: 2.929005384 | I38: 2.843941212 | J38: 1.029910684
A39: Janvier | B39: 2 | C39: 34 | D39: =Bdd_Text!A39 -> 5.91 | E39: =Puis_ECS!Q39 -> 0 | F39: =E39*'Pré-traitement'!$B$7 -> 0 | G39: =55-((F39*1000)/(1.163*'Pré-traitement'!$P$15)) + F39/'Pré-traitement'!$Q$15 -> 55 | H39: 0 | I39: 0 | J39: 0
A40: Janvier | B40: 2 | C40: 35 | D40: =Bdd_Text!A40 -> 7.41 | E40: =Puis_ECS!Q40 -> 0 | F40: =E40*'Pré-traitement'!$B$7 -> 0 | G40: =55-((F40*1000)/(1.163*'Pré-traitement'!$P$15)) + F40/'Pré-traitement'!$Q$15 -> 55 | H40: 0 | I40: 0 | J40: 0
A41: Janvier | B41: 2 | C41: 36 | D41: =Bdd_Text!A41 -> 9.01 | E41: =Puis_ECS!Q41 -> 0 | F41: =E41*'Pré-traitement'!$B$7 -> 0 | G41: =55-((F41*1000)/(1.163*'Pré-traitement'!$P$15)) + F41/'Pré-traitement'!$Q$15 -> 55 | H41: 0 | I41: 0 | J41: 0
A42: Janvier | B42: 2 | C42: 37 | D42: =Bdd_Text!A42 -> 10.21 | E42: =Puis_ECS!Q42 -> 0 | F42: =E42*'Pré-traitement'!$B$7 -> 0 | G42: =55-((F42*1000)/(1.163*'Pré-traitement'!$P$15)) + F42/'Pré-traitement'!$Q$15 -> 55 | H42: 0 | I42: 0 | J42: 0
A43: Janvier | B43: 2 | C43: 38 | D43: =Bdd_Text!A43 -> 10.61 | E43: =Puis_ECS!Q43 -> 0 | F43: =E43*'Pré-traitement'!$B$7 -> 0 | G43: =55-((F43*1000)/(1.163*'Pré-traitement'!$P$15)) + F43/'Pré-traitement'!$Q$15 -> 55 | H43: 0 | I43: 0 | J43: 0
A44: Janvier | B44: 2 | C44: 39 | D44: =Bdd_Text!A44 -> 12.31 | E44: =Puis_ECS!Q44 -> 0 | F44: =E44*'Pré-traitement'!$B$7 -> 0 | G44: =55-((F44*1000)/(1.163*'Pré-traitement'!$P$15)) + F44/'Pré-traitement'!$Q$15 -> 55 | H44: 0 | I44: 0 | J44: 0
A45: Janvier | B45: 2 | C45: 40 | D45: =Bdd_Text!A45 -> 11.21 | E45: =Puis_ECS!Q45 -> 0 | F45: =E45*'Pré-traitement'!$B$7 -> 0 | G45: =55-((F45*1000)/(1.163*'Pré-traitement'!$P$15)) + F45/'Pré-traitement'!$Q$15 -> 55 | H45: 0 | I45: 0 | J45: 0
A46: Janvier | B46: 2 | C46: 41 | D46: =Bdd_Text!A46 -> 10.41 | E46: =Puis_ECS!Q46 -> 0 | F46: =E46*'Pré-traitement'!$B$7 -> 0 | G46: =55-((F46*1000)/(1.163*'Pré-traitement'!$P$15)) + F46/'Pré-traitement'!$Q$15 -> 55 | H46: 0 | I46: 0 | J46: 0
A47: Janvier | B47: 2 | C47: 42 | D47: =Bdd_Text!A47 -> 9.01 | E47: =Puis_ECS!Q47 -> 0 | F47: =E47*'Pré-traitement'!$B$7 -> 0 | G47: =55-((F47*1000)/(1.163*'Pré-traitement'!$P$15)) + F47/'Pré-traitement'!$Q$15 -> 55 | H47: 0 | I47: 0 | J47: 0
A48: Janvier | B48: 2 | C48: 43 | D48: =Bdd_Text!A48 -> 7.61 | E48: =Puis_ECS!Q48 -> 0.006418782737 | F48: =E48*'Pré-traitement'!$B$7 -> 2.926964928 | G48: =55-((F48*1000)/(1.163*'Pré-traitement'!$P$15)) + F48/'Pré-traitement'!$Q$15 -> 38.22419363 | H48: 2.926964998 | I48: 3.124887466 | J48: 0.9366625547
A49: Janvier | B49: 2 | C49: 44 | D49: =Bdd_Text!A49 -> 6.71 | E49: =Puis_ECS!Q49 -> 0 | F49: =E49*'Pré-traitement'!$B$7 -> 0 | G49: =55-((F49*1000)/(1.163*'Pré-traitement'!$P$15)) + F49/'Pré-traitement'!$Q$15 -> 55 | H49: 0 | I49: 0 | J49: 0
A50: Janvier | B50: 2 | C50: 45 | D50: =Bdd_Text!A50 -> 6.31 | E50: =Puis_ECS!Q50 -> 0.006197445401 | F50: =E50*'Pré-traitement'!$B$7 -> 2.826035103 | G50: =55-((F50*1000)/(1.163*'Pré-traitement'!$P$15)) + F50/'Pré-traitement'!$Q$15 -> 38.80266972 | H50: 2.826035023 | I50: 2.973217726 | J50: 0.9504971504
A51: Janvier | B51: 2 | C51: 46 | D51: =Bdd_Text!A51 -> 6.31 | E51: =Puis_ECS!Q51 -> 0.006418782737 | F51: =E51*'Pré-traitement'!$B$7 -> 2.926964928 | G51: =55-((F51*1000)/(1.163*'Pré-traitement'!$P$15)) + F51/'Pré-traitement'!$Q$15 -> 38.22419363 | H51: 2.926964998 | I51: 3.003700018 | J51: 0.9744531512
A52: Janvier | B52: 2 | C52: 47 | D52: =Bdd_Text!A52 -> 6.01 | E52: =Puis_ECS!Q52 -> 0 | F52: =E52*'Pré-traitement'!$B$7 -> 0 | G52: =55-((F52*1000)/(1.163*'Pré-traitement'!$P$15)) + F52/'Pré-traitement'!$Q$15 -> 55 | H52: 0 | I52: 0 | J52: 0
A53: Janvier | B53: 2 | C53: 48 | D53: =Bdd_Text!A53 -> 5.91 | E53: =Puis_ECS!Q53 -> 0 | F53: =E53*'Pré-traitement'!$B$7 -> 0 | G53: =55-((F53*1000)/(1.163*'Pré-traitement'!$P$15)) + F53/'Pré-traitement'!$Q$15 -> 55 | H53: 0 | I53: 0 | J53: 0
A54: Janvier | B54: 3 | C54: 49 | D54: =Bdd_Text!A54 -> 5.61 | E54: =Puis_ECS!Q54 -> 0 | F54: =E54*'Pré-traitement'!$B$7 -> 0 | G54: =55-((F54*1000)/(1.163*'Pré-traitement'!$P$15)) + F54/'Pré-traitement'!$Q$15 -> 55 | H54: 0 | I54: 0 | J54: 0
A55: Janvier | B55: 3 | C55: 50 | D55: =Bdd_Text!A55 -> 5.51 | E55: =Puis_ECS!Q55 -> 0 | F55: =E55*'Pré-traitement'!$B$7 -> 0 | G55: =55-((F55*1000)/(1.163*'Pré-traitement'!$P$15)) + F55/'Pré-traitement'!$Q$15 -> 55 | H55: 0 | I55: 0 | J55: 0
A56: Janvier | B56: 3 | C56: 51 | D56: =Bdd_Text!A56 -> 4.91 | E56: =Puis_ECS!Q56 -> 0 | F56: =E56*'Pré-traitement'!$B$7 -> 0 | G56: =55-((F56*1000)/(1.163*'Pré-traitement'!$P$15)) + F56/'Pré-traitement'!$Q$15 -> 55 | H56: 0 | I56: 0 | J56: 0
A57: Janvier | B57: 3 | C57: 52 | D57: =Bdd_Text!A57 -> 4.81 | E57: =Puis_ECS!Q57 -> 0 | F57: =E57*'Pré-traitement'!$B$7 -> 0 | G57: =55-((F57*1000)/(1.163*'Pré-traitement'!$P$15)) + F57/'Pré-traitement'!$Q$15 -> 55 | H57: 0 | I57: 0 | J57: 0
A58: Janvier | B58: 3 | C58: 53 | D58: =Bdd_Text!A58 -> 4.91 | E58: =Puis_ECS!Q58 -> 0 | F58: =E58*'Pré-traitement'!$B$7 -> 0 | G58: =55-((F58*1000)/(1.163*'Pré-traitement'!$P$15)) + F58/'Pré-traitement'!$Q$15 -> 55 | H58: 0 | I58: 0 | J58: 0
A59: Janvier | B59: 3 | C59: 54 | D59: =Bdd_Text!A59 -> 4.61 | E59: =Puis_ECS!Q59 -> 0 | F59: =E59*'Pré-traitement'!$B$7 -> 0 | G59: =55-((F59*1000)/(1.163*'Pré-traitement'!$P$15)) + F59/'Pré-traitement'!$Q$15 -> 55 | H59: 0 | I59: 0 | J59: 0
A60: Janvier | B60: 3 | C60: 55 | D60: =Bdd_Text!A60 -> 4.61 | E60: =Puis_ECS!Q60 -> 0 | F60: =E60*'Pré-traitement'!$B$7 -> 0 | G60: =55-((F60*1000)/(1.163*'Pré-traitement'!$P$15)) + F60/'Pré-traitement'!$Q$15 -> 55 | H60: 0 | I60: 0 | J60: 0
A61: Janvier | B61: 3 | C61: 56 | D61: =Bdd_Text!A61 -> 4.51 | E61: =Puis_ECS!Q61 -> 0.006197445401 | F61: =E61*'Pré-traitement'!$B$7 -> 2.826035103 | G61: =55-((F61*1000)/(1.163*'Pré-traitement'!$P$15)) + F61/'Pré-traitement'!$Q$15 -> 38.80266972 | H61: 2.826035023 | I61: 2.753454447 | J61: 1.026359797
A62: Janvier | B62: 3 | C62: 57 | D62: =Bdd_Text!A62 -> 5.61 | E62: =Puis_ECS!Q62 -> 0.006418782737 | F62: =E62*'Pré-traitement'!$B$7 -> 2.926964928 | G62: =55-((F62*1000)/(1.163*'Pré-traitement'!$P$15)) + F62/'Pré-traitement'!$Q$15 -> 38.22419363 | H62: 2.926964998 | I62: 2.917365074 | J62: 1.003290653
A63: Janvier | B63: 3 | C63: 58 | D63: =Bdd_Text!A63 -> 7.71 | E63: =Puis_ECS!Q63 -> 0 | F63: =E63*'Pré-traitement'!$B$7 -> 0 | G63: =55-((F63*1000)/(1.163*'Pré-traitement'!$P$15)) + F63/'Pré-traitement'!$Q$15 -> 55 | H63: 0 | I63: 0 | J63: 0
A64: Janvier | B64: 3 | C64: 59 | D64: =Bdd_Text!A64 -> 9.91 | E64: =Puis_ECS!Q64 -> 0 | F64: =E64*'Pré-traitement'!$B$7 -> 0 | G64: =55-((F64*1000)/(1.163*'Pré-traitement'!$P$15)) + F64/'Pré-traitement'!$Q$15 -> 55 | H64: 0 | I64: 0 | J64: 0
A65: Janvier | B65: 3 | C65: 60 | D65: =Bdd_Text!A65 -> 13.41 | E65: =Puis_ECS!Q65 -> 0 | F65: =E65*'Pré-traitement'!$B$7 -> 0 | G65: =55-((F65*1000)/(1.163*'Pré-traitement'!$P$15)) + F65/'Pré-traitement'!$Q$15 -> 55 | H65: 0 | I65: 0 | J65: 0
A66: Janvier | B66: 3 | C66: 61 | D66: =Bdd_Text!A66 -> 13.11 | E66: =Puis_ECS!Q66 -> 0 | F66: =E66*'Pré-traitement'!$B$7 -> 0 | G66: =55-((F66*1000)/(1.163*'Pré-traitement'!$P$15)) + F66/'Pré-traitement'!$Q$15 -> 55 | H66: 0 | I66: 0 | J66: 0
A67: Janvier | B67: 3 | C67: 62 | D67: =Bdd_Text!A67 -> 13.11 | E67: =Puis_ECS!Q67 -> 0 | F67: =E67*'Pré-traitement'!$B$7 -> 0 | G67: =55-((F67*1000)/(1.163*'Pré-traitement'!$P$15)) + F67/'Pré-traitement'!$Q$15 -> 55 | H67: 0 | I67: 0 | J67: 0
A68: Janvier | B68: 3 | C68: 63 | D68: =Bdd_Text!A68 -> 12.11 | E68: =Puis_ECS!Q68 -> 0 | F68: =E68*'Pré-traitement'!$B$7 -> 0 | G68: =55-((F68*1000)/(1.163*'Pré-traitement'!$P$15)) + F68/'Pré-traitement'!$Q$15 -> 55 | H68: 0 | I68: 0 | J68: 0
A69: Janvier | B69: 3 | C69: 64 | D69: =Bdd_Text!A69 -> 12.11 | E69: =Puis_ECS!Q69 -> 0 | F69: =E69*'Pré-traitement'!$B$7 -> 0 | G69: =55-((F69*1000)/(1.163*'Pré-traitement'!$P$15)) + F69/'Pré-traitement'!$Q$15 -> 55 | H69: 0 | I69: 0 | J69: 0
A70: Janvier | B70: 3 | C70: 65 | D70: =Bdd_Text!A70 -> 11.41 | E70: =Puis_ECS!Q70 -> 0 | F70: =E70*'Pré-traitement'!$B$7 -> 0 | G70: =55-((F70*1000)/(1.163*'Pré-traitement'!$P$15)) + F70/'Pré-traitement'!$Q$15 -> 55 | H70: 0 | I70: 0 | J70: 0
A71: Janvier | B71: 3 | C71: 66 | D71: =Bdd_Text!A71 -> 11.01 | E71: =Puis_ECS!Q71 -> 0 | F71: =E71*'Pré-traitement'!$B$7 -> 0 | G71: =55-((F71*1000)/(1.163*'Pré-traitement'!$P$15)) + F71/'Pré-traitement'!$Q$15 -> 55 | H71: 0 | I71: 0 | J71: 0
A72: Janvier | B72: 3 | C72: 67 | D72: =Bdd_Text!A72 -> 10.21 | E72: =Puis_ECS!Q72 -> 0.006425494605 | F72: =E72*'Pré-traitement'!$B$7 -> 2.93002554 | G72: =55-((F72*1000)/(1.163*'Pré-traitement'!$P$15)) + F72/'Pré-traitement'!$Q$15 -> 38.20665184 | H72: 2.930025578 | I72: 3.279715776 | J72: 0.8933779001
A73: Janvier | B73: 3 | C73: 68 | D73: =Bdd_Text!A73 -> 9.31 | E73: =Puis_ECS!Q73 -> 0 | F73: =E73*'Pré-traitement'!$B$7 -> 0 | G73: =55-((F73*1000)/(1.163*'Pré-traitement'!$P$15)) + F73/'Pré-traitement'!$Q$15 -> 55 | H73: 0 | I73: 0 | J73: 0
A74: Janvier | B74: 3 | C74: 69 | D74: =Bdd_Text!A74 -> 7.51 | E74: =Puis_ECS!Q74 -> 0.006206085967 | F74: =E74*'Pré-traitement'!$B$7 -> 2.829975201 | G74: =55-((F74*1000)/(1.163*'Pré-traitement'!$P$15)) + F74/'Pré-traitement'!$Q$15 -> 38.78008717 | H74: 2.829975128 | I74: 3.088552952 | J74: 0.9162786603
A75: Janvier | B75: 3 | C75: 70 | D75: =Bdd_Text!A75 -> 8.61 | E75: =Puis_ECS!Q75 -> 0.006429969183 | F75: =E75*'Pré-traitement'!$B$7 -> 2.932065948 | G75: =55-((F75*1000)/(1.163*'Pré-traitement'!$P$15)) + F75/'Pré-traitement'!$Q$15 -> 38.1949573 | H75: 2.932065964 | I75: 3.185684919 | J75: 0.9203879237
A76: Janvier | B76: 3 | C76: 71 | D76: =Bdd_Text!A76 -> 8.71 | E76: =Puis_ECS!Q76 -> 0 | F76: =E76*'Pré-traitement'!$B$7 -> 0 | G76: =55-((F76*1000)/(1.163*'Pré-traitement'!$P$15)) + F76/'Pré-traitement'!$Q$15 -> 55 | H76: 0 | I76: 0 | J76: 0
A77: Janvier | B77: 3 | C77: 72 | D77: =Bdd_Text!A77 -> 9.01 | E77: =Puis_ECS!Q77 -> 0 | F77: =E77*'Pré-traitement'!$B$7 -> 0 | G77: =55-((F77*1000)/(1.163*'Pré-traitement'!$P$15)) + F77/'Pré-traitement'!$Q$15 -> 55 | H77: 0 | I77: 0 | J77: 0
A78: Janvier | B78: 4 | C78: 73 | D78: =Bdd_Text!A78 -> 8.61 | E78: =Puis_ECS!Q78 -> 0 | F78: =E78*'Pré-traitement'!$B$7 -> 0 | G78: =55-((F78*1000)/(1.163*'Pré-traitement'!$P$15)) + F78/'Pré-traitement'!$Q$15 -> 55 | H78: 0 | I78: 0 | J78: 0
A79: Janvier | B79: 4 | C79: 74 | D79: =Bdd_Text!A79 -> 8.21 | E79: =Puis_ECS!Q79 -> 0 | F79: =E79*'Pré-traitement'!$B$7 -> 0 | G79: =55-((F79*1000)/(1.163*'Pré-traitement'!$P$15)) + F79/'Pré-traitement'!$Q$15 -> 55 | H79: 0 | I79: 0 | J79: 0
A80: Janvier | B80: 4 | C80: 75 | D80: =Bdd_Text!A80 -> 8.21 | E80: =Puis_ECS!Q80 -> 0 | F80: =E80*'Pré-traitement'!$B$7 -> 0 | G80: =55-((F80*1000)/(1.163*'Pré-traitement'!$P$15)) + F80/'Pré-traitement'!$Q$15 -> 55 | H80: 0 | I80: 0 | J80: 0
A81: Janvier | B81: 4 | C81: 76 | D81: =Bdd_Text!A81 -> 8.61 | E81: =Puis_ECS!Q81 -> 0 | F81: =E81*'Pré-traitement'!$B$7 -> 0 | G81: =55-((F81*1000)/(1.163*'Pré-traitement'!$P$15)) + F81/'Pré-traitement'!$Q$15 -> 55 | H81: 0 | I81: 0 | J81: 0
A82: Janvier | B82: 4 | C82: 77 | D82: =Bdd_Text!A82 -> 8.41 | E82: =Puis_ECS!Q82 -> 0 | F82: =E82*'Pré-traitement'!$B$7 -> 0 | G82: =55-((F82*1000)/(1.163*'Pré-traitement'!$P$15)) + F82/'Pré-traitement'!$Q$15 -> 55 | H82: 0 | I82: 0 | J82: 0
A83: Janvier | B83: 4 | C83: 78 | D83: =Bdd_Text!A83 -> 8.01 | E83: =Puis_ECS!Q83 -> 0 | F83: =E83*'Pré-traitement'!$B$7 -> 0 | G83: =55-((F83*1000)/(1.163*'Pré-traitement'!$P$15)) + F83/'Pré-traitement'!$Q$15 -> 55 | H83: 0 | I83: 0 | J83: 0
A84: Janvier | B84: 4 | C84: 79 | D84: =Bdd_Text!A84 -> 7.81 | E84: =Puis_ECS!Q84 -> 0 | F84: =E84*'Pré-traitement'!$B$7 -> 0 | G84: =55-((F84*1000)/(1.163*'Pré-traitement'!$P$15)) + F84/'Pré-traitement'!$Q$15 -> 55 | H84: 0 | I84: 0 | J84: 0
A85: Janvier | B85: 4 | C85: 80 | D85: =Bdd_Text!A85 -> 7.61 | E85: =Puis_ECS!Q85 -> 0.006216886673 | F85: =E85*'Pré-traitement'!$B$7 -> 2.834900323 | G85: =55-((F85*1000)/(1.163*'Pré-traitement'!$P$15)) + F85/'Pré-traitement'!$Q$15 -> 38.75185899 | H85: 2.834900379 | I85: 3.095959663 | J85: 0.9156774282
A86: Janvier | B86: 4 | C86: 81 | D86: =Bdd_Text!A86 -> 7.71 | E86: =Puis_ECS!Q86 -> 0.006441155629 | F86: =E86*'Pré-traitement'!$B$7 -> 2.937166967 | G86: =55-((F86*1000)/(1.163*'Pré-traitement'!$P$15)) + F86/'Pré-traitement'!$Q$15 -> 38.16572097 | H86: 2.937166929 | I86: 3.13401556 | J86: 0.9371896386
A87: Janvier | B87: 4 | C87: 82 | D87: =Bdd_Text!A87 -> 8.31 | E87: =Puis_ECS!Q87 -> 0 | F87: =E87*'Pré-traitement'!$B$7 -> 0 | G87: =55-((F87*1000)/(1.163*'Pré-traitement'!$P$15)) + F87/'Pré-traitement'!$Q$15 -> 55 | H87: 0 | I87: 0 | J87: 0
A88: Janvier | B88: 4 | C88: 83 | D88: =Bdd_Text!A88 -> 7.51 | E88: =Puis_ECS!Q88 -> 0 | F88: =E88*'Pré-traitement'!$B$7 -> 0 | G88: =55-((F88*1000)/(1.163*'Pré-traitement'!$P$15)) + F88/'Pré-traitement'!$Q$15 -> 55 | H88: 0 | I88: 0 | J88: 0
A89: Janvier | B89: 4 | C89: 84 | D89: =Bdd_Text!A89 -> 8.11 | E89: =Puis_ECS!Q89 -> 0 | F89: =E89*'Pré-traitement'!$B$7 -> 0 | G89: =55-((F89*1000)/(1.163*'Pré-traitement'!$P$15)) + F89/'Pré-traitement'!$Q$15 -> 55 | H89: 0 | I89: 0 | J89: 0
A90: Janvier | B90: 4 | C90: 85 | D90: =Bdd_Text!A90 -> 8.31 | E90: =Puis_ECS!Q90 -> 0 | F90: =E90*'Pré-traitement'!$B$7 -> 0 | G90: =55-((F90*1000)/(1.163*'Pré-traitement'!$P$15)) + F90/'Pré-traitement'!$Q$15 -> 55 | H90: 0 | I90: 0 | J90: 0
A91: Janvier | B91: 4 | C91: 86 | D91: =Bdd_Text!A91 -> 9.31 | E91: =Puis_ECS!Q91 -> 0 | F91: =E91*'Pré-traitement'!$B$7 -> 0 | G91: =55-((F91*1000)/(1.163*'Pré-traitement'!$P$15)) + F91/'Pré-traitement'!$Q$15 -> 55 | H91: 0 | I91: 0 | J91: 0
A92: Janvier | B92: 4 | C92: 87 | D92: =Bdd_Text!A92 -> 9.51 | E92: =Puis_ECS!Q92 -> 0 | F92: =E92*'Pré-traitement'!$B$7 -> 0 | G92: =55-((F92*1000)/(1.163*'Pré-traitement'!$P$15)) + F92/'Pré-traitement'!$Q$15 -> 55 | H92: 0 | I92: 0 | J92: 0
A93: Janvier | B93: 4 | C93: 88 | D93: =Bdd_Text!A93 -> 9.51 | E93: =Puis_ECS!Q93 -> 0 | F93: =E93*'Pré-traitement'!$B$7 -> 0 | G93: =55-((F93*1000)/(1.163*'Pré-traitement'!$P$15)) + F93/'Pré-traitement'!$Q$15 -> 55 | H93: 0 | I93: 0 | J93: 0
A94: Janvier | B94: 4 | C94: 89 | D94: =Bdd_Text!A94 -> 9.31 | E94: =Puis_ECS!Q94 -> 0 | F94: =E94*'Pré-traitement'!$B$7 -> 0 | G94: =55-((F94*1000)/(1.163*'Pré-traitement'!$P$15)) + F94/'Pré-traitement'!$Q$15 -> 55 | H94: 0 | I94: 0 | J94: 0
A95: Janvier | B95: 4 | C95: 90 | D95: =Bdd_Text!A95 -> 9.21 | E95: =Puis_ECS!Q95 -> 0 | F95: =E95*'Pré-traitement'!$B$7 -> 0 | G95: =55-((F95*1000)/(1.163*'Pré-traitement'!$P$15)) + F95/'Pré-traitement'!$Q$15 -> 55 | H95: 0 | I95: 0 | J95: 0
A96: Janvier | B96: 4 | C96: 91 | D96: =Bdd_Text!A96 -> 7.51 | E96: =Puis_ECS!Q96 -> 0.006445630208 | F96: =E96*'Pré-traitement'!$B$7 -> 2.939207375 | G96: =55-((F96*1000)/(1.163*'Pré-traitement'!$P$15)) + F96/'Pré-traitement'!$Q$15 -> 38.15402644 | H96: 2.939207315 | I96: 3.122810364 | J96: 0.9412058592
A97: Janvier | B97: 4 | C97: 92 | D97: =Bdd_Text!A97 -> 8.81 | E97: =Puis_ECS!Q97 -> 0 | F97: =E97*'Pré-traitement'!$B$7 -> 0 | G97: =55-((F97*1000)/(1.163*'Pré-traitement'!$P$15)) + F97/'Pré-traitement'!$Q$15 -> 55 | H97: 0 | I97: 0 | J97: 0
A98: Janvier | B98: 4 | C98: 93 | D98: =Bdd_Text!A98 -> 9.71 | E98: =Puis_ECS!Q98 -> 0.006223367097 | F98: =E98*'Pré-traitement'!$B$7 -> 2.837855396 | G98: =55-((F98*1000)/(1.163*'Pré-traitement'!$P$15)) + F98/'Pré-traitement'!$Q$15 -> 38.73492208 | H98: 2.837855339 | I98: 3.220013142 | J98: 0.8813179135
A99: Janvier | B99: 4 | C99: 94 | D99: =Bdd_Text!A99 -> 9.41 | E99: =Puis_ECS!Q99 -> 0.006445630208 | F99: =E99*'Pré-traitement'!$B$7 -> 2.939207375 | G99: =55-((F99*1000)/(1.163*'Pré-traitement'!$P$15)) + F99/'Pré-traitement'!$Q$15 -> 38.15402644 | H99: 2.939207315 | I99: 3.235358953 | J99: 0.9084640741
A100: Janvier | B100: 4 | C100: 95 | D100: =Bdd_Text!A100 -> 9.51 | E100: =Puis_ECS!Q100 -> 0 | F100: =E100*'Pré-traitement'!$B$7 -> 0 | G100: =55-((F100*1000)/(1.163*'Pré-traitement'!$P$15)) + F100/'Pré-traitement'!$Q$15 -> 55 | H100: 0 | I100: 0 | J100: 0
A101: Janvier | B101: 4 | C101: 96 | D101: =Bdd_Text!A101 -> 9.11 | E101: =Puis_ECS!Q101 -> 0 | F101: =E101*'Pré-traitement'!$B$7 -> 0 | G101: =55-((F101*1000)/(1.163*'Pré-traitement'!$P$15)) + F101/'Pré-traitement'!$Q$15 -> 55 | H101: 0 | I101: 0 | J101: 0
A102: Janvier | B102: 5 | C102: 97 | D102: =Bdd_Text!A102 -> 8.71 | E102: =Puis_ECS!Q102 -> 0 | F102: =E102*'Pré-traitement'!$B$7 -> 0 | G102: =55-((F102*1000)/(1.163*'Pré-traitement'!$P$15)) + F102/'Pré-traitement'!$Q$15 -> 55 | H102: 0 | I102: 0 | J102: 0
A103: Janvier | B103: 5 | C103: 98 | D103: =Bdd_Text!A103 -> 6.11 | E103: =Puis_ECS!Q103 -> 0 | F103: =E103*'Pré-traitement'!$B$7 -> 0 | G103: =55-((F103*1000)/(1.163*'Pré-traitement'!$P$15)) + F103/'Pré-traitement'!$Q$15 -> 55 | H103: 0 | I103: 0 | J103: 0
A104: Janvier | B104: 5 | C104: 99 | D104: =Bdd_Text!A104 -> 9.81 | E104: =Puis_ECS!Q104 -> 0 | F104: =E104*'Pré-traitement'!$B$7 -> 0 | G104: =55-((F104*1000)/(1.163*'Pré-traitement'!$P$15)) + F104/'Pré-traitement'!$Q$15 -> 55 | H104: 0 | I104: 0 | J104: 0
A105: Janvier | B105: 5 | C105: 100 | D105: =Bdd_Text!A105 -> 9.11 | E105: =Puis_ECS!Q105 -> 0 | F105: =E105*'Pré-traitement'!$B$7 -> 0 | G105: =55-((F105*1000)/(1.163*'Pré-traitement'!$P$15)) + F105/'Pré-traitement'!$Q$15 -> 55 | H105: 0 | I105: 0 | J105: 0
A106: Janvier | B106: 5 | C106: 101 | D106: =Bdd_Text!A106 -> 9.41 | E106: =Puis_ECS!Q106 -> 0 | F106: =E106*'Pré-traitement'!$B$7 -> 0 | G106: =55-((F106*1000)/(1.163*'Pré-traitement'!$P$15)) + F106/'Pré-traitement'!$Q$15 -> 55 | H106: 0 | I106: 0 | J106: 0
A107: Janvier | B107: 5 | C107: 102 | D107: =Bdd_Text!A107 -> 9.01 | E107: =Puis_ECS!Q107 -> 0 | F107: =E107*'Pré-traitement'!$B$7 -> 0 | G107: =55-((F107*1000)/(1.163*'Pré-traitement'!$P$15)) + F107/'Pré-traitement'!$Q$15 -> 55 | H107: 0 | I107: 0 | J107: 0
A108: Janvier | B108: 5 | C108: 103 | D108: =Bdd_Text!A108 -> 9.01 | E108: =Puis_ECS!Q108 -> 0 | F108: =E108*'Pré-traitement'!$B$7 -> 0 | G108: =55-((F108*1000)/(1.163*'Pré-traitement'!$P$15)) + F108/'Pré-traitement'!$Q$15 -> 55 | H108: 0 | I108: 0 | J108: 0
A109: Janvier | B109: 5 | C109: 104 | D109: =Bdd_Text!A109 -> 6.71 | E109: =Puis_ECS!Q109 -> 0.006221206956 | F109: =E109*'Pré-traitement'!$B$7 -> 2.836870372 | G109: =55-((F109*1000)/(1.163*'Pré-traitement'!$P$15)) + F109/'Pré-traitement'!$Q$15 -> 38.74056772 | H109: 2.836870432 | I109: 3.025374174 | J109: 0.9376924038
A110: Janvier | B110: 5 | C110: 105 | D110: =Bdd_Text!A110 -> 6.81 | E110: =Puis_ECS!Q110 -> 0.006443392919 | F110: =E110*'Pré-traitement'!$B$7 -> 2.938187171 | G110: =55-((F110*1000)/(1.163*'Pré-traitement'!$P$15)) + F110/'Pré-traitement'!$Q$15 -> 38.15987371 | H110: 2.938187122 | I110: 3.068822622 | J110: 0.957431376
A111: Janvier | B111: 5 | C111: 106 | D111: =Bdd_Text!A111 -> 9.21 | E111: =Puis_ECS!Q111 -> 0 | F111: =E111*'Pré-traitement'!$B$7 -> 0 | G111: =55-((F111*1000)/(1.163*'Pré-traitement'!$P$15)) + F111/'Pré-traitement'!$Q$15 -> 55 | H111: 0 | I111: 0 | J111: 0
A112: Janvier | B112: 5 | C112: 107 | D112: =Bdd_Text!A112 -> 11.81 | E112: =Puis_ECS!Q112 -> 0 | F112: =E112*'Pré-traitement'!$B$7 -> 0 | G112: =55-((F112*1000)/(1.163*'Pré-traitement'!$P$15)) + F112/'Pré-traitement'!$Q$15 -> 55 | H112: 0 | I112: 0 | J112: 0
A113: Janvier | B113: 5 | C113: 108 | D113: =Bdd_Text!A113 -> 13.31 | E113: =Puis_ECS!Q113 -> 0 | F113: =E113*'Pré-traitement'!$B$7 -> 0 | G113: =55-((F113*1000)/(1.163*'Pré-traitement'!$P$15)) + F113/'Pré-traitement'!$Q$15 -> 55 | H113: 0 | I113: 0 | J113: 0
A114: Janvier | B114: 5 | C114: 109 | D114: =Bdd_Text!A114 -> 13.31 | E114: =Puis_ECS!Q114 -> 0 | F114: =E114*'Pré-traitement'!$B$7 -> 0 | G114: =55-((F114*1000)/(1.163*'Pré-traitement'!$P$15)) + F114/'Pré-traitement'!$Q$15 -> 55 | H114: 0 | I114: 0 | J114: 0
A115: Janvier | B115: 5 | C115: 110 | D115: =Bdd_Text!A115 -> 13.21 | E115: =Puis_ECS!Q115 -> 0 | F115: =E115*'Pré-traitement'!$B$7 -> 0 | G115: =55-((F115*1000)/(1.163*'Pré-traitement'!$P$15)) + F115/'Pré-traitement'!$Q$15 -> 55 | H115: 0 | I115: 0 | J115: 0
A116: Janvier | B116: 5 | C116: 111 | D116: =Bdd_Text!A116 -> 12.01 | E116: =Puis_ECS!Q116 -> 0 | F116: =E116*'Pré-traitement'!$B$7 -> 0 | G116: =55-((F116*1000)/(1.163*'Pré-traitement'!$P$15)) + F116/'Pré-traitement'!$Q$15 -> 55 | H116: 0 | I116: 0 | J116: 0
A117: Janvier | B117: 5 | C117: 112 | D117: =Bdd_Text!A117 -> 11.71 | E117: =Puis_ECS!Q117 -> 0 | F117: =E117*'Pré-traitement'!$B$7 -> 0 | G117: =55-((F117*1000)/(1.163*'Pré-traitement'!$P$15)) + F117/'Pré-traitement'!$Q$15 -> 55 | H117: 0 | I117: 0 | J117: 0
A118: Janvier | B118: 5 | C118: 113 | D118: =Bdd_Text!A118 -> 11.11 | E118: =Puis_ECS!Q118 -> 0 | F118: =E118*'Pré-traitement'!$B$7 -> 0 | G118: =55-((F118*1000)/(1.163*'Pré-traitement'!$P$15)) + F118/'Pré-traitement'!$Q$15 -> 55 | H118: 0 | I118: 0 | J118: 0
A119: Janvier | B119: 5 | C119: 114 | D119: =Bdd_Text!A119 -> 10.71 | E119: =Puis_ECS!Q119 -> 0 | F119: =E119*'Pré-traitement'!$B$7 -> 0 | G119: =55-((F119*1000)/(1.163*'Pré-traitement'!$P$15)) + F119/'Pré-traitement'!$Q$15 -> 55 | H119: 0 | I119: 0 | J119: 0
A120: Janvier | B120: 5 | C120: 115 | D120: =Bdd_Text!A120 -> 9.21 | E120: =Puis_ECS!Q120 -> 0.006443392919 | F120: =E120*'Pré-traitement'!$B$7 -> 2.938187171 | G120: =55-((F120*1000)/(1.163*'Pré-traitement'!$P$15)) + F120/'Pré-traitement'!$Q$15 -> 38.15987371 | H120: 2.938187122 | I120: 3.223181725 | J120: 0.9115797281
A121: Janvier | B121: 5 | C121: 116 | D121: =Bdd_Text!A121 -> 8.71 | E121: =Puis_ECS!Q121 -> 0 | F121: =E121*'Pré-traitement'!$B$7 -> 0 | G121: =55-((F121*1000)/(1.163*'Pré-traitement'!$P$15)) + F121/'Pré-traitement'!$Q$15 -> 55 | H121: 0 | I121: 0 | J121: 0
A122: Janvier | B122: 5 | C122: 117 | D122: =Bdd_Text!A122 -> 8.31 | E122: =Puis_ECS!Q122 -> 0.006221206956 | F122: =E122*'Pré-traitement'!$B$7 -> 2.836870372 | G122: =55-((F122*1000)/(1.163*'Pré-traitement'!$P$15)) + F122/'Pré-traitement'!$Q$15 -> 38.74056772 | H122: 2.836870432 | I122: 3.137618065 | J122: 0.9041478038
A123: Janvier | B123: 5 | C123: 118 | D123: =Bdd_Text!A123 -> 8.11 | E123: =Puis_ECS!Q123 -> 0.006443392919 | F123: =E123*'Pré-traitement'!$B$7 -> 2.938187171 | G123: =55-((F123*1000)/(1.163*'Pré-traitement'!$P$15)) + F123/'Pré-traitement'!$Q$15 -> 38.15987371 | H123: 2.938187122 | I123: 3.158029795 | J123: 0.930386126
A124: Janvier | B124: 5 | C124: 119 | D124: =Bdd_Text!A124 -> 8.21 | E124: =Puis_ECS!Q124 -> 0 | F124: =E124*'Pré-traitement'!$B$7 -> 0 | G124: =55-((F124*1000)/(1.163*'Pré-traitement'!$P$15)) + F124/'Pré-traitement'!$Q$15 -> 55 | H124: 0 | I124: 0 | J124: 0
A125: Janvier | B125: 5 | C125: 120 | D125: =Bdd_Text!A125 -> 7.91 | E125: =Puis_ECS!Q125 -> 0 | F125: =E125*'Pré-traitement'!$B$7 -> 0 | G125: =55-((F125*1000)/(1.163*'Pré-traitement'!$P$15)) + F125/'Pré-traitement'!$Q$15 -> 55 | H125: 0 | I125: 0 | J125: 0
A126: Janvier | B126: 6 | C126: 121 | D126: =Bdd_Text!A126 -> 7.41 | E126: =Puis_ECS!Q126 -> 0 | F126: =E126*'Pré-traitement'!$B$7 -> 0 | G126: =55-((F126*1000)/(1.163*'Pré-traitement'!$P$15)) + F126/'Pré-traitement'!$Q$15 -> 55 | H126: 0 | I126: 0 | J126: 0
A127: Janvier | B127: 6 | C127: 122 | D127: =Bdd_Text!A127 -> 7.11 | E127: =Puis_ECS!Q127 -> 0 | F127: =E127*'Pré-traitement'!$B$7 -> 0 | G127: =55-((F127*1000)/(1.163*'Pré-traitement'!$P$15)) + F127/'Pré-traitement'!$Q$15 -> 55 | H127: 0 | I127: 0 | J127: 0
A128: Janvier | B128: 6 | C128: 123 | D128: =Bdd_Text!A128 -> 7.01 | E128: =Puis_ECS!Q128 -> 0 | F128: =E128*'Pré-traitement'!$B$7 -> 0 | G128: =55-((F128*1000)/(1.163*'Pré-traitement'!$P$15)) + F128/'Pré-traitement'!$Q$15 -> 55 | H128: 0 | I128: 0 | J128: 0
A129: Janvier | B129: 6 | C129: 124 | D129: =Bdd_Text!A129 -> 6.91 | E129: =Puis_ECS!Q129 -> 0 | F129: =E129*'Pré-traitement'!$B$7 -> 0 | G129: =55-((F129*1000)/(1.163*'Pré-traitement'!$P$15)) + F129/'Pré-traitement'!$Q$15 -> 55 | H129: 0 | I129: 0 | J129: 0
A130: Janvier | B130: 6 | C130: 125 | D130: =Bdd_Text!A130 -> 7.21 | E130: =Puis_ECS!Q130 -> 0 | F130: =E130*'Pré-traitement'!$B$7 -> 0 | G130: =55-((F130*1000)/(1.163*'Pré-traitement'!$P$15)) + F130/'Pré-traitement'!$Q$15 -> 55 | H130: 0 | I130: 0 | J130: 0
A131: Janvier | B131: 6 | C131: 126 | D131: =Bdd_Text!A131 -> 11.41 | E131: =Puis_ECS!Q131 -> 0 | F131: =E131*'Pré-traitement'!$B$7 -> 0 | G131: =55-((F131*1000)/(1.163*'Pré-traitement'!$P$15)) + F131/'Pré-traitement'!$Q$15 -> 55 | H131: 0 | I131: 0 | J131: 0
A132: Janvier | B132: 6 | C132: 127 | D132: =Bdd_Text!A132 -> 11.31 | E132: =Puis_ECS!Q132 -> 0 | F132: =E132*'Pré-traitement'!$B$7 -> 0 | G132: =55-((F132*1000)/(1.163*'Pré-traitement'!$P$15)) + F132/'Pré-traitement'!$Q$15 -> 55 | H132: 0 | I132: 0 | J132: 0
A133: Janvier | B133: 6 | C133: 128 | D133: =Bdd_Text!A133 -> 12.01 | E133: =Puis_ECS!Q133 -> 0.006221206956 | F133: =E133*'Pré-traitement'!$B$7 -> 2.836870372 | G133: =55-((F133*1000)/(1.163*'Pré-traitement'!$P$15)) + F133/'Pré-traitement'!$Q$15 -> 38.74056772 | H133: 2.836870432 | I133: 3.354510069 | J133: 0.8456884623
A134: Janvier | B134: 6 | C134: 129 | D134: =Bdd_Text!A134 -> 11.11 | E134: =Puis_ECS!Q134 -> 0.006443392919 | F134: =E134*'Pré-traitement'!$B$7 -> 2.938187171 | G134: =55-((F134*1000)/(1.163*'Pré-traitement'!$P$15)) + F134/'Pré-traitement'!$Q$15 -> 38.15987371 | H134: 2.938187122 | I134: 3.335705996 | J134: 0.8808291554
A135: Janvier | B135: 6 | C135: 130 | D135: =Bdd_Text!A135 -> 12.51 | E135: =Puis_ECS!Q135 -> 0 | F135: =E135*'Pré-traitement'!$B$7 -> 0 | G135: =55-((F135*1000)/(1.163*'Pré-traitement'!$P$15)) + F135/'Pré-traitement'!$Q$15 -> 55 | H135: 0 | I135: 0 | J135: 0
A136: Janvier | B136: 6 | C136: 131 | D136: =Bdd_Text!A136 -> 12.51 | E136: =Puis_ECS!Q136 -> 0 | F136: =E136*'Pré-traitement'!$B$7 -> 0 | G136: =55-((F136*1000)/(1.163*'Pré-traitement'!$P$15)) + F136/'Pré-traitement'!$Q$15 -> 55 | H136: 0 | I136: 0 | J136: 0
A137: Janvier | B137: 6 | C137: 132 | D137: =Bdd_Text!A137 -> 12.61 | E137: =Puis_ECS!Q137 -> 0 | F137: =E137*'Pré-traitement'!$B$7 -> 0 | G137: =55-((F137*1000)/(1.163*'Pré-traitement'!$P$15)) + F137/'Pré-traitement'!$Q$15 -> 55 | H137: 0 | I137: 0 | J137: 0
A138: Janvier | B138: 6 | C138: 133 | D138: =Bdd_Text!A138 -> 12.21 | E138: =Puis_ECS!Q138 -> 0 | F138: =E138*'Pré-traitement'!$B$7 -> 0 | G138: =55-((F138*1000)/(1.163*'Pré-traitement'!$P$15)) + F138/'Pré-traitement'!$Q$15 -> 55 | H138: 0 | I138: 0 | J138: 0
A139: Janvier | B139: 6 | C139: 134 | D139: =Bdd_Text!A139 -> 12.11 | E139: =Puis_ECS!Q139 -> 0 | F139: =E139*'Pré-traitement'!$B$7 -> 0 | G139: =55-((F139*1000)/(1.163*'Pré-traitement'!$P$15)) + F139/'Pré-traitement'!$Q$15 -> 55 | H139: 0 | I139: 0 | J139: 0
A140: Janvier | B140: 6 | C140: 135 | D140: =Bdd_Text!A140 -> 11.91 | E140: =Puis_ECS!Q140 -> 0 | F140: =E140*'Pré-traitement'!$B$7 -> 0 | G140: =55-((F140*1000)/(1.163*'Pré-traitement'!$P$15)) + F140/'Pré-traitement'!$Q$15 -> 55 | H140: 0 | I140: 0 | J140: 0
A141: Janvier | B141: 6 | C141: 136 | D141: =Bdd_Text!A141 -> 12.11 | E141: =Puis_ECS!Q141 -> 0 | F141: =E141*'Pré-traitement'!$B$7 -> 0 | G141: =55-((F141*1000)/(1.163*'Pré-traitement'!$P$15)) + F141/'Pré-traitement'!$Q$15 -> 55 | H141: 0 | I141: 0 | J141: 0
A142: Janvier | B142: 6 | C142: 137 | D142: =Bdd_Text!A142 -> 12.11 | E142: =Puis_ECS!Q142 -> 0 | F142: =E142*'Pré-traitement'!$B$7 -> 0 | G142: =55-((F142*1000)/(1.163*'Pré-traitement'!$P$15)) + F142/'Pré-traitement'!$Q$15 -> 55 | H142: 0 | I142: 0 | J142: 0
A143: Janvier | B143: 6 | C143: 138 | D143: =Bdd_Text!A143 -> 12.11 | E143: =Puis_ECS!Q143 -> 0 | F143: =E143*'Pré-traitement'!$B$7 -> 0 | G143: =55-((F143*1000)/(1.163*'Pré-traitement'!$P$15)) + F143/'Pré-traitement'!$Q$15 -> 55 | H143: 0 | I143: 0 | J143: 0
A144: Janvier | B144: 6 | C144: 139 | D144: =Bdd_Text!A144 -> 12.21 | E144: =Puis_ECS!Q144 -> 0.006443392919 | F144: =E144*'Pré-traitement'!$B$7 -> 2.938187171 | G144: =55-((F144*1000)/(1.163*'Pré-traitement'!$P$15)) + F144/'Pré-traitement'!$Q$15 -> 38.15987371 | H144: 2.938187122 | I144: 3.400846004 | J144: 0.8639577031
A145: Janvier | B145: 6 | C145: 140 | D145: =Bdd_Text!A145 -> 12.31 | E145: =Puis_ECS!Q145 -> 0 | F145: =E145*'Pré-traitement'!$B$7 -> 0 | G145: =55-((F145*1000)/(1.163*'Pré-traitement'!$P$15)) + F145/'Pré-traitement'!$Q$15 -> 55 | H145: 0 | I145: 0 | J145: 0
A146: Janvier | B146: 6 | C146: 141 | D146: =Bdd_Text!A146 -> 12.11 | E146: =Puis_ECS!Q146 -> 0.006219046815 | F146: =E146*'Pré-traitement'!$B$7 -> 2.835885347 | G146: =55-((F146*1000)/(1.163*'Pré-traitement'!$P$15)) + F146/'Pré-traitement'!$Q$15 -> 38.74621335 | H146: 2.835885286 | I146: 3.360035419 | J146: 0.8440045714
A147: Janvier | B147: 6 | C147: 142 | D147: =Bdd_Text!A147 -> 12.71 | E147: =Puis_ECS!Q147 -> 0.006441155629 | F147: =E147*'Pré-traitement'!$B$7 -> 2.937166967 | G147: =55-((F147*1000)/(1.163*'Pré-traitement'!$P$15)) + F147/'Pré-traitement'!$Q$15 -> 38.16572097 | H147: 2.937166929 | I147: 3.430101633 | J147: 0.8562915325
A148: Janvier | B148: 6 | C148: 143 | D148: =Bdd_Text!A148 -> 12.61 | E148: =Puis_ECS!Q148 -> 0 | F148: =E148*'Pré-traitement'!$B$7 -> 0 | G148: =55-((F148*1000)/(1.163*'Pré-traitement'!$P$15)) + F148/'Pré-traitement'!$Q$15 -> 55 | H148: 0 | I148: 0 | J148: 0
A149: Janvier | B149: 6 | C149: 144 | D149: =Bdd_Text!A149 -> 12.21 | E149: =Puis_ECS!Q149 -> 0 | F149: =E149*'Pré-traitement'!$B$7 -> 0 | G149: =55-((F149*1000)/(1.163*'Pré-traitement'!$P$15)) + F149/'Pré-traitement'!$Q$15 -> 55 | H149: 0 | I149: 0 | J149: 0
A150: Janvier | B150: 7 | C150: 145 | D150: =Bdd_Text!A150 -> 12.61 | E150: =Puis_ECS!Q150 -> 0 | F150: =E150*'Pré-traitement'!$B$7 -> 0 | G150: =55-((F150*1000)/(1.163*'Pré-traitement'!$P$15)) + F150/'Pré-traitement'!$Q$15 -> 55 | H150: 0 | I150: 0 | J150: 0
A151: Janvier | B151: 7 | C151: 146 | D151: =Bdd_Text!A151 -> 12.61 | E151: =Puis_ECS!Q151 -> 0 | F151: =E151*'Pré-traitement'!$B$7 -> 0 | G151: =55-((F151*1000)/(1.163*'Pré-traitement'!$P$15)) + F151/'Pré-traitement'!$Q$15 -> 55 | H151: 0 | I151: 0 | J151: 0
A152: Janvier | B152: 7 | C152: 147 | D152: =Bdd_Text!A152 -> 11.61 | E152: =Puis_ECS!Q152 -> 0 | F152: =E152*'Pré-traitement'!$B$7 -> 0 | G152: =55-((F152*1000)/(1.163*'Pré-traitement'!$P$15)) + F152/'Pré-traitement'!$Q$15 -> 55 | H152: 0 | I152: 0 | J152: 0
A153: Janvier | B153: 7 | C153: 148 | D153: =Bdd_Text!A153 -> 9.51 | E153: =Puis_ECS!Q153 -> 0 | F153: =E153*'Pré-traitement'!$B$7 -> 0 | G153: =55-((F153*1000)/(1.163*'Pré-traitement'!$P$15)) + F153/'Pré-traitement'!$Q$15 -> 55 | H153: 0 | I153: 0 | J153: 0
A154: Janvier | B154: 7 | C154: 149 | D154: =Bdd_Text!A154 -> 10.51 | E154: =Puis_ECS!Q154 -> 0 | F154: =E154*'Pré-traitement'!$B$7 -> 0 | G154: =55-((F154*1000)/(1.163*'Pré-traitement'!$P$15)) + F154/'Pré-traitement'!$Q$15 -> 55 | H154: 0 | I154: 0 | J154: 0
A155: Janvier | B155: 7 | C155: 150 | D155: =Bdd_Text!A155 -> 12.21 | E155: =Puis_ECS!Q155 -> 0 | F155: =E155*'Pré-traitement'!$B$7 -> 0 | G155: =55-((F155*1000)/(1.163*'Pré-traitement'!$P$15)) + F155/'Pré-traitement'!$Q$15 -> 55 | H155: 0 | I155: 0 | J155: 0
A156: Janvier | B156: 7 | C156: 151 | D156: =Bdd_Text!A156 -> 10.01 | E156: =Puis_ECS!Q156 -> 0 | F156: =E156*'Pré-traitement'!$B$7 -> 0 | G156: =55-((F156*1000)/(1.163*'Pré-traitement'!$P$15)) + F156/'Pré-traitement'!$Q$15 -> 55 | H156: 0 | I156: 0 | J156: 0
A157: Janvier | B157: 7 | C157: 152 | D157: =Bdd_Text!A157 -> 8.81 | E157: =Puis_ECS!Q157 -> 0.006219046815 | F157: =E157*'Pré-traitement'!$B$7 -> 2.835885347 | G157: =55-((F157*1000)/(1.163*'Pré-traitement'!$P$15)) + F157/'Pré-traitement'!$Q$15 -> 38.74621335 | H157: 2.835885286 | I157: 3.166614056 | J157: 0.8955575824
A158: Janvier | B158: 7 | C158: 153 | D158: =Bdd_Text!A158 -> 7.81 | E158: =Puis_ECS!Q158 -> 0.006441155629 | F158: =E158*'Pré-traitement'!$B$7 -> 2.937166967 | G158: =55-((F158*1000)/(1.163*'Pré-traitement'!$P$15)) + F158/'Pré-traitement'!$Q$15 -> 38.16572097 | H158: 2.937166929 | I158: 3.139938354 | J158: 0.9354218245
A159: Janvier | B159: 7 | C159: 154 | D159: =Bdd_Text!A159 -> 8.31 | E159: =Puis_ECS!Q159 -> 0 | F159: =E159*'Pré-traitement'!$B$7 -> 0 | G159: =55-((F159*1000)/(1.163*'Pré-traitement'!$P$15)) + F159/'Pré-traitement'!$Q$15 -> 55 | H159: 0 | I159: 0 | J159: 0
A160: Janvier | B160: 7 | C160: 155 | D160: =Bdd_Text!A160 -> 7.51 | E160: =Puis_ECS!Q160 -> 0 | F160: =E160*'Pré-traitement'!$B$7 -> 0 | G160: =55-((F160*1000)/(1.163*'Pré-traitement'!$P$15)) + F160/'Pré-traitement'!$Q$15 -> 55 | H160: 0 | I160: 0 | J160: 0
A161: Janvier | B161: 7 | C161: 156 | D161: =Bdd_Text!A161 -> 8.41 | E161: =Puis_ECS!Q161 -> 0 | F161: =E161*'Pré-traitement'!$B$7 -> 0 | G161: =55-((F161*1000)/(1.163*'Pré-traitement'!$P$15)) + F161/'Pré-traitement'!$Q$15 -> 55 | H161: 0 | I161: 0 | J161: 0
A162: Janvier | B162: 7 | C162: 157 | D162: =Bdd_Text!A162 -> 10.51 | E162: =Puis_ECS!Q162 -> 0 | F162: =E162*'Pré-traitement'!$B$7 -> 0 | G162: =55-((F162*1000)/(1.163*'Pré-traitement'!$P$15)) + F162/'Pré-traitement'!$Q$15 -> 55 | H162: 0 | I162: 0 | J162: 0
A163: Janvier | B163: 7 | C163: 158 | D163: =Bdd_Text!A163 -> 11.41 | E163: =Puis_ECS!Q163 -> 0 | F163: =E163*'Pré-traitement'!$B$7 -> 0 | G163: =55-((F163*1000)/(1.163*'Pré-traitement'!$P$15)) + F163/'Pré-traitement'!$Q$15 -> 55 | H163: 0 | I163: 0 | J163: 0
A164: Janvier | B164: 7 | C164: 159 | D164: =Bdd_Text!A164 -> 11.11 | E164: =Puis_ECS!Q164 -> 0 | F164: =E164*'Pré-traitement'!$B$7 -> 0 | G164: =55-((F164*1000)/(1.163*'Pré-traitement'!$P$15)) + F164/'Pré-traitement'!$Q$15 -> 55 | H164: 0 | I164: 0 | J164: 0
A165: Janvier | B165: 7 | C165: 160 | D165: =Bdd_Text!A165 -> 10.51 | E165: =Puis_ECS!Q165 -> 0 | F165: =E165*'Pré-traitement'!$B$7 -> 0 | G165: =55-((F165*1000)/(1.163*'Pré-traitement'!$P$15)) + F165/'Pré-traitement'!$Q$15 -> 55 | H165: 0 | I165: 0 | J165: 0
A166: Janvier | B166: 7 | C166: 161 | D166: =Bdd_Text!A166 -> 10.91 | E166: =Puis_ECS!Q166 -> 0 | F166: =E166*'Pré-traitement'!$B$7 -> 0 | G166: =55-((F166*1000)/(1.163*'Pré-traitement'!$P$15)) + F166/'Pré-traitement'!$Q$15 -> 55 | H166: 0 | I166: 0 | J166: 0
A167: Janvier | B167: 7 | C167: 162 | D167: =Bdd_Text!A167 -> 8.91 | E167: =Puis_ECS!Q167 -> 0 | F167: =E167*'Pré-traitement'!$B$7 -> 0 | G167: =55-((F167*1000)/(1.163*'Pré-traitement'!$P$15)) + F167/'Pré-traitement'!$Q$15 -> 55 | H167: 0 | I167: 0 | J167: 0
A168: Janvier | B168: 7 | C168: 163 | D168: =Bdd_Text!A168 -> 8.71 | E168: =Puis_ECS!Q168 -> 0.006447867497 | F168: =E168*'Pré-traitement'!$B$7 -> 2.940227579 | G168: =55-((F168*1000)/(1.163*'Pré-traitement'!$P$15)) + F168/'Pré-traitement'!$Q$15 -> 38.14817917 | H168: 2.940227509 | I168: 3.194222212 | J168: 0.9204831123
A169: Janvier | B169: 7 | C169: 164 | D169: =Bdd_Text!A169 -> 8.01 | E169: =Puis_ECS!Q169 -> 0 | F169: =E169*'Pré-traitement'!$B$7 -> 0 | G169: =55-((F169*1000)/(1.163*'Pré-traitement'!$P$15)) + F169/'Pré-traitement'!$Q$15 -> 55 | H169: 0 | I169: 0 | J169: 0
A170: Janvier | B170: 7 | C170: 165 | D170: =Bdd_Text!A170 -> 7.81 | E170: =Puis_ECS!Q170 -> 0.00622768738 | F170: =E170*'Pré-traitement'!$B$7 -> 2.839825445 | G170: =55-((F170*1000)/(1.163*'Pré-traitement'!$P$15)) + F170/'Pré-traitement'!$Q$15 -> 38.72363081 | H170: 2.839825392 | I170: 3.109236002 | J170: 0.9133514762
A171: Janvier | B171: 7 | C171: 166 | D171: =Bdd_Text!A171 -> 7.61 | E171: =Puis_ECS!Q171 -> 0.006450104786 | F171: =E171*'Pré-traitement'!$B$7 -> 2.941247782 | G171: =55-((F171*1000)/(1.163*'Pré-traitement'!$P$15)) + F171/'Pré-traitement'!$Q$15 -> 38.14233191 | H171: 2.941247702 | I171: 3.129375458 | J171: 0.9398832917
A172: Janvier | B172: 7 | C172: 167 | D172: =Bdd_Text!A172 -> 7.41 | E172: =Puis_ECS!Q172 -> 0 | F172: =E172*'Pré-traitement'!$B$7 -> 0 | G172: =55-((F172*1000)/(1.163*'Pré-traitement'!$P$15)) + F172/'Pré-traitement'!$Q$15 -> 55 | H172: 0 | I172: 0 | J172: 0
A173: Janvier | B173: 7 | C173: 168 | D173: =Bdd_Text!A173 -> 7.41 | E173: =Puis_ECS!Q173 -> 0 | F173: =E173*'Pré-traitement'!$B$7 -> 0 | G173: =55-((F173*1000)/(1.163*'Pré-traitement'!$P$15)) + F173/'Pré-traitement'!$Q$15 -> 55 | H173: 0 | I173: 0 | J173: 0
A174: Janvier | B174: 8 | C174: 169 | D174: =Bdd_Text!A174 -> 7.11 | E174: =Puis_ECS!Q174 -> 0 | F174: =E174*'Pré-traitement'!$B$7 -> 0 | G174: =55-((F174*1000)/(1.163*'Pré-traitement'!$P$15)) + F174/'Pré-traitement'!$Q$15 -> 55 | H174: 0 | I174: 0 | J174: 0
A175: Janvier | B175: 8 | C175: 170 | D175: =Bdd_Text!A175 -> 6.81 | E175: =Puis_ECS!Q175 -> 0 | F175: =E175*'Pré-traitement'!$B$7 -> 0 | G175: =55-((F175*1000)/(1.163*'Pré-traitement'!$P$15)) + F175/'Pré-traitement'!$Q$15 -> 55 | H175: 0 | I175: 0 | J175: 0
A176: Janvier | B176: 8 | C176: 171 | D176: =Bdd_Text!A176 -> 6.71 | E176: =Puis_ECS!Q176 -> 0 | F176: =E176*'Pré-traitement'!$B$7 -> 0 | G176: =55-((F176*1000)/(1.163*'Pré-traitement'!$P$15)) + F176/'Pré-traitement'!$Q$15 -> 55 | H176: 0 | I176: 0 | J176: 0
A177: Janvier | B177: 8 | C177: 172 | D177: =Bdd_Text!A177 -> 6.41 | E177: =Puis_ECS!Q177 -> 0 | F177: =E177*'Pré-traitement'!$B$7 -> 0 | G177: =55-((F177*1000)/(1.163*'Pré-traitement'!$P$15)) + F177/'Pré-traitement'!$Q$15 -> 55 | H177: 0 | I177: 0 | J177: 0
A178: Janvier | B178: 8 | C178: 173 | D178: =Bdd_Text!A178 -> 6.51 | E178: =Puis_ECS!Q178 -> 0 | F178: =E178*'Pré-traitement'!$B$7 -> 0 | G178: =55-((F178*1000)/(1.163*'Pré-traitement'!$P$15)) + F178/'Pré-traitement'!$Q$15 -> 55 | H178: 0 | I178: 0 | J178: 0
A179: Janvier | B179: 8 | C179: 174 | D179: =Bdd_Text!A179 -> 6.31 | E179: =Puis_ECS!Q179 -> 0 | F179: =E179*'Pré-traitement'!$B$7 -> 0 | G179: =55-((F179*1000)/(1.163*'Pré-traitement'!$P$15)) + F179/'Pré-traitement'!$Q$15 -> 55 | H179: 0 | I179: 0 | J179: 0
A180: Janvier | B180: 8 | C180: 175 | D180: =Bdd_Text!A180 -> 6.41 | E180: =Puis_ECS!Q180 -> 0 | F180: =E180*'Pré-traitement'!$B$7 -> 0 | G180: =55-((F180*1000)/(1.163*'Pré-traitement'!$P$15)) + F180/'Pré-traitement'!$Q$15 -> 55 | H180: 0 | I180: 0 | J180: 0
A181: Janvier | B181: 8 | C181: 176 | D181: =Bdd_Text!A181 -> 6.61 | E181: =Puis_ECS!Q181 -> 0.006238488086 | F181: =E181*'Pré-traitement'!$B$7 -> 2.844750567 | G181: =55-((F181*1000)/(1.163*'Pré-traitement'!$P$15)) + F181/'Pré-traitement'!$Q$15 -> 38.69540263 | H181: 2.844750643 | I181: 3.015562773 | J181: 0.9433564544
A182: Janvier | B182: 8 | C182: 177 | D182: =Bdd_Text!A182 -> 6.81 | E182: =Puis_ECS!Q182 -> 0.006463528521 | F182: =E182*'Pré-traitement'!$B$7 -> 2.947369006 | G182: =55-((F182*1000)/(1.163*'Pré-traitement'!$P$15)) + F182/'Pré-traitement'!$Q$15 -> 38.10724831 | H182: 2.947369099 | I182: 3.071652412 | J182: 0.959538579
A183: Janvier | B183: 8 | C183: 178 | D183: =Bdd_Text!A183 -> 6.81 | E183: =Puis_ECS!Q183 -> 0 | F183: =E183*'Pré-traitement'!$B$7 -> 0 | G183: =55-((F183*1000)/(1.163*'Pré-traitement'!$P$15)) + F183/'Pré-traitement'!$Q$15 -> 55 | H183: 0 | I183: 0 | J183: 0
A184: Janvier | B184: 8 | C184: 179 | D184: =Bdd_Text!A184 -> 6.71 | E184: =Puis_ECS!Q184 -> 0 | F184: =E184*'Pré-traitement'!$B$7 -> 0 | G184: =55-((F184*1000)/(1.163*'Pré-traitement'!$P$15)) + F184/'Pré-traitement'!$Q$15 -> 55 | H184: 0 | I184: 0 | J184: 0
A185: Janvier | B185: 8 | C185: 180 | D185: =Bdd_Text!A185 -> 7.01 | E185: =Puis_ECS!Q185 -> 0 | F185: =E185*'Pré-traitement'!$B$7 -> 0 | G185: =55-((F185*1000)/(1.163*'Pré-traitement'!$P$15)) + F185/'Pré-traitement'!$Q$15 -> 55 | H185: 0 | I185: 0 | J185: 0
A186: Janvier | B186: 8 | C186: 181 | D186: =Bdd_Text!A186 -> 7.41 | E186: =Puis_ECS!Q186 -> 0 | F186: =E186*'Pré-traitement'!$B$7 -> 0 | G186: =55-((F186*1000)/(1.163*'Pré-traitement'!$P$15)) + F186/'Pré-traitement'!$Q$15 -> 55 | H186: 0 | I186: 0 | J186: 0
A187: Janvier | B187: 8 | C187: 182 | D187: =Bdd_Text!A187 -> 8.91 | E187: =Puis_ECS!Q187 -> 0 | F187: =E187*'Pré-traitement'!$B$7 -> 0 | G187: =55-((F187*1000)/(1.163*'Pré-traitement'!$P$15)) + F187/'Pré-traitement'!$Q$15 -> 55 | H187: 0 | I187: 0 | J187: 0
A188: Janvier | B188: 8 | C188: 183 | D188: =Bdd_Text!A188 -> 9.41 | E188: =Puis_ECS!Q188 -> 0 | F188: =E188*'Pré-traitement'!$B$7 -> 0 | G188: =55-((F188*1000)/(1.163*'Pré-traitement'!$P$15)) + F188/'Pré-traitement'!$Q$15 -> 55 | H188: 0 | I188: 0 | J188: 0
A189: Janvier | B189: 8 | C189: 184 | D189: =Bdd_Text!A189 -> 9.11 | E189: =Puis_ECS!Q189 -> 0 | F189: =E189*'Pré-traitement'!$B$7 -> 0 | G189: =55-((F189*1000)/(1.163*'Pré-traitement'!$P$15)) + F189/'Pré-traitement'!$Q$15 -> 55 | H189: 0 | I189: 0 | J189: 0
A190: Janvier | B190: 8 | C190: 185 | D190: =Bdd_Text!A190 -> 9.11 | E190: =Puis_ECS!Q190 -> 0 | F190: =E190*'Pré-traitement'!$B$7 -> 0 | G190: =55-((F190*1000)/(1.163*'Pré-traitement'!$P$15)) + F190/'Pré-traitement'!$Q$15 -> 55 | H190: 0 | I190: 0 | J190: 0
A191: Janvier | B191: 8 | C191: 186 | D191: =Bdd_Text!A191 -> 8.91 | E191: =Puis_ECS!Q191 -> 0 | F191: =E191*'Pré-traitement'!$B$7 -> 0 | G191: =55-((F191*1000)/(1.163*'Pré-traitement'!$P$15)) + F191/'Pré-traitement'!$Q$15 -> 55 | H191: 0 | I191: 0 | J191: 0
A192: Janvier | B192: 8 | C192: 187 | D192: =Bdd_Text!A192 -> 8.81 | E192: =Puis_ECS!Q192 -> 0.0064680031 | F192: =E192*'Pré-traitement'!$B$7 -> 2.949409414 | G192: =55-((F192*1000)/(1.163*'Pré-traitement'!$P$15)) + F192/'Pré-traitement'!$Q$15 -> 38.09555378 | H192: 2.949409485 | I192: 3.203097105 | J192: 0.9207992554
A193: Janvier | B193: 8 | C193: 188 | D193: =Bdd_Text!A193 -> 9.11 | E193: =Puis_ECS!Q193 -> 0 | F193: =E193*'Pré-traitement'!$B$7 -> 0 | G193: =55-((F193*1000)/(1.163*'Pré-traitement'!$P$15)) + F193/'Pré-traitement'!$Q$15 -> 55 | H193: 0 | I193: 0 | J193: 0
A194: Janvier | B194: 8 | C194: 189 | D194: =Bdd_Text!A194 -> 9.01 | E194: =Puis_ECS!Q194 -> 0.00624496851 | F194: =E194*'Pré-traitement'!$B$7 -> 2.847705641 | G194: =55-((F194*1000)/(1.163*'Pré-traitement'!$P$15)) + F194/'Pré-traitement'!$Q$15 -> 38.67846572 | H194: 2.847705603 | I194: 3.182150602 | J194: 0.8948996663
A195: Janvier | B195: 8 | C195: 190 | D195: =Bdd_Text!A195 -> 8.31 | E195: =Puis_ECS!Q195 -> 0.0064680031 | F195: =E195*'Pré-traitement'!$B$7 -> 2.949409414 | G195: =55-((F195*1000)/(1.163*'Pré-traitement'!$P$15)) + F195/'Pré-traitement'!$Q$15 -> 38.09555378 | H195: 2.949409485 | I195: 3.173449039 | J195: 0.9294018745
A196: Janvier | B196: 8 | C196: 191 | D196: =Bdd_Text!A196 -> 8.21 | E196: =Puis_ECS!Q196 -> 0 | F196: =E196*'Pré-traitement'!$B$7 -> 0 | G196: =55-((F196*1000)/(1.163*'Pré-traitement'!$P$15)) + F196/'Pré-traitement'!$Q$15 -> 55 | H196: 0 | I196: 0 | J196: 0
A197: Janvier | B197: 8 | C197: 192 | D197: =Bdd_Text!A197 -> 8.21 | E197: =Puis_ECS!Q197 -> 0 | F197: =E197*'Pré-traitement'!$B$7 -> 0 | G197: =55-((F197*1000)/(1.163*'Pré-traitement'!$P$15)) + F197/'Pré-traitement'!$Q$15 -> 55 | H197: 0 | I197: 0 | J197: 0
A198: Janvier | B198: 9 | C198: 193 | D198: =Bdd_Text!A198 -> 8.71 | E198: =Puis_ECS!Q198 -> 0 | F198: =E198*'Pré-traitement'!$B$7 -> 0 | G198: =55-((F198*1000)/(1.163*'Pré-traitement'!$P$15)) + F198/'Pré-traitement'!$Q$15 -> 55 | H198: 0 | I198: 0 | J198: 0
A199: Janvier | B199: 9 | C199: 194 | D199: =Bdd_Text!A199 -> 8.91 | E199: =Puis_ECS!Q199 -> 0 | F199: =E199*'Pré-traitement'!$B$7 -> 0 | G199: =55-((F199*1000)/(1.163*'Pré-traitement'!$P$15)) + F199/'Pré-traitement'!$Q$15 -> 55 | H199: 0 | I199: 0 | J199: 0
A200: Janvier | B200: 9 | C200: 195 | D200: =Bdd_Text!A200 -> 8.81 | E200: =Puis_ECS!Q200 -> 0 | F200: =E200*'Pré-traitement'!$B$7 -> 0 | G200: =55-((F200*1000)/(1.163*'Pré-traitement'!$P$15)) + F200/'Pré-traitement'!$Q$15 -> 55 | H200: 0 | I200: 0 | J200: 0
A201: Janvier | B201: 9 | C201: 196 | D201: =Bdd_Text!A201 -> 9.01 | E201: =Puis_ECS!Q201 -> 0 | F201: =E201*'Pré-traitement'!$B$7 -> 0 | G201: =55-((F201*1000)/(1.163*'Pré-traitement'!$P$15)) + F201/'Pré-traitement'!$Q$15 -> 55 | H201: 0 | I201: 0 | J201: 0
A202: Janvier | B202: 9 | C202: 197 | D202: =Bdd_Text!A202 -> 7.51 | E202: =Puis_ECS!Q202 -> 0 | F202: =E202*'Pré-traitement'!$B$7 -> 0 | G202: =55-((F202*1000)/(1.163*'Pré-traitement'!$P$15)) + F202/'Pré-traitement'!$Q$15 -> 55 | H202: 0 | I202: 0 | J202: 0
... 8563 more rows

Sheet Puis_ECS (hidden)
V3: Logements collectifs ou maisons individuelles ou accolées
A4: Mois | B4: Jour du mois | C4: Pas de temps | D4: mois | E4: semaine_mois | F4: jour_semaine | G4: heure_jour | H4: Theta_EFS | I4: Température ext | J4: Logements | M4: Bouclage | P4: Total
A5: - | B5: - | C5: - | D5: - | E5: - | F5: - | G5: - | H5: °C | I5: °C | J5: Clé horaire | K5: Clé semaine | L5: Besoin_Ecs | M5: Clé horaire | N5: Clé semaine | O5: Bouclage_ecs | P5: Besoins | Q5: Corr_Ecs+boucl | V5: Besoins d'ECS | W5: Clé de répartition horaire des besoins d'ECS (compris entre 0 et 1)
A6: Janvier | B6: 1 | C6: 1 | D6: 1 | E6: 1 | F6: 1 | G6: 1 | H6: =Bdd_Tefs!A6 -> 11.65 | I6: =Bdd_Text!E6 -> 1.25 | J6: =HLOOKUP($G6,$W$6:$AT$13,$F6+1,FALSE) -> 0 | K6: =VLOOKUP($E6,$V$16:$AH$21,$D6+1,FALSE) -> 1.05 | L6: =(40-$H6)*J6*K6 -> 0 | M6: =HLOOKUP($G6,$W$26:$AT$33,$F6+1,FALSE) -> 0.005952380952 | N6: =VLOOKUP($E6,$V$36:$AH$41,$D6+1,FALSE) -> 1 | O6: =IF('Saisies-Résultats'!$D$21="Non",0,'Saisies-Résultats'!$D$24*('Saisies-Résultats'!$D$22*(52.5-20)+'Saisies-Résultats'!$D$23*(52.5-(20+'Saisies-Résultats'!$D$25*(Puis_ECS!I6-20)))))*M6*N6 -> 0 | P6: =L6+O6 -> 0 | Q6: =IF(P6=0,0,P6/SUM($P$6:$P$749)) -> 0 | V6: jour/semaine | W6: 1 | X6: =W6+1 -> 2 | Y6: 3 | Z6: 4 | AA6: 5 | AB6: 6 | AC6: 7 | AD6: 8 | AE6: 9 | AF6: 10 | AG6: 11 | AH6: 12 | AI6: 13 | AJ6: 14 | AK6: 15 | AL6: 16 | AM6: 17 | AN6: 18 | AO6: 19 | AP6: 20 | AQ6: 21 | AR6: 22 | AS6: 23 | AT6: 24
A7: Janvier | B7: 1 | C7: 2 | D7: 1 | E7: =IF(D7>D6,1,IF(AND(F6=7,F7=1),E6+1,E6)) -> 1 | F7: =IF(D7>D6,1,IF(IF(G7>G6,F6,F6+1)>7,1,IF(G7>G6,F6,F6+1))) -> 1 | G7: 2 | H7: =Bdd_Tefs!A7 -> 11.63 | I7: =Bdd_Text!E7 -> 1.26 | J7: 0 | K7: 1.05 | L7: 0 | M7: 0.005952380952 | N7: 1 | O7: =IF('Saisies-Résultats'!$D$21="Non",0,'Saisies-Résultats'!$D$24*('Saisies-Résultats'!$D$22*(52.5-20)+'Saisies-Résultats'!$D$23*(52.5-(20+'Saisies-Résultats'!$D$25*(Puis_ECS!I7-20)))))*M7*N7 -> 0 | P7: 0 | Q7: =IF(P7=0,0,P7/SUM($P$6:$P$749)) -> 0 | V7: 1 | W7: 0 | X7: 0 | Y7: 0 | Z7: 0 | AA7: 0 | AB7: 0 | AC7: 0 | AD7: 0.028 | AE7: 0.029 | AF7: 0 | AG7: 0 | AH7: 0 | AI7: 0 | AJ7: 0 | AK7: 0 | AL7: 0 | AM7: 0 | AN7: 0 | AO7: 0.029 | AP7: 0 | AQ7: 0.028 | AR7: 0.029 | AS7: 0 | AT7: 0
A8: Janvier | B8: 1 | C8: 3 | D8: 1 | E8: 1 | F8: 1 | G8: 3 | H8: =Bdd_Tefs!A8 -> 11.6 | I8: =Bdd_Text!E8 -> 1.48 | J8: 0 | K8: 1.05 | L8: 0 | M8: 0.005952380952 | N8: 1 | O8: =IF('Saisies-Résultats'!$D$21="Non",0,'Saisies-Résultats'!$D$24*('Saisies-Résultats'!$D$22*(52.5-20)+'Saisies-Résultats'!$D$23*(52.5-(20+'Saisies-Résultats'!$D$25*(Puis_ECS!I8-20)))))*M8*N8 -> 0 | P8: 0 | Q8: =IF(P8=0,0,P8/SUM($P$6:$P$749)) -> 0 | V8: =V7+1 -> 2 | W8: 0 | X8: 0 | Y8: 0 | Z8: 0 | AA8: 0 | AB8: 0 | AC8: 0 | AD8: 0.028 | AE8: 0.029 | AF8: 0 | AG8: 0 | AH8: 0 | AI8: 0 | AJ8: 0 | AK8: 0 | AL8: 0 | AM8: 0 | AN8: 0 | AO8: 0.029 | AP8: 0 | AQ8: 0.028 | AR8: 0.029 | AS8: 0 | AT8: 0
A9: Janvier | B9: 1 | C9: 4 | D9: 1 | E9: 1 | F9: 1 | G9: 4 | H9: =Bdd_Tefs!A9 -> 11.58 | I9: =Bdd_Text!E9 -> 1.35 | J9: 0 | K9: 1.05 | L9: 0 | M9: 0.005952380952 | N9: 1 | O9: =IF('Saisies-Résultats'!$D$21="Non",0,'Saisies-Résultats'!$D$24*('Saisies-Résultats'!$D$22*(52.5-20)+'Saisies-Résultats'!$D$23*(52.5-(20+'Saisies-Résultats'!$D$25*(Puis_ECS!I9-20)))))*M9*N9 -> 0 | P9: 0 | Q9: 0 | V9: 3 | W9: 0 | X9: 0 | Y9: 0 | Z9: 0 | AA9: 0 | AB9: 0 | AC9: 0 | AD9: 0.028 | AE9: 0.029 | AF9: 0 | AG9: 0 | AH9: 0 | AI9: 0 | AJ9: 0 | AK9: 0 | AL9: 0 | AM9: 0 | AN9: 0 | AO9: 0.029 | AP9: 0 | AQ9: 0.028 | AR9: 0.029 | AS9: 0 | AT9: 0
A10: Janvier | B10: 1 | C10: 5 | D10: 1 | E10: 1 | F10: 1 | G10: 5 | H10: =Bdd_Tefs!A10 -> 11.56 | I10: =Bdd_Text!E10 -> 1.46 | J10: 0 | K10: 1.05 | L10: 0 | M10: 0.005952380952 | N10: 1 | O10: =IF('Saisies-Résultats'!$D$21="Non",0,'Saisies-Résultats'!$D$24*('Saisies-Résultats'!$D$22*(52.5-20)+'Saisies-Résultats'!$D$23*(52.5-(20+'Saisies-Résultats'!$D$25*(Puis_ECS!I10-20)))))*M10*N10 -> 0 | P10: 0 | Q10: 0 | V10: 4 | W10: 0 | X10: 0 | Y10: 0 | Z10: 0 | AA10: 0 | AB10: 0 | AC10: 0 | AD10: 0.028 | AE10: 0.029 | AF10: 0 | AG10: 0 | AH10: 0 | AI10: 0 | AJ10: 0 | AK10: 0 | AL10: 0 | AM10: 0 | AN10: 0 | AO10: 0.029 | AP10: 0 | AQ10: 0.028 | AR10: 0.029 | AS10: 0 | AT10: 0
A11: Janvier | B11: 1 | C11: 6 | D11: 1 | E11: 1 | F11: 1 | G11: 6 | H11: =Bdd_Tefs!A11 -> 11.53 | I11: =Bdd_Text!E11 -> 2.67 | J11: 0 | K11: 1.05 | L11: 0 | M11: 0.005952380952 | N11: 1 | O11: =IF('Saisies-Résultats'!$D$21="Non",0,'Saisies-Résultats'!$D$24*('Saisies-Résultats'!$D$22*(52.5-20)+'Saisies-Résultats'!$D$23*(52.5-(20+'Saisies-Résultats'!$D$25*(Puis_ECS!I11-20)))))*M11*N11 -> 0 | P11: 0 | Q11: 0 | V11: 5 | W11: 0 | X11: 0 | Y11: 0 | Z11: 0 | AA11: 0 | AB11: 0 | AC11: 0 | AD11: 0.028 | AE11: 0.029 | AF11: 0 | AG11: 0 | AH11: 0 | AI11: 0 | AJ11: 0 | AK11: 0 | AL11: 0 | AM11: 0 | AN11: 0 | AO11: 0.029 | AP11: 0 | AQ11: 0.028 | AR11: 0.029 | AS11: 0 | AT11: 0
A12: Janvier | B12: 1 | C12: 7 | D12: 1 | E12: 1 | F12: 1 | G12: 7 | H12: =Bdd_Tefs!A12 -> 11.51 | I12: =Bdd_Text!E12 -> 4.11 | J12: 0 | K12: 1.05 | L12: 0 | M12: 0.005952380952 | N12: 1 | O12: =IF('Saisies-Résultats'!$D$21="Non",0,'Saisies-Résultats'!$D$24*('Saisies-Résultats'!$D$22*(52.5-20)+'Saisies-Résultats'!$D$23*(52.5-(20+'Saisies-Résultats'!$D$25*(Puis_ECS!I12-20)))))*M12*N12 -> 0 | P12: 0 | Q12: 0 | V12: 6 | W12: 0 | X12: 0 | Y12: 0 | Z12: 0 | AA12: 0 | AB12: 0 | AC12: 0 | AD12: 0.028 | AE12: 0.029 | AF12: 0 | AG12: 0 | AH12: 0 | AI12: 0 | AJ12: 0 | AK12: 0 | AL12: 0 | AM12: 0 | AN12: 0 | AO12: 0.029 | AP12: 0 | AQ12: 0.028 | AR12: 0.029 | AS12: 0 | AT12: 0
A13: Janvier | B13: 1 | C13: 8 | D13: 1 | E13: 1 | F13: 1 | G13: 8 | H13: =Bdd_Tefs!A13 -> 11.49 | I13: =Bdd_Text!E13 -> 4.78 | J13: 0.028 | K13: 1.05 | L13: 0.838194 | M13: 0.005952380952 | N13: 1 | O13: =IF('Saisies-Résultats'!$D$21="Non",0,'Saisies-Résultats'!$D$24*('Saisies-Résultats'!$D$22*(52.5-20)+'Saisies-Résultats'!$D$23*(52.5-(20+'Saisies-Résultats'!$D$25*(Puis_ECS!I13-20)))))*M13*N13 -> 0 | P13: 0.838194 | Q13: 0.006158562858 | V13: 7 | W13: 0 | X13: 0 | Y13: 0 | Z13: 0 | AA13: 0 | AB13: 0 | AC13: 0 | AD13: 0.028 | AE13: 0.029 | AF13: 0 | AG13: 0 | AH13: 0 | AI13: 0 | AJ13: 0 | AK13: 0 | AL13: 0 | AM13: 0 | AN13: 0 | AO13: 0.029 | AP13: 0 | AQ13: 0.028 | AR13: 0.029 | AS13: 0 | AT13: 0
A14: Janvier | B14: 1 | C14: 9 | D14: 1 | E14: 1 | F14: 1 | G14: 9 | H14: =Bdd_Tefs!A14 -> 11.47 | I14: =Bdd_Text!E14 -> 4.76 | J14: 0.029 | K14: 1.05 | L14: 0.8687385 | M14: 0.005952380952 | N14: 1 | O14: =IF('Saisies-Résultats'!$D$21="Non",0,'Saisies-Résultats'!$D$24*('Saisies-Résultats'!$D$22*(52.5-20)+'Saisies-Résultats'!$D$23*(52.5-(20+'Saisies-Résultats'!$D$25*(Puis_ECS!I14-20)))))*M14*N14 -> 0 | P14: 0.8687385 | Q14: 0.00638298611
A15: Janvier | B15: 1 | C15: 10 | D15: 1 | E15: 1 | F15: 1 | G15: 10 | H15: =Bdd_Tefs!A15 -> 11.45 | I15: =Bdd_Text!E15 -> 4.36 | J15: 0 | K15: 1.05 | L15: 0 | M15: 0.005952380952 | N15: 1 | O15: =IF('Saisies-Résultats'!$D$21="Non",0,'Saisies-Résultats'!$D$24*('Saisies-Résultats'!$D$22*(52.5-20)+'Saisies-Résultats'!$D$23*(52.5-(20+'Saisies-Résultats'!$D$25*(Puis_ECS!I15-20)))))*M15*N15 -> 0 | P15: 0 | Q15: 0 | W15: facteur correctif de la semaine
A16: Janvier | B16: 1 | C16: 11 | D16: 1 | E16: 1 | F16: 1 | G16: 11 | H16: =Bdd_Tefs!A16 -> 11.43 | I16: =Bdd_Text!E16 -> 5.06 | J16: 0 | K16: 1.05 | L16: 0 | M16: 0.005952380952 | N16: 1 | O16: =IF('Saisies-Résultats'!$D$21="Non",0,'Saisies-Résultats'!$D$24*('Saisies-Résultats'!$D$22*(52.5-20)+'Saisies-Résultats'!$D$23*(52.5-(20+'Saisies-Résultats'!$D$25*(Puis_ECS!I16-20)))))*M16*N16 -> 0 | P16: 0 | Q16: 0 | V16: semaine/mois | W16: 1 | X16: =W16+1 -> 2 | Y16: 3 | Z16: 4 | AA16: 5 | AB16: 6 | AC16: 7 | AD16: 8 | AE16: 9 | AF16: 10 | AG16: 11 | AH16: 12
A17: Janvier | B17: 1 | C17: 12 | D17: 1 | E17: 1 | F17: 1 | G17: 12 | H17: =Bdd_Tefs!A17 -> 11.42 | I17: =Bdd_Text!E17 -> 5.36 | J17: 0 | K17: 1.05 | L17: 0 | M17: 0.005952380952 | N17: 1 | O17: =IF('Saisies-Résultats'!$D$21="Non",0,'Saisies-Résultats'!$D$24*('Saisies-Résultats'!$D$22*(52.5-20)+'Saisies-Résultats'!$D$23*(52.5-(20+'Saisies-Résultats'!$D$25*(Puis_ECS!I17-20)))))*M17*N17 -> 0 | P17: 0 | Q17: 0 | V17: 1 | W17: 1.05 | X17: 1.05 | Y17: 1.05 | Z17: 0.95 | AA17: 0.95 | AB17: 0.95 | AC17: 0.95 | AD17: 0 | AE17: 0.95 | AF17: 1.05 | AG17: 1.05 | AH17: 1.05
A18: Janvier | B18: 1 | C18: 13 | D18: 1 | E18: 1 | F18: 1 | G18: 13 | H18: =Bdd_Tefs!A18 -> 11.4 | I18: =Bdd_Text!E18 -> 5.66 | J18: 0 | K18: 1.05 | L18: 0 | M18: 0.005952380952 | N18: 1 | O18: =IF('Saisies-Résultats'!$D$21="Non",0,'Saisies-Résultats'!$D$24*('Saisies-Résultats'!$D$22*(52.5-20)+'Saisies-Résultats'!$D$23*(52.5-(20+'Saisies-Résultats'!$D$25*(Puis_ECS!I18-20)))))*M18*N18 -> 0 | P18: 0 | Q18: 0 | V18: 2 | W18: 1.05 | X18: 1.05 | Y18: 1.05 | Z18: 0.95 | AA18: 0.95 | AB18: 0.95 | AC18: 0.95 | AD18: 0 | AE18: 0.95 | AF18: 1.05 | AG18: 1.05 | AH18: 1.05
A19: Janvier | B19: 1 | C19: 14 | D19: 1 | E19: 1 | F19: 1 | G19: 14 | H19: =Bdd_Tefs!A19 -> 11.39 | I19: =Bdd_Text!E19 -> 6.76 | J19: 0 | K19: 1.05 | L19: 0 | M19: 0.005952380952 | N19: 1 | O19: =IF('Saisies-Résultats'!$D$21="Non",0,'Saisies-Résultats'!$D$24*('Saisies-Résultats'!$D$22*(52.5-20)+'Saisies-Résultats'!$D$23*(52.5-(20+'Saisies-Résultats'!$D$25*(Puis_ECS!I19-20)))))*M19*N19 -> 0 | P19: 0 | Q19: 0 | V19: 3 | W19: 1.05 | X19: 1.05 | Y19: 1.05 | Z19: 0.95 | AA19: 0.95 | AB19: 0.95 | AC19: 0.95 | AD19: 0.95 | AE19: 0.95 | AF19: 1.05 | AG19: 1.05 | AH19: 1.05
A20: Janvier | B20: 1 | C20: 15 | D20: 1 | E20: 1 | F20: 1 | G20: 15 | H20: =Bdd_Tefs!A20 -> 11.37 | I20: =Bdd_Text!E20 -> 7.46 | J20: 0 | K20: 1.05 | L20: 0 | M20: 0.005952380952 | N20: 1 | O20: =IF('Saisies-Résultats'!$D$21="Non",0,'Saisies-Résultats'!$D$24*('Saisies-Résultats'!$D$22*(52.5-20)+'Saisies-Résultats'!$D$23*(52.5-(20+'Saisies-Résultats'!$D$25*(Puis_ECS!I20-20)))))*M20*N20 -> 0 | P20: 0 | Q20: 0 | V20: 4 | W20: 1.05 | X20: 1.05 | Y20: 1.05 | Z20: 0.95 | AA20: 0.95 | AB20: 0.95 | AC20: 0.95 | AD20: 0.95 | AE20: 0.95 | AF20: 1.05 | AG20: 1.05 | AH20: 0
A21: Janvier | B21: 1 | C21: 16 | D21: 1 | E21: 1 | F21: 1 | G21: 16 | H21: =Bdd_Tefs!A21 -> 11.36 | I21: =Bdd_Text!E21 -> 7.96 | J21: 0 | K21: 1.05 | L21: 0 | M21: 0.005952380952 | N21: 1 | O21: =IF('Saisies-Résultats'!$D$21="Non",0,'Saisies-Résultats'!$D$24*('Saisies-Résultats'!$D$22*(52.5-20)+'Saisies-Résultats'!$D$23*(52.5-(20+'Saisies-Résultats'!$D$25*(Puis_ECS!I21-20)))))*M21*N21 -> 0 | P21: 0 | Q21: 0 | V21: 5 | W21: 1.05 | X21: 1.05 | Y21: 1.05 | Z21: 0.95 | AA21: 0.95 | AB21: 0.95 | AC21: 0.95 | AD21: 0.95 | AE21: 0.95 | AF21: 1.05 | AG21: 1.05 | AH21: 1.05
A22: Janvier | B22: 1 | C22: 17 | D22: 1 | E22: 1 | F22: 1 | G22: 17 | H22: =Bdd_Tefs!A22 -> 11.35 | I22: =Bdd_Text!E22 -> 7.86 | J22: 0 | K22: 1.05 | L22: 0 | M22: 0.005952380952 | N22: 1 | O22: =IF('Saisies-Résultats'!$D$21="Non",0,'Saisies-Résultats'!$D$24*('Saisies-Résultats'!$D$22*(52.5-20)+'Saisies-Résultats'!$D$23*(52.5-(20+'Saisies-Résultats'!$D$25*(Puis_ECS!I22-20)))))*M22*N22 -> 0 | P22: 0 | Q22: 0
A23: Janvier | B23: 1 | C23: 18 | D23: 1 | E23: 1 | F23: 1 | G23: 18 | H23: =Bdd_Tefs!A23 -> 11.34 | I23: =Bdd_Text!E23 -> 7.96 | J23: 0 | K23: 1.05 | L23: 0 | M23: 0.005952380952 | N23: 1 | O23: =IF('Saisies-Résultats'!$D$21="Non",0,'Saisies-Résultats'!$D$24*('Saisies-Résultats'!$D$22*(52.5-20)+'Saisies-Résultats'!$D$23*(52.5-(20+'Saisies-Résultats'!$D$25*(Puis_ECS!I23-20)))))*M23*N23 -> 0 | P23: 0 | Q23: 0
A24: Janvier | B24: 1 | C24: 19 | D24: 1 | E24: 1 | F24: 1 | G24: 19 | H24: =Bdd_Tefs!A24 -> 11.33 | I24: =Bdd_Text!E24 -> 8.26 | J24: 0.029 | K24: 1.05 | L24: 0.8730015 | M24: 0.005952380952 | N24: 1 | O24: =IF('Saisies-Résultats'!$D$21="Non",0,'Saisies-Résultats'!$D$24*('Saisies-Résultats'!$D$22*(52.5-20)+'Saisies-Résultats'!$D$23*(52.5-(20+'Saisies-Résultats'!$D$25*(Puis_ECS!I24-20)))))*M24*N24 -> 0 | P24: 0.8730015 | Q24: 0.006414308159
A25: Janvier | B25: 1 | C25: 20 | D25: 1 | E25: 1 | F25: 1 | G25: 20 | H25: =Bdd_Tefs!A25 -> 11.32 | I25: =Bdd_Text!E25 -> 8.76 | J25: 0 | K25: 1.05 | L25: 0 | M25: 0.005952380952 | N25: 1 | O25: =IF('Saisies-Résultats'!$D$21="Non",0,'Saisies-Résultats'!$D$24*('Saisies-Résultats'!$D$22*(52.5-20)+'Saisies-Résultats'!$D$23*(52.5-(20+'Saisies-Résultats'!$D$25*(Puis_ECS!I25-20)))))*M25*N25 -> 0 | P25: 0 | Q25: 0 | V25: Bouclage ECS | W25: Clé de répartition horaire des besoins d'ECS (compris entre 0 et 1)
A26: Janvier | B26: 1 | C26: 21 | D26: 1 | E26: 1 | F26: 1 | G26: 21 | H26: =Bdd_Tefs!A26 -> 11.32 | I26: =Bdd_Text!E26 -> 7.96 | J26: 0.028 | K26: 1.05 | L26: 0.843192 | M26: 0.005952380952 | N26: 1 | O26: =IF('Saisies-Résultats'!$D$21="Non",0,'Saisies-Résultats'!$D$24*('Saisies-Résultats'!$D$22*(52.5-20)+'Saisies-Résultats'!$D$23*(52.5-(20+'Saisies-Résultats'!$D$25*(Puis_ECS!I26-20)))))*M26*N26 -> 0 | P26: 0.843192 | Q26: 0.00619528526 | V26: jour/semaine | W26: 1 | X26: =W26+1 -> 2 | Y26: =X26+1 -> 3 | Z26: =Y26+1 -> 4 | AA26: =Z26+1 -> 5 | AB26: =AA26+1 -> 6 | AC26: =AB26+1 -> 7 | AD26: =AC26+1 -> 8 | AE26: =AD26+1 -> 9 | AF26: =AE26+1 -> 10 | AG26: =AF26+1 -> 11 | AH26: =AG26+1 -> 12 | AI26: =AH26+1 -> 13 | AJ26: =AI26+1 -> 14 | AK26: =AJ26+1 -> 15 | AL26: =AK26+1 -> 16 | AM26: =AL26+1 -> 17 | AN26: =AM26+1 -> 18 | AO26: =AN26+1 -> 19 | AP26: =AO26+1 -> 20 | AQ26: =AP26+1 -> 21 | AR26: =AQ26+1 -> 22 | AS26: =AR26+1 -> 23 | AT26: =AS26+1 -> 24
A27: Janvier | B27: 1 | C27: 22 | D27: 1 | E27: 1 | F27: 1 | G27: 22 | H27: =Bdd_Tefs!A27 -> 11.31 | I27: =Bdd_Text!E27 -> 7.56 | J27: 0.029 | K27: 1.05 | L27: 0.8736105 | M27: 0.005952380952 | N27: 1 | O27: =IF('Saisies-Résultats'!$D$21="Non",0,'Saisies-Résultats'!$D$24*('Saisies-Résultats'!$D$22*(52.5-20)+'Saisies-Résultats'!$D$23*(52.5-(20+'Saisies-Résultats'!$D$25*(Puis_ECS!I27-20)))))*M27*N27 -> 0 | P27: 0.8736105 | Q27: 0.006418782737 | V27: 1 | W27: =1/168 -> 0.005952380952 | X27: =1/168 -> 0.005952380952 | Y27: 0.005952380952 | Z27: 0.005952380952 | AA27: 0.005952380952 | AB27: 0.005952380952 | AC27: 0.005952380952 | AD27: 0.005952380952 | AE27: 0.005952380952 | AF27: 0.005952380952 | AG27: 0.005952380952 | AH27: 0.005952380952 | AI27: 0.005952380952 | AJ27: 0.005952380952 | AK27: 0.005952380952 | AL27: 0.005952380952 | AM27: 0.005952380952 | AN27: 0.005952380952 | AO27: 0.005952380952 | AP27: 0.005952380952 | AQ27: 0.005952380952 | AR27: 0.005952380952 | AS27: 0.005952380952 | AT27: 0.005952380952
A28: Janvier | B28: 1 | C28: 23 | D28: 1 | E28: 1 | F28: 1 | G28: 23 | H28: =Bdd_Tefs!A28 -> 11.31 | I28: =Bdd_Text!E28 -> 9.46 | J28: 0 | K28: 1.05 | L28: 0 | M28: 0.005952380952 | N28: 1 | O28: =IF('Saisies-Résultats'!$D$21="Non",0,'Saisies-Résultats'!$D$24*('Saisies-Résultats'!$D$22*(52.5-20)+'Saisies-Résultats'!$D$23*(52.5-(20+'Saisies-Résultats'!$D$25*(Puis_ECS!I28-20)))))*M28*N28 -> 0 | P28: 0 | Q28: 0 | V28: =V27+1 -> 2 | W28: =1/168 -> 0.005952380952 | X28: 0.005952380952 | Y28: 0.005952380952 | Z28: 0.005952380952 | AA28: 0.005952380952 | AB28: 0.005952380952 | AC28: 0.005952380952 | AD28: 0.005952380952 | AE28: 0.005952380952 | AF28: 0.005952380952 | AG28: 0.005952380952 | AH28: 0.005952380952 | AI28: 0.005952380952 | AJ28: 0.005952380952 | AK28: 0.005952380952 | AL28: 0.005952380952 | AM28: 0.005952380952 | AN28: 0.005952380952 | AO28: 0.005952380952 | AP28: 0.005952380952 | AQ28: 0.005952380952 | AR28: 0.005952380952 | AS28: 0.005952380952 | AT28: 0.005952380952
A29: Janvier | B29: 1 | C29: 24 | D29: 1 | E29: 1 | F29: 1 | G29: 24 | H29: =Bdd_Tefs!A29 -> 11.3 | I29: =Bdd_Text!E29 -> 9.76 | J29: 0 | K29: 1.05 | L29: 0 | M29: 0.005952380952 | N29: 1 | O29: =IF('Saisies-Résultats'!$D$21="Non",0,'Saisies-Résultats'!$D$24*('Saisies-Résultats'!$D$22*(52.5-20)+'Saisies-Résultats'!$D$23*(52.5-(20+'Saisies-Résultats'!$D$25*(Puis_ECS!I29-20)))))*M29*N29 -> 0 | P29: 0 | Q29: 0 | V29: 3 | W29: 0.005952380952 | X29: 0.005952380952 | Y29: 0.005952380952 | Z29: 0.005952380952 | AA29: 0.005952380952 | AB29: 0.005952380952 | AC29: 0.005952380952 | AD29: 0.005952380952 | AE29: 0.005952380952 | AF29: 0.005952380952 | AG29: 0.005952380952 | AH29: 0.005952380952 | AI29: 0.005952380952 | AJ29: 0.005952380952 | AK29: 0.005952380952 | AL29: 0.005952380952 | AM29: 0.005952380952 | AN29: 0.005952380952 | AO29: 0.005952380952 | AP29: 0.005952380952 | AQ29: 0.005952380952 | AR29: 0.005952380952 | AS29: 0.005952380952 | AT29: 0.005952380952
A30: Janvier | B30: 2 | C30: 25 | D30: 1 | E30: 1 | F30: 2 | G30: 1 | H30: =Bdd_Tefs!A30 -> 11.3 | I30: =Bdd_Text!E30 -> 9.96 | J30: 0 | K30: 1.05 | L30: 0 | M30: 0.005952380952 | N30: 1 | O30: =IF('Saisies-Résultats'!$D$21="Non",0,'Saisies-Résultats'!$D$24*('Saisies-Résultats'!$D$22*(52.5-20)+'Saisies-Résultats'!$D$23*(52.5-(20+'Saisies-Résultats'!$D$25*(Puis_ECS!I30-20)))))*M30*N30 -> 0 | P30: 0 | Q30: 0 | V30: 4 | W30: 0.005952380952 | X30: 0.005952380952 | Y30: 0.005952380952 | Z30: 0.005952380952 | AA30: 0.005952380952 | AB30: 0.005952380952 | AC30: 0.005952380952 | AD30: 0.005952380952 | AE30: 0.005952380952 | AF30: 0.005952380952 | AG30: 0.005952380952 | AH30: 0.005952380952 | AI30: 0.005952380952 | AJ30: 0.005952380952 | AK30: 0.005952380952 | AL30: 0.005952380952 | AM30: 0.005952380952 | AN30: 0.005952380952 | AO30: 0.005952380952 | AP30: 0.005952380952 | AQ30: 0.005952380952 | AR30: 0.005952380952 | AS30: 0.005952380952 | AT30: 0.005952380952
A31: Janvier | B31: 2 | C31: 26 | D31: 1 | E31: 1 | F31: 2 | G31: 2 | H31: =Bdd_Tefs!A31 -> 11.3 | I31: =Bdd_Text!E31 -> 9.86 | J31: 0 | K31: 1.05 | L31: 0 | M31: 0.005952380952 | N31: 1 | O31: =IF('Saisies-Résultats'!$D$21="Non",0,'Saisies-Résultats'!$D$24*('Saisies-Résultats'!$D$22*(52.5-20)+'Saisies-Résultats'!$D$23*(52.5-(20+'Saisies-Résultats'!$D$25*(Puis_ECS!I31-20)))))*M31*N31 -> 0 | P31: 0 | Q31: 0 | V31: 5 | W31: 0.005952380952 | X31: 0.005952380952 | Y31: 0.005952380952 | Z31: 0.005952380952 | AA31: 0.005952380952 | AB31: 0.005952380952 | AC31: 0.005952380952 | AD31: 0.005952380952 | AE31: 0.005952380952 | AF31: 0.005952380952 | AG31: 0.005952380952 | AH31: 0.005952380952 | AI31: 0.005952380952 | AJ31: 0.005952380952 | AK31: 0.005952380952 | AL31: 0.005952380952 | AM31: 0.005952380952 | AN31: 0.005952380952 | AO31: 0.005952380952 | AP31: 0.005952380952 | AQ31: 0.005952380952 | AR31: 0.005952380952 | AS31: 0.005952380952 | AT31: 0.005952380952
A32: Janvier | B32: 2 | C32: 27 | D32: 1 | E32: 1 | F32: 2 | G32: 3 | H32: =Bdd_Tefs!A32 -> 11.3 | I32: =Bdd_Text!E32 -> 10.46 | J32: 0 | K32: 1.05 | L32: 0 | M32: 0.005952380952 | N32: 1 | O32: =IF('Saisies-Résultats'!$D$21="Non",0,'Saisies-Résultats'!$D$24*('Saisies-Résultats'!$D$22*(52.5-20)+'Saisies-Résultats'!$D$23*(52.5-(20+'Saisies-Résultats'!$D$25*(Puis_ECS!I32-20)))))*M32*N32 -> 0 | P32: 0 | Q32: 0 | V32: 6 | W32: 0.005952380952 | X32: 0.005952380952 | Y32: 0.005952380952 | Z32: 0.005952380952 | AA32: 0.005952380952 | AB32: 0.005952380952 | AC32: 0.005952380952 | AD32: 0.005952380952 | AE32: 0.005952380952 | AF32: 0.005952380952 | AG32: 0.005952380952 | AH32: 0.005952380952 | AI32: 0.005952380952 | AJ32: 0.005952380952 | AK32: 0.005952380952 | AL32: 0.005952380952 | AM32: 0.005952380952 | AN32: 0.005952380952 | AO32: 0.005952380952 | AP32: 0.005952380952 | AQ32: 0.005952380952 | AR32: 0.005952380952 | AS32: 0.005952380952 | AT32: 0.005952380952
A33: Janvier | B33: 2 | C33: 28 | D33: 1 | E33: 1 | F33: 2 | G33: 4 | H33: =Bdd_Tefs!A33 -> 11.29 | I33: =Bdd_Text!E33 -> 10.16 | J33: 0 | K33: 1.05 | L33: 0 | M33: 0.005952380952 | N33: 1 | O33: =IF('Saisies-Résultats'!$D$21="Non",0,'Saisies-Résultats'!$D$24*('Saisies-Résultats'!$D$22*(52.5-20)+'Saisies-Résultats'!$D$23*(52.5-(20+'Saisies-Résultats'!$D$25*(Puis_ECS!I33-20)))))*M33*N33 -> 0 | P33: 0 | Q33: 0 | V33: 7 | W33: 0.005952380952 | X33: 0.005952380952 | Y33: 0.005952380952 | Z33: 0.005952380952 | AA33: 0.005952380952 | AB33: 0.005952380952 | AC33: 0.005952380952 | AD33: 0.005952380952 | AE33: 0.005952380952 | AF33: 0.005952380952 | AG33: 0.005952380952 | AH33: 0.005952380952 | AI33: 0.005952380952 | AJ33: 0.005952380952 | AK33: 0.005952380952 | AL33: 0.005952380952 | AM33: 0.005952380952 | AN33: 0.005952380952 | AO33: 0.005952380952 | AP33: 0.005952380952 | AQ33: 0.005952380952 | AR33: 0.005952380952 | AS33: 0.005952380952 | AT33: 0.005952380952
A34: Janvier | B34: 2 | C34: 29 | D34: 1 | E34: 1 | F34: 2 | G34: 5 | H34: =Bdd_Tefs!A34 -> 11.29 | I34: =Bdd_Text!E34 -> 10.56 | J34: 0 | K34: 1.05 | L34: 0 | M34: 0.005952380952 | N34: 1 | O34: =IF('Saisies-Résultats'!$D$21="Non",0,'Saisies-Résultats'!$D$24*('Saisies-Résultats'!$D$22*(52.5-20)+'Saisies-Résultats'!$D$23*(52.5-(20+'Saisies-Résultats'!$D$25*(Puis_ECS!I34-20)))))*M34*N34 -> 0 | P34: 0 | Q34: 0
A35: Janvier | B35: 2 | C35: 30 | D35: 1 | E35: 1 | F35: 2 | G35: 6 | H35: =Bdd_Tefs!A35 -> 11.29 | I35: =Bdd_Text!E35 -> 10.76 | J35: 0 | K35: 1.05 | L35: 0 | M35: 0.005952380952 | N35: 1 | O35: =IF('Saisies-Résultats'!$D$21="Non",0,'Saisies-Résultats'!$D$24*('Saisies-Résultats'!$D$22*(52.5-20)+'Saisies-Résultats'!$D$23*(52.5-(20+'Saisies-Résultats'!$D$25*(Puis_ECS!I35-20)))))*M35*N35 -> 0 | P35: 0 | Q35: 0 | W35: facteur correctif de la semaine
A36: Janvier | B36: 2 | C36: 31 | D36: 1 | E36: 1 | F36: 2 | G36: 7 | H36: =Bdd_Tefs!A36 -> 11.29 | I36: =Bdd_Text!E36 -> 10.96 | J36: 0 | K36: 1.05 | L36: 0 | M36: 0.005952380952 | N36: 1 | O36: =IF('Saisies-Résultats'!$D$21="Non",0,'Saisies-Résultats'!$D$24*('Saisies-Résultats'!$D$22*(52.5-20)+'Saisies-Résultats'!$D$23*(52.5-(20+'Saisies-Résultats'!$D$25*(Puis_ECS!I36-20)))))*M36*N36 -> 0 | P36: 0 | Q36: 0 | V36: semaine/mois | W36: 1 | X36: =W36+1 -> 2 | Y36: =X36+1 -> 3 | Z36: =Y36+1 -> 4 | AA36: =Z36+1 -> 5 | AB36: =AA36+1 -> 6 | AC36: =AB36+1 -> 7 | AD36: =AC36+1 -> 8 | AE36: =AD36+1 -> 9 | AF36: =AE36+1 -> 10 | AG36: =AF36+1 -> 11 | AH36: =AG36+1 -> 12
A37: Janvier | B37: 2 | C37: 32 | D37: 1 | E37: 1 | F37: 2 | G37: 8 | H37: =Bdd_Tefs!A37 -> 11.29 | I37: =Bdd_Text!E37 -> 10.86 | J37: 0.028 | K37: 1.05 | L37: 0.844074 | M37: 0.005952380952 | N37: 1 | O37: =IF('Saisies-Résultats'!$D$21="Non",0,'Saisies-Résultats'!$D$24*('Saisies-Résultats'!$D$22*(52.5-20)+'Saisies-Résultats'!$D$23*(52.5-(20+'Saisies-Résultats'!$D$25*(Puis_ECS!I37-20)))))*M37*N37 -> 0 | P37: 0.844074 | Q37: 0.006201765684 | V37: 1 | W37: 1 | X37: 1 | Y37: 1 | Z37: 1 | AA37: 1 | AB37: 1 | AC37: 1 | AD37: 1 | AE37: 1 | AF37: 1 | AG37: 1 | AH37: 1
A38: Janvier | B38: 2 | C38: 33 | D38: 1 | E38: 1 | F38: 2 | G38: 9 | H38: =Bdd_Tefs!A38 -> 11.29 | I38: =Bdd_Text!E38 -> 9.96 | J38: 0.029 | K38: 1.05 | L38: 0.8742195 | M38: 0.005952380952 | N38: 1 | O38: =IF('Saisies-Résultats'!$D$21="Non",0,'Saisies-Résultats'!$D$24*('Saisies-Résultats'!$D$22*(52.5-20)+'Saisies-Résultats'!$D$23*(52.5-(20+'Saisies-Résultats'!$D$25*(Puis_ECS!I38-20)))))*M38*N38 -> 0 | P38: 0.8742195 | Q38: 0.006423257316 | V38: 2 | W38: 1 | X38: 1 | Y38: 1 | Z38: 1 | AA38: 1 | AB38: 1 | AC38: 1 | AD38: 1 | AE38: 1 | AF38: 1 | AG38: 1 | AH38: 1
A39: Janvier | B39: 2 | C39: 34 | D39: 1 | E39: 1 | F39: 2 | G39: 10 | H39: =Bdd_Tefs!A39 -> 11.3 | I39: =Bdd_Text!E39 -> 10.66 | J39: 0 | K39: 1.05 | L39: 0 | M39: 0.005952380952 | N39: 1 | O39: =IF('Saisies-Résultats'!$D$21="Non",0,'Saisies-Résultats'!$D$24*('Saisies-Résultats'!$D$22*(52.5-20)+'Saisies-Résultats'!$D$23*(52.5-(20+'Saisies-Résultats'!$D$25*(Puis_ECS!I39-20)))))*M39*N39 -> 0 | P39: 0 | Q39: 0 | V39: 3 | W39: 1 | X39: 1 | Y39: 1 | Z39: 1 | AA39: 1 | AB39: 1 | AC39: 1 | AD39: 1 | AE39: 1 | AF39: 1 | AG39: 1 | AH39: 1
A40: Janvier | B40: 2 | C40: 35 | D40: 1 | E40: 1 | F40: 2 | G40: 11 | H40: =Bdd_Tefs!A40 -> 11.3 | I40: =Bdd_Text!E40 -> 11.26 | J40: 0 | K40: 1.05 | L40: 0 | M40: 0.005952380952 | N40: 1 | O40: =IF('Saisies-Résultats'!$D$21="Non",0,'Saisies-Résultats'!$D$24*('Saisies-Résultats'!$D$22*(52.5-20)+'Saisies-Résultats'!$D$23*(52.5-(20+'Saisies-Résultats'!$D$25*(Puis_ECS!I40-20)))))*M40*N40 -> 0 | P40: 0 | Q40: 0 | V40: 4 | W40: 1 | X40: 1 | Y40: 1 | Z40: 1 | AA40: 1 | AB40: 1 | AC40: 1 | AD40: 1 | AE40: 1 | AF40: 1 | AG40: 1 | AH40: 1
A41: Janvier | B41: 2 | C41: 36 | D41: 1 | E41: 1 | F41: 2 | G41: 12 | H41: =Bdd_Tefs!A41 -> 11.3 | I41: =Bdd_Text!E41 -> 12.16 | J41: 0 | K41: 1.05 | L41: 0 | M41: 0.005952380952 | N41: 1 | O41: =IF('Saisies-Résultats'!$D$21="Non",0,'Saisies-Résultats'!$D$24*('Saisies-Résultats'!$D$22*(52.5-20)+'Saisies-Résultats'!$D$23*(52.5-(20+'Saisies-Résultats'!$D$25*(Puis_ECS!I41-20)))))*M41*N41 -> 0 | P41: 0 | Q41: 0 | V41: 5 | W41: 1 | X41: 1 | Y41: 1 | Z41: 1 | AA41: 1 | AB41: 1 | AC41: 1 | AD41: 1 | AE41: 1 | AF41: 1 | AG41: 1 | AH41: 1
A42: Janvier | B42: 2 | C42: 37 | D42: 1 | E42: 1 | F42: 2 | G42: 13 | H42: =Bdd_Tefs!A42 -> 11.3 | I42: =Bdd_Text!E42 -> 11.86 | J42: 0 | K42: 1.05 | L42: 0 | M42: 0.005952380952 | N42: 1 | O42: =IF('Saisies-Résultats'!$D$21="Non",0,'Saisies-Résultats'!$D$24*('Saisies-Résultats'!$D$22*(52.5-20)+'Saisies-Résultats'!$D$23*(52.5-(20+'Saisies-Résultats'!$D$25*(Puis_ECS!I42-20)))))*M42*N42 -> 0 | P42: 0 | Q42: 0
A43: Janvier | B43: 2 | C43: 38 | D43: 1 | E43: 1 | F43: 2 | G43: 14 | H43: =Bdd_Tefs!A43 -> 11.3 | I43: =Bdd_Text!E43 -> 12.66 | J43: 0 | K43: 1.05 | L43: 0 | M43: 0.005952380952 | N43: 1 | O43: =IF('Saisies-Résultats'!$D$21="Non",0,'Saisies-Résultats'!$D$24*('Saisies-Résultats'!$D$22*(52.5-20)+'Saisies-Résultats'!$D$23*(52.5-(20+'Saisies-Résultats'!$D$25*(Puis_ECS!I43-20)))))*M43*N43 -> 0 | P43: 0 | Q43: 0
A44: Janvier | B44: 2 | C44: 39 | D44: 1 | E44: 1 | F44: 2 | G44: 15 | H44: =Bdd_Tefs!A44 -> 11.3 | I44: =Bdd_Text!E44 -> 12.96 | J44: 0 | K44: 1.05 | L44: 0 | M44: 0.005952380952 | N44: 1 | O44: =IF('Saisies-Résultats'!$D$21="Non",0,'Saisies-Résultats'!$D$24*('Saisies-Résultats'!$D$22*(52.5-20)+'Saisies-Résultats'!$D$23*(52.5-(20+'Saisies-Résultats'!$D$25*(Puis_ECS!I44-20)))))*M44*N44 -> 0 | P44: 0 | Q44: 0
A45: Janvier | B45: 2 | C45: 40 | D45: 1 | E45: 1 | F45: 2 | G45: 16 | H45: =Bdd_Tefs!A45 -> 11.3 | I45: =Bdd_Text!E45 -> 12.26 | J45: 0 | K45: 1.05 | L45: 0 | M45: 0.005952380952 | N45: 1 | O45: =IF('Saisies-Résultats'!$D$21="Non",0,'Saisies-Résultats'!$D$24*('Saisies-Résultats'!$D$22*(52.5-20)+'Saisies-Résultats'!$D$23*(52.5-(20+'Saisies-Résultats'!$D$25*(Puis_ECS!I45-20)))))*M45*N45 -> 0 | P45: 0 | Q45: 0
A46: Janvier | B46: 2 | C46: 41 | D46: 1 | E46: 1 | F46: 2 | G46: 17 | H46: =Bdd_Tefs!A46 -> 11.31 | I46: =Bdd_Text!E46 -> 11.66 | J46: 0 | K46: 1.05 | L46: 0 | M46: 0.005952380952 | N46: 1 | O46: =IF('Saisies-Résultats'!$D$21="Non",0,'Saisies-Résultats'!$D$24*('Saisies-Résultats'!$D$22*(52.5-20)+'Saisies-Résultats'!$D$23*(52.5-(20+'Saisies-Résultats'!$D$25*(Puis_ECS!I46-20)))))*M46*N46 -> 0 | P46: 0 | Q46: 0
A47: Janvier | B47: 2 | C47: 42 | D47: 1 | E47: 1 | F47: 2 | G47: 18 | H47: =Bdd_Tefs!A47 -> 11.31 | I47: =Bdd_Text!E47 -> 10.96 | J47: 0 | K47: 1.05 | L47: 0 | M47: 0.005952380952 | N47: 1 | O47: =IF('Saisies-Résultats'!$D$21="Non",0,'Saisies-Résultats'!$D$24*('Saisies-Résultats'!$D$22*(52.5-20)+'Saisies-Résultats'!$D$23*(52.5-(20+'Saisies-Résultats'!$D$25*(Puis_ECS!I47-20)))))*M47*N47 -> 0 | P47: 0 | Q47: 0
A48: Janvier | B48: 2 | C48: 43 | D48: 1 | E48: 1 | F48: 2 | G48: 19 | H48: =Bdd_Tefs!A48 -> 11.31 | I48: =Bdd_Text!E48 -> 11.06 | J48: 0.029 | K48: 1.05 | L48: 0.8736105 | M48: 0.005952380952 | N48: 1 | O48: =IF('Saisies-Résultats'!$D$21="Non",0,'Saisies-Résultats'!$D$24*('Saisies-Résultats'!$D$22*(52.5-20)+'Saisies-Résultats'!$D$23*(52.5-(20+'Saisies-Résultats'!$D$25*(Puis_ECS!I48-20)))))*M48*N48 -> 0 | P48: 0.8736105 | Q48: 0.006418782737
A49: Janvier | B49: 2 | C49: 44 | D49: 1 | E49: 1 | F49: 2 | G49: 20 | H49: =Bdd_Tefs!A49 -> 11.31 | I49: =Bdd_Text!E49 -> 10.86 | J49: 0 | K49: 1.05 | L49: 0 | M49: 0.005952380952 | N49: 1 | O49: =IF('Saisies-Résultats'!$D$21="Non",0,'Saisies-Résultats'!$D$24*('Saisies-Résultats'!$D$22*(52.5-20)+'Saisies-Résultats'!$D$23*(52.5-(20+'Saisies-Résultats'!$D$25*(Puis_ECS!I49-20)))))*M49*N49 -> 0 | P49: 0 | Q49: 0
A50: Janvier | B50: 2 | C50: 45 | D50: 1 | E50: 1 | F50: 2 | G50: 21 | H50: =Bdd_Tefs!A50 -> 11.31 | I50: =Bdd_Text!E50 -> 10.26 | J50: 0.028 | K50: 1.05 | L50: 0.843486 | M50: 0.005952380952 | N50: 1 | O50: =IF('Saisies-Résultats'!$D$21="Non",0,'Saisies-Résultats'!$D$24*('Saisies-Résultats'!$D$22*(52.5-20)+'Saisies-Résultats'!$D$23*(52.5-(20+'Saisies-Résultats'!$D$25*(Puis_ECS!I50-20)))))*M50*N50 -> 0 | P50: 0.843486 | Q50: 0.006197445401
A51: Janvier | B51: 2 | C51: 46 | D51: 1 | E51: 1 | F51: 2 | G51: 22 | H51: =Bdd_Tefs!A51 -> 11.31 | I51: =Bdd_Text!E51 -> 10.66 | J51: 0.029 | K51: 1.05 | L51: 0.8736105 | M51: 0.005952380952 | N51: 1 | O51: =IF('Saisies-Résultats'!$D$21="Non",0,'Saisies-Résultats'!$D$24*('Saisies-Résultats'!$D$22*(52.5-20)+'Saisies-Résultats'!$D$23*(52.5-(20+'Saisies-Résultats'!$D$25*(Puis_ECS!I51-20)))))*M51*N51 -> 0 | P51: 0.8736105 | Q51: 0.006418782737
A52: Janvier | B52: 2 | C52: 47 | D52: 1 | E52: 1 | F52: 2 | G52: 23 | H52: =Bdd_Tefs!A52 -> 11.31 | I52: =Bdd_Text!E52 -> 9.76 | J52: 0 | K52: 1.05 | L52: 0 | M52: 0.005952380952 | N52: 1 | O52: =IF('Saisies-Résultats'!$D$21="Non",0,'Saisies-Résultats'!$D$24*('Saisies-Résultats'!$D$22*(52.5-20)+'Saisies-Résultats'!$D$23*(52.5-(20+'Saisies-Résultats'!$D$25*(Puis_ECS!I52-20)))))*M52*N52 -> 0 | P52: 0 | Q52: 0
A53: Janvier | B53: 2 | C53: 48 | D53: 1 | E53: 1 | F53: 2 | G53: 24 | H53: =Bdd_Tefs!A53 -> 11.31 | I53: =Bdd_Text!E53 -> 9.86 | J53: 0 | K53: 1.05 | L53: 0 | M53: 0.005952380952 | N53: 1 | O53: =IF('Saisies-Résultats'!$D$21="Non",0,'Saisies-Résultats'!$D$24*('Saisies-Résultats'!$D$22*(52.5-20)+'Saisies-Résultats'!$D$23*(52.5-(20+'Saisies-Résultats'!$D$25*(Puis_ECS!I53-20)))))*M53*N53 -> 0 | P53: 0 | Q53: 0
A54: Janvier | B54: 3 | C54: 49 | D54: 1 | E54: 1 | F54: 3 | G54: 1 | H54: =Bdd_Tefs!A54 -> 11.31 | I54: =Bdd_Text!E54 -> 9.66 | J54: 0 | K54: 1.05 | L54: 0 | M54: 0.005952380952 | N54: 1 | O54: =IF('Saisies-Résultats'!$D$21="Non",0,'Saisies-Résultats'!$D$24*('Saisies-Résultats'!$D$22*(52.5-20)+'Saisies-Résultats'!$D$23*(52.5-(20+'Saisies-Résultats'!$D$25*(Puis_ECS!I54-20)))))*M54*N54 -> 0 | P54: 0 | Q54: 0
A55: Janvier | B55: 3 | C55: 50 | D55: 1 | E55: 1 | F55: 3 | G55: 2 | H55: =Bdd_Tefs!A55 -> 11.31 | I55: =Bdd_Text!E55 -> 9.26 | J55: 0 | K55: 1.05 | L55: 0 | M55: 0.005952380952 | N55: 1 | O55: =IF('Saisies-Résultats'!$D$21="Non",0,'Saisies-Résultats'!$D$24*('Saisies-Résultats'!$D$22*(52.5-20)+'Saisies-Résultats'!$D$23*(52.5-(20+'Saisies-Résultats'!$D$25*(Puis_ECS!I55-20)))))*M55*N55 -> 0 | P55: 0 | Q55: 0
A56: Janvier | B56: 3 | C56: 51 | D56: 1 | E56: 1 | F56: 3 | G56: 3 | H56: =Bdd_Tefs!A56 -> 11.31 | I56: =Bdd_Text!E56 -> 8.86 | J56: 0 | K56: 1.05 | L56: 0 | M56: 0.005952380952 | N56: 1 | O56: =IF('Saisies-Résultats'!$D$21="Non",0,'Saisies-Résultats'!$D$24*('Saisies-Résultats'!$D$22*(52.5-20)+'Saisies-Résultats'!$D$23*(52.5-(20+'Saisies-Résultats'!$D$25*(Puis_ECS!I56-20)))))*M56*N56 -> 0 | P56: 0 | Q56: 0
A57: Janvier | B57: 3 | C57: 52 | D57: 1 | E57: 1 | F57: 3 | G57: 4 | H57: =Bdd_Tefs!A57 -> 11.31 | I57: =Bdd_Text!E57 -> 8.36 | J57: 0 | K57: 1.05 | L57: 0 | M57: 0.005952380952 | N57: 1 | O57: =IF('Saisies-Résultats'!$D$21="Non",0,'Saisies-Résultats'!$D$24*('Saisies-Résultats'!$D$22*(52.5-20)+'Saisies-Résultats'!$D$23*(52.5-(20+'Saisies-Résultats'!$D$25*(Puis_ECS!I57-20)))))*M57*N57 -> 0 | P57: 0 | Q57: 0
A58: Janvier | B58: 3 | C58: 53 | D58: 1 | E58: 1 | F58: 3 | G58: 5 | H58: =Bdd_Tefs!A58 -> 11.31 | I58: =Bdd_Text!E58 -> 7.86 | J58: 0 | K58: 1.05 | L58: 0 | M58: 0.005952380952 | N58: 1 | O58: =IF('Saisies-Résultats'!$D$21="Non",0,'Saisies-Résultats'!$D$24*('Saisies-Résultats'!$D$22*(52.5-20)+'Saisies-Résultats'!$D$23*(52.5-(20+'Saisies-Résultats'!$D$25*(Puis_ECS!I58-20)))))*M58*N58 -> 0 | P58: 0 | Q58: 0
A59: Janvier | B59: 3 | C59: 54 | D59: 1 | E59: 1 | F59: 3 | G59: 6 | H59: =Bdd_Tefs!A59 -> 11.31 | I59: =Bdd_Text!E59 -> 8.06 | J59: 0 | K59: 1.05 | L59: 0 | M59: 0.005952380952 | N59: 1 | O59: =IF('Saisies-Résultats'!$D$21="Non",0,'Saisies-Résultats'!$D$24*('Saisies-Résultats'!$D$22*(52.5-20)+'Saisies-Résultats'!$D$23*(52.5-(20+'Saisies-Résultats'!$D$25*(Puis_ECS!I59-20)))))*M59*N59 -> 0 | P59: 0 | Q59: 0
A60: Janvier | B60: 3 | C60: 55 | D60: 1 | E60: 1 | F60: 3 | G60: 7 | H60: =Bdd_Tefs!A60 -> 11.31 | I60: =Bdd_Text!E60 -> 8.26 | J60: 0 | K60: 1.05 | L60: 0 | M60: 0.005952380952 | N60: 1 | O60: =IF('Saisies-Résultats'!$D$21="Non",0,'Saisies-Résultats'!$D$24*('Saisies-Résultats'!$D$22*(52.5-20)+'Saisies-Résultats'!$D$23*(52.5-(20+'Saisies-Résultats'!$D$25*(Puis_ECS!I60-20)))))*M60*N60 -> 0 | P60: 0 | Q60: 0
A61: Janvier | B61: 3 | C61: 56 | D61: 1 | E61: 1 | F61: 3 | G61: 8 | H61: =Bdd_Tefs!A61 -> 11.31 | I61: =Bdd_Text!E61 -> 8.36 | J61: 0.028 | K61: 1.05 | L61: 0.843486 | M61: 0.005952380952 | N61: 1 | O61: =IF('Saisies-Résultats'!$D$21="Non",0,'Saisies-Résultats'!$D$24*('Saisies-Résultats'!$D$22*(52.5-20)+'Saisies-Résultats'!$D$23*(52.5-(20+'Saisies-Résultats'!$D$25*(Puis_ECS!I61-20)))))*M61*N61 -> 0 | P61: 0.843486 | Q61: 0.006197445401
A62: Janvier | B62: 3 | C62: 57 | D62: 1 | E62: 1 | F62: 3 | G62: 9 | H62: =Bdd_Tefs!A62 -> 11.31 | I62: =Bdd_Text!E62 -> 8.06 | J62: 0.029 | K62: 1.05 | L62: 0.8736105 | M62: 0.005952380952 | N62: 1 | O62: =IF('Saisies-Résultats'!$D$21="Non",0,'Saisies-Résultats'!$D$24*('Saisies-Résultats'!$D$22*(52.5-20)+'Saisies-Résultats'!$D$23*(52.5-(20+'Saisies-Résultats'!$D$25*(Puis_ECS!I62-20)))))*M62*N62 -> 0 | P62: 0.8736105 | Q62: 0.006418782737
A63: Janvier | B63: 3 | C63: 58 | D63: 1 | E63: 1 | F63: 3 | G63: 10 | H63: =Bdd_Tefs!A63 -> 11.31 | I63: =Bdd_Text!E63 -> 7.96 | J63: 0 | K63: 1.05 | L63: 0 | M63: 0.005952380952 | N63: 1 | O63: =IF('Saisies-Résultats'!$D$21="Non",0,'Saisies-Résultats'!$D$24*('Saisies-Résultats'!$D$22*(52.5-20)+'Saisies-Résultats'!$D$23*(52.5-(20+'Saisies-Résultats'!$D$25*(Puis_ECS!I63-20)))))*M63*N63 -> 0 | P63: 0 | Q63: 0
A64: Janvier | B64: 3 | C64: 59 | D64: 1 | E64: 1 | F64: 3 | G64: 11 | H64: =Bdd_Tefs!A64 -> 11.3 | I64: =Bdd_Text!E64 -> 8.26 | J64: 0 | K64: 1.05 | L64: 0 | M64: 0.005952380952 | N64: 1 | O64: =IF('Saisies-Résultats'!$D$21="Non",0,'Saisies-Résultats'!$D$24*('Saisies-Résultats'!$D$22*(52.5-20)+'Saisies-Résultats'!$D$23*(52.5-(20+'Saisies-Résultats'!$D$25*(Puis_ECS!I64-20)))))*M64*N64 -> 0 | P64: 0 | Q64: 0
A65: Janvier | B65: 3 | C65: 60 | D65: 1 | E65: 1 | F65: 3 | G65: 12 | H65: =Bdd_Tefs!A65 -> 11.3 | I65: =Bdd_Text!E65 -> 9.56 | J65: 0 | K65: 1.05 | L65: 0 | M65: 0.005952380952 | N65: 1 | O65: =IF('Saisies-Résultats'!$D$21="Non",0,'Saisies-Résultats'!$D$24*('Saisies-Résultats'!$D$22*(52.5-20)+'Saisies-Résultats'!$D$23*(52.5-(20+'Saisies-Résultats'!$D$25*(Puis_ECS!I65-20)))))*M65*N65 -> 0 | P65: 0 | Q65: 0
A66: Janvier | B66: 3 | C66: 61 | D66: 1 | E66: 1 | F66: 3 | G66: 13 | H66: =Bdd_Tefs!A66 -> 11.3 | I66: =Bdd_Text!E66 -> 8.96 | J66: 0 | K66: 1.05 | L66: 0 | M66: 0.005952380952 | N66: 1 | O66: =IF('Saisies-Résultats'!$D$21="Non",0,'Saisies-Résultats'!$D$24*('Saisies-Résultats'!$D$22*(52.5-20)+'Saisies-Résultats'!$D$23*(52.5-(20+'Saisies-Résultats'!$D$25*(Puis_ECS!I66-20)))))*M66*N66 -> 0 | P66: 0 | Q66: 0
A67: Janvier | B67: 3 | C67: 62 | D67: 1 | E67: 1 | F67: 3 | G67: 14 | H67: =Bdd_Tefs!A67 -> 11.3 | I67: =Bdd_Text!E67 -> 10.16 | J67: 0 | K67: 1.05 | L67: 0 | M67: 0.005952380952 | N67: 1 | O67: =IF('Saisies-Résultats'!$D$21="Non",0,'Saisies-Résultats'!$D$24*('Saisies-Résultats'!$D$22*(52.5-20)+'Saisies-Résultats'!$D$23*(52.5-(20+'Saisies-Résultats'!$D$25*(Puis_ECS!I67-20)))))*M67*N67 -> 0 | P67: 0 | Q67: 0
A68: Janvier | B68: 3 | C68: 63 | D68: 1 | E68: 1 | F68: 3 | G68: 15 | H68: =Bdd_Tefs!A68 -> 11.29 | I68: =Bdd_Text!E68 -> 9.36 | J68: 0 | K68: 1.05 | L68: 0 | M68: 0.005952380952 | N68: 1 | O68: =IF('Saisies-Résultats'!$D$21="Non",0,'Saisies-Résultats'!$D$24*('Saisies-Résultats'!$D$22*(52.5-20)+'Saisies-Résultats'!$D$23*(52.5-(20+'Saisies-Résultats'!$D$25*(Puis_ECS!I68-20)))))*M68*N68 -> 0 | P68: 0 | Q68: 0
A69: Janvier | B69: 3 | C69: 64 | D69: 1 | E69: 1 | F69: 3 | G69: 16 | H69: =Bdd_Tefs!A69 -> 11.29 | I69: =Bdd_Text!E69 -> 9.46 | J69: 0 | K69: 1.05 | L69: 0 | M69: 0.005952380952 | N69: 1 | O69: =IF('Saisies-Résultats'!$D$21="Non",0,'Saisies-Résultats'!$D$24*('Saisies-Résultats'!$D$22*(52.5-20)+'Saisies-Résultats'!$D$23*(52.5-(20+'Saisies-Résultats'!$D$25*(Puis_ECS!I69-20)))))*M69*N69 -> 0 | P69: 0 | Q69: 0
A70: Janvier | B70: 3 | C70: 65 | D70: 1 | E70: 1 | F70: 3 | G70: 17 | H70: =Bdd_Tefs!A70 -> 11.29 | I70: =Bdd_Text!E70 -> 8.16 | J70: =HLOOKUP($G70,$W$6:$AT$13,$F70+1,FALSE) -> 0 | K70: =VLOOKUP($E70,$V$16:$AH$21,$D70+1,FALSE) -> 1.05 | L70: =(40-$H70)*J70*K70 -> 0 | M70: =HLOOKUP($G70,$W$26:$AT$33,$F70+1,FALSE) -> 0.005952380952 | N70: =VLOOKUP($E70,$V$36:$AH$41,$D70+1,FALSE) -> 1 | O70: =IF('Saisies-Résultats'!$D$21="Non",0,'Saisies-Résultats'!$D$24*('Saisies-Résultats'!$D$22*(52.5-20)+'Saisies-Résultats'!$D$23*(52.5-(20+'Saisies-Résultats'!$D$25*(Puis_ECS!I70-20)))))*M70*N70 -> 0 | P70: =L70+O70 -> 0 | Q70: 0
A71: Janvier | B71: 3 | C71: 66 | D71: 1 | E71: =IF(D71>D70,1,IF(AND(F70=7,F71=1),E70+1,E70)) -> 1 | F71: =IF(D71>D70,1,IF(IF(G71>G70,F70,F70+1)>7,1,IF(G71>G70,F70,F70+1))) -> 3 | G71: 18 | H71: =Bdd_Tefs!A71 -> 11.28 | I71: =Bdd_Text!E71 -> 6.16 | J71: 0 | K71: 1.05 | L71: 0 | M71: 0.005952380952 | N71: 1 | O71: =IF('Saisies-Résultats'!$D$21="Non",0,'Saisies-Résultats'!$D$24*('Saisies-Résultats'!$D$22*(52.5-20)+'Saisies-Résultats'!$D$23*(52.5-(20+'Saisies-Résultats'!$D$25*(Puis_ECS!I71-20)))))*M71*N71 -> 0 | P71: 0 | Q71: 0
A72: Janvier | B72: 3 | C72: 67 | D72: 1 | E72: 1 | F72: 3 | G72: 19 | H72: =Bdd_Tefs!A72 -> 11.28 | I72: =Bdd_Text!E72 -> 4.36 | J72: 0.029 | K72: 1.05 | L72: 0.874524 | M72: 0.005952380952 | N72: 1 | O72: =IF('Saisies-Résultats'!$D$21="Non",0,'Saisies-Résultats'!$D$24*('Saisies-Résultats'!$D$22*(52.5-20)+'Saisies-Résultats'!$D$23*(52.5-(20+'Saisies-Résultats'!$D$25*(Puis_ECS!I72-20)))))*M72*N72 -> 0 | P72: 0.874524 | Q72: =IF(P72=0,0,P72/SUM($P$6:$P$749)) -> 0.006425494605
A73: Janvier | B73: 3 | C73: 68 | D73: 1 | E73: 1 | F73: 3 | G73: 20 | H73: =Bdd_Tefs!A73 -> 11.27 | I73: =Bdd_Text!E73 -> 3.56 | J73: 0 | K73: 1.05 | L73: 0 | M73: 0.005952380952 | N73: 1 | O73: =IF('Saisies-Résultats'!$D$21="Non",0,'Saisies-Résultats'!$D$24*('Saisies-Résultats'!$D$22*(52.5-20)+'Saisies-Résultats'!$D$23*(52.5-(20+'Saisies-Résultats'!$D$25*(Puis_ECS!I73-20)))))*M73*N73 -> 0 | P73: 0 | Q73: 0
A74: Janvier | B74: 3 | C74: 69 | D74: 1 | E74: 1 | F74: 3 | G74: 21 | H74: =Bdd_Tefs!A74 -> 11.27 | I74: =Bdd_Text!E74 -> 5.36 | J74: 0.028 | K74: 1.05 | L74: 0.844662 | M74: 0.005952380952 | N74: 1 | O74: =IF('Saisies-Résultats'!$D$21="Non",0,'Saisies-Résultats'!$D$24*('Saisies-Résultats'!$D$22*(52.5-20)+'Saisies-Résultats'!$D$23*(52.5-(20+'Saisies-Résultats'!$D$25*(Puis_ECS!I74-20)))))*M74*N74 -> 0 | P74: 0.844662 | Q74: 0.006206085967
A75: Janvier | B75: 3 | C75: 70 | D75: 1 | E75: 1 | F75: 3 | G75: 22 | H75: =Bdd_Tefs!A75 -> 11.26 | I75: =Bdd_Text!E75 -> 5.36 | J75: 0.029 | K75: 1.05 | L75: 0.875133 | M75: 0.005952380952 | N75: 1 | O75: =IF('Saisies-Résultats'!$D$21="Non",0,'Saisies-Résultats'!$D$24*('Saisies-Résultats'!$D$22*(52.5-20)+'Saisies-Résultats'!$D$23*(52.5-(20+'Saisies-Résultats'!$D$25*(Puis_ECS!I75-20)))))*M75*N75 -> 0 | P75: 0.875133 | Q75: 0.006429969183
A76: Janvier | B76: 3 | C76: 71 | D76: 1 | E76: 1 | F76: 3 | G76: 23 | H76: =Bdd_Tefs!A76 -> 11.26 | I76: =Bdd_Text!E76 -> 4.86 | J76: 0 | K76: 1.05 | L76: 0 | M76: 0.005952380952 | N76: 1 | O76: =IF('Saisies-Résultats'!$D$21="Non",0,'Saisies-Résultats'!$D$24*('Saisies-Résultats'!$D$22*(52.5-20)+'Saisies-Résultats'!$D$23*(52.5-(20+'Saisies-Résultats'!$D$25*(Puis_ECS!I76-20)))))*M76*N76 -> 0 | P76: 0 | Q76: 0
A77: Janvier | B77: 3 | C77: 72 | D77: 1 | E77: 1 | F77: 3 | G77: 24 | H77: =Bdd_Tefs!A77 -> 11.25 | I77: =Bdd_Text!E77 -> 5.76 | J77: 0 | K77: 1.05 | L77: 0 | M77: 0.005952380952 | N77: 1 | O77: =IF('Saisies-Résultats'!$D$21="Non",0,'Saisies-Résultats'!$D$24*('Saisies-Résultats'!$D$22*(52.5-20)+'Saisies-Résultats'!$D$23*(52.5-(20+'Saisies-Résultats'!$D$25*(Puis_ECS!I77-20)))))*M77*N77 -> 0 | P77: 0 | Q77: 0
A78: Janvier | B78: 4 | C78: 73 | D78: 1 | E78: 1 | F78: 4 | G78: 1 | H78: =Bdd_Tefs!A78 -> 11.25 | I78: =Bdd_Text!E78 -> 7.66 | J78: 0 | K78: 1.05 | L78: 0 | M78: 0.005952380952 | N78: 1 | O78: =IF('Saisies-Résultats'!$D$21="Non",0,'Saisies-Résultats'!$D$24*('Saisies-Résultats'!$D$22*(52.5-20)+'Saisies-Résultats'!$D$23*(52.5-(20+'Saisies-Résultats'!$D$25*(Puis_ECS!I78-20)))))*M78*N78 -> 0 | P78: 0 | Q78: 0
A79: Janvier | B79: 4 | C79: 74 | D79: 1 | E79: 1 | F79: 4 | G79: 2 | H79: =Bdd_Tefs!A79 -> 11.24 | I79: =Bdd_Text!E79 -> 8.16 | J79: 0 | K79: 1.05 | L79: 0 | M79: 0.005952380952 | N79: 1 | O79: =IF('Saisies-Résultats'!$D$21="Non",0,'Saisies-Résultats'!$D$24*('Saisies-Résultats'!$D$22*(52.5-20)+'Saisies-Résultats'!$D$23*(52.5-(20+'Saisies-Résultats'!$D$25*(Puis_ECS!I79-20)))))*M79*N79 -> 0 | P79: 0 | Q79: 0
A80: Janvier | B80: 4 | C80: 75 | D80: 1 | E80: 1 | F80: 4 | G80: 3 | H80: =Bdd_Tefs!A80 -> 11.24 | I80: =Bdd_Text!E80 -> 8.06 | J80: 0 | K80: 1.05 | L80: 0 | M80: 0.005952380952 | N80: 1 | O80: =IF('Saisies-Résultats'!$D$21="Non",0,'Saisies-Résultats'!$D$24*('Saisies-Résultats'!$D$22*(52.5-20)+'Saisies-Résultats'!$D$23*(52.5-(20+'Saisies-Résultats'!$D$25*(Puis_ECS!I80-20)))))*M80*N80 -> 0 | P80: 0 | Q80: 0
A81: Janvier | B81: 4 | C81: 76 | D81: 1 | E81: 1 | F81: 4 | G81: 4 | H81: =Bdd_Tefs!A81 -> 11.23 | I81: =Bdd_Text!E81 -> 7.66 | J81: 0 | K81: 1.05 | L81: 0 | M81: 0.005952380952 | N81: 1 | O81: =IF('Saisies-Résultats'!$D$21="Non",0,'Saisies-Résultats'!$D$24*('Saisies-Résultats'!$D$22*(52.5-20)+'Saisies-Résultats'!$D$23*(52.5-(20+'Saisies-Résultats'!$D$25*(Puis_ECS!I81-20)))))*M81*N81 -> 0 | P81: 0 | Q81: 0
A82: Janvier | B82: 4 | C82: 77 | D82: 1 | E82: 1 | F82: 4 | G82: 5 | H82: =Bdd_Tefs!A82 -> 11.23 | I82: =Bdd_Text!E82 -> 7.16 | J82: 0 | K82: 1.05 | L82: 0 | M82: 0.005952380952 | N82: 1 | O82: =IF('Saisies-Résultats'!$D$21="Non",0,'Saisies-Résultats'!$D$24*('Saisies-Résultats'!$D$22*(52.5-20)+'Saisies-Résultats'!$D$23*(52.5-(20+'Saisies-Résultats'!$D$25*(Puis_ECS!I82-20)))))*M82*N82 -> 0 | P82: 0 | Q82: 0
A83: Janvier | B83: 4 | C83: 78 | D83: 1 | E83: 1 | F83: 4 | G83: 6 | H83: =Bdd_Tefs!A83 -> 11.23 | I83: =Bdd_Text!E83 -> 7.36 | J83: 0 | K83: 1.05 | L83: 0 | M83: 0.005952380952 | N83: 1 | O83: =IF('Saisies-Résultats'!$D$21="Non",0,'Saisies-Résultats'!$D$24*('Saisies-Résultats'!$D$22*(52.5-20)+'Saisies-Résultats'!$D$23*(52.5-(20+'Saisies-Résultats'!$D$25*(Puis_ECS!I83-20)))))*M83*N83 -> 0 | P83: 0 | Q83: 0
A84: Janvier | B84: 4 | C84: 79 | D84: 1 | E84: 1 | F84: 4 | G84: 7 | H84: =Bdd_Tefs!A84 -> 11.22 | I84: =Bdd_Text!E84 -> 7.36 | J84: 0 | K84: 1.05 | L84: 0 | M84: 0.005952380952 | N84: 1 | O84: =IF('Saisies-Résultats'!$D$21="Non",0,'Saisies-Résultats'!$D$24*('Saisies-Résultats'!$D$22*(52.5-20)+'Saisies-Résultats'!$D$23*(52.5-(20+'Saisies-Résultats'!$D$25*(Puis_ECS!I84-20)))))*M84*N84 -> 0 | P84: 0 | Q84: 0
A85: Janvier | B85: 4 | C85: 80 | D85: 1 | E85: 1 | F85: 4 | G85: 8 | H85: =Bdd_Tefs!A85 -> 11.22 | I85: =Bdd_Text!E85 -> 7.46 | J85: 0.028 | K85: 1.05 | L85: 0.846132 | M85: 0.005952380952 | N85: 1 | O85: =IF('Saisies-Résultats'!$D$21="Non",0,'Saisies-Résultats'!$D$24*('Saisies-Résultats'!$D$22*(52.5-20)+'Saisies-Résultats'!$D$23*(52.5-(20+'Saisies-Résultats'!$D$25*(Puis_ECS!I85-20)))))*M85*N85 -> 0 | P85: 0.846132 | Q85: 0.006216886673
A86: Janvier | B86: 4 | C86: 81 | D86: 1 | E86: 1 | F86: 4 | G86: 9 | H86: =Bdd_Tefs!A86 -> 11.21 | I86: =Bdd_Text!E86 -> 7.46 | J86: 0.029 | K86: 1.05 | L86: 0.8766555 | M86: 0.005952380952 | N86: 1 | O86: =IF('Saisies-Résultats'!$D$21="Non",0,'Saisies-Résultats'!$D$24*('Saisies-Résultats'!$D$22*(52.5-20)+'Saisies-Résultats'!$D$23*(52.5-(20+'Saisies-Résultats'!$D$25*(Puis_ECS!I86-20)))))*M86*N86 -> 0 | P86: 0.8766555 | Q86: 0.006441155629
A87: Janvier | B87: 4 | C87: 82 | D87: 1 | E87: 1 | F87: 4 | G87: 10 | H87: =Bdd_Tefs!A87 -> 11.21 | I87: =Bdd_Text!E87 -> 7.56 | J87: 0 | K87: 1.05 | L87: 0 | M87: 0.005952380952 | N87: 1 | O87: =IF('Saisies-Résultats'!$D$21="Non",0,'Saisies-Résultats'!$D$24*('Saisies-Résultats'!$D$22*(52.5-20)+'Saisies-Résultats'!$D$23*(52.5-(20+'Saisies-Résultats'!$D$25*(Puis_ECS!I87-20)))))*M87*N87 -> 0 | P87: 0 | Q87: 0
A88: Janvier | B88: 4 | C88: 83 | D88: 1 | E88: 1 | F88: 4 | G88: 11 | H88: =Bdd_Tefs!A88 -> 11.21 | I88: =Bdd_Text!E88 -> 8.26 | J88: 0 | K88: 1.05 | L88: 0 | M88: 0.005952380952 | N88: 1 | O88: =IF('Saisies-Résultats'!$D$21="Non",0,'Saisies-Résultats'!$D$24*('Saisies-Résultats'!$D$22*(52.5-20)+'Saisies-Résultats'!$D$23*(52.5-(20+'Saisies-Résultats'!$D$25*(Puis_ECS!I88-20)))))*M88*N88 -> 0 | P88: 0 | Q88: 0
A89: Janvier | B89: 4 | C89: 84 | D89: 1 | E89: 1 | F89: 4 | G89: 12 | H89: =Bdd_Tefs!A89 -> 11.2 | I89: =Bdd_Text!E89 -> 8.76 | J89: 0 | K89: 1.05 | L89: 0 | M89: 0.005952380952 | N89: 1 | O89: =IF('Saisies-Résultats'!$D$21="Non",0,'Saisies-Résultats'!$D$24*('Saisies-Résultats'!$D$22*(52.5-20)+'Saisies-Résultats'!$D$23*(52.5-(20+'Saisies-Résultats'!$D$25*(Puis_ECS!I89-20)))))*M89*N89 -> 0 | P89: 0 | Q89: 0
A90: Janvier | B90: 4 | C90: 85 | D90: 1 | E90: 1 | F90: 4 | G90: 13 | H90: =Bdd_Tefs!A90 -> 11.2 | I90: =Bdd_Text!E90 -> 9.16 | J90: 0 | K90: 1.05 | L90: 0 | M90: 0.005952380952 | N90: 1 | O90: =IF('Saisies-Résultats'!$D$21="Non",0,'Saisies-Résultats'!$D$24*('Saisies-Résultats'!$D$22*(52.5-20)+'Saisies-Résultats'!$D$23*(52.5-(20+'Saisies-Résultats'!$D$25*(Puis_ECS!I90-20)))))*M90*N90 -> 0 | P90: 0 | Q90: 0
A91: Janvier | B91: 4 | C91: 86 | D91: 1 | E91: 1 | F91: 4 | G91: 14 | H91: =Bdd_Tefs!A91 -> 11.2 | I91: =Bdd_Text!E91 -> 9.76 | J91: 0 | K91: 1.05 | L91: 0 | M91: 0.005952380952 | N91: 1 | O91: =IF('Saisies-Résultats'!$D$21="Non",0,'Saisies-Résultats'!$D$24*('Saisies-Résultats'!$D$22*(52.5-20)+'Saisies-Résultats'!$D$23*(52.5-(20+'Saisies-Résultats'!$D$25*(Puis_ECS!I91-20)))))*M91*N91 -> 0 | P91: 0 | Q91: 0
A92: Janvier | B92: 4 | C92: 87 | D92: 1 | E92: 1 | F92: 4 | G92: 15 | H92: =Bdd_Tefs!A92 -> 11.2 | I92: =Bdd_Text!E92 -> 10.36 | J92: 0 | K92: 1.05 | L92: 0 | M92: 0.005952380952 | N92: 1 | O92: =IF('Saisies-Résultats'!$D$21="Non",0,'Saisies-Résultats'!$D$24*('Saisies-Résultats'!$D$22*(52.5-20)+'Saisies-Résultats'!$D$23*(52.5-(20+'Saisies-Résultats'!$D$25*(Puis_ECS!I92-20)))))*M92*N92 -> 0 | P92: 0 | Q92: 0
A93: Janvier | B93: 4 | C93: 88 | D93: 1 | E93: 1 | F93: 4 | G93: 16 | H93: =Bdd_Tefs!A93 -> 11.19 | I93: =Bdd_Text!E93 -> 10.56 | J93: 0 | K93: 1.05 | L93: 0 | M93: 0.005952380952 | N93: 1 | O93: =IF('Saisies-Résultats'!$D$21="Non",0,'Saisies-Résultats'!$D$24*('Saisies-Résultats'!$D$22*(52.5-20)+'Saisies-Résultats'!$D$23*(52.5-(20+'Saisies-Résultats'!$D$25*(Puis_ECS!I93-20)))))*M93*N93 -> 0 | P93: 0 | Q93: 0
A94: Janvier | B94: 4 | C94: 89 | D94: 1 | E94: 1 | F94: 4 | G94: 17 | H94: =Bdd_Tefs!A94 -> 11.19 | I94: =Bdd_Text!E94 -> 10.16 | J94: 0 | K94: 1.05 | L94: 0 | M94: 0.005952380952 | N94: 1 | O94: =IF('Saisies-Résultats'!$D$21="Non",0,'Saisies-Résultats'!$D$24*('Saisies-Résultats'!$D$22*(52.5-20)+'Saisies-Résultats'!$D$23*(52.5-(20+'Saisies-Résultats'!$D$25*(Puis_ECS!I94-20)))))*M94*N94 -> 0 | P94: 0 | Q94: 0
A95: Janvier | B95: 4 | C95: 90 | D95: 1 | E95: 1 | F95: 4 | G95: 18 | H95: =Bdd_Tefs!A95 -> 11.19 | I95: =Bdd_Text!E95 -> 9.56 | J95: 0 | K95: 1.05 | L95: 0 | M95: 0.005952380952 | N95: 1 | O95: =IF('Saisies-Résultats'!$D$21="Non",0,'Saisies-Résultats'!$D$24*('Saisies-Résultats'!$D$22*(52.5-20)+'Saisies-Résultats'!$D$23*(52.5-(20+'Saisies-Résultats'!$D$25*(Puis_ECS!I95-20)))))*M95*N95 -> 0 | P95: 0 | Q95: 0
A96: Janvier | B96: 4 | C96: 91 | D96: 1 | E96: 1 | F96: 4 | G96: 19 | H96: =Bdd_Tefs!A96 -> 11.19 | I96: =Bdd_Text!E96 -> 9.56 | J96: 0.029 | K96: 1.05 | L96: 0.8772645 | M96: 0.005952380952 | N96: 1 | O96: =IF('Saisies-Résultats'!$D$21="Non",0,'Saisies-Résultats'!$D$24*('Saisies-Résultats'!$D$22*(52.5-20)+'Saisies-Résultats'!$D$23*(52.5-(20+'Saisies-Résultats'!$D$25*(Puis_ECS!I96-20)))))*M96*N96 -> 0 | P96: 0.8772645 | Q96: 0.006445630208
A97: Janvier | B97: 4 | C97: 92 | D97: 1 | E97: 1 | F97: 4 | G97: 20 | H97: =Bdd_Tefs!A97 -> 11.19 | I97: =Bdd_Text!E97 -> 9.16 | J97: 0 | K97: 1.05 | L97: 0 | M97: 0.005952380952 | N97: 1 | O97: =IF('Saisies-Résultats'!$D$21="Non",0,'Saisies-Résultats'!$D$24*('Saisies-Résultats'!$D$22*(52.5-20)+'Saisies-Résultats'!$D$23*(52.5-(20+'Saisies-Résultats'!$D$25*(Puis_ECS!I97-20)))))*M97*N97 -> 0 | P97: 0 | Q97: 0
A98: Janvier | B98: 4 | C98: 93 | D98: 1 | E98: 1 | F98: 4 | G98: 21 | H98: =Bdd_Tefs!A98 -> 11.19 | I98: =Bdd_Text!E98 -> 8.16 | J98: 0.028 | K98: 1.05 | L98: 0.847014 | M98: 0.005952380952 | N98: 1 | O98: =IF('Saisies-Résultats'!$D$21="Non",0,'Saisies-Résultats'!$D$24*('Saisies-Résultats'!$D$22*(52.5-20)+'Saisies-Résultats'!$D$23*(52.5-(20+'Saisies-Résultats'!$D$25*(Puis_ECS!I98-20)))))*M98*N98 -> 0 | P98: 0.847014 | Q98: 0.006223367097
A99: Janvier | B99: 4 | C99: 94 | D99: 1 | E99: 1 | F99: 4 | G99: 22 | H99: =Bdd_Tefs!A99 -> 11.19 | I99: =Bdd_Text!E99 -> 8.06 | J99: 0.029 | K99: 1.05 | L99: 0.8772645 | M99: 0.005952380952 | N99: 1 | O99: =IF('Saisies-Résultats'!$D$21="Non",0,'Saisies-Résultats'!$D$24*('Saisies-Résultats'!$D$22*(52.5-20)+'Saisies-Résultats'!$D$23*(52.5-(20+'Saisies-Résultats'!$D$25*(Puis_ECS!I99-20)))))*M99*N99 -> 0 | P99: 0.8772645 | Q99: 0.006445630208
A100: Janvier | B100: 4 | C100: 95 | D100: 1 | E100: 1 | F100: 4 | G100: 23 | H100: =Bdd_Tefs!A100 -> 11.19 | I100: =Bdd_Text!E100 -> 8.26 | J100: 0 | K100: 1.05 | L100: 0 | M100: 0.005952380952 | N100: 1 | O100: =IF('Saisies-Résultats'!$D$21="Non",0,'Saisies-Résultats'!$D$24*('Saisies-Résultats'!$D$22*(52.5-20)+'Saisies-Résultats'!$D$23*(52.5-(20+'Saisies-Résultats'!$D$25*(Puis_ECS!I100-20)))))*M100*N100 -> 0 | P100: 0 | Q100: 0
A101: Janvier | B101: 4 | C101: 96 | D101: 1 | E101: 1 | F101: 4 | G101: 24 | H101: =Bdd_Tefs!A101 -> 11.19 | I101: =Bdd_Text!E101 -> 8.56 | J101: 0 | K101: 1.05 | L101: 0 | M101: 0.005952380952 | N101: 1 | O101: =IF('Saisies-Résultats'!$D$21="Non",0,'Saisies-Résultats'!$D$24*('Saisies-Résultats'!$D$22*(52.5-20)+'Saisies-Résultats'!$D$23*(52.5-(20+'Saisies-Résultats'!$D$25*(Puis_ECS!I101-20)))))*M101*N101 -> 0 | P101: 0 | Q101: 0
A102: Janvier | B102: 5 | C102: 97 | D102: 1 | E102: 1 | F102: 5 | G102: 1 | H102: =Bdd_Tefs!A102 -> 11.19 | I102: =Bdd_Text!E102 -> 8.46 | J102: 0 | K102: 1.05 | L102: 0 | M102: 0.005952380952 | N102: 1 | O102: =IF('Saisies-Résultats'!$D$21="Non",0,'Saisies-Résultats'!$D$24*('Saisies-Résultats'!$D$22*(52.5-20)+'Saisies-Résultats'!$D$23*(52.5-(20+'Saisies-Résultats'!$D$25*(Puis_ECS!I102-20)))))*M102*N102 -> 0 | P102: 0 | Q102: 0
A103: Janvier | B103: 5 | C103: 98 | D103: 1 | E103: 1 | F103: 5 | G103: 2 | H103: =Bdd_Tefs!A103 -> 11.19 | I103: =Bdd_Text!E103 -> 8.46 | J103: 0 | K103: 1.05 | L103: 0 | M103: 0.005952380952 | N103: 1 | O103: =IF('Saisies-Résultats'!$D$21="Non",0,'Saisies-Résultats'!$D$24*('Saisies-Résultats'!$D$22*(52.5-20)+'Saisies-Résultats'!$D$23*(52.5-(20+'Saisies-Résultats'!$D$25*(Puis_ECS!I103-20)))))*M103*N103 -> 0 | P103: 0 | Q103: 0
A104: Janvier | B104: 5 | C104: 99 | D104: 1 | E104: 1 | F104: 5 | G104: 3 | H104: =Bdd_Tefs!A104 -> 11.19 | I104: =Bdd_Text!E104 -> 8.36 | J104: 0 | K104: 1.05 | L104: 0 | M104: 0.005952380952 | N104: 1 | O104: =IF('Saisies-Résultats'!$D$21="Non",0,'Saisies-Résultats'!$D$24*('Saisies-Résultats'!$D$22*(52.5-20)+'Saisies-Résultats'!$D$23*(52.5-(20+'Saisies-Résultats'!$D$25*(Puis_ECS!I104-20)))))*M104*N104 -> 0 | P104: 0 | Q104: 0
A105: Janvier | B105: 5 | C105: 100 | D105: 1 | E105: 1 | F105: 5 | G105: 4 | H105: =Bdd_Tefs!A105 -> 11.19 | I105: =Bdd_Text!E105 -> 8.06 | J105: 0 | K105: 1.05 | L105: 0 | M105: 0.005952380952 | N105: 1 | O105: =IF('Saisies-Résultats'!$D$21="Non",0,'Saisies-Résultats'!$D$24*('Saisies-Résultats'!$D$22*(52.5-20)+'Saisies-Résultats'!$D$23*(52.5-(20+'Saisies-Résultats'!$D$25*(Puis_ECS!I105-20)))))*M105*N105 -> 0 | P105: 0 | Q105: 0
A106: Janvier | B106: 5 | C106: 101 | D106: 1 | E106: 1 | F106: 5 | G106: 5 | H106: =Bdd_Tefs!A106 -> 11.19 | I106: =Bdd_Text!E106 -> 7.86 | J106: 0 | K106: 1.05 | L106: 0 | M106: 0.005952380952 | N106: 1 | O106: =IF('Saisies-Résultats'!$D$21="Non",0,'Saisies-Résultats'!$D$24*('Saisies-Résultats'!$D$22*(52.5-20)+'Saisies-Résultats'!$D$23*(52.5-(20+'Saisies-Résultats'!$D$25*(Puis_ECS!I106-20)))))*M106*N106 -> 0 | P106: 0 | Q106: 0
A107: Janvier | B107: 5 | C107: 102 | D107: 1 | E107: 1 | F107: 5 | G107: 6 | H107: =Bdd_Tefs!A107 -> 11.19 | I107: =Bdd_Text!E107 -> 7.96 | J107: 0 | K107: 1.05 | L107: 0 | M107: 0.005952380952 | N107: 1 | O107: =IF('Saisies-Résultats'!$D$21="Non",0,'Saisies-Résultats'!$D$24*('Saisies-Résultats'!$D$22*(52.5-20)+'Saisies-Résultats'!$D$23*(52.5-(20+'Saisies-Résultats'!$D$25*(Puis_ECS!I107-20)))))*M107*N107 -> 0 | P107: 0 | Q107: 0
A108: Janvier | B108: 5 | C108: 103 | D108: 1 | E108: 1 | F108: 5 | G108: 7 | H108: =Bdd_Tefs!A108 -> 11.2 | I108: =Bdd_Text!E108 -> 7.66 | J108: 0 | K108: 1.05 | L108: 0 | M108: 0.005952380952 | N108: 1 | O108: =IF('Saisies-Résultats'!$D$21="Non",0,'Saisies-Résultats'!$D$24*('Saisies-Résultats'!$D$22*(52.5-20)+'Saisies-Résultats'!$D$23*(52.5-(20+'Saisies-Résultats'!$D$25*(Puis_ECS!I108-20)))))*M108*N108 -> 0 | P108: 0 | Q108: 0
A109: Janvier | B109: 5 | C109: 104 | D109: 1 | E109: 1 | F109: 5 | G109: 8 | H109: =Bdd_Tefs!A109 -> 11.2 | I109: =Bdd_Text!E109 -> 8.06 | J109: 0.028 | K109: 1.05 | L109: 0.84672 | M109: 0.005952380952 | N109: 1 | O109: =IF('Saisies-Résultats'!$D$21="Non",0,'Saisies-Résultats'!$D$24*('Saisies-Résultats'!$D$22*(52.5-20)+'Saisies-Résultats'!$D$23*(52.5-(20+'Saisies-Résultats'!$D$25*(Puis_ECS!I109-20)))))*M109*N109 -> 0 | P109: 0.84672 | Q109: 0.006221206956
A110: Janvier | B110: 5 | C110: 105 | D110: 1 | E110: 1 | F110: 5 | G110: 9 | H110: =Bdd_Tefs!A110 -> 11.2 | I110: =Bdd_Text!E110 -> 8.46 | J110: 0.029 | K110: 1.05 | L110: 0.87696 | M110: 0.005952380952 | N110: 1 | O110: =IF('Saisies-Résultats'!$D$21="Non",0,'Saisies-Résultats'!$D$24*('Saisies-Résultats'!$D$22*(52.5-20)+'Saisies-Résultats'!$D$23*(52.5-(20+'Saisies-Résultats'!$D$25*(Puis_ECS!I110-20)))))*M110*N110 -> 0 | P110: 0.87696 | Q110: 0.006443392919
A111: Janvier | B111: 5 | C111: 106 | D111: 1 | E111: 1 | F111: 5 | G111: 10 | H111: =Bdd_Tefs!A111 -> 11.2 | I111: =Bdd_Text!E111 -> 8.86 | J111: 0 | K111: 1.05 | L111: 0 | M111: 0.005952380952 | N111: 1 | O111: =IF('Saisies-Résultats'!$D$21="Non",0,'Saisies-Résultats'!$D$24*('Saisies-Résultats'!$D$22*(52.5-20)+'Saisies-Résultats'!$D$23*(52.5-(20+'Saisies-Résultats'!$D$25*(Puis_ECS!I111-20)))))*M111*N111 -> 0 | P111: 0 | Q111: 0
A112: Janvier | B112: 5 | C112: 107 | D112: 1 | E112: 1 | F112: 5 | G112: 11 | H112: =Bdd_Tefs!A112 -> 11.2 | I112: =Bdd_Text!E112 -> 9.06 | J112: 0 | K112: 1.05 | L112: 0 | M112: 0.005952380952 | N112: 1 | O112: =IF('Saisies-Résultats'!$D$21="Non",0,'Saisies-Résultats'!$D$24*('Saisies-Résultats'!$D$22*(52.5-20)+'Saisies-Résultats'!$D$23*(52.5-(20+'Saisies-Résultats'!$D$25*(Puis_ECS!I112-20)))))*M112*N112 -> 0 | P112: 0 | Q112: 0
A113: Janvier | B113: 5 | C113: 108 | D113: 1 | E113: 1 | F113: 5 | G113: 12 | H113: =Bdd_Tefs!A113 -> 11.2 | I113: =Bdd_Text!E113 -> 9.26 | J113: 0 | K113: 1.05 | L113: 0 | M113: 0.005952380952 | N113: 1 | O113: =IF('Saisies-Résultats'!$D$21="Non",0,'Saisies-Résultats'!$D$24*('Saisies-Résultats'!$D$22*(52.5-20)+'Saisies-Résultats'!$D$23*(52.5-(20+'Saisies-Résultats'!$D$25*(Puis_ECS!I113-20)))))*M113*N113 -> 0 | P113: 0 | Q113: 0
A114: Janvier | B114: 5 | C114: 109 | D114: 1 | E114: 1 | F114: 5 | G114: 13 | H114: =Bdd_Tefs!A114 -> 11.2 | I114: =Bdd_Text!E114 -> 9.76 | J114: 0 | K114: 1.05 | L114: 0 | M114: 0.005952380952 | N114: 1 | O114: =IF('Saisies-Résultats'!$D$21="Non",0,'Saisies-Résultats'!$D$24*('Saisies-Résultats'!$D$22*(52.5-20)+'Saisies-Résultats'!$D$23*(52.5-(20+'Saisies-Résultats'!$D$25*(Puis_ECS!I114-20)))))*M114*N114 -> 0 | P114: 0 | Q114: 0
A115: Janvier | B115: 5 | C115: 110 | D115: 1 | E115: 1 | F115: 5 | G115: 14 | H115: =Bdd_Tefs!A115 -> 11.2 | I115: =Bdd_Text!E115 -> 10.56 | J115: 0 | K115: 1.05 | L115: 0 | M115: 0.005952380952 | N115: 1 | O115: =IF('Saisies-Résultats'!$D$21="Non",0,'Saisies-Résultats'!$D$24*('Saisies-Résultats'!$D$22*(52.5-20)+'Saisies-Résultats'!$D$23*(52.5-(20+'Saisies-Résultats'!$D$25*(Puis_ECS!I115-20)))))*M115*N115 -> 0 | P115: 0 | Q115: 0
A116: Janvier | B116: 5 | C116: 111 | D116: 1 | E116: 1 | F116: 5 | G116: 15 | H116: =Bdd_Tefs!A116 -> 11.2 | I116: =Bdd_Text!E116 -> 10.66 | J116: 0 | K116: 1.05 | L116: 0 | M116: 0.005952380952 | N116: 1 | O116: =IF('Saisies-Résultats'!$D$21="Non",0,'Saisies-Résultats'!$D$24*('Saisies-Résultats'!$D$22*(52.5-20)+'Saisies-Résultats'!$D$23*(52.5-(20+'Saisies-Résultats'!$D$25*(Puis_ECS!I116-20)))))*M116*N116 -> 0 | P116: 0 | Q116: 0
A117: Janvier | B117: 5 | C117: 112 | D117: 1 | E117: 1 | F117: 5 | G117: 16 | H117: =Bdd_Tefs!A117 -> 11.2 | I117: =Bdd_Text!E117 -> 11.06 | J117: 0 | K117: 1.05 | L117: 0 | M117: 0.005952380952 | N117: 1 | O117: =IF('Saisies-Résultats'!$D$21="Non",0,'Saisies-Résultats'!$D$24*('Saisies-Résultats'!$D$22*(52.5-20)+'Saisies-Résultats'!$D$23*(52.5-(20+'Saisies-Résultats'!$D$25*(Puis_ECS!I117-20)))))*M117*N117 -> 0 | P117: 0 | Q117: 0
A118: Janvier | B118: 5 | C118: 113 | D118: 1 | E118: 1 | F118: 5 | G118: 17 | H118: =Bdd_Tefs!A118 -> 11.2 | I118: =Bdd_Text!E118 -> 10.56 | J118: 0 | K118: 1.05 | L118: 0 | M118: 0.005952380952 | N118: 1 | O118: =IF('Saisies-Résultats'!$D$21="Non",0,'Saisies-Résultats'!$D$24*('Saisies-Résultats'!$D$22*(52.5-20)+'Saisies-Résultats'!$D$23*(52.5-(20+'Saisies-Résultats'!$D$25*(Puis_ECS!I118-20)))))*M118*N118 -> 0 | P118: 0 | Q118: 0
A119: Janvier | B119: 5 | C119: 114 | D119: 1 | E119: 1 | F119: 5 | G119: 18 | H119: =Bdd_Tefs!A119 -> 11.2 | I119: =Bdd_Text!E119 -> 11.26 | J119: 0 | K119: 1.05 | L119: 0 | M119: 0.005952380952 | N119: 1 | O119: =IF('Saisies-Résultats'!$D$21="Non",0,'Saisies-Résultats'!$D$24*('Saisies-Résultats'!$D$22*(52.5-20)+'Saisies-Résultats'!$D$23*(52.5-(20+'Saisies-Résultats'!$D$25*(Puis_ECS!I119-20)))))*M119*N119 -> 0 | P119: 0 | Q119: 0
A120: Janvier | B120: 5 | C120: 115 | D120: 1 | E120: 1 | F120: 5 | G120: 19 | H120: =Bdd_Tefs!A120 -> 11.2 | I120: =Bdd_Text!E120 -> 11.16 | J120: 0.029 | K120: 1.05 | L120: 0.87696 | M120: 0.005952380952 | N120: 1 | O120: =IF('Saisies-Résultats'!$D$21="Non",0,'Saisies-Résultats'!$D$24*('Saisies-Résultats'!$D$22*(52.5-20)+'Saisies-Résultats'!$D$23*(52.5-(20+'Saisies-Résultats'!$D$25*(Puis_ECS!I120-20)))))*M120*N120 -> 0 | P120: 0.87696 | Q120: 0.006443392919
A121: Janvier | B121: 5 | C121: 116 | D121: 1 | E121: 1 | F121: 5 | G121: 20 | H121: =Bdd_Tefs!A121 -> 11.2 | I121: =Bdd_Text!E121 -> 11.46 | J121: 0 | K121: 1.05 | L121: 0 | M121: 0.005952380952 | N121: 1 | O121: =IF('Saisies-Résultats'!$D$21="Non",0,'Saisies-Résultats'!$D$24*('Saisies-Résultats'!$D$22*(52.5-20)+'Saisies-Résultats'!$D$23*(52.5-(20+'Saisies-Résultats'!$D$25*(Puis_ECS!I121-20)))))*M121*N121 -> 0 | P121: 0 | Q121: 0
A122: Janvier | B122: 5 | C122: 117 | D122: 1 | E122: 1 | F122: 5 | G122: 21 | H122: =Bdd_Tefs!A122 -> 11.2 | I122: =Bdd_Text!E122 -> 11.76 | J122: 0.028 | K122: 1.05 | L122: 0.84672 | M122: 0.005952380952 | N122: 1 | O122: =IF('Saisies-Résultats'!$D$21="Non",0,'Saisies-Résultats'!$D$24*('Saisies-Résultats'!$D$22*(52.5-20)+'Saisies-Résultats'!$D$23*(52.5-(20+'Saisies-Résultats'!$D$25*(Puis_ECS!I122-20)))))*M122*N122 -> 0 | P122: 0.84672 | Q122: 0.006221206956
A123: Janvier | B123: 5 | C123: 118 | D123: 1 | E123: 1 | F123: 5 | G123: 22 | H123: =Bdd_Tefs!A123 -> 11.2 | I123: =Bdd_Text!E123 -> 11.46 | J123: 0.029 | K123: 1.05 | L123: 0.87696 | M123: 0.005952380952 | N123: 1 | O123: =IF('Saisies-Résultats'!$D$21="Non",0,'Saisies-Résultats'!$D$24*('Saisies-Résultats'!$D$22*(52.5-20)+'Saisies-Résultats'!$D$23*(52.5-(20+'Saisies-Résultats'!$D$25*(Puis_ECS!I123-20)))))*M123*N123 -> 0 | P123: 0.87696 | Q123: 0.006443392919
A124: Janvier | B124: 5 | C124: 119 | D124: 1 | E124: 1 | F124: 5 | G124: 23 | H124: =Bdd_Tefs!A124 -> 11.2 | I124: =Bdd_Text!E124 -> 11.66 | J124: 0 | K124: 1.05 | L124: 0 | M124: 0.005952380952 | N124: 1 | O124: =IF('Saisies-Résultats'!$D$21="Non",0,'Saisies-Résultats'!$D$24*('Saisies-Résultats'!$D$22*(52.5-20)+'Saisies-Résultats'!$D$23*(52.5-(20+'Saisies-Résultats'!$D$25*(Puis_ECS!I124-20)))))*M124*N124 -> 0 | P124: 0 | Q124: 0
A125: Janvier | B125: 5 | C125: 120 | D125: 1 | E125: 1 | F125: 5 | G125: 24 | H125: =Bdd_Tefs!A125 -> 11.2 | I125: =Bdd_Text!E125 -> 11.76 | J125: 0 | K125: 1.05 | L125: 0 | M125: 0.005952380952 | N125: 1 | O125: =IF('Saisies-Résultats'!$D$21="Non",0,'Saisies-Résultats'!$D$24*('Saisies-Résultats'!$D$22*(52.5-20)+'Saisies-Résultats'!$D$23*(52.5-(20+'Saisies-Résultats'!$D$25*(Puis_ECS!I125-20)))))*M125*N125 -> 0 | P125: 0 | Q125: 0
A126: Janvier | B126: 6 | C126: 121 | D126: 1 | E126: 1 | F126: 6 | G126: 1 | H126: =Bdd_Tefs!A126 -> 11.2 | I126: =Bdd_Text!E126 -> 11.76 | J126: 0 | K126: 1.05 | L126: 0 | M126: 0.005952380952 | N126: 1 | O126: =IF('Saisies-Résultats'!$D$21="Non",0,'Saisies-Résultats'!$D$24*('Saisies-Résultats'!$D$22*(52.5-20)+'Saisies-Résultats'!$D$23*(52.5-(20+'Saisies-Résultats'!$D$25*(Puis_ECS!I126-20)))))*M126*N126 -> 0 | P126: 0 | Q126: 0
A127: Janvier | B127: 6 | C127: 122 | D127: 1 | E127: 1 | F127: 6 | G127: 2 | H127: =Bdd_Tefs!A127 -> 11.2 | I127: =Bdd_Text!E127 -> 12.16 | J127: 0 | K127: 1.05 | L127: 0 | M127: 0.005952380952 | N127: 1 | O127: =IF('Saisies-Résultats'!$D$21="Non",0,'Saisies-Résultats'!$D$24*('Saisies-Résultats'!$D$22*(52.5-20)+'Saisies-Résultats'!$D$23*(52.5-(20+'Saisies-Résultats'!$D$25*(Puis_ECS!I127-20)))))*M127*N127 -> 0 | P127: 0 | Q127: 0
A128: Janvier | B128: 6 | C128: 123 | D128: 1 | E128: 1 | F128: 6 | G128: 3 | H128: =Bdd_Tefs!A128 -> 11.2 | I128: =Bdd_Text!E128 -> 11.96 | J128: 0 | K128: 1.05 | L128: 0 | M128: 0.005952380952 | N128: 1 | O128: =IF('Saisies-Résultats'!$D$21="Non",0,'Saisies-Résultats'!$D$24*('Saisies-Résultats'!$D$22*(52.5-20)+'Saisies-Résultats'!$D$23*(52.5-(20+'Saisies-Résultats'!$D$25*(Puis_ECS!I128-20)))))*M128*N128 -> 0 | P128: 0 | Q128: 0
A129: Janvier | B129: 6 | C129: 124 | D129: 1 | E129: 1 | F129: 6 | G129: 4 | H129: =Bdd_Tefs!A129 -> 11.2 | I129: =Bdd_Text!E129 -> 12.66 | J129: 0 | K129: 1.05 | L129: 0 | M129: 0.005952380952 | N129: 1 | O129: =IF('Saisies-Résultats'!$D$21="Non",0,'Saisies-Résultats'!$D$24*('Saisies-Résultats'!$D$22*(52.5-20)+'Saisies-Résultats'!$D$23*(52.5-(20+'Saisies-Résultats'!$D$25*(Puis_ECS!I129-20)))))*M129*N129 -> 0 | P129: 0 | Q129: 0
A130: Janvier | B130: 6 | C130: 125 | D130: 1 | E130: 1 | F130: 6 | G130: 5 | H130: =Bdd_Tefs!A130 -> 11.2 | I130: =Bdd_Text!E130 -> 11.56 | J130: 0 | K130: 1.05 | L130: 0 | M130: 0.005952380952 | N130: 1 | O130: =IF('Saisies-Résultats'!$D$21="Non",0,'Saisies-Résultats'!$D$24*('Saisies-Résultats'!$D$22*(52.5-20)+'Saisies-Résultats'!$D$23*(52.5-(20+'Saisies-Résultats'!$D$25*(Puis_ECS!I130-20)))))*M130*N130 -> 0 | P130: 0 | Q130: 0
A131: Janvier | B131: 6 | C131: 126 | D131: 1 | E131: 1 | F131: 6 | G131: 6 | H131: =Bdd_Tefs!A131 -> 11.2 | I131: =Bdd_Text!E131 -> 9.06 | J131: 0 | K131: 1.05 | L131: 0 | M131: 0.005952380952 | N131: 1 | O131: =IF('Saisies-Résultats'!$D$21="Non",0,'Saisies-Résultats'!$D$24*('Saisies-Résultats'!$D$22*(52.5-20)+'Saisies-Résultats'!$D$23*(52.5-(20+'Saisies-Résultats'!$D$25*(Puis_ECS!I131-20)))))*M131*N131 -> 0 | P131: 0 | Q131: 0
A132: Janvier | B132: 6 | C132: 127 | D132: 1 | E132: 1 | F132: 6 | G132: 7 | H132: =Bdd_Tefs!A132 -> 11.2 | I132: =Bdd_Text!E132 -> 9.06 | J132: 0 | K132: 1.05 | L132: 0 | M132: 0.005952380952 | N132: 1 | O132: =IF('Saisies-Résultats'!$D$21="Non",0,'Saisies-Résultats'!$D$24*('Saisies-Résultats'!$D$22*(52.5-20)+'Saisies-Résultats'!$D$23*(52.5-(20+'Saisies-Résultats'!$D$25*(Puis_ECS!I132-20)))))*M132*N132 -> 0 | P132: 0 | Q132: 0
A133: Janvier | B133: 6 | C133: 128 | D133: 1 | E133: 1 | F133: 6 | G133: 8 | H133: =Bdd_Tefs!A133 -> 11.2 | I133: =Bdd_Text!E133 -> 8.36 | J133: 0.028 | K133: 1.05 | L133: 0.84672 | M133: 0.005952380952 | N133: 1 | O133: =IF('Saisies-Résultats'!$D$21="Non",0,'Saisies-Résultats'!$D$24*('Saisies-Résultats'!$D$22*(52.5-20)+'Saisies-Résultats'!$D$23*(52.5-(20+'Saisies-Résultats'!$D$25*(Puis_ECS!I133-20)))))*M133*N133 -> 0 | P133: 0.84672 | Q133: 0.006221206956
A134: Janvier | B134: 6 | C134: 129 | D134: 1 | E134: 1 | F134: 6 | G134: 9 | H134: =Bdd_Tefs!A134 -> 11.2 | I134: =Bdd_Text!E134 -> 7.96 | J134: =HLOOKUP($G134,$W$6:$AT$13,$F134+1,FALSE) -> 0.029 | K134: =VLOOKUP($E134,$V$16:$AH$21,$D134+1,FALSE) -> 1.05 | L134: =(40-$H134)*J134*K134 -> 0.87696 | M134: =HLOOKUP($G134,$W$26:$AT$33,$F134+1,FALSE) -> 0.005952380952 | N134: =VLOOKUP($E134,$V$36:$AH$41,$D134+1,FALSE) -> 1 | O134: =IF('Saisies-Résultats'!$D$21="Non",0,'Saisies-Résultats'!$D$24*('Saisies-Résultats'!$D$22*(52.5-20)+'Saisies-Résultats'!$D$23*(52.5-(20+'Saisies-Résultats'!$D$25*(Puis_ECS!I134-20)))))*M134*N134 -> 0 | P134: =L134+O134 -> 0.87696 | Q134: 0.006443392919
A135: Janvier | B135: 6 | C135: 130 | D135: 1 | E135: =IF(D135>D134,1,IF(AND(F134=7,F135=1),E134+1,E134)) -> 1 | F135: =IF(D135>D134,1,IF(IF(G135>G134,F134,F134+1)>7,1,IF(G135>G134,F134,F134+1))) -> 6 | G135: 10 | H135: =Bdd_Tefs!A135 -> 11.2 | I135: =Bdd_Text!E135 -> 8.26 | J135: 0 | K135: 1.05 | L135: 0 | M135: 0.005952380952 | N135: 1 | O135: =IF('Saisies-Résultats'!$D$21="Non",0,'Saisies-Résultats'!$D$24*('Saisies-Résultats'!$D$22*(52.5-20)+'Saisies-Résultats'!$D$23*(52.5-(20+'Saisies-Résultats'!$D$25*(Puis_ECS!I135-20)))))*M135*N135 -> 0 | P135: 0 | Q135: 0
A136: Janvier | B136: 6 | C136: 131 | D136: 1 | E136: 1 | F136: 6 | G136: 11 | H136: =Bdd_Tefs!A136 -> 11.2 | I136: =Bdd_Text!E136 -> 8.46 | J136: 0 | K136: 1.05 | L136: 0 | M136: 0.005952380952 | N136: 1 | O136: =IF('Saisies-Résultats'!$D$21="Non",0,'Saisies-Résultats'!$D$24*('Saisies-Résultats'!$D$22*(52.5-20)+'Saisies-Résultats'!$D$23*(52.5-(20+'Saisies-Résultats'!$D$25*(Puis_ECS!I136-20)))))*M136*N136 -> 0 | P136: 0 | Q136: =IF(P136=0,0,P136/SUM($P$6:$P$749)) -> 0
A137: Janvier | B137: 6 | C137: 132 | D137: 1 | E137: 1 | F137: 6 | G137: 12 | H137: =Bdd_Tefs!A137 -> 11.2 | I137: =Bdd_Text!E137 -> 8.96 | J137: 0 | K137: 1.05 | L137: 0 | M137: 0.005952380952 | N137: 1 | O137: =IF('Saisies-Résultats'!$D$21="Non",0,'Saisies-Résultats'!$D$24*('Saisies-Résultats'!$D$22*(52.5-20)+'Saisies-Résultats'!$D$23*(52.5-(20+'Saisies-Résultats'!$D$25*(Puis_ECS!I137-20)))))*M137*N137 -> 0 | P137: 0 | Q137: 0
A138: Janvier | B138: 6 | C138: 133 | D138: 1 | E138: 1 | F138: 6 | G138: 13 | H138: =Bdd_Tefs!A138 -> 11.2 | I138: =Bdd_Text!E138 -> 9.06 | J138: 0 | K138: 1.05 | L138: 0 | M138: 0.005952380952 | N138: 1 | O138: =IF('Saisies-Résultats'!$D$21="Non",0,'Saisies-Résultats'!$D$24*('Saisies-Résultats'!$D$22*(52.5-20)+'Saisies-Résultats'!$D$23*(52.5-(20+'Saisies-Résultats'!$D$25*(Puis_ECS!I138-20)))))*M138*N138 -> 0 | P138: 0 | Q138: 0
A139: Janvier | B139: 6 | C139: 134 | D139: 1 | E139: 1 | F139: 6 | G139: 14 | H139: =Bdd_Tefs!A139 -> 11.2 | I139: =Bdd_Text!E139 -> 9.16 | J139: 0 | K139: 1.05 | L139: 0 | M139: 0.005952380952 | N139: 1 | O139: =IF('Saisies-Résultats'!$D$21="Non",0,'Saisies-Résultats'!$D$24*('Saisies-Résultats'!$D$22*(52.5-20)+'Saisies-Résultats'!$D$23*(52.5-(20+'Saisies-Résultats'!$D$25*(Puis_ECS!I139-20)))))*M139*N139 -> 0 | P139: 0 | Q139: 0
A140: Janvier | B140: 6 | C140: 135 | D140: 1 | E140: 1 | F140: 6 | G140: 15 | H140: =Bdd_Tefs!A140 -> 11.2 | I140: =Bdd_Text!E140 -> 9.06 | J140: 0 | K140: 1.05 | L140: 0 | M140: 0.005952380952 | N140: 1 | O140: =IF('Saisies-Résultats'!$D$21="Non",0,'Saisies-Résultats'!$D$24*('Saisies-Résultats'!$D$22*(52.5-20)+'Saisies-Résultats'!$D$23*(52.5-(20+'Saisies-Résultats'!$D$25*(Puis_ECS!I140-20)))))*M140*N140 -> 0 | P140: 0 | Q140: 0
A141: Janvier | B141: 6 | C141: 136 | D141: 1 | E141: 1 | F141: 6 | G141: 16 | H141: =Bdd_Tefs!A141 -> 11.2 | I141: =Bdd_Text!E141 -> 8.86 | J141: 0 | K141: 1.05 | L141: 0 | M141: 0.005952380952 | N141: 1 | O141: =IF('Saisies-Résultats'!$D$21="Non",0,'Saisies-Résultats'!$D$24*('Saisies-Résultats'!$D$22*(52.5-20)+'Saisies-Résultats'!$D$23*(52.5-(20+'Saisies-Résultats'!$D$25*(Puis_ECS!I141-20)))))*M141*N141 -> 0 | P141: 0 | Q141: 0
A142: Janvier | B142: 6 | C142: 137 | D142: 1 | E142: 1 | F142: 6 | G142: 17 | H142: =Bdd_Tefs!A142 -> 11.2 | I142: =Bdd_Text!E142 -> 8.86 | J142: 0 | K142: 1.05 | L142: 0 | M142: 0.005952380952 | N142: 1 | O142: =IF('Saisies-Résultats'!$D$21="Non",0,'Saisies-Résultats'!$D$24*('Saisies-Résultats'!$D$22*(52.5-20)+'Saisies-Résultats'!$D$23*(52.5-(20+'Saisies-Résultats'!$D$25*(Puis_ECS!I142-20)))))*M142*N142 -> 0 | P142: 0 | Q142: 0
A143: Janvier | B143: 6 | C143: 138 | D143: 1 | E143: 1 | F143: 6 | G143: 18 | H143: =Bdd_Tefs!A143 -> 11.2 | I143: =Bdd_Text!E143 -> 8.36 | J143: 0 | K143: 1.05 | L143: 0 | M143: 0.005952380952 | N143: 1 | O143: =IF('Saisies-Résultats'!$D$21="Non",0,'Saisies-Résultats'!$D$24*('Saisies-Résultats'!$D$22*(52.5-20)+'Saisies-Résultats'!$D$23*(52.5-(20+'Saisies-Résultats'!$D$25*(Puis_ECS!I143-20)))))*M143*N143 -> 0 | P143: 0 | Q143: 0
A144: Janvier | B144: 6 | C144: 139 | D144: 1 | E144: 1 | F144: 6 | G144: 19 | H144: =Bdd_Tefs!A144 -> 11.2 | I144: =Bdd_Text!E144 -> 7.96 | J144: 0.029 | K144: 1.05 | L144: 0.87696 | M144: 0.005952380952 | N144: 1 | O144: =IF('Saisies-Résultats'!$D$21="Non",0,'Saisies-Résultats'!$D$24*('Saisies-Résultats'!$D$22*(52.5-20)+'Saisies-Résultats'!$D$23*(52.5-(20+'Saisies-Résultats'!$D$25*(Puis_ECS!I144-20)))))*M144*N144 -> 0 | P144: 0.87696 | Q144: 0.006443392919
A145: Janvier | B145: 6 | C145: 140 | D145: 1 | E145: 1 | F145: 6 | G145: 20 | H145: =Bdd_Tefs!A145 -> 11.21 | I145: =Bdd_Text!E145 -> 7.76 | J145: 0 | K145: 1.05 | L145: 0 | M145: 0.005952380952 | N145: 1 | O145: =IF('Saisies-Résultats'!$D$21="Non",0,'Saisies-Résultats'!$D$24*('Saisies-Résultats'!$D$22*(52.5-20)+'Saisies-Résultats'!$D$23*(52.5-(20+'Saisies-Résultats'!$D$25*(Puis_ECS!I145-20)))))*M145*N145 -> 0 | P145: 0 | Q145: 0
A146: Janvier | B146: 6 | C146: 141 | D146: 1 | E146: 1 | F146: 6 | G146: 21 | H146: =Bdd_Tefs!A146 -> 11.21 | I146: =Bdd_Text!E146 -> 7.16 | J146: 0.028 | K146: 1.05 | L146: 0.846426 | M146: 0.005952380952 | N146: 1 | O146: =IF('Saisies-Résultats'!$D$21="Non",0,'Saisies-Résultats'!$D$24*('Saisies-Résultats'!$D$22*(52.5-20)+'Saisies-Résultats'!$D$23*(52.5-(20+'Saisies-Résultats'!$D$25*(Puis_ECS!I146-20)))))*M146*N146 -> 0 | P146: 0.846426 | Q146: 0.006219046815
A147: Janvier | B147: 6 | C147: 142 | D147: 1 | E147: 1 | F147: 6 | G147: 22 | H147: =Bdd_Tefs!A147 -> 11.21 | I147: =Bdd_Text!E147 -> 6.76 | J147: 0.029 | K147: 1.05 | L147: 0.8766555 | M147: 0.005952380952 | N147: 1 | O147: =IF('Saisies-Résultats'!$D$21="Non",0,'Saisies-Résultats'!$D$24*('Saisies-Résultats'!$D$22*(52.5-20)+'Saisies-Résultats'!$D$23*(52.5-(20+'Saisies-Résultats'!$D$25*(Puis_ECS!I147-20)))))*M147*N147 -> 0 | P147: 0.8766555 | Q147: 0.006441155629
A148: Janvier | B148: 6 | C148: 143 | D148: 1 | E148: 1 | F148: 6 | G148: 23 | H148: =Bdd_Tefs!A148 -> 11.21 | I148: =Bdd_Text!E148 -> 6.66 | J148: 0 | K148: 1.05 | L148: 0 | M148: 0.005952380952 | N148: 1 | O148: =IF('Saisies-Résultats'!$D$21="Non",0,'Saisies-Résultats'!$D$24*('Saisies-Résultats'!$D$22*(52.5-20)+'Saisies-Résultats'!$D$23*(52.5-(20+'Saisies-Résultats'!$D$25*(Puis_ECS!I148-20)))))*M148*N148 -> 0 | P148: 0 | Q148: 0
A149: Janvier | B149: 6 | C149: 144 | D149: 1 | E149: 1 | F149: 6 | G149: 24 | H149: =Bdd_Tefs!A149 -> 11.21 | I149: =Bdd_Text!E149 -> 6.76 | J149: 0 | K149: 1.05 | L149: 0 | M149: 0.005952380952 | N149: 1 | O149: =IF('Saisies-Résultats'!$D$21="Non",0,'Saisies-Résultats'!$D$24*('Saisies-Résultats'!$D$22*(52.5-20)+'Saisies-Résultats'!$D$23*(52.5-(20+'Saisies-Résultats'!$D$25*(Puis_ECS!I149-20)))))*M149*N149 -> 0 | P149: 0 | Q149: 0
A150: Janvier | B150: 7 | C150: 145 | D150: 1 | E150: 1 | F150: 7 | G150: 1 | H150: =Bdd_Tefs!A150 -> 11.21 | I150: =Bdd_Text!E150 -> 6.66 | J150: 0 | K150: 1.05 | L150: 0 | M150: 0.005952380952 | N150: 1 | O150: =IF('Saisies-Résultats'!$D$21="Non",0,'Saisies-Résultats'!$D$24*('Saisies-Résultats'!$D$22*(52.5-20)+'Saisies-Résultats'!$D$23*(52.5-(20+'Saisies-Résultats'!$D$25*(Puis_ECS!I150-20)))))*M150*N150 -> 0 | P150: 0 | Q150: 0
A151: Janvier | B151: 7 | C151: 146 | D151: 1 | E151: 1 | F151: 7 | G151: 2 | H151: =Bdd_Tefs!A151 -> 11.21 | I151: =Bdd_Text!E151 -> 6.66 | J151: 0 | K151: 1.05 | L151: 0 | M151: 0.005952380952 | N151: 1 | O151: =IF('Saisies-Résultats'!$D$21="Non",0,'Saisies-Résultats'!$D$24*('Saisies-Résultats'!$D$22*(52.5-20)+'Saisies-Résultats'!$D$23*(52.5-(20+'Saisies-Résultats'!$D$25*(Puis_ECS!I151-20)))))*M151*N151 -> 0 | P151: 0 | Q151: 0
A152: Janvier | B152: 7 | C152: 147 | D152: 1 | E152: 1 | F152: 7 | G152: 3 | H152: =Bdd_Tefs!A152 -> 11.21 | I152: =Bdd_Text!E152 -> 6.56 | J152: 0 | K152: 1.05 | L152: 0 | M152: 0.005952380952 | N152: 1 | O152: =IF('Saisies-Résultats'!$D$21="Non",0,'Saisies-Résultats'!$D$24*('Saisies-Résultats'!$D$22*(52.5-20)+'Saisies-Résultats'!$D$23*(52.5-(20+'Saisies-Résultats'!$D$25*(Puis_ECS!I152-20)))))*M152*N152 -> 0 | P152: 0 | Q152: 0
A153: Janvier | B153: 7 | C153: 148 | D153: 1 | E153: 1 | F153: 7 | G153: 4 | H153: =Bdd_Tefs!A153 -> 11.21 | I153: =Bdd_Text!E153 -> 6.66 | J153: 0 | K153: 1.05 | L153: 0 | M153: 0.005952380952 | N153: 1 | O153: =IF('Saisies-Résultats'!$D$21="Non",0,'Saisies-Résultats'!$D$24*('Saisies-Résultats'!$D$22*(52.5-20)+'Saisies-Résultats'!$D$23*(52.5-(20+'Saisies-Résultats'!$D$25*(Puis_ECS!I153-20)))))*M153*N153 -> 0 | P153: 0 | Q153: 0
A154: Janvier | B154: 7 | C154: 149 | D154: 1 | E154: 1 | F154: 7 | G154: 5 | H154: =Bdd_Tefs!A154 -> 11.21 | I154: =Bdd_Text!E154 -> 6.56 | J154: 0 | K154: 1.05 | L154: 0 | M154: 0.005952380952 | N154: 1 | O154: =IF('Saisies-Résultats'!$D$21="Non",0,'Saisies-Résultats'!$D$24*('Saisies-Résultats'!$D$22*(52.5-20)+'Saisies-Résultats'!$D$23*(52.5-(20+'Saisies-Résultats'!$D$25*(Puis_ECS!I154-20)))))*M154*N154 -> 0 | P154: 0 | Q154: 0
A155: Janvier | B155: 7 | C155: 150 | D155: 1 | E155: 1 | F155: 7 | G155: 6 | H155: =Bdd_Tefs!A155 -> 11.21 | I155: =Bdd_Text!E155 -> 6.26 | J155: 0 | K155: 1.05 | L155: 0 | M155: 0.005952380952 | N155: 1 | O155: =IF('Saisies-Résultats'!$D$21="Non",0,'Saisies-Résultats'!$D$24*('Saisies-Résultats'!$D$22*(52.5-20)+'Saisies-Résultats'!$D$23*(52.5-(20+'Saisies-Résultats'!$D$25*(Puis_ECS!I155-20)))))*M155*N155 -> 0 | P155: 0 | Q155: 0
A156: Janvier | B156: 7 | C156: 151 | D156: 1 | E156: 1 | F156: 7 | G156: 7 | H156: =Bdd_Tefs!A156 -> 11.21 | I156: =Bdd_Text!E156 -> 5.46 | J156: 0 | K156: 1.05 | L156: 0 | M156: 0.005952380952 | N156: 1 | O156: =IF('Saisies-Résultats'!$D$21="Non",0,'Saisies-Résultats'!$D$24*('Saisies-Résultats'!$D$22*(52.5-20)+'Saisies-Résultats'!$D$23*(52.5-(20+'Saisies-Résultats'!$D$25*(Puis_ECS!I156-20)))))*M156*N156 -> 0 | P156: 0 | Q156: 0
A157: Janvier | B157: 7 | C157: 152 | D157: 1 | E157: 1 | F157: 7 | G157: 8 | H157: =Bdd_Tefs!A157 -> 11.21 | I157: =Bdd_Text!E157 -> 5.76 | J157: 0.028 | K157: 1.05 | L157: 0.846426 | M157: 0.005952380952 | N157: 1 | O157: =IF('Saisies-Résultats'!$D$21="Non",0,'Saisies-Résultats'!$D$24*('Saisies-Résultats'!$D$22*(52.5-20)+'Saisies-Résultats'!$D$23*(52.5-(20+'Saisies-Résultats'!$D$25*(Puis_ECS!I157-20)))))*M157*N157 -> 0 | P157: 0.846426 | Q157: 0.006219046815
A158: Janvier | B158: 7 | C158: 153 | D158: 1 | E158: 1 | F158: 7 | G158: 9 | H158: =Bdd_Tefs!A158 -> 11.21 | I158: =Bdd_Text!E158 -> 5.26 | J158: 0.029 | K158: 1.05 | L158: 0.8766555 | M158: 0.005952380952 | N158: 1 | O158: =IF('Saisies-Résultats'!$D$21="Non",0,'Saisies-Résultats'!$D$24*('Saisies-Résultats'!$D$22*(52.5-20)+'Saisies-Résultats'!$D$23*(52.5-(20+'Saisies-Résultats'!$D$25*(Puis_ECS!I158-20)))))*M158*N158 -> 0 | P158: 0.8766555 | Q158: 0.006441155629
A159: Janvier | B159: 7 | C159: 154 | D159: 1 | E159: 1 | F159: 7 | G159: 10 | H159: =Bdd_Tefs!A159 -> 11.21 | I159: =Bdd_Text!E159 -> 6.46 | J159: 0 | K159: 1.05 | L159: 0 | M159: 0.005952380952 | N159: 1 | O159: =IF('Saisies-Résultats'!$D$21="Non",0,'Saisies-Résultats'!$D$24*('Saisies-Résultats'!$D$22*(52.5-20)+'Saisies-Résultats'!$D$23*(52.5-(20+'Saisies-Résultats'!$D$25*(Puis_ECS!I159-20)))))*M159*N159 -> 0 | P159: 0 | Q159: 0
A160: Janvier | B160: 7 | C160: 155 | D160: 1 | E160: 1 | F160: 7 | G160: 11 | H160: =Bdd_Tefs!A160 -> 11.2 | I160: =Bdd_Text!E160 -> 6.96 | J160: 0 | K160: 1.05 | L160: 0 | M160: 0.005952380952 | N160: 1 | O160: =IF('Saisies-Résultats'!$D$21="Non",0,'Saisies-Résultats'!$D$24*('Saisies-Résultats'!$D$22*(52.5-20)+'Saisies-Résultats'!$D$23*(52.5-(20+'Saisies-Résultats'!$D$25*(Puis_ECS!I160-20)))))*M160*N160 -> 0 | P160: 0 | Q160: 0
A161: Janvier | B161: 7 | C161: 156 | D161: 1 | E161: 1 | F161: 7 | G161: 12 | H161: =Bdd_Tefs!A161 -> 11.2 | I161: =Bdd_Text!E161 -> 7.06 | J161: 0 | K161: 1.05 | L161: 0 | M161: 0.005952380952 | N161: 1 | O161: =IF('Saisies-Résultats'!$D$21="Non",0,'Saisies-Résultats'!$D$24*('Saisies-Résultats'!$D$22*(52.5-20)+'Saisies-Résultats'!$D$23*(52.5-(20+'Saisies-Résultats'!$D$25*(Puis_ECS!I161-20)))))*M161*N161 -> 0 | P161: 0 | Q161: 0
A162: Janvier | B162: 7 | C162: 157 | D162: 1 | E162: 1 | F162: 7 | G162: 13 | H162: =Bdd_Tefs!A162 -> 11.2 | I162: =Bdd_Text!E162 -> 7.96 | J162: 0 | K162: 1.05 | L162: 0 | M162: 0.005952380952 | N162: 1 | O162: =IF('Saisies-Résultats'!$D$21="Non",0,'Saisies-Résultats'!$D$24*('Saisies-Résultats'!$D$22*(52.5-20)+'Saisies-Résultats'!$D$23*(52.5-(20+'Saisies-Résultats'!$D$25*(Puis_ECS!I162-20)))))*M162*N162 -> 0 | P162: 0 | Q162: 0
A163: Janvier | B163: 7 | C163: 158 | D163: 1 | E163: 1 | F163: 7 | G163: 14 | H163: =Bdd_Tefs!A163 -> 11.2 | I163: =Bdd_Text!E163 -> 8.66 | J163: 0 | K163: 1.05 | L163: 0 | M163: 0.005952380952 | N163: 1 | O163: =IF('Saisies-Résultats'!$D$21="Non",0,'Saisies-Résultats'!$D$24*('Saisies-Résultats'!$D$22*(52.5-20)+'Saisies-Résultats'!$D$23*(52.5-(20+'Saisies-Résultats'!$D$25*(Puis_ECS!I163-20)))))*M163*N163 -> 0 | P163: 0 | Q163: 0
A164: Janvier | B164: 7 | C164: 159 | D164: 1 | E164: 1 | F164: 7 | G164: 15 | H164: =Bdd_Tefs!A164 -> 11.19 | I164: =Bdd_Text!E164 -> 7.86 | J164: 0 | K164: 1.05 | L164: 0 | M164: 0.005952380952 | N164: 1 | O164: =IF('Saisies-Résultats'!$D$21="Non",0,'Saisies-Résultats'!$D$24*('Saisies-Résultats'!$D$22*(52.5-20)+'Saisies-Résultats'!$D$23*(52.5-(20+'Saisies-Résultats'!$D$25*(Puis_ECS!I164-20)))))*M164*N164 -> 0 | P164: 0 | Q164: 0
A165: Janvier | B165: 7 | C165: 160 | D165: 1 | E165: 1 | F165: 7 | G165: 16 | H165: =Bdd_Tefs!A165 -> 11.19 | I165: =Bdd_Text!E165 -> 7.36 | J165: 0 | K165: 1.05 | L165: 0 | M165: 0.005952380952 | N165: 1 | O165: =IF('Saisies-Résultats'!$D$21="Non",0,'Saisies-Résultats'!$D$24*('Saisies-Résultats'!$D$22*(52.5-20)+'Saisies-Résultats'!$D$23*(52.5-(20+'Saisies-Résultats'!$D$25*(Puis_ECS!I165-20)))))*M165*N165 -> 0 | P165: 0 | Q165: 0
A166: Janvier | B166: 7 | C166: 161 | D166: 1 | E166: 1 | F166: 7 | G166: 17 | H166: =Bdd_Tefs!A166 -> 11.19 | I166: =Bdd_Text!E166 -> 6.46 | J166: 0 | K166: 1.05 | L166: 0 | M166: 0.005952380952 | N166: 1 | O166: =IF('Saisies-Résultats'!$D$21="Non",0,'Saisies-Résultats'!$D$24*('Saisies-Résultats'!$D$22*(52.5-20)+'Saisies-Résultats'!$D$23*(52.5-(20+'Saisies-Résultats'!$D$25*(Puis_ECS!I166-20)))))*M166*N166 -> 0 | P166: 0 | Q166: 0
A167: Janvier | B167: 7 | C167: 162 | D167: 1 | E167: 1 | F167: 7 | G167: 18 | H167: =Bdd_Tefs!A167 -> 11.18 | I167: =Bdd_Text!E167 -> 5.96 | J167: 0 | K167: 1.05 | L167: 0 | M167: 0.005952380952 | N167: 1 | O167: =IF('Saisies-Résultats'!$D$21="Non",0,'Saisies-Résultats'!$D$24*('Saisies-Résultats'!$D$22*(52.5-20)+'Saisies-Résultats'!$D$23*(52.5-(20+'Saisies-Résultats'!$D$25*(Puis_ECS!I167-20)))))*M167*N167 -> 0 | P167: 0 | Q167: 0
A168: Janvier | B168: 7 | C168: 163 | D168: 1 | E168: 1 | F168: 7 | G168: 19 | H168: =Bdd_Tefs!A168 -> 11.18 | I168: =Bdd_Text!E168 -> 5.96 | J168: 0.029 | K168: 1.05 | L168: 0.877569 | M168: 0.005952380952 | N168: 1 | O168: =IF('Saisies-Résultats'!$D$21="Non",0,'Saisies-Résultats'!$D$24*('Saisies-Résultats'!$D$22*(52.5-20)+'Saisies-Résultats'!$D$23*(52.5-(20+'Saisies-Résultats'!$D$25*(Puis_ECS!I168-20)))))*M168*N168 -> 0 | P168: 0.877569 | Q168: 0.006447867497
A169: Janvier | B169: 7 | C169: 164 | D169: 1 | E169: 1 | F169: 7 | G169: 20 | H169: =Bdd_Tefs!A169 -> 11.17 | I169: =Bdd_Text!E169 -> 5.96 | J169: 0 | K169: 1.05 | L169: 0 | M169: 0.005952380952 | N169: 1 | O169: =IF('Saisies-Résultats'!$D$21="Non",0,'Saisies-Résultats'!$D$24*('Saisies-Résultats'!$D$22*(52.5-20)+'Saisies-Résultats'!$D$23*(52.5-(20+'Saisies-Résultats'!$D$25*(Puis_ECS!I169-20)))))*M169*N169 -> 0 | P169: 0 | Q169: 0
A170: Janvier | B170: 7 | C170: 165 | D170: 1 | E170: 1 | F170: 7 | G170: 21 | H170: =Bdd_Tefs!A170 -> 11.17 | I170: =Bdd_Text!E170 -> 6.06 | J170: 0.028 | K170: 1.05 | L170: 0.847602 | M170: 0.005952380952 | N170: 1 | O170: =IF('Saisies-Résultats'!$D$21="Non",0,'Saisies-Résultats'!$D$24*('Saisies-Résultats'!$D$22*(52.5-20)+'Saisies-Résultats'!$D$23*(52.5-(20+'Saisies-Résultats'!$D$25*(Puis_ECS!I170-20)))))*M170*N170 -> 0 | P170: 0.847602 | Q170: 0.00622768738
A171: Janvier | B171: 7 | C171: 166 | D171: 1 | E171: 1 | F171: 7 | G171: 22 | H171: =Bdd_Tefs!A171 -> 11.17 | I171: =Bdd_Text!E171 -> 5.66 | J171: 0.029 | K171: 1.05 | L171: 0.8778735 | M171: 0.005952380952 | N171: 1 | O171: =IF('Saisies-Résultats'!$D$21="Non",0,'Saisies-Résultats'!$D$24*('Saisies-Résultats'!$D$22*(52.5-20)+'Saisies-Résultats'!$D$23*(52.5-(20+'Saisies-Résultats'!$D$25*(Puis_ECS!I171-20)))))*M171*N171 -> 0 | P171: 0.8778735 | Q171: 0.006450104786
A172: Janvier | B172: 7 | C172: 167 | D172: 1 | E172: 1 | F172: 7 | G172: 23 | H172: =Bdd_Tefs!A172 -> 11.16 | I172: =Bdd_Text!E172 -> 5.76 | J172: 0 | K172: 1.05 | L172: 0 | M172: 0.005952380952 | N172: 1 | O172: =IF('Saisies-Résultats'!$D$21="Non",0,'Saisies-Résultats'!$D$24*('Saisies-Résultats'!$D$22*(52.5-20)+'Saisies-Résultats'!$D$23*(52.5-(20+'Saisies-Résultats'!$D$25*(Puis_ECS!I172-20)))))*M172*N172 -> 0 | P172: 0 | Q172: 0
A173: Janvier | B173: 7 | C173: 168 | D173: 1 | E173: 1 | F173: 7 | G173: 24 | H173: =Bdd_Tefs!A173 -> 11.16 | I173: =Bdd_Text!E173 -> 5.46 | J173: 0 | K173: 1.05 | L173: 0 | M173: 0.005952380952 | N173: 1 | O173: =IF('Saisies-Résultats'!$D$21="Non",0,'Saisies-Résultats'!$D$24*('Saisies-Résultats'!$D$22*(52.5-20)+'Saisies-Résultats'!$D$23*(52.5-(20+'Saisies-Résultats'!$D$25*(Puis_ECS!I173-20)))))*M173*N173 -> 0 | P173: 0 | Q173: 0
A174: Janvier | B174: 8 | C174: 169 | D174: 1 | E174: 2 | F174: 1 | G174: 1 | H174: =Bdd_Tefs!A174 -> 11.15 | I174: =Bdd_Text!E174 -> 5.06 | J174: 0 | K174: 1.05 | L174: 0 | M174: 0.005952380952 | N174: 1 | O174: =IF('Saisies-Résultats'!$D$21="Non",0,'Saisies-Résultats'!$D$24*('Saisies-Résultats'!$D$22*(52.5-20)+'Saisies-Résultats'!$D$23*(52.5-(20+'Saisies-Résultats'!$D$25*(Puis_ECS!I174-20)))))*M174*N174 -> 0 | P174: 0 | Q174: 0
A175: Janvier | B175: 8 | C175: 170 | D175: 1 | E175: 2 | F175: 1 | G175: 2 | H175: =Bdd_Tefs!A175 -> 11.15 | I175: =Bdd_Text!E175 -> 4.36 | J175: 0 | K175: 1.05 | L175: 0 | M175: 0.005952380952 | N175: 1 | O175: =IF('Saisies-Résultats'!$D$21="Non",0,'Saisies-Résultats'!$D$24*('Saisies-Résultats'!$D$22*(52.5-20)+'Saisies-Résultats'!$D$23*(52.5-(20+'Saisies-Résultats'!$D$25*(Puis_ECS!I175-20)))))*M175*N175 -> 0 | P175: 0 | Q175: 0
A176: Janvier | B176: 8 | C176: 171 | D176: 1 | E176: 2 | F176: 1 | G176: 3 | H176: =Bdd_Tefs!A176 -> 11.14 | I176: =Bdd_Text!E176 -> 4.76 | J176: 0 | K176: 1.05 | L176: 0 | M176: 0.005952380952 | N176: 1 | O176: =IF('Saisies-Résultats'!$D$21="Non",0,'Saisies-Résultats'!$D$24*('Saisies-Résultats'!$D$22*(52.5-20)+'Saisies-Résultats'!$D$23*(52.5-(20+'Saisies-Résultats'!$D$25*(Puis_ECS!I176-20)))))*M176*N176 -> 0 | P176: 0 | Q176: 0
A177: Janvier | B177: 8 | C177: 172 | D177: 1 | E177: 2 | F177: 1 | G177: 4 | H177: =Bdd_Tefs!A177 -> 11.14 | I177: =Bdd_Text!E177 -> 4.26 | J177: 0 | K177: 1.05 | L177: 0 | M177: 0.005952380952 | N177: 1 | O177: =IF('Saisies-Résultats'!$D$21="Non",0,'Saisies-Résultats'!$D$24*('Saisies-Résultats'!$D$22*(52.5-20)+'Saisies-Résultats'!$D$23*(52.5-(20+'Saisies-Résultats'!$D$25*(Puis_ECS!I177-20)))))*M177*N177 -> 0 | P177: 0 | Q177: 0
A178: Janvier | B178: 8 | C178: 173 | D178: 1 | E178: 2 | F178: 1 | G178: 5 | H178: =Bdd_Tefs!A178 -> 11.13 | I178: =Bdd_Text!E178 -> 4.66 | J178: 0 | K178: 1.05 | L178: 0 | M178: 0.005952380952 | N178: 1 | O178: =IF('Saisies-Résultats'!$D$21="Non",0,'Saisies-Résultats'!$D$24*('Saisies-Résultats'!$D$22*(52.5-20)+'Saisies-Résultats'!$D$23*(52.5-(20+'Saisies-Résultats'!$D$25*(Puis_ECS!I178-20)))))*M178*N178 -> 0 | P178: 0 | Q178: 0
A179: Janvier | B179: 8 | C179: 174 | D179: 1 | E179: 2 | F179: 1 | G179: 6 | H179: =Bdd_Tefs!A179 -> 11.13 | I179: =Bdd_Text!E179 -> 5.16 | J179: 0 | K179: 1.05 | L179: 0 | M179: 0.005952380952 | N179: 1 | O179: =IF('Saisies-Résultats'!$D$21="Non",0,'Saisies-Résultats'!$D$24*('Saisies-Résultats'!$D$22*(52.5-20)+'Saisies-Résultats'!$D$23*(52.5-(20+'Saisies-Résultats'!$D$25*(Puis_ECS!I179-20)))))*M179*N179 -> 0 | P179: 0 | Q179: 0
A180: Janvier | B180: 8 | C180: 175 | D180: 1 | E180: 2 | F180: 1 | G180: 7 | H180: =Bdd_Tefs!A180 -> 11.12 | I180: =Bdd_Text!E180 -> 5.26 | J180: 0 | K180: 1.05 | L180: 0 | M180: 0.005952380952 | N180: 1 | O180: =IF('Saisies-Résultats'!$D$21="Non",0,'Saisies-Résultats'!$D$24*('Saisies-Résultats'!$D$22*(52.5-20)+'Saisies-Résultats'!$D$23*(52.5-(20+'Saisies-Résultats'!$D$25*(Puis_ECS!I180-20)))))*M180*N180 -> 0 | P180: 0 | Q180: 0
A181: Janvier | B181: 8 | C181: 176 | D181: 1 | E181: 2 | F181: 1 | G181: 8 | H181: =Bdd_Tefs!A181 -> 11.12 | I181: =Bdd_Text!E181 -> 5.16 | J181: 0.028 | K181: 1.05 | L181: 0.849072 | M181: 0.005952380952 | N181: 1 | O181: =IF('Saisies-Résultats'!$D$21="Non",0,'Saisies-Résultats'!$D$24*('Saisies-Résultats'!$D$22*(52.5-20)+'Saisies-Résultats'!$D$23*(52.5-(20+'Saisies-Résultats'!$D$25*(Puis_ECS!I181-20)))))*M181*N181 -> 0 | P181: 0.849072 | Q181: 0.006238488086
A182: Janvier | B182: 8 | C182: 177 | D182: 1 | E182: 2 | F182: 1 | G182: 9 | H182: =Bdd_Tefs!A182 -> 11.11 | I182: =Bdd_Text!E182 -> 5.36 | J182: 0.029 | K182: 1.05 | L182: 0.8797005 | M182: 0.005952380952 | N182: 1 | O182: =IF('Saisies-Résultats'!$D$21="Non",0,'Saisies-Résultats'!$D$24*('Saisies-Résultats'!$D$22*(52.5-20)+'Saisies-Résultats'!$D$23*(52.5-(20+'Saisies-Résultats'!$D$25*(Puis_ECS!I182-20)))))*M182*N182 -> 0 | P182: 0.8797005 | Q182: 0.006463528521
A183: Janvier | B183: 8 | C183: 178 | D183: 1 | E183: 2 | F183: 1 | G183: 10 | H183: =Bdd_Tefs!A183 -> 11.11 | I183: =Bdd_Text!E183 -> 5.66 | J183: 0 | K183: 1.05 | L183: 0 | M183: 0.005952380952 | N183: 1 | O183: =IF('Saisies-Résultats'!$D$21="Non",0,'Saisies-Résultats'!$D$24*('Saisies-Résultats'!$D$22*(52.5-20)+'Saisies-Résultats'!$D$23*(52.5-(20+'Saisies-Résultats'!$D$25*(Puis_ECS!I183-20)))))*M183*N183 -> 0 | P183: 0 | Q183: 0
A184: Janvier | B184: 8 | C184: 179 | D184: 1 | E184: 2 | F184: 1 | G184: 11 | H184: =Bdd_Tefs!A184 -> 11.11 | I184: =Bdd_Text!E184 -> 5.96 | J184: 0 | K184: 1.05 | L184: 0 | M184: 0.005952380952 | N184: 1 | O184: =IF('Saisies-Résultats'!$D$21="Non",0,'Saisies-Résultats'!$D$24*('Saisies-Résultats'!$D$22*(52.5-20)+'Saisies-Résultats'!$D$23*(52.5-(20+'Saisies-Résultats'!$D$25*(Puis_ECS!I184-20)))))*M184*N184 -> 0 | P184: 0 | Q184: 0
A185: Janvier | B185: 8 | C185: 180 | D185: 1 | E185: 2 | F185: 1 | G185: 12 | H185: =Bdd_Tefs!A185 -> 11.1 | I185: =Bdd_Text!E185 -> 6.36 | J185: 0 | K185: 1.05 | L185: 0 | M185: 0.005952380952 | N185: 1 | O185: =IF('Saisies-Résultats'!$D$21="Non",0,'Saisies-Résultats'!$D$24*('Saisies-Résultats'!$D$22*(52.5-20)+'Saisies-Résultats'!$D$23*(52.5-(20+'Saisies-Résultats'!$D$25*(Puis_ECS!I185-20)))))*M185*N185 -> 0 | P185: 0 | Q185: 0
A186: Janvier | B186: 8 | C186: 181 | D186: 1 | E186: 2 | F186: 1 | G186: 13 | H186: =Bdd_Tefs!A186 -> 11.1 | I186: =Bdd_Text!E186 -> 6.86 | J186: 0 | K186: 1.05 | L186: 0 | M186: 0.005952380952 | N186: 1 | O186: =IF('Saisies-Résultats'!$D$21="Non",0,'Saisies-Résultats'!$D$24*('Saisies-Résultats'!$D$22*(52.5-20)+'Saisies-Résultats'!$D$23*(52.5-(20+'Saisies-Résultats'!$D$25*(Puis_ECS!I186-20)))))*M186*N186 -> 0 | P186: 0 | Q186: 0
A187: Janvier | B187: 8 | C187: 182 | D187: 1 | E187: 2 | F187: 1 | G187: 14 | H187: =Bdd_Tefs!A187 -> 11.1 | I187: =Bdd_Text!E187 -> 7.26 | J187: 0 | K187: 1.05 | L187: 0 | M187: 0.005952380952 | N187: 1 | O187: =IF('Saisies-Résultats'!$D$21="Non",0,'Saisies-Résultats'!$D$24*('Saisies-Résultats'!$D$22*(52.5-20)+'Saisies-Résultats'!$D$23*(52.5-(20+'Saisies-Résultats'!$D$25*(Puis_ECS!I187-20)))))*M187*N187 -> 0 | P187: 0 | Q187: 0
A188: Janvier | B188: 8 | C188: 183 | D188: 1 | E188: 2 | F188: 1 | G188: 15 | H188: =Bdd_Tefs!A188 -> 11.1 | I188: =Bdd_Text!E188 -> 7.16 | J188: 0 | K188: 1.05 | L188: 0 | M188: 0.005952380952 | N188: 1 | O188: =IF('Saisies-Résultats'!$D$21="Non",0,'Saisies-Résultats'!$D$24*('Saisies-Résultats'!$D$22*(52.5-20)+'Saisies-Résultats'!$D$23*(52.5-(20+'Saisies-Résultats'!$D$25*(Puis_ECS!I188-20)))))*M188*N188 -> 0 | P188: 0 | Q188: 0
A189: Janvier | B189: 8 | C189: 184 | D189: 1 | E189: 2 | F189: 1 | G189: 16 | H189: =Bdd_Tefs!A189 -> 11.09 | I189: =Bdd_Text!E189 -> 6.16 | J189: 0 | K189: 1.05 | L189: 0 | M189: 0.005952380952 | N189: 1 | O189: =IF('Saisies-Résultats'!$D$21="Non",0,'Saisies-Résultats'!$D$24*('Saisies-Résultats'!$D$22*(52.5-20)+'Saisies-Résultats'!$D$23*(52.5-(20+'Saisies-Résultats'!$D$25*(Puis_ECS!I189-20)))))*M189*N189 -> 0 | P189: 0 | Q189: 0
A190: Janvier | B190: 8 | C190: 185 | D190: 1 | E190: 2 | F190: 1 | G190: 17 | H190: =Bdd_Tefs!A190 -> 11.09 | I190: =Bdd_Text!E190 -> 4.76 | J190: 0 | K190: 1.05 | L190: 0 | M190: 0.005952380952 | N190: 1 | O190: =IF('Saisies-Résultats'!$D$21="Non",0,'Saisies-Résultats'!$D$24*('Saisies-Résultats'!$D$22*(52.5-20)+'Saisies-Résultats'!$D$23*(52.5-(20+'Saisies-Résultats'!$D$25*(Puis_ECS!I190-20)))))*M190*N190 -> 0 | P190: 0 | Q190: 0
A191: Janvier | B191: 8 | C191: 186 | D191: 1 | E191: 2 | F191: 1 | G191: 18 | H191: =Bdd_Tefs!A191 -> 11.09 | I191: =Bdd_Text!E191 -> 2.86 | J191: 0 | K191: 1.05 | L191: 0 | M191: 0.005952380952 | N191: 1 | O191: =IF('Saisies-Résultats'!$D$21="Non",0,'Saisies-Résultats'!$D$24*('Saisies-Résultats'!$D$22*(52.5-20)+'Saisies-Résultats'!$D$23*(52.5-(20+'Saisies-Résultats'!$D$25*(Puis_ECS!I191-20)))))*M191*N191 -> 0 | P191: 0 | Q191: 0
A192: Janvier | B192: 8 | C192: 187 | D192: 1 | E192: 2 | F192: 1 | G192: 19 | H192: =Bdd_Tefs!A192 -> 11.09 | I192: =Bdd_Text!E192 -> 1.66 | J192: 0.029 | K192: 1.05 | L192: 0.8803095 | M192: 0.005952380952 | N192: 1 | O192: =IF('Saisies-Résultats'!$D$21="Non",0,'Saisies-Résultats'!$D$24*('Saisies-Résultats'!$D$22*(52.5-20)+'Saisies-Résultats'!$D$23*(52.5-(20+'Saisies-Résultats'!$D$25*(Puis_ECS!I192-20)))))*M192*N192 -> 0 | P192: 0.8803095 | Q192: 0.0064680031
A193: Janvier | B193: 8 | C193: 188 | D193: 1 | E193: 2 | F193: 1 | G193: 20 | H193: =Bdd_Tefs!A193 -> 11.09 | I193: =Bdd_Text!E193 -> 3.56 | J193: 0 | K193: 1.05 | L193: 0 | M193: 0.005952380952 | N193: 1 | O193: =IF('Saisies-Résultats'!$D$21="Non",0,'Saisies-Résultats'!$D$24*('Saisies-Résultats'!$D$22*(52.5-20)+'Saisies-Résultats'!$D$23*(52.5-(20+'Saisies-Résultats'!$D$25*(Puis_ECS!I193-20)))))*M193*N193 -> 0 | P193: 0 | Q193: 0
A194: Janvier | B194: 8 | C194: 189 | D194: 1 | E194: 2 | F194: 1 | G194: 21 | H194: =Bdd_Tefs!A194 -> 11.09 | I194: =Bdd_Text!E194 -> 3.96 | J194: 0.028 | K194: 1.05 | L194: 0.849954 | M194: 0.005952380952 | N194: 1 | O194: =IF('Saisies-Résultats'!$D$21="Non",0,'Saisies-Résultats'!$D$24*('Saisies-Résultats'!$D$22*(52.5-20)+'Saisies-Résultats'!$D$23*(52.5-(20+'Saisies-Résultats'!$D$25*(Puis_ECS!I194-20)))))*M194*N194 -> 0 | P194: 0.849954 | Q194: 0.00624496851
A195: Janvier | B195: 8 | C195: 190 | D195: 1 | E195: 2 | F195: 1 | G195: 22 | H195: =Bdd_Tefs!A195 -> 11.09 | I195: =Bdd_Text!E195 -> 3.56 | J195: 0.029 | K195: 1.05 | L195: 0.8803095 | M195: 0.005952380952 | N195: 1 | O195: =IF('Saisies-Résultats'!$D$21="Non",0,'Saisies-Résultats'!$D$24*('Saisies-Résultats'!$D$22*(52.5-20)+'Saisies-Résultats'!$D$23*(52.5-(20+'Saisies-Résultats'!$D$25*(Puis_ECS!I195-20)))))*M195*N195 -> 0 | P195: 0.8803095 | Q195: 0.0064680031
A196: Janvier | B196: 8 | C196: 191 | D196: 1 | E196: 2 | F196: 1 | G196: 23 | H196: =Bdd_Tefs!A196 -> 11.09 | I196: =Bdd_Text!E196 -> 3.66 | J196: 0 | K196: 1.05 | L196: 0 | M196: 0.005952380952 | N196: 1 | O196: =IF('Saisies-Résultats'!$D$21="Non",0,'Saisies-Résultats'!$D$24*('Saisies-Résultats'!$D$22*(52.5-20)+'Saisies-Résultats'!$D$23*(52.5-(20+'Saisies-Résultats'!$D$25*(Puis_ECS!I196-20)))))*M196*N196 -> 0 | P196: 0 | Q196: 0
A197: Janvier | B197: 8 | C197: 192 | D197: 1 | E197: 2 | F197: 1 | G197: 24 | H197: =Bdd_Tefs!A197 -> 11.09 | I197: =Bdd_Text!E197 -> 3.76 | J197: 0 | K197: 1.05 | L197: 0 | M197: 0.005952380952 | N197: 1 | O197: =IF('Saisies-Résultats'!$D$21="Non",0,'Saisies-Résultats'!$D$24*('Saisies-Résultats'!$D$22*(52.5-20)+'Saisies-Résultats'!$D$23*(52.5-(20+'Saisies-Résultats'!$D$25*(Puis_ECS!I197-20)))))*M197*N197 -> 0 | P197: 0 | Q197: 0
A198: Janvier | B198: 9 | C198: 193 | D198: 1 | E198: 2 | F198: 2 | G198: 1 | H198: =Bdd_Tefs!A198 -> 11.09 | I198: =Bdd_Text!E198 -> 3.76 | J198: =HLOOKUP($G198,$W$6:$AT$13,$F198+1,FALSE) -> 0 | K198: =VLOOKUP($E198,$V$16:$AH$21,$D198+1,FALSE) -> 1.05 | L198: =(40-$H198)*J198*K198 -> 0 | M198: =HLOOKUP($G198,$W$26:$AT$33,$F198+1,FALSE) -> 0.005952380952 | N198: =VLOOKUP($E198,$V$36:$AH$41,$D198+1,FALSE) -> 1 | O198: =IF('Saisies-Résultats'!$D$21="Non",0,'Saisies-Résultats'!$D$24*('Saisies-Résultats'!$D$22*(52.5-20)+'Saisies-Résultats'!$D$23*(52.5-(20+'Saisies-Résultats'!$D$25*(Puis_ECS!I198-20)))))*M198*N198 -> 0 | P198: =L198+O198 -> 0 | Q198: 0
A199: Janvier | B199: 9 | C199: 194 | D199: 1 | E199: =IF(D199>D198,1,IF(AND(F198=7,F199=1),E198+1,E198)) -> 2 | F199: =IF(D199>D198,1,IF(IF(G199>G198,F198,F198+1)>7,1,IF(G199>G198,F198,F198+1))) -> 2 | G199: 2 | H199: =Bdd_Tefs!A199 -> 11.09 | I199: =Bdd_Text!E199 -> 3.86 | J199: 0 | K199: 1.05 | L199: 0 | M199: 0.005952380952 | N199: 1 | O199: =IF('Saisies-Résultats'!$D$21="Non",0,'Saisies-Résultats'!$D$24*('Saisies-Résultats'!$D$22*(52.5-20)+'Saisies-Résultats'!$D$23*(52.5-(20+'Saisies-Résultats'!$D$25*(Puis_ECS!I199-20)))))*M199*N199 -> 0 | P199: 0 | Q199: 0
A200: Janvier | B200: 9 | C200: 195 | D200: 1 | E200: 2 | F200: 2 | G200: 3 | H200: =Bdd_Tefs!A200 -> 11.09 | I200: =Bdd_Text!E200 -> 4.06 | J200: 0 | K200: 1.05 | L200: 0 | M200: 0.005952380952 | N200: 1 | O200: =IF('Saisies-Résultats'!$D$21="Non",0,'Saisies-Résultats'!$D$24*('Saisies-Résultats'!$D$22*(52.5-20)+'Saisies-Résultats'!$D$23*(52.5-(20+'Saisies-Résultats'!$D$25*(Puis_ECS!I200-20)))))*M200*N200 -> 0 | P200: 0 | Q200: =IF(P200=0,0,P200/SUM($P$6:$P$749)) -> 0
A201: Janvier | B201: 9 | C201: 196 | D201: 1 | E201: 2 | F201: 2 | G201: 4 | H201: =Bdd_Tefs!A201 -> 11.09 | I201: =Bdd_Text!E201 -> 4.36 | J201: 0 | K201: 1.05 | L201: 0 | M201: 0.005952380952 | N201: 1 | O201: =IF('Saisies-Résultats'!$D$21="Non",0,'Saisies-Résultats'!$D$24*('Saisies-Résultats'!$D$22*(52.5-20)+'Saisies-Résultats'!$D$23*(52.5-(20+'Saisies-Résultats'!$D$25*(Puis_ECS!I201-20)))))*M201*N201 -> 0 | P201: 0 | Q201: 0
A202: Janvier | B202: 9 | C202: 197 | D202: 1 | E202: 2 | F202: 2 | G202: 5 | H202: =Bdd_Tefs!A202 -> 11.09 | I202: =Bdd_Text!E202 -> 4.26 | J202: 0 | K202: 1.05 | L202: 0 | M202: 0.005952380952 | N202: 1 | O202: =IF('Saisies-Résultats'!$D$21="Non",0,'Saisies-Résultats'!$D$24*('Saisies-Résultats'!$D$22*(52.5-20)+'Saisies-Résultats'!$D$23*(52.5-(20+'Saisies-Résultats'!$D$25*(Puis_ECS!I202-20)))))*M202*N202 -> 0 | P202: 0 | Q202: 0
... 4298 more rows

Sheet Bdd_Tefs (hidden)
A4: Zone sélectionnée
A5: ='Saisies-Résultats'!D11 -> H3 | C5: Pas de temps | D5: H1a | E5: H1b | F5: H1c | G5: H2a | H5: H2b | I5: H2c | J5: H2d | K5: H3
A6: =HLOOKUP($A$5,$D$5:$K$8765,C6+1,FALSE)-0.005*$B$2 -> 11.65 | C6: 1 | D6: 8.12 | E6: 7.26 | F6: 7.66 | G6: 8.42 | H6: 8 | I6: 8.29 | J6: 8.92 | K6: 11.65
A7: =HLOOKUP($A$5,$D$5:$K$8765,C7+1,FALSE)-0.005*$B$2 -> 11.63 | C7: 2 | D7: 8.08 | E7: 7.35 | F7: 7.66 | G7: 8.42 | H7: 9.1 | I7: 8.34 | J7: 8.94 | K7: 11.63
A8: 11.6 | C8: 3 | D8: 8.03 | E8: 7.44 | F8: 7.65 | G8: 8.41 | H8: 8 | I8: 8.4 | J8: 8.96 | K8: 11.6
A9: =HLOOKUP($A$5,$D$5:$K$8765,C9+1,FALSE) -> 11.58 | C9: 4 | D9: 8 | E9: 7.53 | F9: 7.65 | G9: 8.41 | H9: 9.1 | I9: 8.45 | J9: 8.99 | K9: 11.58
A10: =HLOOKUP($A$5,$D$5:$K$8765,C10+1,FALSE) -> 11.56 | C10: 5 | D10: 7.97 | E10: 7.62 | F10: 7.64 | G10: 8.41 | H10: 8 | I10: 8.51 | J10: 9.01 | K10: 11.56
A11: 11.53 | C11: 6 | D11: 7.94 | E11: 7.71 | F11: 7.64 | G11: 8.4 | H11: 9.1 | I11: 8.56 | J11: 9.04 | K11: 11.53
A12: 11.51 | C12: 7 | D12: 7.92 | E12: 7.8 | F12: 7.63 | G12: 8.4 | H12: 8 | I12: 8.62 | J12: 9.06 | K12: 11.51
A13: 11.49 | C13: 8 | D13: 7.91 | E13: 7.88 | F13: 7.63 | G13: 8.4 | H13: 9.1 | I13: 8.68 | J13: 9.09 | K13: 11.49
A14: 11.47 | C14: 9 | D14: 7.9 | E14: 7.95 | F14: 7.62 | G14: 8.4 | H14: 8 | I14: 8.73 | J14: 9.11 | K14: 11.47
A15: 11.45 | C15: 10 | D15: 7.9 | E15: 8.02 | F15: 7.62 | G15: 8.4 | H15: 9.1 | I15: 8.78 | J15: 9.14 | K15: 11.45
A16: 11.43 | C16: 11 | D16: 7.9 | E16: 8.09 | F16: 7.61 | G16: 8.4 | H16: 8 | I16: 8.82 | J16: 9.16 | K16: 11.43
A17: 11.42 | C17: 12 | D17: 7.9 | E17: 8.15 | F17: 7.61 | G17: 8.4 | H17: 9.1 | I17: 8.86 | J17: 9.18 | K17: 11.42
A18: 11.4 | C18: 13 | D18: 7.9 | E18: 8.2 | F18: 7.6 | G18: 8.4 | H18: 8 | I18: 8.9 | J18: 9.2 | K18: 11.4
A19: 11.39 | C19: 14 | D19: 7.9 | E19: 8.24 | F19: 7.59 | G19: 8.4 | H19: 8.9 | I19: 8.93 | J19: 9.22 | K19: 11.39
A20: 11.37 | C20: 15 | D20: 7.9 | E20: 8.28 | F20: 7.59 | G20: 8.4 | H20: 9.1 | I20: 8.96 | J20: 9.24 | K20: 11.37
A21: 11.36 | C21: 16 | D21: 7.9 | E21: 8.31 | F21: 7.58 | G21: 8.4 | H21: 8 | I21: 8.98 | J21: 9.25 | K21: 11.36
A22: 11.35 | C22: 17 | D22: 7.9 | E22: 8.34 | F22: 7.58 | G22: 8.5 | H22: 9.1 | I22: 8.99 | J22: 9.26 | K22: 11.35
A23: 11.34 | C23: 18 | D23: 7.9 | E23: 8.36 | F23: 7.58 | G23: 8.4 | H23: 8 | I23: 9.01 | J23: 9.28 | K23: 11.34
A24: 11.33 | C24: 19 | D24: 7.9 | E24: 8.37 | F24: 7.57 | G24: 8.4 | H24: 9.1 | I24: 9.02 | J24: 9.29 | K24: 11.33
A25: 11.32 | C25: 20 | D25: 7.9 | E25: 8.38 | F25: 7.57 | G25: 8.4 | H25: 8 | I25: 9.02 | J25: 9.3 | K25: 11.32
A26: 11.32 | C26: 21 | D26: 7.9 | E26: 8.38 | F26: 7.56 | G26: 8.4 | H26: 8 | I26: 9.02 | J26: 9.31 | K26: 11.32
A27: 11.31 | C27: 22 | D27: 7.9 | E27: 8.38 | F27: 7.56 | G27: 8.5 | H27: 9.1 | I27: 9.02 | J27: 9.32 | K27: 11.31
A28: 11.31 | C28: 23 | D28: 7.9 | E28: 8.37 | F28: 7.55 | G28: 8.4 | H28: 9.1 | I28: 9.02 | J28: 9.32 | K28: 11.31
A29: 11.3 | C29: 24 | D29: 7.9 | E29: 8.36 | F29: 7.55 | G29: 8.4 | H29: 9.1 | I29: 9.01 | J29: 9.33 | K29: 11.3
A30: 11.3 | C30: 25 | D30: 7.9 | E30: 8.35 | F30: 7.54 | G30: 8.4 | H30: 8 | I30: 9.01 | J30: 9.34 | K30: 11.3
A31: 11.3 | C31: 26 | D31: 7.9 | E31: 8.34 | F31: 7.54 | G31: 8.4 | H31: 8.9 | I31: 9 | J31: 9.34 | K31: 11.3
A32: 11.3 | C32: 27 | D32: 7.9 | E32: 8.32 | F32: 7.54 | G32: 8.4 | H32: 9.1 | I32: 8.99 | J32: 9.35 | K32: 11.3
A33: 11.29 | C33: 28 | D33: 7.9 | E33: 8.3 | F33: 7.53 | G33: 8.4 | H33: 8.9 | I33: 8.98 | J33: 9.35 | K33: 11.29
A34: 11.29 | C34: 29 | D34: 7.9 | E34: 8.28 | F34: 7.53 | G34: 8.4 | H34: 8 | I34: 8.96 | J34: 9.36 | K34: 11.29
A35: 11.29 | C35: 30 | D35: 7.9 | E35: 8.26 | F35: 7.52 | G35: 8.4 | H35: 9.1 | I35: 8.95 | J35: 9.36 | K35: 11.29
A36: 11.29 | C36: 31 | D36: 8 | E36: 8.23 | F36: 7.52 | G36: 8.4 | H36: 8 | I36: 8.94 | J36: 9.37 | K36: 11.29
A37: 11.29 | C37: 32 | D37: 8 | E37: 8.21 | F37: 7.52 | G37: 8.4 | H37: 9.1 | I37: 8.93 | J37: 9.37 | K37: 11.29
A38: 11.29 | C38: 33 | D38: 8 | E38: 8.19 | F38: 7.51 | G38: 8.4 | H38: 9.1 | I38: 8.92 | J38: 9.38 | K38: 11.29
A39: 11.3 | C39: 34 | D39: 8 | E39: 8.16 | F39: 7.51 | G39: 8.4 | H39: 8 | I39: 8.91 | J39: 9.38 | K39: 11.3
A40: 11.3 | C40: 35 | D40: 8 | E40: 8.14 | F40: 7.51 | G40: 8.4 | H40: 8.9 | I40: 8.91 | J40: 9.39 | K40: 11.3
A41: 11.3 | C41: 36 | D41: 8 | E41: 8.12 | F41: 7.5 | G41: 8.4 | H41: 8 | I41: 8.9 | J41: 9.39 | K41: 11.3
A42: 11.3 | C42: 37 | D42: 8 | E42: 8.1 | F42: 7.5 | G42: 8.4 | H42: 9.1 | I42: 8.9 | J42: 9.4 | K42: 11.3
A43: 11.3 | C43: 38 | D43: 8 | E43: 8.08 | F43: 7.5 | G43: 8.4 | H43: 9.1 | I43: 8.9 | J43: 9.41 | K43: 11.3
A44: 11.3 | C44: 39 | D44: 8 | E44: 8.07 | F44: 7.49 | G44: 8.4 | H44: 8 | I44: 8.9 | J44: 9.41 | K44: 11.3
A45: 11.3 | C45: 40 | D45: 8 | E45: 8.05 | F45: 7.49 | G45: 8.4 | H45: 9.1 | I45: 8.91 | J45: 9.42 | K45: 11.3
A46: 11.31 | C46: 41 | D46: 8 | E46: 8.04 | F46: 7.49 | G46: 8.4 | H46: 9.1 | I46: 8.91 | J46: 9.43 | K46: 11.31
A47: 11.31 | C47: 42 | D47: 8 | E47: 8.03 | F47: 7.48 | G47: 8.4 | H47: 9.1 | I47: 8.92 | J47: 9.44 | K47: 11.31
A48: 11.31 | C48: 43 | D48: 8 | E48: 8.02 | F48: 7.48 | G48: 8.4 | H48: 8.9 | I48: 8.93 | J48: 9.45 | K48: 11.31
A49: 11.31 | C49: 44 | D49: 8 | E49: 8.01 | F49: 7.48 | G49: 8.4 | H49: 8 | I49: 8.94 | J49: 9.46 | K49: 11.31
A50: 11.31 | C50: 45 | D50: 8 | E50: 8 | F50: 7.48 | G50: 8.4 | H50: 8.9 | I50: 8.95 | J50: 9.47 | K50: 11.31
A51: 11.31 | C51: 46 | D51: 8 | E51: 8 | F51: 7.47 | G51: 8.4 | H51: 8 | I51: 8.96 | J51: 9.48 | K51: 11.31
A52: 11.31 | C52: 47 | D52: 8 | E52: 8 | F52: 7.47 | G52: 8.4 | H52: 8.9 | I52: 8.97 | J52: 9.49 | K52: 11.31
A53: 11.31 | C53: 48 | D53: 8 | E53: 7.99 | F53: 7.47 | G53: 8.4 | H53: 8.9 | I53: 8.97 | J53: 9.5 | K53: 11.31
A54: 11.31 | C54: 49 | D54: 8.1 | E54: 7.99 | F54: 7.46 | G54: 8.4 | H54: 8 | I54: 8.98 | J54: 9.51 | K54: 11.31
A55: 11.31 | C55: 50 | D55: 8.1 | E55: 7.99 | F55: 7.46 | G55: 8.4 | H55: 8.9 | I55: 8.99 | J55: 9.52 | K55: 11.31
A56: 11.31 | C56: 51 | D56: 8.1 | E56: 7.99 | F56: 7.45 | G56: 8.4 | H56: 8 | I56: 8.99 | J56: 9.53 | K56: 11.31
A57: 11.31 | C57: 52 | D57: 8.1 | E57: 7.99 | F57: 7.45 | G57: 8.4 | H57: 8 | I57: 9 | J57: 9.54 | K57: 11.31
A58: 11.31 | C58: 53 | D58: 8.1 | E58: 7.99 | F58: 7.45 | G58: 8.4 | H58: 8.9 | I58: 9 | J58: 9.54 | K58: 11.31
A59: 11.31 | C59: 54 | D59: 8.1 | E59: 7.99 | F59: 7.44 | G59: 8.4 | H59: 8.9 | I59: 9 | J59: 9.55 | K59: 11.31
A60: 11.31 | C60: 55 | D60: 8.1 | E60: 7.99 | F60: 7.44 | G60: 8.4 | H60: 8 | I60: 9 | J60: 9.56 | K60: 11.31
A61: 11.31 | C61: 56 | D61: 8.1 | E61: 7.99 | F61: 7.43 | G61: 8.4 | H61: 8.9 | I61: 8.99 | J61: 9.57 | K61: 11.31
A62: 11.31 | C62: 57 | D62: 8.1 | E62: 7.99 | F62: 7.43 | G62: 8.4 | H62: 8 | I62: 8.98 | J62: 9.58 | K62: 11.31
A63: 11.31 | C63: 58 | D63: 8.1 | E63: 7.99 | F63: 7.42 | G63: 8.4 | H63: 8 | I63: 8.97 | J63: 9.58 | K63: 11.31
A64: 11.3 | C64: 59 | D64: 8.1 | E64: 8 | F64: 7.41 | G64: 8.4 | H64: 8.9 | I64: 8.95 | J64: 9.59 | K64: 11.3
A65: 11.3 | C65: 60 | D65: 8.1 | E65: 8 | F65: 7.41 | G65: 8.4 | H65: 8.9 | I65: 8.93 | J65: 9.6 | K65: 11.3
A66: 11.3 | C66: 61 | D66: 8.1 | E66: 8 | F66: 7.4 | G66: 8.3 | H66: 8.9 | I66: 8.9 | J66: 9.6 | K66: 11.3
A67: 11.3 | C67: 62 | D67: 8.1 | E67: 8 | F67: 7.39 | G67: 8.3 | H67: 8.9 | I67: 8.87 | J67: 9.6 | K67: 11.3
A68: 11.29 | C68: 63 | D68: 8.1 | E68: 8 | F68: 7.39 | G68: 8.3 | H68: 8.9 | I68: 8.83 | J68: 9.61 | K68: 11.29
A69: 11.29 | C69: 64 | D69: 8.1 | E69: 8 | F69: 7.38 | G69: 8.3 | H69: 8 | I69: 8.79 | J69: 9.61 | K69: 11.29
A70: 11.29 | C70: 65 | D70: 8.1 | E70: 8 | F70: 7.37 | G70: 8.3 | H70: 8 | I70: 8.75 | J70: 9.61 | K70: 11.29
A71: 11.28 | C71: 66 | D71: 8.1 | E71: 8 | F71: 7.36 | G71: 8.3 | H71: 8.8 | I71: 8.71 | J71: 9.61 | K71: 11.28
A72: 11.28 | C72: 67 | D72: 8.1 | E72: 8 | F72: 7.35 | G72: 8.3 | H72: 8.8 | I72: 8.66 | J72: 9.61 | K72: 11.28
A73: 11.27 | C73: 68 | D73: 8.1 | E73: 8 | F73: 7.34 | G73: 8.3 | H73: 8.9 | I73: 8.61 | J73: 9.61 | K73: 11.27
A74: =HLOOKUP($A$5,$D$5:$K$8765,C74+1,FALSE) -> 11.27 | C74: 69 | D74: 8.1 | E74: 8 | F74: 7.33 | G74: 8.3 | H74: 8.8 | I74: 8.56 | J74: 9.61 | K74: 11.27
A75: 11.26 | C75: 70 | D75: 8.1 | E75: 8 | F75: 7.32 | G75: 8.3 | H75: 8.9 | I75: 8.51 | J75: 9.61 | K75: 11.26
A76: 11.26 | C76: 71 | D76: 8.1 | E76: 8 | F76: 7.32 | G76: 8.3 | H76: 8.8 | I76: 8.45 | J76: 9.61 | K76: 11.26
A77: 11.25 | C77: 72 | D77: 8.1 | E77: 8 | F77: 7.31 | G77: 8.3 | H77: 8.9 | I77: 8.4 | J77: 9.61 | K77: 11.25
A78: 11.25 | C78: 73 | D78: 8.2 | E78: 8 | F78: 7.3 | G78: 8.3 | H78: 8.9 | I78: 8.35 | J78: 9.61 | K78: 11.25
A79: 11.24 | C79: 74 | D79: 8.2 | E79: 8 | F79: 7.29 | G79: 8.3 | H79: 8 | I79: 8.3 | J79: 9.61 | K79: 11.24
A80: 11.24 | C80: 75 | D80: 8.2 | E80: 8 | F80: 7.28 | G80: 8.3 | H80: 8 | I80: 8.25 | J80: 9.61 | K80: 11.24
A81: 11.23 | C81: 76 | D81: 8.2 | E81: 8 | F81: 7.27 | G81: 8.3 | H81: 8.9 | I81: 8.21 | J81: 9.6 | K81: 11.23
A82: 11.23 | C82: 77 | D82: 8.2 | E82: 8 | F82: 7.26 | G82: 8.2 | H82: 8.8 | I82: 8.17 | J82: 9.6 | K82: 11.23
A83: 11.23 | C83: 78 | D83: 8.2 | E83: 8 | F83: 7.25 | G83: 8.3 | H83: 8.9 | I83: 8.13 | J83: 9.6 | K83: 11.23
A84: 11.22 | C84: 79 | D84: 8.2 | E84: 8 | F84: 7.24 | G84: 8.3 | H84: 8.8 | I84: 8.09 | J84: 9.6 | K84: 11.22
A85: 11.22 | C85: 80 | D85: 8.2 | E85: 8 | F85: 7.24 | G85: 8.2 | H85: 8.9 | I85: 8.06 | J85: 9.6 | K85: 11.22
A86: 11.21 | C86: 81 | D86: 8.2 | E86: 8 | F86: 7.23 | G86: 8.2 | H86: 8.8 | I86: 8.04 | J86: 9.6 | K86: 11.21
A87: 11.21 | C87: 82 | D87: 8.2 | E87: 8 | F87: 7.22 | G87: 8.2 | H87: 8.8 | I87: 8.02 | J87: 9.6 | K87: 11.21
A88: 11.21 | C88: 83 | D88: 8.2 | E88: 8 | F88: 7.21 | G88: 8.2 | H88: 8.8 | I88: 8.01 | J88: 9.6 | K88: 11.21
A89: 11.2 | C89: 84 | D89: 8.2 | E89: 8 | F89: 7.21 | G89: 8.2 | H89: 8.9 | I89: 8 | J89: 9.6 | K89: 11.2
A90: 11.2 | C90: 85 | D90: 8.2 | E90: 8 | F90: 7.2 | G90: 8.2 | H90: 8.8 | I90: 8 | J90: 9.6 | K90: 11.2
A91: 11.2 | C91: 86 | D91: 8.2 | E91: 8 | F91: 7.19 | G91: 8.2 | H91: 8.9 | I91: 8.01 | J91: 9.6 | K91: 11.2
A92: 11.2 | C92: 87 | D92: 8.2 | E92: 8 | F92: 7.19 | G92: 8.2 | H92: 8.9 | I92: 8.02 | J92: 9.6 | K92: 11.2
A93: 11.19 | C93: 88 | D93: 8.2 | E93: 8 | F93: 7.18 | G93: 8.3 | H93: 8.8 | I93: 8.04 | J93: 9.61 | K93: 11.19
A94: 11.19 | C94: 89 | D94: 8.2 | E94: 8 | F94: 7.18 | G94: 8.3 | H94: 8.9 | I94: 8.07 | J94: 9.61 | K94: 11.19
A95: 11.19 | C95: 90 | D95: 8.2 | E95: 8 | F95: 7.17 | G95: 8.2 | H95: 8.8 | I95: 8.11 | J95: 9.61 | K95: 11.19
A96: 11.19 | C96: 91 | D96: 8.2 | E96: 8 | F96: 7.17 | G96: 8.2 | H96: 8.8 | I96: 8.14 | J96: 9.62 | K96: 11.19
A97: 11.19 | C97: 92 | D97: 8.2 | E97: 8.01 | F97: 7.17 | G97: 8.2 | H97: 8.9 | I97: 8.19 | J97: 9.62 | K97: 11.19
A98: 11.19 | C98: 93 | D98: 8.2 | E98: 8.01 | F98: 7.16 | G98: 8.2 | H98: 8.9 | I98: 8.23 | J98: 9.63 | K98: 11.19
A99: 11.19 | C99: 94 | D99: 8.2 | E99: 8.01 | F99: 7.16 | G99: 8.3 | H99: 8.9 | I99: 8.28 | J99: 9.63 | K99: 11.19
A100: 11.19 | C100: 95 | D100: 8.2 | E100: 8.01 | F100: 7.16 | G100: 8.2 | H100: 8.9 | I100: 8.34 | J100: 9.63 | K100: 11.19
A101: 11.19 | C101: 96 | D101: 8.2 | E101: 8.01 | F101: 7.15 | G101: 8.2 | H101: 8.8 | I101: 8.39 | J101: 9.64 | K101: 11.19
A102: 11.19 | C102: 97 | D102: 8.2 | E102: 8.01 | F102: 7.15 | G102: 8.2 | H102: 8.8 | I102: 8.45 | J102: 9.64 | K102: 11.19
A103: 11.19 | C103: 98 | D103: 8.2 | E103: 8.01 | F103: 7.15 | G103: 8.2 | H103: 8.8 | I103: 8.51 | J103: 9.65 | K103: 11.19
A104: 11.19 | C104: 99 | D104: 8.2 | E104: 8.01 | F104: 7.14 | G104: 8.2 | H104: 8.8 | I104: 8.57 | J104: 9.66 | K104: 11.19
A105: 11.19 | C105: 100 | D105: 8.2 | E105: 8.01 | F105: 7.14 | G105: 8.2 | H105: 8.9 | I105: 8.63 | J105: 9.66 | K105: 11.19
A106: 11.19 | C106: 101 | D106: 8.2 | E106: 8.01 | F106: 7.14 | G106: 8.2 | H106: 8.9 | I106: 8.69 | J106: 9.67 | K106: 11.19
A107: 11.19 | C107: 102 | D107: 8.2 | E107: 8.01 | F107: 7.13 | G107: 8.2 | H107: 8.8 | I107: 8.75 | J107: 9.67 | K107: 11.19
A108: 11.2 | C108: 103 | D108: 8.2 | E108: 8.01 | F108: 7.13 | G108: 8.2 | H108: 8.9 | I108: 8.81 | J108: 9.68 | K108: 11.2
A109: 11.2 | C109: 104 | D109: 8.2 | E109: 8.01 | F109: 7.13 | G109: 8.2 | H109: 8.9 | I109: 8.86 | J109: 9.68 | K109: 11.2
A110: 11.2 | C110: 105 | D110: 8.2 | E110: 8.01 | F110: 7.12 | G110: 8.2 | H110: 8.9 | I110: 8.92 | J110: 9.68 | K110: 11.2
A111: 11.2 | C111: 106 | D111: 8.2 | E111: 8.01 | F111: 7.12 | G111: 8.3 | H111: 8.9 | I111: 8.97 | J111: 9.69 | K111: 11.2
A112: 11.2 | C112: 107 | D112: 8.2 | E112: 8.01 | F112: 7.11 | G112: 8.2 | H112: 8.9 | I112: 9.02 | J112: 9.69 | K112: 11.2
A113: 11.2 | C113: 108 | D113: 8.2 | E113: 8 | F113: 7.11 | G113: 8.3 | H113: 8.9 | I113: 9.06 | J113: 9.7 | K113: 11.2
A114: 11.2 | C114: 109 | D114: 8.2 | E114: 8 | F114: 7.1 | G114: 8.2 | H114: 8.9 | I114: 9.1 | J114: 9.7 | K114: 11.2
A115: 11.2 | C115: 110 | D115: 8.2 | E115: 8 | F115: 7.09 | G115: 8.3 | H115: 8.9 | I115: 9.14 | J115: 9.7 | K115: 11.2
A116: 11.2 | C116: 111 | D116: 8.2 | E116: 7.99 | F116: 7.09 | G116: 8.3 | H116: 8.9 | I116: 9.17 | J116: 9.71 | K116: 11.2
A117: 11.2 | C117: 112 | D117: 8.2 | E117: 7.99 | F117: 7.08 | G117: 8.3 | H117: 8.9 | I117: 9.19 | J117: 9.71 | K117: 11.2
A118: 11.2 | C118: 113 | D118: 8.2 | E118: 7.98 | F118: 7.07 | G118: 8.3 | H118: 8.9 | I118: 9.21 | J118: 9.71 | K118: 11.2
A119: 11.2 | C119: 114 | D119: 8.2 | E119: 7.98 | F119: 7.06 | G119: 8.3 | H119: 8.9 | I119: 9.23 | J119: 9.71 | K119: 11.2
A120: 11.2 | C120: 115 | D120: 8.2 | E120: 7.97 | F120: 7.06 | G120: 8.3 | H120: 8 | I120: 9.25 | J120: 9.71 | K120: 11.2
A121: 11.2 | C121: 116 | D121: 8.2 | E121: 7.97 | F121: 7.05 | G121: 8.3 | H121: 8.9 | I121: 9.26 | J121: 9.71 | K121: 11.2
A122: 11.2 | C122: 117 | D122: 8.2 | E122: 7.96 | F122: 7.04 | G122: 8.3 | H122: 8 | I122: 9.27 | J122: 9.71 | K122: 11.2
A123: 11.2 | C123: 118 | D123: 8.2 | E123: 7.96 | F123: 7.03 | G123: 8.3 | H123: 8 | I123: 9.27 | J123: 9.71 | K123: 11.2
A124: 11.2 | C124: 119 | D124: 8.2 | E124: 7.95 | F124: 7.02 | G124: 8.3 | H124: 8.9 | I124: 9.28 | J124: 9.71 | K124: 11.2
A125: 11.2 | C125: 120 | D125: 8.2 | E125: 7.95 | F125: 7.01 | G125: 8.3 | H125: 8.9 | I125: 9.28 | J125: 9.71 | K125: 11.2
A126: 11.2 | C126: 121 | D126: 8.2 | E126: 7.94 | F126: 7 | G126: 8.3 | H126: 8.9 | I126: 9.27 | J126: 9.71 | K126: 11.2
A127: 11.2 | C127: 122 | D127: 8.2 | E127: 7.94 | F127: 6.99 | G127: 8.3 | H127: 8.9 | I127: 9.27 | J127: 9.71 | K127: 11.2
A128: 11.2 | C128: 123 | D128: 8.2 | E128: 7.93 | F128: 6.99 | G128: 8.3 | H128: 8.9 | I128: 9.27 | J128: 9.71 | K128: 11.2
A129: 11.2 | C129: 124 | D129: 8.2 | E129: 7.93 | F129: 6.98 | G129: 8.3 | H129: 8 | I129: 9.26 | J129: 9.71 | K129: 11.2
A130: 11.2 | C130: 125 | D130: 8.2 | E130: 7.92 | F130: 6.97 | G130: 8.3 | H130: 8 | I130: 9.26 | J130: 9.71 | K130: 11.2
A131: 11.2 | C131: 126 | D131: 8.2 | E131: 7.92 | F131: 6.96 | G131: 8.3 | H131: 8 | I131: 9.25 | J131: 9.71 | K131: 11.2
A132: 11.2 | C132: 127 | D132: 8.2 | E132: 7.91 | F132: 6.95 | G132: 8.3 | H132: 8 | I132: 9.24 | J132: 9.71 | K132: 11.2
A133: 11.2 | C133: 128 | D133: 8.2 | E133: 7.91 | F133: 6.94 | G133: 8.3 | H133: 8 | I133: 9.23 | J133: 9.71 | K133: 11.2
A134: 11.2 | C134: 129 | D134: 8.2 | E134: 7.91 | F134: 6.93 | G134: 8.3 | H134: 8 | I134: 9.22 | J134: 9.7 | K134: 11.2
A135: 11.2 | C135: 130 | D135: 8.2 | E135: 7.91 | F135: 6.92 | G135: 8.3 | H135: 8 | I135: 9.22 | J135: 9.7 | K135: 11.2
A136: 11.2 | C136: 131 | D136: 8.2 | E136: 7.9 | F136: 6.92 | G136: 8.3 | H136: 8 | I136: 9.21 | J136: 9.7 | K136: 11.2
A137: 11.2 | C137: 132 | D137: 8.2 | E137: 7.9 | F137: 6.91 | G137: 8.4 | H137: 8 | I137: 9.2 | J137: 9.7 | K137: 11.2
A138: =HLOOKUP($A$5,$D$5:$K$8765,C138+1,FALSE) -> 11.2 | C138: 133 | D138: 8.2 | E138: 7.9 | F138: 6.9 | G138: 8.4 | H138: 8 | I138: 9.2 | J138: 9.7 | K138: 11.2
A139: 11.2 | C139: 134 | D139: 8.2 | E139: 7.9 | F139: 6.89 | G139: 8.3 | H139: 8 | I139: 9.2 | J139: 9.7 | K139: 11.2
A140: 11.2 | C140: 135 | D140: 8.2 | E140: 7.9 | F140: 6.89 | G140: 8.4 | H140: 8 | I140: 9.19 | J140: 9.7 | K140: 11.2
A141: 11.2 | C141: 136 | D141: 8.2 | E141: 7.9 | F141: 6.88 | G141: 8.4 | H141: 8 | I141: 9.19 | J141: 9.7 | K141: 11.2
A142: 11.2 | C142: 137 | D142: 8.2 | E142: 7.9 | F142: 6.87 | G142: 8.4 | H142: 8 | I142: 9.19 | J142: 9.7 | K142: 11.2
A143: 11.2 | C143: 138 | D143: 8.2 | E143: 7.9 | F143: 6.87 | G143: 8.4 | H143: 9.1 | I143: 9.2 | J143: 9.7 | K143: 11.2
A144: 11.2 | C144: 139 | D144: 8.2 | E144: 7.91 | F144: 6.86 | G144: 8.4 | H144: 8 | I144: 9.2 | J144: 9.7 | K144: 11.2
A145: 11.21 | C145: 140 | D145: 8.2 | E145: 7.91 | F145: 6.86 | G145: 8.4 | H145: 8 | I145: 9.2 | J145: 9.7 | K145: 11.21
A146: 11.21 | C146: 141 | D146: 8.2 | E146: 7.91 | F146: 6.85 | G146: 8.4 | H146: 8 | I146: 9.2 | J146: 9.7 | K146: 11.21
A147: 11.21 | C147: 142 | D147: 8.2 | E147: 7.92 | F147: 6.85 | G147: 8.4 | H147: 9.1 | I147: 9.21 | J147: 9.7 | K147: 11.21
A148: 11.21 | C148: 143 | D148: 8.2 | E148: 7.92 | F148: 6.84 | G148: 8.4 | H148: 9.1 | I148: 9.21 | J148: 9.7 | K148: 11.21
A149: 11.21 | C149: 144 | D149: 8.2 | E149: 7.92 | F149: 6.84 | G149: 8.4 | H149: 9.1 | I149: 9.22 | J149: 9.7 | K149: 11.21
A150: 11.21 | C150: 145 | D150: 8.2 | E150: 7.93 | F150: 6.84 | G150: 8.4 | H150: 9.1 | I150: 9.23 | J150: 9.7 | K150: 11.21
A151: 11.21 | C151: 146 | D151: 8.2 | E151: 7.93 | F151: 6.83 | G151: 8.4 | H151: 9.1 | I151: 9.23 | J151: 9.7 | K151: 11.21
A152: 11.21 | C152: 147 | D152: 8.2 | E152: 7.94 | F152: 6.83 | G152: 8.4 | H152: 9.1 | I152: 9.24 | J152: 9.7 | K152: 11.21
A153: 11.21 | C153: 148 | D153: 8.2 | E153: 7.95 | F153: 6.83 | G153: 8.4 | H153: 9.1 | I153: 9.25 | J153: 9.7 | K153: 11.21
A154: 11.21 | C154: 149 | D154: 8.2 | E154: 7.95 | F154: 6.82 | G154: 8.4 | H154: 9.2 | I154: 9.25 | J154: 9.7 | K154: 11.21
A155: 11.21 | C155: 150 | D155: 8.2 | E155: 7.96 | F155: 6.82 | G155: 8.4 | H155: 9.2 | I155: 9.26 | J155: 9.7 | K155: 11.21
A156: 11.21 | C156: 151 | D156: 8.2 | E156: 7.96 | F156: 6.82 | G156: 8.4 | H156: 9.1 | I156: 9.27 | J156: 9.7 | K156: 11.21
A157: 11.21 | C157: 152 | D157: 8.2 | E157: 7.97 | F157: 6.81 | G157: 8.4 | H157: 9.2 | I157: 9.27 | J157: 9.7 | K157: 11.21
A158: 11.21 | C158: 153 | D158: 8.2 | E158: 7.98 | F158: 6.81 | G158: 8.4 | H158: 9.1 | I158: 9.28 | J158: 9.7 | K158: 11.21
A159: 11.21 | C159: 154 | D159: 8.2 | E159: 7.98 | F159: 6.81 | G159: 8.4 | H159: 9.2 | I159: 9.29 | J159: 9.7 | K159: 11.21
A160: 11.2 | C160: 155 | D160: 8.2 | E160: 7.99 | F160: 6.81 | G160: 8.4 | H160: 9.2 | I160: 9.29 | J160: 9.7 | K160: 11.2
A161: 11.2 | C161: 156 | D161: 8.2 | E161: 7.99 | F161: 6.8 | G161: 8.4 | H161: 9.2 | I161: 9.3 | J161: 9.7 | K161: 11.2
A162: 11.2 | C162: 157 | D162: 8.2 | E162: 8 | F162: 6.8 | G162: 8.4 | H162: 9.2 | I162: 9.3 | J162: 9.7 | K162: 11.2
A163: 11.2 | C163: 158 | D163: 8.2 | E163: 8.01 | F163: 6.8 | G163: 8.4 | H163: 9.2 | I163: 9.3 | J163: 9.7 | K163: 11.2
A164: 11.19 | C164: 159 | D164: 8.2 | E164: 8.01 | F164: 6.79 | G164: 8.4 | H164: 9.3 | I164: 9.31 | J164: 9.7 | K164: 11.19
A165: 11.19 | C165: 160 | D165: 8.2 | E165: 8.02 | F165: 6.79 | G165: 8.4 | H165: 9.3 | I165: 9.31 | J165: 9.7 | K165: 11.19
A166: 11.19 | C166: 161 | D166: 8.2 | E166: 8.02 | F166: 6.79 | G166: 8.5 | H166: 9.3 | I166: 9.31 | J166: 9.7 | K166: 11.19
A167: 11.18 | C167: 162 | D167: 8.2 | E167: 8.03 | F167: 6.79 | G167: 8.5 | H167: 9.3 | I167: 9.31 | J167: 9.7 | K167: 11.18
A168: 11.18 | C168: 163 | D168: 8.2 | E168: 8.03 | F168: 6.78 | G168: 8.5 | H168: 9.3 | I168: 9.31 | J168: 9.7 | K168: 11.18
A169: 11.17 | C169: 164 | D169: 8.2 | E169: 8.04 | F169: 6.78 | G169: 8.4 | H169: 9.4 | I169: 9.31 | J169: 9.7 | K169: 11.17
A170: 11.17 | C170: 165 | D170: 8.2 | E170: 8.04 | F170: 6.78 | G170: 8.5 | H170: 9.3 | I170: 9.31 | J170: 9.7 | K170: 11.17
A171: 11.17 | C171: 166 | D171: 8.2 | E171: 8.05 | F171: 6.78 | G171: 8.5 | H171: 9.4 | I171: 9.31 | J171: 9.71 | K171: 11.17
A172: 11.16 | C172: 167 | D172: 8.2 | E172: 8.05 | F172: 6.77 | G172: 8.5 | H172: 9.4 | I172: 9.31 | J172: 9.71 | K172: 11.16
A173: 11.16 | C173: 168 | D173: 8.2 | E173: 8.06 | F173: 6.77 | G173: 8.5 | H173: 9.4 | I173: 9.31 | J173: 9.71 | K173: 11.16
A174: 11.15 | C174: 169 | D174: 8.2 | E174: 8.06 | F174: 6.76 | G174: 8.5 | H174: 9.4 | I174: 9.31 | J174: 9.71 | K174: 11.15
A175: 11.15 | C175: 170 | D175: 8.2 | E175: 8.07 | F175: 6.76 | G175: 8.5 | H175: 9.4 | I175: 9.31 | J175: 9.71 | K175: 11.15
A176: 11.14 | C176: 171 | D176: 8.2 | E176: 8.07 | F176: 6.76 | G176: 8.5 | H176: 9.4 | I176: 9.31 | J176: 9.71 | K176: 11.14
A177: 11.14 | C177: 172 | D177: 8.2 | E177: 8.08 | F177: 6.75 | G177: 8.5 | H177: 9.4 | I177: 9.31 | J177: 9.71 | K177: 11.14
A178: 11.13 | C178: 173 | D178: 8.2 | E178: 8.08 | F178: 6.75 | G178: 8.5 | H178: 9.4 | I178: 9.3 | J178: 9.71 | K178: 11.13
A179: 11.13 | C179: 174 | D179: 8.2 | E179: 8.08 | F179: 6.74 | G179: 8.5 | H179: 9.4 | I179: 9.3 | J179: 9.71 | K179: 11.13
A180: 11.12 | C180: 175 | D180: 8.3 | E180: 8.09 | F180: 6.74 | G180: 8.5 | H180: 9.5 | I180: 9.3 | J180: 9.71 | K180: 11.12
A181: 11.12 | C181: 176 | D181: 8.3 | E181: 8.09 | F181: 6.73 | G181: 8.5 | H181: 9.4 | I181: 9.3 | J181: 9.7 | K181: 11.12
A182: 11.11 | C182: 177 | D182: 8.3 | E182: 8.09 | F182: 6.73 | G182: 8.5 | H182: 9.4 | I182: 9.3 | J182: 9.7 | K182: 11.11
A183: 11.11 | C183: 178 | D183: 8.3 | E183: 8.09 | F183: 6.72 | G183: 8.5 | H183: 9.5 | I183: 9.3 | J183: 9.7 | K183: 11.11
A184: 11.11 | C184: 179 | D184: 8.3 | E184: 8.1 | F184: 6.71 | G184: 8.5 | H184: 9.5 | I184: 9.3 | J184: 9.7 | K184: 11.11
A185: 11.1 | C185: 180 | D185: 8.3 | E185: 8.1 | F185: 6.71 | G185: 8.5 | H185: 9.5 | I185: 9.3 | J185: 9.7 | K185: 11.1
A186: 11.1 | C186: 181 | D186: 8.3 | E186: 8.1 | F186: 6.7 | G186: 8.5 | H186: 9.5 | I186: 9.3 | J186: 9.7 | K186: 11.1
A187: 11.1 | C187: 182 | D187: 8.3 | E187: 8.1 | F187: 6.69 | G187: 8.5 | H187: 9.5 | I187: 9.3 | J187: 9.7 | K187: 11.1
A188: 11.1 | C188: 183 | D188: 8.3 | E188: 8.1 | F188: 6.68 | G188: 8.6 | H188: 9.6 | I188: 9.3 | J188: 9.7 | K188: 11.1
A189: 11.09 | C189: 184 | D189: 8.3 | E189: 8.1 | F189: 6.68 | G189: 8.5 | H189: 9.5 | I189: 9.3 | J189: 9.69 | K189: 11.09
A190: 11.09 | C190: 185 | D190: 8.3 | E190: 8.1 | F190: 6.67 | G190: 8.6 | H190: 9.5 | I190: 9.31 | J190: 9.69 | K190: 11.09
A191: 11.09 | C191: 186 | D191: 8.3 | E191: 8.1 | F191: 6.66 | G191: 8.6 | H191: 9.5 | I191: 9.31 | J191: 9.69 | K191: 11.09
A192: 11.09 | C192: 187 | D192: 8.3 | E192: 8.1 | F192: 6.65 | G192: 8.6 | H192: 9.6 | I192: 9.31 | J192: 9.69 | K192: 11.09
A193: 11.09 | C193: 188 | D193: 8.3 | E193: 8.11 | F193: 6.64 | G193: 8.6 | H193: 9.5 | I193: 9.32 | J193: 9.69 | K193: 11.09
A194: 11.09 | C194: 189 | D194: 8.3 | E194: 8.11 | F194: 6.63 | G194: 8.6 | H194: 9.5 | I194: 9.32 | J194: 9.68 | K194: 11.09
A195: 11.09 | C195: 190 | D195: 8.3 | E195: 8.1 | F195: 6.62 | G195: 8.6 | H195: 9.6 | I195: 9.32 | J195: 9.68 | K195: 11.09
A196: 11.09 | C196: 191 | D196: 8.3 | E196: 8.1 | F196: 6.61 | G196: 8.6 | H196: 9.6 | I196: 9.33 | J196: 9.68 | K196: 11.09
A197: 11.09 | C197: 192 | D197: 8.3 | E197: 8.1 | F197: 6.6 | G197: 8.6 | H197: 9.6 | I197: 9.33 | J197: 9.67 | K197: 11.09
A198: 11.09 | C198: 193 | D198: 8.3 | E198: 8.1 | F198: 6.59 | G198: 8.6 | H198: 9.6 | I198: 9.34 | J198: 9.67 | K198: 11.09
A199: 11.09 | C199: 194 | D199: 8.3 | E199: 8.1 | F199: 6.58 | G199: 8.6 | H199: 9.6 | I199: 9.34 | J199: 9.66 | K199: 11.09
A200: 11.09 | C200: 195 | D200: 8.4 | E200: 8.1 | F200: 6.57 | G200: 8.6 | H200: 9.6 | I200: 9.35 | J200: 9.66 | K200: 11.09
A201: 11.09 | C201: 196 | D201: 8.4 | E201: 8.1 | F201: 6.57 | G201: 8.6 | H201: 9.6 | I201: 9.35 | J201: 9.65 | K201: 11.09
A202: =HLOOKUP($A$5,$D$5:$K$8765,C202+1,FALSE) -> 11.09 | C202: 197 | D202: 8.4 | E202: 8.1 | F202: 6.56 | G202: 8.6 | H202: 9.6 | I202: 9.36 | J202: 9.65 | K202: 11.09
A203: 11.09 | C203: 198 | D203: 8.4 | E203: 8.1 | F203: 6.55 | G203: 8.6 | H203: 9.7 | I203: 9.36 | J203: 9.64 | K203: 11.09
... 8562 more rows

Sheet Bdd_Text (hidden)
A1: Base de données températures extérieures RT2012 par zone climatique
A2: Altitude | B2: =IF('Saisies-Résultats'!D12<400,100,IF('Saisies-Résultats'!D12>800,900,500)) -> 100
A4: Zone sélectionnée
A5: ='Saisies-Résultats'!D11 -> H3 | C5: Pas de temps | D5: H1a | E5: H1b | F5: H1c | G5: H2a | H5: H2b | I5: H2c | J5: H2d | K5: H3
A6: =HLOOKUP($A$5,$D$5:$K$8765,C6+1,FALSE)-0.005*$B$2 -> 8.9 | C6: 1 | D6: 4.615 | E6: 1.25 | F6: 2.58 | G6: 7.575 | H6: 3.595 | I6: 4.25 | J6: 10.685 | K6: 9.4
A7: =HLOOKUP($A$5,$D$5:$K$8765,C7+1,FALSE)-0.005*$B$2 -> 8.72 | C7: 2 | D7: 3.915 | E7: 1.26 | F7: 2.48 | G7: 6.245 | H7: 2.735 | I7: 4.21 | J7: 11.655 | K7: 9.22
A8: 8.17 | C8: 3 | D8: 3.425 | E8: 1.48 | F8: 2.28 | G8: 4.915 | H8: 2.085 | I8: 4.05 | J8: 11.565 | K8: 8.67
A9: 8.17 | C9: 4 | D9: 4.115 | E9: 1.35 | F9: 2.28 | G9: 3.545 | H9: 1.375 | I9: 2.8 | J9: 11.685 | K9: 8.67
A10: 7.93 | C10: 5 | D10: 4.615 | E10: 1.46 | F10: 2.18 | G10: 2.795 | H10: 0.825 | I10: 2.3 | J10: 12.315 | K10: 8.43
A11: 9.85 | C11: 6 | D11: 5.875 | E11: 2.67 | F11: 2.08 | G11: 1.945 | H11: 0.875 | I11: 3.77 | J11: 12.745 | K11: 10.35
A12: 10.7 | C12: 7 | D12: 6.535 | E12: 4.11 | F12: 2.08 | G12: 1.265 | H12: 1.075 | I12: 4.3 | J12: 12.955 | K12: 11.2
A13: 12.02 | C13: 8 | D13: 7.225 | E13: 4.78 | F13: 2.08 | G13: 0.995 | H13: 1.765 | I13: 3.84 | J13: 13.495 | K13: 12.52
A14: 11.51 | C14: 9 | D14: 7.935 | E14: 4.76 | F14: 1.88 | G14: 1.245 | H14: 2.415 | I14: 4.79 | J14: 13.995 | K14: 12.01
A15: 11.71 | C15: 10 | D15: 8.335 | E15: 4.36 | F15: 1.98 | G15: 2.145 | H15: 2.815 | I15: 5.29 | J15: 14.695 | K15: 12.21
A16: 12.91 | C16: 11 | D16: 9.035 | E16: 5.06 | F16: 2.28 | G16: 2.845 | H16: 3.715 | I16: 6.39 | J16: 14.295 | K16: 13.41
A17: 14.31 | C17: 12 | D17: 10.035 | E17: 5.36 | F17: 2.48 | G17: 3.645 | H17: 4.815 | I17: 7.49 | J17: 14.595 | K17: 14.81
A18: 14.81 | C18: 13 | D18: 11.435 | E18: 5.66 | F18: 2.48 | G18: 4.545 | H18: 6.015 | I18: 8.09 | J18: 13.795 | K18: 15.31
A19: 15.41 | C19: 14 | D19: 12.435 | E19: 6.76 | F19: 2.68 | G19: 5.845 | H19: 6.915 | I19: 7.49 | J19: 12.495 | K19: 15.91
A20: 15.81 | C20: 15 | D20: 12.135 | E20: 7.46 | F20: 2.78 | G20: 6.345 | H20: 7.415 | I20: 6.59 | J20: 10.995 | K20: 16.31
A21: 14.91 | C21: 16 | D21: 11.935 | E21: 7.96 | F21: 2.38 | G21: 5.945 | H21: 7.315 | I21: 6.19 | J21: 11.395 | K21: 15.41
A22: 14.11 | C22: 17 | D22: 11.835 | E22: 7.86 | F22: 1.58 | G22: 4.545 | H22: 5.315 | I22: 6.49 | J22: 10.995 | K22: 14.61
A23: 12.61 | C23: 18 | D23: 11.735 | E23: 7.96 | F23: 1.18 | G23: 3.645 | H23: 3.815 | I23: 6.39 | J23: 10.495 | K23: 13.11
A24: 10.11 | C24: 19 | D24: 11.535 | E24: 8.26 | F24: 1.18 | G24: 3.345 | H24: 1.715 | I24: 6.69 | J24: 11.095 | K24: 10.61
A25: 8.01 | C25: 20 | D25: 11.935 | E25: 8.76 | F25: 1.18 | G25: 3.345 | H25: 0.815 | I25: 5.99 | J25: 12.695 | K25: 8.51
A26: 7.71 | C26: 21 | D26: 12.035 | E26: 7.96 | F26: 1.18 | G26: 2.945 | H26: 0.515 | I26: 4.59 | J26: 12.795 | K26: 8.21
A27: 7.81 | C27: 22 | D27: 11.735 | E27: 7.56 | F27: 1.18 | G27: 2.245 | H27: 0.315 | I27: 4.49 | J27: 12.795 | K27: 8.31
A28: 7.71 | C28: 23 | D28: 11.235 | E28: 9.46 | F28: 1.28 | G28: 1.745 | H28: -0.485 | I28: 3.09 | J28: 12.395 | K28: 8.21
A29: 7.41 | C29: 24 | D29: 10.835 | E29: 9.76 | F29: 1.38 | G29: 1.945 | H29: -1.785 | I29: 3.59 | J29: 12.195 | K29: 7.91
A30: 7.01 | C30: 25 | D30: 10.535 | E30: 9.96 | F30: 1.38 | G30: 1.545 | H30: -2.285 | I30: 2.99 | J30: 11.995 | K30: 7.51
A31: 6.71 | C31: 26 | D31: 10.235 | E31: 9.86 | F31: 1.18 | G31: 1.545 | H31: -1.685 | I31: 3.09 | J31: 12.095 | K31: 7.21
A32: 6.61 | C32: 27 | D32: 8.935 | E32: 10.46 | F32: 1.18 | G32: 1.745 | H32: -1.685 | I32: 2.89 | J32: 11.995 | K32: 7.11
A33: 6.81 | C33: 28 | D33: 8.235 | E33: 10.16 | F33: 1.18 | G33: 1.645 | H33: -1.485 | I33: 2.59 | J33: 11.195 | K33: 7.31
A34: 6.51 | C34: 29 | D34: 8.135 | E34: 10.56 | F34: 1.18 | G34: 1.645 | H34: -1.385 | I34: 2.69 | J34: 10.695 | K34: 7.01
A35: 5.91 | C35: 30 | D35: 7.835 | E35: 10.76 | F35: 1.28 | G35: 1.545 | H35: -1.085 | I35: 2.19 | J35: 10.495 | K35: 6.41
A36: 5.51 | C36: 31 | D36: 7.435 | E36: 10.96 | F36: 1.18 | G36: 1.345 | H36: -1.085 | I36: 1.99 | J36: 10.395 | K36: 6.01
A37: 5.41 | C37: 32 | D37: 6.035 | E37: 10.86 | F37: 1.08 | G37: 1.045 | H37: -0.485 | I37: 2.59 | J37: 10.795 | K37: 5.91
A38: 5.01 | C38: 33 | D38: 6.135 | E38: 9.96 | F38: 1.18 | G38: 0.545 | H38: 0.015 | I38: 3.39 | J38: 10.795 | K38: 5.51
A39: 5.91 | C39: 34 | D39: 6.135 | E39: 10.66 | F39: 1.18 | G39: 0.645 | H39: 1.215 | I39: 4.39 | J39: 11.295 | K39: 6.41
A40: 7.41 | C40: 35 | D40: 6.535 | E40: 11.26 | F40: 1.48 | G40: 1.245 | H40: 3.115 | I40: 5.09 | J40: 12.095 | K40: 7.91
A41: 9.01 | C41: 36 | D41: 7.035 | E41: 12.16 | F41: 1.88 | G41: 1.945 | H41: 4.915 | I41: 5.79 | J41: 12.195 | K41: 9.51
A42: 10.21 | C42: 37 | D42: 8.435 | E42: 11.86 | F42: 2.38 | G42: 2.645 | H42: 5.315 | I42: 6.29 | J42: 12.095 | K42: 10.71
A43: 10.61 | C43: 38 | D43: 8.935 | E43: 12.66 | F43: 3.28 | G43: 3.045 | H43: 6.615 | I43: 6.59 | J43: 11.295 | K43: 11.11
A44: 12.31 | C44: 39 | D44: 8.735 | E44: 12.96 | F44: 2.58 | G44: 2.945 | H44: 7.115 | I44: 7.49 | J44: 11.795 | K44: 12.81
A45: 11.21 | C45: 40 | D45: 8.435 | E45: 12.26 | F45: 2.28 | G45: 2.845 | H45: 7.215 | I45: 7.79 | J45: 11.895 | K45: 11.71
A46: 10.41 | C46: 41 | D46: 7.835 | E46: 11.66 | F46: 2.18 | G46: 2.545 | H46: 7.115 | I46: 7.59 | J46: 11.395 | K46: 10.91
A47: 9.01 | C47: 42 | D47: 7.035 | E47: 10.96 | F47: 2.18 | G47: 2.145 | H47: 7.315 | I47: 10.29 | J47: 10.195 | K47: 9.51
A48: 7.61 | C48: 43 | D48: 6.535 | E48: 11.06 | F48: 2.18 | G48: 1.845 | H48: 7.315 | I48: 9.09 | J48: 8.795 | K48: 8.11
A49: 6.71 | C49: 44 | D49: 6.235 | E49: 10.86 | F49: 1.98 | G49: 1.445 | H49: 7.115 | I49: 9.79 | J49: 8.195 | K49: 7.21
A50: 6.31 | C50: 45 | D50: 6.035 | E50: 10.26 | F50: 1.88 | G50: 1.145 | H50: 7.015 | I50: 9.89 | J50: 7.095 | K50: 6.81
A51: 6.31 | C51: 46 | D51: 5.435 | E51: 10.66 | F51: 1.68 | G51: 1.645 | H51: 7.015 | I51: 9.79 | J51: 6.595 | K51: 6.81
A52: 6.01 | C52: 47 | D52: 4.935 | E52: 9.76 | F52: 1.28 | G52: 2.045 | H52: 6.515 | I52: 9.79 | J52: 6.695 | K52: 6.51
A53: 5.91 | C53: 48 | D53: 4.835 | E53: 9.86 | F53: 1.08 | G53: 2.145 | H53: 5.915 | I53: 8.29 | J53: 6.695 | K53: 6.41
A54: 5.61 | C54: 49 | D54: 4.235 | E54: 9.66 | F54: 0.98 | G54: 2.145 | H54: 6.115 | I54: 9.99 | J54: 9.595 | K54: 6.11
A55: 5.51 | C55: 50 | D55: 3.835 | E55: 9.26 | F55: 0.98 | G55: 2.445 | H55: 5.515 | I55: 8.29 | J55: 9.295 | K55: 6.01
A56: 4.91 | C56: 51 | D56: 3.835 | E56: 8.86 | F56: 1.08 | G56: 2.645 | H56: 5.215 | I56: 10.09 | J56: 8.895 | K56: 5.41
A57: 4.81 | C57: 52 | D57: 3.735 | E57: 8.36 | F57: 1.08 | G57: 2.945 | H57: 5.315 | I57: 9.99 | J57: 8.995 | K57: 5.31
A58: 4.91 | C58: 53 | D58: 2.735 | E58: 7.86 | F58: 0.78 | G58: 3.145 | H58: 4.915 | I58: 9.89 | J58: 5.595 | K58: 5.41
A59: 4.61 | C59: 54 | D59: 2.435 | E59: 8.06 | F59: 0.68 | G59: 3.445 | H59: 5.115 | I59: 10.79 | J59: 4.895 | K59: 5.11
A60: 4.61 | C60: 55 | D60: 2.935 | E60: 8.26 | F60: 0.48 | G60: 3.545 | H60: 5.015 | I60: 10.49 | J60: 4.995 | K60: 5.11
A61: 4.51 | C61: 56 | D61: 2.935 | E61: 8.36 | F61: 0.48 | G61: 3.945 | H61: 5.515 | I61: 10.39 | J61: 4.395 | K61: 5.01
A62: 5.61 | C62: 57 | D62: 3.435 | E62: 8.06 | F62: 0.48 | G62: 4.445 | H62: 5.815 | I62: 10.59 | J62: 3.495 | K62: 6.11
A63: 7.71 | C63: 58 | D63: 4.635 | E63: 7.96 | F63: 0.68 | G63: 5.145 | H63: 6.515 | I63: 10.99 | J63: 6.895 | K63: 8.21
A64: 9.91 | C64: 59 | D64: 6.835 | E64: 8.26 | F64: 0.78 | G64: 5.945 | H64: 6.715 | I64: 11.49 | J64: 8.795 | K64: 10.41
A65: 13.41 | C65: 60 | D65: 8.835 | E65: 9.56 | F65: 0.78 | G65: 6.945 | H65: 7.015 | I65: 12.69 | J65: 11.395 | K65: 13.91
A66: 13.11 | C66: 61 | D66: 10.035 | E66: 8.96 | F66: 0.88 | G66: 7.245 | H66: 7.415 | I66: 13.09 | J66: 13.395 | K66: 13.61
A67: 13.11 | C67: 62 | D67: 10.235 | E67: 10.16 | F67: 0.88 | G67: 7.545 | H67: 7.815 | I67: 13.79 | J67: 13.995 | K67: 13.61
A68: 12.11 | C68: 63 | D68: 10.235 | E68: 9.36 | F68: 0.88 | G68: 6.945 | H68: 8.315 | I68: 13.79 | J68: 12.695 | K68: 12.61
A69: 12.11 | C69: 64 | D69: 9.635 | E69: 9.46 | F69: 0.68 | G69: 6.945 | H69: 8.215 | I69: 13.49 | J69: 13.395 | K69: 12.61
A70: 11.41 | C70: 65 | D70: 8.535 | E70: 8.16 | F70: 0.48 | G70: 6.745 | H70: 8.115 | I70: 13.39 | J70: 11.495 | K70: 11.91
A71: =HLOOKUP($A$5,$D$5:$K$8765,C71+1,FALSE)-0.005*$B$2 -> 11.01 | C71: 66 | D71: 7.935 | E71: 6.16 | F71: 0.28 | G71: 6.645 | H71: 7.915 | I71: 12.99 | J71: 10.795 | K71: 11.51
A72: 10.21 | C72: 67 | D72: 7.235 | E72: 4.36 | F72: 0.18 | G72: 6.645 | H72: 7.715 | I72: 12.79 | J72: 9.195 | K72: 10.71
A73: 9.31 | C73: 68 | D73: 7.035 | E73: 3.56 | F73: -0.12 | G73: 6.645 | H73: 7.515 | I73: 12.39 | J73: 9.595 | K73: 9.81
A74: 7.51 | C74: 69 | D74: 6.935 | E74: 5.36 | F74: -0.12 | G74: 6.945 | H74: 7.415 | I74: 12.69 | J74: 9.095 | K74: 8.01
A75: 8.61 | C75: 70 | D75: 6.535 | E75: 5.36 | F75: -0.12 | G75: 7.145 | H75: 6.815 | I75: 11.89 | J75: 8.595 | K75: 9.11
A76: 8.71 | C76: 71 | D76: 6.535 | E76: 4.86 | F76: -0.42 | G76: 7.145 | H76: 7.115 | I76: 9.69 | J76: 9.295 | K76: 9.21
A77: 9.01 | C77: 72 | D77: 5.835 | E77: 5.76 | F77: -0.62 | G77: 7.445 | H77: 7.215 | I77: 9.69 | J77: 8.495 | K77: 9.51
A78: 8.61 | C78: 73 | D78: 4.435 | E78: 7.66 | F78: -0.72 | G78: 7.645 | H78: 6.615 | I78: 9.49 | J78: 8.895 | K78: 9.11
A79: 8.21 | C79: 74 | D79: 3.535 | E79: 8.16 | F79: -0.92 | G79: 7.845 | H79: 6.215 | I79: 8.29 | J79: 8.595 | K79: 8.71
A80: 8.21 | C80: 75 | D80: 3.635 | E80: 8.06 | F80: -1.12 | G80: 7.945 | H80: 6.715 | I80: 8.99 | J80: 8.395 | K80: 8.71
A81: 8.61 | C81: 76 | D81: 3.435 | E81: 7.66 | F81: -1.12 | G81: 7.845 | H81: 6.615 | I81: 8.89 | J81: 7.895 | K81: 9.11
A82: 8.41 | C82: 77 | D82: 3.035 | E82: 7.16 | F82: -1.12 | G82: 7.845 | H82: 6.815 | I82: 8.89 | J82: 7.295 | K82: 8.91
A83: 8.01 | C83: 78 | D83: 2.735 | E83: 7.36 | F83: -1.22 | G83: 7.745 | H83: 6.615 | I83: 7.89 | J83: 6.195 | K83: 8.51
A84: 7.81 | C84: 79 | D84: 2.335 | E84: 7.36 | F84: -1.22 | G84: 7.645 | H84: 5.715 | I84: 8.09 | J84: 5.795 | K84: 8.31
A85: 7.61 | C85: 80 | D85: 2.435 | E85: 7.46 | F85: -1.12 | G85: 7.445 | H85: 5.315 | I85: 7.59 | J85: 5.895 | K85: 8.11
A86: 7.71 | C86: 81 | D86: 2.535 | E86: 7.46 | F86: -1.12 | G86: 7.345 | H86: 5.515 | I86: 7.29 | J86: 5.095 | K86: 8.21
A87: 8.31 | C87: 82 | D87: 2.835 | E87: 7.56 | F87: -0.92 | G87: 7.445 | H87: 6.415 | I87: 8.19 | J87: 6.195 | K87: 8.81
A88: 7.51 | C88: 83 | D88: 3.135 | E88: 8.26 | F88: -0.52 | G88: 7.745 | H88: 8.315 | I88: 9.89 | J88: 7.895 | K88: 8.01
A89: 8.11 | C89: 84 | D89: 4.735 | E89: 8.76 | F89: -0.22 | G89: 8.145 | H89: 10.515 | I89: 11.59 | J89: 9.695 | K89: 8.61
A90: 8.31 | C90: 85 | D90: 6.535 | E90: 9.16 | F90: 0.48 | G90: 8.445 | H90: 12.315 | I90: 13.49 | J90: 11.695 | K90: 8.81
A91: 9.31 | C91: 86 | D91: 7.635 | E91: 9.76 | F91: 0.88 | G91: 8.845 | H91: 12.615 | I91: 14.99 | J91: 15.095 | K91: 9.81
A92: 9.51 | C92: 87 | D92: 7.535 | E92: 10.36 | F92: 0.98 | G92: 9.045 | H92: 10.515 | I92: 15.19 | J92: 15.895 | K92: 10.01
A93: 9.51 | C93: 88 | D93: 6.235 | E93: 10.56 | F93: 0.68 | G93: 8.945 | H93: 11.015 | I93: 15.29 | J93: 13.695 | K93: 10.01
A94: 9.31 | C94: 89 | D94: 5.035 | E94: 10.16 | F94: 0.58 | G94: 8.945 | H94: 10.415 | I94: 14.39 | J94: 11.995 | K94: 9.81
A95: 9.21 | C95: 90 | D95: 5.235 | E95: 9.56 | F95: 0.48 | G95: 9.245 | H95: 10.515 | I95: 12.19 | J95: 9.995 | K95: 9.71
A96: 7.51 | C96: 91 | D96: 4.535 | E96: 9.56 | F96: 0.38 | G96: 9.345 | H96: 10.615 | I96: 11.79 | J96: 10.295 | K96: 8.01
A97: 8.81 | C97: 92 | D97: 3.735 | E97: 9.16 | F97: 0.38 | G97: 9.545 | H97: 10.715 | I97: 10.99 | J97: 9.795 | K97: 9.31
A98: 9.71 | C98: 93 | D98: 3.635 | E98: 8.16 | F98: 0.48 | G98: 10.045 | H98: 10.415 | I98: 10.29 | J98: 9.195 | K98: 10.21
A99: 9.41 | C99: 94 | D99: 4.135 | E99: 8.06 | F99: 0.58 | G99: 10.145 | H99: 10.315 | I99: 9.19 | J99: 8.195 | K99: 9.91
A100: 9.51 | C100: 95 | D100: 4.935 | E100: 8.26 | F100: 0.58 | G100: 10.145 | H100: 10.615 | I100: 9.39 | J100: 7.395 | K100: 10.01
A101: 9.11 | C101: 96 | D101: 5.135 | E101: 8.56 | F101: 0.28 | G101: 10.345 | H101: 10.415 | I101: 8.79 | J101: 7.295 | K101: 9.61
A102: 8.71 | C102: 97 | D102: 5.435 | E102: 8.46 | F102: 0.58 | G102: 10.745 | H102: 10.415 | I102: 8.69 | J102: 6.595 | K102: 9.21
A103: 6.11 | C103: 98 | D103: 5.535 | E103: 8.46 | F103: 0.78 | G103: 10.045 | H103: 10.515 | I103: 8.29 | J103: 6.495 | K103: 6.61
A104: 9.81 | C104: 99 | D104: 5.535 | E104: 8.36 | F104: 0.18 | G104: 10.045 | H104: 10.615 | I104: 7.69 | J104: 5.595 | K104: 10.31
A105: 9.11 | C105: 100 | D105: 5.435 | E105: 8.06 | F105: 0.18 | G105: 9.245 | H105: 10.315 | I105: 7.19 | J105: 5.495 | K105: 9.61
A106: 9.41 | C106: 101 | D106: 5.835 | E106: 7.86 | F106: 0.18 | G106: 8.845 | H106: 10.615 | I106: 6.69 | J106: 4.595 | K106: 9.91
A107: 9.01 | C107: 102 | D107: 5.935 | E107: 7.96 | F107: 0.18 | G107: 8.645 | H107: 10.815 | I107: 6.39 | J107: 3.995 | K107: 9.51
A108: 9.01 | C108: 103 | D108: 6.035 | E108: 7.66 | F108: 0.08 | G108: 8.445 | H108: 10.915 | I108: 5.99 | J108: 3.495 | K108: 9.51
A109: 6.71 | C109: 104 | D109: 6.335 | E109: 8.06 | F109: 0.18 | G109: 8.345 | H109: 10.915 | I109: 5.69 | J109: 2.195 | K109: 7.21
A110: 6.81 | C110: 105 | D110: 6.635 | E110: 8.46 | F110: 0.38 | G110: 8.045 | H110: 10.415 | I110: 5.19 | J110: 1.995 | K110: 7.31
A111: 9.21 | C111: 106 | D111: 7.235 | E111: 8.86 | F111: 0.78 | G111: 8.345 | H111: 10.815 | I111: 6.09 | J111: 6.395 | K111: 9.71
A112: 11.81 | C112: 107 | D112: 7.935 | E112: 9.06 | F112: 1.38 | G112: 9.145 | H112: 10.815 | I112: 8.99 | J112: 10.295 | K112: 12.31
A113: 13.31 | C113: 108 | D113: 8.935 | E113: 9.26 | F113: 2.18 | G113: 9.945 | H113: 11.015 | I113: 12.49 | J113: 11.095 | K113: 13.81
A114: 13.31 | C114: 109 | D114: 9.535 | E114: 9.76 | F114: 3.58 | G114: 10.245 | H114: 11.415 | I114: 15.09 | J114: 13.195 | K114: 13.81
A115: 13.21 | C115: 110 | D115: 10.335 | E115: 10.56 | F115: 4.98 | G115: 10.445 | H115: 11.415 | I115: 17.59 | J115: 14.395 | K115: 13.71
A116: 12.01 | C116: 111 | D116: 10.535 | E116: 10.66 | F116: 5.48 | G116: 10.745 | H116: 11.015 | I116: 16.69 | J116: 15.195 | K116: 12.51
A117: 11.71 | C117: 112 | D117: 9.435 | E117: 11.06 | F117: 5.88 | G117: 10.245 | H117: 11.115 | I117: 16.29 | J117: 14.795 | K117: 12.21
A118: 11.11 | C118: 113 | D118: 8.835 | E118: 10.56 | F118: 3.88 | G118: 9.645 | H118: 11.015 | I118: 14.59 | J118: 11.295 | K118: 11.61
A119: 10.71 | C119: 114 | D119: 8.635 | E119: 11.26 | F119: 1.88 | G119: 9.145 | H119: 11.915 | I119: 12.69 | J119: 7.795 | K119: 11.21
A120: 9.21 | C120: 115 | D120: 8.735 | E120: 11.16 | F120: 0.88 | G120: 8.445 | H120: 12.015 | I120: 10.69 | J120: 8.095 | K120: 9.71
A121: 8.71 | C121: 116 | D121: 8.935 | E121: 11.46 | F121: 1.58 | G121: 8.145 | H121: 12.215 | I121: 9.79 | J121: 7.495 | K121: 9.21
A122: 8.31 | C122: 117 | D122: 9.435 | E122: 11.76 | F122: 1.18 | G122: 8.145 | H122: 12.015 | I122: 8.99 | J122: 6.795 | K122: 8.81
A123: 8.11 | C123: 118 | D123: 8.835 | E123: 11.46 | F123: 0.88 | G123: 8.445 | H123: 12.315 | I123: 8.19 | J123: 7.095 | K123: 8.61
A124: 8.21 | C124: 119 | D124: 9.635 | E124: 11.66 | F124: 0.28 | G124: 8.745 | H124: 12.615 | I124: 7.69 | J124: 7.895 | K124: 8.71
A125: 7.91 | C125: 120 | D125: 9.035 | E125: 11.76 | F125: -0.42 | G125: 8.845 | H125: 12.015 | I125: 7.09 | J125: 9.695 | K125: 8.41
A126: 7.41 | C126: 121 | D126: 8.835 | E126: 11.76 | F126: -0.82 | G126: 8.645 | H126: 11.215 | I126: 6.69 | J126: 8.895 | K126: 7.91
A127: 7.11 | C127: 122 | D127: 8.835 | E127: 12.16 | F127: -0.82 | G127: 8.545 | H127: 10.915 | I127: 6.69 | J127: 7.695 | K127: 7.61
A128: 7.01 | C128: 123 | D128: 8.835 | E128: 11.96 | F128: -1.52 | G128: 8.545 | H128: 10.715 | I128: 6.49 | J128: 6.995 | K128: 7.51
A129: 6.91 | C129: 124 | D129: 9.235 | E129: 12.66 | F129: -1.42 | G129: 8.545 | H129: 10.715 | I129: 6.09 | J129: 7.195 | K129: 7.41
A130: 7.21 | C130: 125 | D130: 9.435 | E130: 11.56 | F130: -1.62 | G130: 7.245 | H130: 10.115 | I130: 5.49 | J130: 6.795 | K130: 7.71
A131: 11.41 | C131: 126 | D131: 9.035 | E131: 9.06 | F131: -1.82 | G131: 6.545 | H131: 10.015 | I131: 5.19 | J131: 6.695 | K131: 11.91
A132: 11.31 | C132: 127 | D132: 9.035 | E132: 9.06 | F132: -2.22 | G132: 6.745 | H132: 10.215 | I132: 4.79 | J132: 5.995 | K132: 11.81
A133: 12.01 | C133: 128 | D133: 8.935 | E133: 8.36 | F133: -2.12 | G133: 6.845 | H133: 10.115 | I133: 4.49 | J133: 6.195 | K133: 12.51
A134: 11.11 | C134: 129 | D134: 8.935 | E134: 7.96 | F134: -2.12 | G134: 6.545 | H134: 10.015 | I134: 4.79 | J134: 6.595 | K134: 11.61
A135: =HLOOKUP($A$5,$D$5:$K$8765,C135+1,FALSE)-0.005*$B$2 -> 12.51 | C135: 130 | D135: 9.235 | E135: 8.26 | F135: -0.62 | G135: 7.245 | H135: 10.615 | I135: 6.89 | J135: 10.195 | K135: 13.01
A136: 12.51 | C136: 131 | D136: 9.535 | E136: 8.46 | F136: 0.68 | G136: 7.545 | H136: 10.915 | I136: 9.39 | J136: 12.295 | K136: 13.01
A137: 12.61 | C137: 132 | D137: 10.135 | E137: 8.96 | F137: 2.48 | G137: 8.545 | H137: 11.115 | I137: 11.89 | J137: 13.295 | K137: 13.11
A138: 12.21 | C138: 133 | D138: 10.635 | E138: 9.06 | F138: 4.48 | G138: 9.045 | H138: 12.315 | I138: 13.49 | J138: 14.295 | K138: 12.71
A139: 12.11 | C139: 134 | D139: 10.335 | E139: 9.16 | F139: 4.98 | G139: 9.345 | H139: 13.015 | I139: 14.99 | J139: 14.995 | K139: 12.61
A140: 11.91 | C140: 135 | D140: 10.835 | E140: 9.06 | F140: 5.38 | G140: 9.645 | H140: 13.315 | I140: 16.29 | J140: 16.195 | K140: 12.41
A141: 12.11 | C141: 136 | D141: 10.635 | E141: 8.86 | F141: 4.98 | G141: 10.445 | H141: 12.815 | I141: 15.79 | J141: 15.295 | K141: 12.61
A142: 12.11 | C142: 137 | D142: 10.035 | E142: 8.86 | F142: 3.78 | G142: 11.945 | H142: 12.215 | I142: 13.89 | J142: 13.895 | K142: 12.61
A143: 12.11 | C143: 138 | D143: 9.135 | E143: 8.36 | F143: 2.38 | G143: 12.345 | H143: 12.215 | I143: 12.39 | J143: 11.495 | K143: 12.61
A144: 12.21 | C144: 139 | D144: 8.735 | E144: 7.96 | F144: 1.28 | G144: 12.545 | H144: 12.115 | I144: 10.09 | J144: 8.795 | K144: 12.71
A145: 12.31 | C145: 140 | D145: 8.635 | E145: 7.76 | F145: 0.58 | G145: 12.745 | H145: 12.015 | I145: 9.79 | J145: 8.295 | K145: 12.81
A146: 12.11 | C146: 141 | D146: 9.035 | E146: 7.16 | F146: -0.22 | G146: 12.845 | H146: 12.315 | I146: 8.39 | J146: 8.195 | K146: 12.61
A147: 12.71 | C147: 142 | D147: 9.235 | E147: 6.76 | F147: -0.82 | G147: 12.945 | H147: 12.615 | I147: 7.59 | J147: 6.895 | K147: 13.21
A148: 12.61 | C148: 143 | D148: 9.435 | E148: 6.66 | F148: -0.82 | G148: 12.545 | H148: 12.615 | I148: 7.19 | J148: 5.795 | K148: 13.11
A149: 12.21 | C149: 144 | D149: 8.835 | E149: 6.76 | F149: -1.22 | G149: 11.945 | H149: 13.115 | I149: 6.49 | J149: 4.995 | K149: 12.71
A150: 12.61 | C150: 145 | D150: 9.935 | E150: 6.66 | F150: -1.12 | G150: 10.845 | H150: 13.115 | I150: 6.39 | J150: 4.295 | K150: 13.11
A151: 12.61 | C151: 146 | D151: 8.835 | E151: 6.66 | F151: -1.12 | G151: 10.645 | H151: 12.115 | I151: 6.09 | J151: 3.795 | K151: 13.11
A152: 11.61 | C152: 147 | D152: 9.535 | E152: 6.56 | F152: -1.42 | G152: 10.745 | H152: 12.315 | I152: 5.59 | J152: 3.195 | K152: 12.11
A153: 9.51 | C153: 148 | D153: 9.635 | E153: 6.66 | F153: -1.42 | G153: 10.445 | H153: 11.115 | I153: 4.99 | J153: 2.695 | K153: 10.01
A154: 10.51 | C154: 149 | D154: 9.235 | E154: 6.56 | F154: -1.32 | G154: 9.845 | H154: 10.915 | I154: 4.79 | J154: 1.995 | K154: 11.01
A155: 12.21 | C155: 150 | D155: 9.135 | E155: 6.26 | F155: -1.72 | G155: 9.345 | H155: 11.115 | I155: 3.39 | J155: 1.695 | K155: 12.71
A156: 10.01 | C156: 151 | D156: 9.235 | E156: 5.46 | F156: -1.82 | G156: 9.145 | H156: 10.715 | I156: 4.09 | J156: 1.695 | K156: 10.51
A157: 8.81 | C157: 152 | D157: 9.335 | E157: 5.76 | F157: -1.72 | G157: 8.045 | H157: 9.315 | I157: 3.79 | J157: 1.495 | K157: 9.31
A158: 7.81 | C158: 153 | D158: 9.635 | E158: 5.26 | F158: -1.72 | G158: 7.345 | H158: 8.415 | I158: 3.69 | J158: 1.895 | K158: 8.31
A159: 8.31 | C159: 154 | D159: 10.035 | E159: 6.46 | F159: -1.42 | G159: 7.645 | H159: 10.315 | I159: 4.99 | J159: 5.695 | K159: 8.81
A160: 7.51 | C160: 155 | D160: 10.735 | E160: 6.96 | F160: -1.32 | G160: 9.245 | H160: 11.815 | I160: 4.99 | J160: 8.295 | K160: 8.01
A161: 8.41 | C161: 156 | D161: 10.835 | E161: 7.06 | F161: -0.92 | G161: 10.645 | H161: 12.615 | I161: 6.39 | J161: 8.495 | K161: 8.91
A162: 10.51 | C162: 157 | D162: 11.235 | E162: 7.96 | F162: -0.42 | G162: 11.745 | H162: 12.815 | I162: 8.39 | J162: 11.695 | K162: 11.01
A163: 11.41 | C163: 158 | D163: 11.635 | E163: 8.66 | F163: -0.02 | G163: 12.145 | H163: 12.815 | I163: 10.09 | J163: 13.695 | K163: 11.91
A164: 11.11 | C164: 159 | D164: 11.835 | E164: 7.86 | F164: 0.18 | G164: 12.245 | H164: 12.715 | I164: 12.49 | J164: 13.995 | K164: 11.61
A165: 10.51 | C165: 160 | D165: 12.135 | E165: 7.36 | F165: 0.28 | G165: 12.045 | H165: 12.315 | I165: 13.49 | J165: 13.495 | K165: 11.01
A166: 10.91 | C166: 161 | D166: 11.935 | E166: 6.46 | F166: 0.28 | G166: 10.845 | H166: 11.115 | I166: 14.99 | J166: 11.295 | K166: 11.41
A167: 8.91 | C167: 162 | D167: 11.635 | E167: 5.96 | F167: -0.02 | G167: 9.345 | H167: 10.015 | I167: 14.29 | J167: 8.195 | K167: 9.41
A168: 8.71 | C168: 163 | D168: 11.335 | E168: 5.96 | F168: -0.12 | G168: 8.945 | H168: 9.615 | I168: 13.49 | J168: 6.395 | K168: 9.21
A169: 8.01 | C169: 164 | D169: 10.935 | E169: 5.96 | F169: -0.32 | G169: 8.145 | H169: 8.915 | I169: 13.49 | J169: 5.895 | K169: 8.51
A170: 7.81 | C170: 165 | D170: 10.635 | E170: 6.06 | F170: -0.32 | G170: 7.745 | H170: 7.615 | I170: 12.29 | J170: 5.695 | K170: 8.31
A171: 7.61 | C171: 166 | D171: 10.035 | E171: 5.66 | F171: -0.72 | G171: 7.945 | H171: 6.515 | I171: 12.69 | J171: 5.195 | K171: 8.11
A172: 7.41 | C172: 167 | D172: 9.435 | E172: 5.76 | F172: -1.42 | G172: 8.345 | H172: 7.315 | I172: 11.59 | J172: 4.495 | K172: 7.91
A173: 7.41 | C173: 168 | D173: 9.535 | E173: 5.46 | F173: -1.42 | G173: 8.545 | H173: 7.415 | I173: 10.89 | J173: 3.595 | K173: 7.91
A174: 7.11 | C174: 169 | D174: 9.735 | E174: 5.06 | F174: -1.52 | G174: 8.645 | H174: 7.915 | I174: 11.09 | J174: 2.995 | K174: 7.61
A175: 6.81 | C175: 170 | D175: 9.035 | E175: 4.36 | F175: -1.72 | G175: 7.545 | H175: 7.815 | I175: 11.09 | J175: 2.495 | K175: 7.31
A176: 6.71 | C176: 171 | D176: 8.335 | E176: 4.76 | F176: -1.82 | G176: 6.745 | H176: 7.415 | I176: 10.59 | J176: 2.795 | K176: 7.21
A177: 6.41 | C177: 172 | D177: 7.835 | E177: 4.26 | F177: -2.02 | G177: 6.245 | H177: 7.215 | I177: 10.79 | J177: 3.495 | K177: 6.91
A178: 6.51 | C178: 173 | D178: 7.235 | E178: 4.66 | F178: -2.42 | G178: 5.945 | H178: 7.115 | I178: 10.49 | J178: 2.295 | K178: 7.01
A179: 6.31 | C179: 174 | D179: 7.235 | E179: 5.16 | F179: -2.42 | G179: 5.945 | H179: 6.615 | I179: 10.29 | J179: 1.495 | K179: 6.81
A180: 6.41 | C180: 175 | D180: 7.335 | E180: 5.26 | F180: -2.52 | G180: 5.745 | H180: 6.115 | I180: 9.99 | J180: 1.395 | K180: 6.91
A181: 6.61 | C181: 176 | D181: 7.835 | E181: 5.16 | F181: -2.42 | G181: 6.045 | H181: 5.315 | I181: 10.29 | J181: 0.395 | K181: 7.11
A182: 6.81 | C182: 177 | D182: 7.735 | E182: 5.36 | F182: -2.72 | G182: 6.645 | H182: 5.115 | I182: 10.39 | J182: 1.295 | K182: 7.31
A183: 6.81 | C183: 178 | D183: 8.035 | E183: 5.66 | F183: -1.62 | G183: 6.945 | H183: 5.215 | I183: 10.79 | J183: 5.795 | K183: 7.31
A184: 6.71 | C184: 179 | D184: 8.535 | E184: 5.96 | F184: -0.22 | G184: 8.345 | H184: 4.915 | I184: 11.19 | J184: 7.395 | K184: 7.21
A185: 7.01 | C185: 180 | D185: 8.635 | E185: 6.36 | F185: 0.38 | G185: 8.545 | H185: 4.815 | I185: 11.69 | J185: 9.195 | K185: 7.51
A186: 7.41 | C186: 181 | D186: 9.235 | E186: 6.86 | F186: 0.88 | G186: 8.445 | H186: 5.615 | I186: 11.99 | J186: 10.995 | K186: 7.91
A187: 8.91 | C187: 182 | D187: 8.835 | E187: 7.26 | F187: 2.48 | G187: 10.145 | H187: 7.015 | I187: 11.49 | J187: 13.395 | K187: 9.41
A188: 9.41 | C188: 183 | D188: 10.735 | E188: 7.16 | F188: 3.98 | G188: 10.645 | H188: 7.915 | I188: 11.59 | J188: 13.795 | K188: 9.91
A189: 9.11 | C189: 184 | D189: 10.235 | E189: 6.16 | F189: 5.18 | G189: 10.145 | H189: 8.315 | I189: 11.39 | J189: 13.795 | K189: 9.61
A190: 9.11 | C190: 185 | D190: 10.235 | E190: 4.76 | F190: 5.88 | G190: 9.645 | H190: 8.515 | I190: 10.79 | J190: 11.395 | K190: 9.61
A191: 8.91 | C191: 186 | D191: 9.435 | E191: 2.86 | F191: 6.48 | G191: 9.245 | H191: 8.415 | I191: 9.79 | J191: 7.995 | K191: 9.41
